Workbook

Sheet LDC Info
Z3: 1 | AA3: Alectra Utilities Corporation-Brampton Rate Zone
Z4: 2 | AA4: Alectra Utilities Corporation-Enersource Rate Zone
Z5: 3 | AA5: Alectra Utilities Corporation-Horizon Utilities Rate Zone
Z6: 4 | AA6: Alectra Utilities Corporation-PowerStream Rate Zone
Z7: 5 | AA7: Alectra Utilities Corporation-Guelph Rate Zone
Z8: 6 | AA8: Algoma Power Inc.
Z9: 7 | AA9: Atikokan Hydro Inc.
Z10: 8 | AA10: Bluewater Power Distribution Corporation
Z11: 9 | AA11: Brantford Power Inc.
Z12: 10 | AA12: Burlington Hydro Inc.
Z13: 11 | AA13: Canadian Niagara Power Inc.
D14: Utility Name | E14: Waterloo North Hydro Inc. | Z14: 12 | AA14: Centre Wellington Hydro Ltd.
Z15: 13 | AA15: Chapleau Public Utilities Corporation
D16: Assigned EB Number | E16: EB-2020-0059 | Z16: 14 | AA16: Cooperative Hydro Embrun Inc.
Z17: 15 | AA17: E.L.K. Energy Inc.
D18: Name of Contact and Title | E18: Albert P. Singh, VP Finance & CFO | Z18: 16 | AA18: Elexicon Energy Inc.-Whitby Rate Zone
Z19: 17 | AA19: Elexicon Energy Inc.-Veridian Rate Zone
D20: Phone Number | E20: 519-888-5542 | Z20: 18 | AA20: Energy+ Inc.
Z21: 19 | AA21: Entegrus Powerlines Inc.-For Entegrus-Main Rate Zone
D22: Email Address | E22: asingh@wnhydro.com | Z22: 20 | AA22: Entegrus Powerlines Inc.-For Former St. Thomas Energy Rate Zone
Z23: 21 | AA23: ENWIN Utilities Ltd.
D24: Test Year | E24: 2021 | Z24: 22 | AA24: EPCOR Electricity Distribution Ontario Inc.
Z25: 23 | AA25: ERTH Power Corporation - ERTH Power Main Rate Zone
D26: Bridge Year | E26: =IF(ISBLANK(E24), "", E24-1) -> 2020 | Z26: 24 | AA26: ERTH POWER CORPORATION – GODERICH RATE ZONE
Z27: 25 | AA27: Essex Powerlines Corporation
D28: Last Rebasing Year | E28: 2016 | Z28: 26 | AA28: Festival Hydro Inc.
Z29: 27 | AA29: Fort Frances Power Corporation
A30: Identify the accounting standard used for the test year | Z30: 28 | AA30: Greater Sudbury Hydro Inc.
E31: MIFRS | Z31: 29 | AA31: Grimsby Power Incorporated
Z32: 30 | AA32: Halton Hills Hydro Inc.
A33: ="Did "& E14 &" update its depreciation and capitalization policies?" -> Did Waterloo North Hydro Inc. update its depreciation and capitalization policies? | Z33: 31 | AA33: Hearst Power Distribution Co. Ltd.
E34: Yes | Z34: 32 | AA34: Hydro 2000 Inc.
Z35: 33 | AA35: Hydro Hawkesbury Inc.
A36: If "yes" to cell E34, were the changes in policies reflected in a prior rebasing application? | Z36: 34 | AA36: Hydro One Networks Inc.
E37: Yes | Z37: 35 | AA37: Hydro One Networks Inc.-Former Haldimand County Hydro Inc. Service Area
Z38: 36 | AA38: Hydro One Networks Inc.-Former Norfolk Power Distribution Inc. Service Area
A39: ="When did "&E14&" update its actual depreciation and capitalization policies?" -> When did Waterloo North Hydro Inc. update its actual depreciation and capitalization policies? | Z39: 37 | AA39: Hydro One Networks Inc.-Former Woodstock Hydro Services Inc. Service Area
E40: 2001-01-01 | F40: 2013 | Z40: 38 | AA40: Hydro One Remote Communites Inc.
Z41: 39 | AA41: Hydro Ottawa Limited
A42: Identify the year the applicant adopted IFRS for financial reporting purposes | Z42: 40 | AA42: InnPower Corporation
E43: 2015 | Z43: 41 | AA43: Kingston Hydro Corporation
Z44: 42 | AA44: Kitchener-Wilmot Hydro Inc.
Z45: 43 | AA45: Lakefront Utilities Inc.
A46: ="Is " & E14 & " applying for cost recovery for the test and/or future year(s) for Green Energy initiatives?" -> Is Waterloo North Hydro Inc. applying for cost recovery for the test and/or future year(s) for Green Energy initiatives? | Z46: 44 | AA46: Lakeland Power Distribution Ltd.
E47: No | Z47: 45 | AA47: Lakeland Power Distribution Ltd.-Parry Sound Service Area
Z48: 46 | AA48: London Hydro Inc.
A49: ="Is " & E14 & " an embedded distributor?" -> Is Waterloo North Hydro Inc. an embedded distributor? | E49: Yes | Z49: 47 | AA49: Milton Hydro Distribution Inc.
Z50: 48 | AA50: Newmarket-Tay Power Distribution Ltd.-For Former Midland Power Utility Rate Zone
Z51: 49 | AA51: Newmarket-Tay Power Distribution Ltd.-For Newmarket-Tay Power Main Rate Zone
B52: Notes | Z52: 50 | AA52: Niagara Peninsula Energy Inc.
Z53: 51 | AA53: Niagara-on-the-Lake Hydro Inc.
C54: Pale green cells represent input cells. | Z54: 52 | AA54: North Bay Hydro Distribution Limited - Espanola service territory
Z55: 53 | AA55: North Bay Hydro Distribution Limited - North Bay service territory
C56: Pale blue cells represent drop-down lists. The applicant should select the appropriate item from the drop-down list. | Z56: 54 | AA56: Northern Ontario Wires Inc.
Z57: 55 | AA57: Oakville Hydro Electricity Distribution Inc.
C58: White cells contain fixed values, automatically generated values or formulae. | N58: =IF(LEN($G58)>1, (SUMPRODUCT(--($C$81:$C$1003=$C58),--($A$81:$A$1003=$D58), --($B$81:$B$1003=$B58&"_TOTAL"), $L$1:$L$889)), "") ->  | O58: =IF(LEN($G58)>1, (SUMPRODUCT(--($C$81:$C$1003=$C58),--($A$81:$A$1003=$D58), --($B$81:$B$1003=$B58&"_TOTAL"), $M$1:$M$889)), "") ->  | Z58: 56 | AA58: Orangeville Hydro Limited
Z59: 57 | AA59: Orillia Power Distribution Corporation
Z60: 58 | AA60: Oshawa PUC Networks Inc.
Z61: 59 | AA61: Ottawa River Power Corporation
Z62: 60 | AA62: Peterborough Distribution Incorporated
Z63: 61 | AA63: PUC Distribution Inc.
Z64: 62 | AA64: Renfrew Hydro Inc.
Z65: 63 | AA65: Rideau St. Lawrence Distribution Inc.
Z66: 64 | AA66: Sioux Lookout Hydro Inc.
Z67: 65 | AA67: Synergy North Corporation-Kenora Rate Zone
Z68: 66 | AA68: Synergy North Corporation-Thunder Bay Rate Zone
Z69: 67 | AA69: Tillsonburg Hydro Inc.
Z70: 68 | AA70: Toronto Hydro-Electric System Limited
Z71: 69 | AA71: Wasaga Distribution Inc.
Z72: 70 | AA72: Waterloo North Hydro Inc.
Z73: 71 | AA73: Welland Hydro-Electric System Corp.
Z74: 72 | AA74: Wellington North Power Inc.
Z75: 73 | AA75: Westario Power Inc.

Sheet Index
A15: 1 | B15: LDC Information Sheet | E15: 20 | F15: App.2-G: Service Reliability Indicators
A16: 2 | B16: Index | E16: 21 | F16: App.2-H: Other Operating Revenue (TO BE UPDATED AT THE DRAFT RATE ORDER STAGE)
A17: 3 | B17: Cost of Service Application Flowchart | E17: 22 | F17: App.2-I: Load Forecast CDM Adjustment Workform
A18: 4 | B18: List of Key References | E18: 23 | F18: App.2-IA: Load Forecast Data Instructions
A19: 5 | B19: App.2-A: List of Requested Approvals | E19: 24 | F19: App.2-IB: Actual and Forecast Load and Customer Data
A20: 6 | B20: App.2-AA: Capital Projects Table | E20: 25 | F20: App.2-JA: OM&A Summary Analysis (TO BE UPDATED AT THE DRAFT RATE ORDER STAGE)
A21: 7 | B21: App.2-AB: Capital Expenditures (TO BE UPDATED AT THE DRAFT RATE ORDER STAGE) | E21: 26 | F21: App.2-JB: Recoverable OM&A Cost Driver Table
A22: 8 | B22: App. 2-AC: Customer Engagement Worksheet | E22: 27 | F22: App.2-JC: OM&A Programs Table
A23: 9 | B23: App.2-B: General Accounting Instructions | E23: 28 | F23: App.2-K: Employee Costs (TO BE UPDATED AT THE DRAFT RATE ORDER STAGE)
A24: 10 | B24: App.2-BA: Fixed Asset Continuity Schedule | E24: 29 | F24: App.2-L: Recoverable OM&A Cost per Customer and per FTE
A25: 11 | B25: Appendix 2-BB: Service Life Comparison | E25: 30 | F25: App.2-M: Regulatory Costs Schedule (TO BE UPDATED AT THE DRAFT RATE ORDER STAGE)
A26: 12 | B26: App.2-C_DepExp: Depreciation and Amortization Expense | E26: 31 | F26: App.2-N: Shared Services and Corporate Cost Allocation
A27: 13 | B27: App.2-D: Overhead Expenses | E27: 32 | F27: App.2-OA: Capital Structure and Cost of Capital
A28: 14 | B28: App.2-EA: Account 1575 PP&E Deferral Account (2015 IFRS Adopters) - CONTACT OEB STAFF IF TAB REQUIRED | E28: 33 | F28: App.2-OB: Debt Instruments
A29: 15 | B29: App.2-EB: Account 1576 - Accounting Changes Under CGAAP (2012 Changes) - CONTACT OEB STAFF IF TAB REQUIRED | E29: 34 | F29: App.2-Q: Cost of Serving Embedded Distributor(s)
A30: 16 | B30: App.2-EC: Account 1576 - Accounting Changes Under CGAAP (2013 Changes) - CONTACT OEB STAFF IF TAB REQUIRED | E30: 35 | F30: App.2-R: Loss Factors
A31: 17 | B31: App.2-FA: Renewable Generation Connection Investment Summary (TO BE UPDATED AT THE DRAFT RATE ORDER STAGE) | E31: 36 | F31: App.2-S: Stranded Meter Treatment
A32: 18 | B32: App.2-FB: Calculation of Renewable Generation Connection Direct Benefits/Provincial Amount: Renewable Enabling Improvement Investments (TO BE UPDATED AT THE DRAFT RATE ORDER STAGE) | E32: 37 | F32: App.2-Y: Transition to MIFRS Summary Impact - CONTACT OEB STAFF IF TAB REQUIRED
A33: 19 | B33: App.2-FC: Calculation of Renewable Generation Connection Direct Benefits/Provincial Amount: Renewable Expansion Investments (TO BE UPDATED AT THE DRAFT RATE ORDER STAGE) | E33: 38 | F33: App.2-YA: One-Time Incremental IFRS Transition Costs - CONTACT OEB STAFF IF TAB REQUIRED
E34: 39 | F34: App.2-Z: Commodity Expense
A42: Note: | B42: Appendices for the Tariff of Rates and Charges at Current and Proposed Rates, and for the Bill Impacts are now in a separate spreadsheet model. These appendices were formerly 2-Z and 2-W.

Sheet COS Flowchart
B4: Cost of Service Rate Application Schematic
B6: The Cost of Service Rate Application Schematic is a flowchart that is included as a guide for the components of an application. The schematic demonstrates how demand and costs interrelate to derive the revenue requirement and how the revenue requirement is allocated between classes and through fixed/variable splits to derive rates that will be compensatory for the annual revenue requirement, based on the the forecasted demand. There is no form to be filled out; therefore, this Schedule is not required to be filed.

Sheet List of Key References
B2: List of Key References
A4: A list of key references for understanding the Filing Requirements has been embedded in the document below. To access the list of references and associated hyperlinks double-click the icon below.

Sheet App.2-A_Requested_Approvals
G1: File Number: | H1: =EBNUMBER -> EB-2020-0059
G2: Exhibit: | H2: 1
G3: Tab:
G4: Schedule:
G5: Page: | H5: 59
G7: Date: | H7: 2020-06-30
B9: Appendix 2-A
B10: List of Requested Approvals
B12: The distributor must fill out the following sheet with the complete list of specific approvals requested and relevant section(s) of the legislation must be provided. All approvals, including accounting orders (deferral and variance accounts) new rate classes, revised specific service charges or retail service charges which the applicant is seeking, must be separately identified, as well being clearly documented in the appropriate sections of the application.
B14: Additional requests may be added by copying and pasting blank input rows, as needed.
B16: If additional requests arise, or requested approvals are removed, during the processing of the application, the distributor should update this list.
B18: =CONCATENATE('LDC Info'!E14," is seeking the following approvals in this application:") -> Waterloo North Hydro Inc. is seeking the following approvals in this application:
B20: 1 | F20: Approval to charge distribution rates effective January 1, 2021 to recover a Service Revenue Requirement of $39,298,087 which includes a Revenue Deficiency of $2,624,364 as detailed in Exhibit 6. The schedule of Proposed Rates is set out in Exhibit 8.
B22: 2 | F22: Approval of the Distribution System Plan as outlined in Exhibit 2.
B24: 3 | F24: Approval of revised Low Voltage Rates as proposed and described in Exhibit 8.
B26: 4 | F26: Approval to adjust the Retail Transmission Rates – Network and Connection as detailed in Exhibit 8.
B28: 5 | F28: Approval to continue to charge Wholesale Market and Rural Rate Protection Charges approved in the Board Decision and Order in the matter of WNH’s 2020 Distribution Rates (EB-2019-0071).
B30: 6 | F30: Approval to continue the Specific Service Charges and Transformer Allowance approved in the Board Decision and Order in the matter of WNH’s 2020 Distribution Rates (EB-2019-0071) with the exception of the addition of four new charges (discussed below in point 7) and the removal of the Credit Check Charge and the Notification Charge.
B32: 7 | F32: Approval to add the following Specific Services Charges: Disconnect/Reconnect at Meter – During Regular Hours, Disconnect/Reconnect at Meter– After Regular Hours, Disconnect/Reconnect at Pole/Transformer – During Regular Hours, Disconnect/Reconnect at Pole/Transformer – After Regular Hours. This is described in Exhibit 8.
B34: 8 | F34: Approval to implement a Standby Charge for the Large Use and General Service > 50 kW customer classes with load displacement generation. This is described in Exhibit 7.
B36: 9 | F36: Approval to use gross load billing for Retail Transmission Rates – Network and Connection charges for customers who have load displacement generation as detailed in Exhibit 8.
B38: 10 | F38: Approval of the Proposed Loss Factors as detailed in Exhibit 8.
B40: 11 | F40: Approval to continue to use the Transformer Allowance and Primary Metering Allowance for transformer losses most recently approved as part of the last Cost of Service application (EB-2015-0108). Listed in Appendix 8.
B42: 12 | F42: Approval to charge the Board’s updated Pole Attachment Charge, effective January 1, 2021.
B44: 13 | F44: Approval of the Rate Riders for a one-year disposition of the Group 1, Group 2 and Other Deferral and Variance Accounts as detailed in Exhibit 9.
B46: 14 | F46: Approval to discontinue the use of Retail Cost Variance Accounts (RCVAs) 1518 and 1548.
B48: 15 | F48: Approval of the Rate Riders for a one-year disposition of the Lost Revenue Adjustment Mechanism Variance Account ("LRAMVA") for lost revenue as presented in Exhibits 4 and 9 of this application.
B50: 16 | F50: Approval to dispose of the Power Liability Variance as described in Exhibit 9.
B52: 17 | F52: Approval to create a 1592 – PILS and Tax Variance – CCA Changes sub account as described in Exhibit 9.
B54: 18 | F54: Approval to create a 1509 – Impacts Arising from the COVID-19 Emergency sub account as described in Exhibit 9.
B56: 19 | F56: Such other approvals as WNH may advise and the OEB may deem as just and reasonable.

Sheet App.2-AA_Capital Projects
G1: File Number: | H1: =EBNUMBER -> EB-2020-0059
G2: Exhibit: | H2: 2
G3: Tab:
G4: Schedule: | H4: Table 2-37
G5: Page: | H5: 66
G7: Date: | H7: 2020-06-30
A9: Appendix 2-AA
A10: Capital Projects Table
A13: Projects | B13: =C13-1 -> 2016 | C13: =D13-1 -> 2017 | D13: =E13-1 -> 2018 | E13: =BridgeYear - 1 -> 2019 | F13: =BridgeYear & " Bridge Year" -> 2020 Bridge Year | G13: =TestYear & " Test Year" -> 2021 Test Year
A14: Reporting Basis | B14: MIFRS | C14: MIFRS | D14: MIFRS | E14: MIFRS | F14: MIFRS | G14: MIFRS
A15: System Renewal
A16: Overhead Line Renewal | B16: 179585 | C16: 608222 | D16: 514169 | E16: 1117214 | F16: 235928 | G16: 3181346
A17: Underground Line Renewal | B17: 1536029 | C17: 1602516 | D17: 1615007 | E17: 1873000 | F17: 1770943 | G17: 1435447
A18: Overhead Line Renewal - Failing Conductor | B18: 30618 | C18: 405673 | D18: 312801 | E18: 647791 | F18: 1245812 | G18: 853987
A19: Overhead Line Renewal (8kV) | B19: 1514370 | C19: 1527537 | D19: 2148877 | E19: 1970758 | F19: 3252494 | G19: 703076
A20: Overhead Line Renewal (4kV) | B20: 2567067 | C20: 3090030 | D20: 1831507 | E20: 1621924 | F20: 0 | G20: 0
A21: Reactive Renewal | B21: 716750 | C21: 426202 | D21: 364105 | E21: 335469 | F21: 304485 | G21: 286140
A22: Proactive Renewal | B22: 681056 | C22: 664943 | D22: 882231 | E22: 913294 | F22: 843109 | G22: 752106
A23: Station Equipment Renewal | B23: 160631 | C23: 816425 | D23: 391418 | E23: 438142 | F23: 497041 | G23: 125503
A24: Miscellaneous/Other | B24: 415072 | C24: 340351 | D24: 356712 | E24: 444514 | F24: 462264 | G24: 758164
A26: Sub-Total | B26: =SUM(B16:B25) -> 7801178 | C26: 9481899 | D26: 8416827 | E26: 9362106 | F26: 8612076 | G26: 8095769
A27: System Access
A28: Non-PSWHA Relocations | B28: 10867476 | C28: 1268988 | D28: 466519 | E28: 159113 | F28: 117212 | G28: 424053
A29: PSWHA Relocations | B29: 1597270 | C29: 512165 | D29: 1888798 | E29: 517782 | F29: 1411093 | G29: 919660
A30: Customer Connections | B30: 3165292 | C30: 2249709 | D30: 2020785 | E30: 2983265 | F30: 2450707 | G30: 2168379
A31: Expansions (Subdivisions) | B31: 967227 | C31: 1015261 | D31: 924406 | E31: 782768 | F31: 644645 | G31: 1081946
A32: Expansions (Lines) | B32: 313048 | C32: 663572 | D32: 160030 | E32: 943375 | F32: 458889 | G32: 470395
A33: Retail Meters | B33: 464804 | C33: 590504 | D33: 621715 | E33: 760887 | F33: 707852 | G33: 664599
A34: Miscellaneous/Other | B34: 253047 | C34: -1924 | D34: 4703 | E34: 17077 | F34: 48761 | G34: 111230
A36: Sub-Total | B36: =SUM(B28:B35) -> 17628164 | C36: 6298275 | D36: 6086956 | E36: 6164267 | F36: 5839159 | G36: 5840262
A37: System Service
A38: Contingency Enhancement | B38: 282615 | C38: 275248 | D38: 607147 | E38: 1133913 | F38: 615740 | G38: 291280
A39: Grid Modernization | B39: 1133013 | C39: 125488 | D39: 758099 | E39: 909408 | F39: 856313 | G39: 909220
A40: Grid Resiliency | B40: 0 | C40: 0 | D40: 0 | E40: 0 | F40: 0 | G40: 200000
A41: Stations Equipment Upgrades | B41: 46760 | C41: 138426 | D41: 234815 | E41: 239219 | F41: 442961 | G41: 406567
A42: Miscellaneous/Other | B42: 279679 | C42: 27909 | D42: 233617 | E42: 322035 | F42: 283977 | G42: 486538
A44: Sub-Total | B44: =SUM(B38:B43) -> 1742067 | C44: 567071 | D44: 1833678 | E44: 2604575 | F44: 2198991 | G44: 2293605
A45: General Plant
A46: Fleet - Trucks | B46: 406938 | C46: 604043 | D46: 523423 | E46: 331589 | F46: 666740 | G46: 735187
A47: IT Asset Lifecycle | B47: 111028 | C47: 200116 | D47: 212975 | E47: 198469 | F47: 323891 | G47: 327946
A48: IT System Changes and Improvements | B48: 73514 | C48: 48901 | D48: 194302 | E48: 136405 | F48: 856410 | G48: 71819
A49: IT New Systems and Services | B49: 697082 | C49: 776974 | D49: 155355 | E49: 272793 | F49: 204708 | G49: 169479
A50: OT Software | B50: 76913 | C50: 186511 | D50: 285789 | E50: 305680 | F50: 251346 | G50: 281522
A51: Building & Furniture Improvements | B51: 175148 | C51: 240318 | D51: 248039 | E51: 215018 | F51: 299600 | G51: 250700
A52: MS/DS Decommissioning | B52: 488315 | C52: 43546 | D52: 16923 | E52: 96624 | F52: 673544 | G52: 462762
A53: Miscellaneous/Other | B53: 259266 | C53: 164262 | D53: 393334 | E53: 253650 | F53: 278340 | G53: 519461
A55: Sub-Total | B55: =SUM(B46:B54) -> 2288204 | C55: 2264671 | D55: 2030140 | E55: 1810228 | F55: 3554579 | G55: 2818876
A56: Miscellaneous
A57: Total | B57: =SUMPRODUCT(--($A15:$A56="Sub-Total"), B$15:B$56)+B56 -> 29459613 | C57: 18611916 | D57: 18367601 | E57: 19941176 | F57: 20204805 | G57: 19048512
A58: Less Renewable Generation Facility Assets and Other Non-Rate-Regulated Utility Assets (input as negative) | B58: =-B52 -> -488315 | C58: =-C52 -> -43546 | D58: -16923 | E58: -96624 | F58: -673544 | G58: -462762
A59: Total | B59: =B57+B58 -> 28971298 | C59: 18568370 | D59: 18350678 | E59: 19844552 | F59: 19531261 | G59: 18585750
A61: Notes:
A63: 1 Please provide a breakdown of the major components of each capital project undertaken in each year. Please ensure that all projects below the materiality threshold are included in the miscellaneous line. Add more projects as required.
A64: 2 The applicant should group projects appropriately and avoid presentations that result in classification of significant components of the capital budget in the miscellaneous category.

Sheet App.2-AB_Capital Expenditures
AE1: File Number: | AG1: =EBNUMBER -> EB-2020-0059
AE2: Exhibit: | AG2: 2
AE3: Tab:
AE4: Schedule: | AG4: Table 2-30
A5: TO BE UPDATED AT THE DRAFT RATE ORDER STAGE | AE5: Page: | AG5: 52
AE7: Date: | AG7: 2020-06-30
A9: Appendix 2-AB
A10: Table 2 - Capital Expenditure Summary from Chapter 5 Consolidated Distribution System Plan Filing Requirements
A11: First year of Forecast Period:
A12: =TestYear -> 2021
A13: CATEGORY | B13: Historical Period (previous plan1 & actual) | AC13: Forecast Period (planned)
B14: =E14-1 -> 2012 | E14: =H14-1 -> 2013 | H14: =K14-1 -> 2014 | K14: =N14-1 -> 2015 | N14: =Q14-1 -> 2016 | Q14: =T14-1 -> 2017 | T14: =W14-1 -> 2018 | W14: =Z14-1 -> 2019 | Z14: =AC14-1 -> 2020 | AC14: =A12 -> 2021 | AD14: =AC14+1 -> 2022 | AE14: =AD14+1 -> 2023 | AF14: =AE14+1 -> 2024 | AG14: =AF14+1 -> 2025
B15: Plan | C15: Actual | D15: Var | E15: Plan | F15: Actual | G15: Var | H15: Plan | I15: Actual | J15: Var | K15: Plan | L15: Actual | M15: Var | N15: Plan | O15: Actual | P15: Var | Q15: Plan | R15: Actual | S15: Var | T15: Plan | U15: Actual | V15: Var | W15: Plan | X15: Actual | Y15: Var | Z15: Plan | AA15: Actual2 | AB15: Var
B16: $ '000 | D16: % | E16: $ '000 | G16: % | H16: $ '000 | J16: % | K16: $ '000 | M16: % | N16: $ '000 | P16: % | Q16: $ '000 | S16: % | T16: $ '000 | V16: % | W16: $ '000 | Y16: % | Z16: $ '000 | AB16: % | AC16: $ '000
A17: System Access | D17: =IF(ISERROR((C17-B17)/B17),"--",(C17-B17)/B17) -> -- | G17: =IF(ISERROR((F17-E17)/E17),"--",(F17-E17)/E17) -> -- | J17: =IF(ISERROR((I17-H17)/H17),"--",(I17-H17)/H17) -> -- | M17: =IF(ISERROR((L17-K17)/K17),"--",(L17-K17)/K17) -> -- | N17: 11171.628 | O17: 17628.16416 | P17: =IF(ISERROR((O17-N17)/N17),"--",(O17-N17)/N17) -> 0.57794049 | Q17: 7520.91 | R17: 6298.50309 | S17: =IF(ISERROR((R17-Q17)/Q17),"--",(R17-Q17)/Q17) -> -0.162534442 | T17: 6020.046 | U17: 6091.46033 | V17: =IF(ISERROR((U17-T17)/T17),"--",(U17-T17)/T17) -> 0.01186275487 | W17: 5946.859126 | X17: 6243.182 | Y17: =IF(ISERROR((X17-W17)/W17),"--",(X17-W17)/W17) -> 0.04982846697 | Z17: 6085.795869 | AA17: 5839.159 | AB17: =IF(ISERROR((AA17-Z17)/Z17),"--",(AA17-Z17)/Z17) -> -0.04052664176 | AC17: 5840.262 | AD17: 6166.098616 | AE17: 6305.420588 | AF17: 6447.529 | AG17: 6592.47958
A18: System Renewal | D18: =IF(ISERROR((C18-B18)/B18),"--",(C18-B18)/B18) -> -- | G18: =IF(ISERROR((F18-E18)/E18),"--",(F18-E18)/E18) -> -- | J18: =IF(ISERROR((I18-H18)/H18),"--",(I18-H18)/H18) -> -- | M18: =IF(ISERROR((L18-K18)/K18),"--",(L18-K18)/K18) -> -- | N18: 7360.065 | O18: 7801.17789 | P18: =IF(ISERROR((O18-N18)/N18),"--",(O18-N18)/N18) -> 0.05993328727 | Q18: 10001.084 | R18: 9481.89986 | S18: =IF(ISERROR((R18-Q18)/Q18),"--",(R18-Q18)/Q18) -> -0.05191278665 | T18: 9438.2 | U18: 8423.58886 | V18: =IF(ISERROR((U18-T18)/T18),"--",(U18-T18)/T18) -> -0.1075004916 | W18: 8800.764 | X18: 9438.714 | Y18: =IF(ISERROR((X18-W18)/W18),"--",(X18-W18)/W18) -> 0.0724880249 | Z18: 8975.77928 | AA18: 8612.076 | AB18: =IF(ISERROR((AA18-Z18)/Z18),"--",(AA18-Z18)/Z18) -> -0.04052052403 | AC18: 8095.769 | AD18: 9371.994573 | AE18: 9548.434465 | AF18: 9693.203154 | AG18: 9951.367217
A19: System Service | D19: -- | G19: -- | J19: -- | M19: -- | N19: 2405.95 | O19: 1742.06603 | P19: -0.2759342339 | Q19: 1680 | R19: 566.84316 | S19: -0.6625933571 | T19: 1725.2 | U19: 1822.41163 | V19: 0.05634803501 | W19: 1175.404 | X19: 2449.054 | Y19: 1.083584878 | Z19: 1175.61208 | AA19: 2198.991 | AB19: 0.870507319 | AC19: 2293.605 | AD19: 1346.20874 | AE19: 1288.332915 | AF19: 1211.459573 | AG19: 1211.588765
A20: General Plant | D20: -- | G20: -- | J20: -- | M20: -- | N20: 1869.078 | O20: 2288.20444 | P20: 0.2242423484 | Q20: 2813.765 | R20: 2264.67079 | S20: -0.1951457247 | T20: 1661.176 | U20: 2030.13944 | V20: 0.2221097825 | W20: 1670.309 | X20: 1810.228 | Y20: 0.08376833269 | Z20: 1649.525318 | AA20: 3554.579 | AB20: 1.15491024 | AC20: 2818.876 | AD20: 3567.43166 | AE20: 3593.891093 | AF20: 2062.636731 | AG20: 2221.975466
A21: TOTAL EXPENDITURE | B21: =SUM(B17:B20) -> 0 | C21: =SUM(C17:C20) -> 0 | D21: -- | E21: =SUM(E17:E20) -> 0 | F21: =SUM(F17:F20) -> 0 | G21: -- | H21: =SUM(H17:H20) -> 0 | I21: =SUM(I17:I20) -> 0 | J21: -- | K21: =SUM(K17:K20) -> 0 | L21: =SUM(L17:L20) -> 0 | M21: -- | N21: =SUM(N17:N20) -> 22806.721 | O21: =SUM(O17:O20) -> 29459.61252 | P21: 0.291707498 | Q21: 22015.759 | R21: 18611.9169 | S21: -0.154609346 | T21: 18844.622 | U21: 18367.60026 | V21: -0.02531341515 | W21: 17593.33613 | X21: 19941.178 | Y21: 0.1334506348 | Z21: 17886.71255 | AA21: 20204.805 | AB21: 0.1295985747 | AC21: 19048.512 | AD21: 20451.73359 | AE21: 20736.07906 | AF21: 19414.82846 | AG21: =SUM(AG17:AG20) -> 19977.41103
A22: Capital Contributions | D22: -- | G22: -- | J22: -- | M22: -- | N22: -6372.31 | O22: -12636.204 | P22: 0.9829863896 | Q22: -2352 | R22: -4578.501 | S22: 0.9466415816 | T22: -1902 | U22: -2968.93 | V22: 0.5609516299 | W22: -1902 | X22: -2110.939 | Y22: 0.1098522608 | Z22: -1902 | AA22: -2065.806 | AB22: 0.08612302839 | AC22: -2642.394 | AD22: -2709.839262 | AE22: -2764.036048 | AF22: -2819.316769 | AG22: -2875.703104
A23: Net Capital Expenditures | D23: -- | G23: -- | J23: -- | M23: -- | N23: 16434.411 | O23: 16823.40852 | P23: 0.02366969647 | Q23: 19663.759 | R23: 14033.4159 | S23: -0.2863309655 | T23: 16942.622 | U23: 15398.67026 | V23: -0.09112826456 | W23: 15691.33613 | X23: 17830.239 | Y23: 0.1363110736 | Z23: 15984.71255 | AA23: 18138.999 | AB23: 0.134771673 | AC23: 16406.118 | AD23: 17741.89433 | AE23: 17972.04301 | AF23: 16595.51169 | AG23: 17101.70792
A24: System O&M | D24: -- | G24: -- | J24: -- | M24: -- | N24: 7547.972 | O24: 7362.82 | P24: -0.0245300327 | R24: 7558.307 | S24: -- | U24: 7985.11705 | V24: -- | X24: 7766.704 | Y24: -- | AA24: 7907.04862 | AB24: -- | AC24: 8213.83162 | AD24: 8378.108252 | AE24: 8545.670417 | AF24: 8716.583826 | AG24: 8890.915502
A26: Notes to the Table:
A27: 1. Historical “previous plan” data is not required unless a plan has previously been filed. However, use the last OEB-approved, at least on a Total (Capital) Expenditure basis for the last cost of service rebasing year, and the applicant should include their planned budget in each subsequent historical year up to and including the Bridge Year.
A28: 2. Indicate the number of months of 'actual' data included in the last year of the Historical Period (normally a 'bridge' year):
A30: Explanatory Notes on Variances (complete only if applicable)
A31: Notes on shifts in forecast vs. historical budgets by category
A32: Please refer to Exhibit 2 of the Application.
A34: Notes on year over year Plan vs. Actual variances for Total Expenditures
A35: Please refer to Exhibit 2 of the Application.
A37: Notes on Plan vs. Actual variance trends for individual expenditure categories
A38: Please refer to Exhibit 2 of the Application.

Sheet Hidden_CAPEX (hidden)
A1: Utility Name | B1: EB Number | C1: Test Year | D1: Bridge Year | E1: Last Rebasing Year | F1: Category | G1: Year | H1: Plan | I1: Actual
A2: ='LDC Info'!$E$14 -> Waterloo North Hydro Inc. | B2: =EBNUMBER -> EB-2020-0059 | C2: =TestYear -> 2021 | D2: =BridgeYear -> 2020 | E2: =RebaseYear -> 2016 | F2: System Access | G2: ='App.2-AB_Capital Expenditures'!B14 -> 2012 | H2: ='App.2-AB_Capital Expenditures'!B17 -> 0 | I2: ='App.2-AB_Capital Expenditures'!C17 -> 0
A3: ='LDC Info'!$E$14 -> Waterloo North Hydro Inc. | B3: EB-2020-0059 | C3: 2021 | D3: 2020 | E3: 2016 | F3: System Renewal | G3: ='App.2-AB_Capital Expenditures'!B14 -> 2012 | H3: ='App.2-AB_Capital Expenditures'!B18 -> 0 | I3: ='App.2-AB_Capital Expenditures'!C18 -> 0
A4: ='LDC Info'!$E$14 -> Waterloo North Hydro Inc. | B4: EB-2020-0059 | C4: 2021 | D4: 2020 | E4: 2016 | F4: System Service | G4: ='App.2-AB_Capital Expenditures'!B14 -> 2012 | H4: ='App.2-AB_Capital Expenditures'!B19 -> 0 | I4: ='App.2-AB_Capital Expenditures'!C19 -> 0
A5: ='LDC Info'!$E$14 -> Waterloo North Hydro Inc. | B5: EB-2020-0059 | C5: 2021 | D5: 2020 | E5: 2016 | F5: General Plant | G5: ='App.2-AB_Capital Expenditures'!B14 -> 2012 | H5: ='App.2-AB_Capital Expenditures'!B20 -> 0 | I5: ='App.2-AB_Capital Expenditures'!C20 -> 0
A6: ='LDC Info'!$E$14 -> Waterloo North Hydro Inc. | B6: EB-2020-0059 | C6: 2021 | D6: 2020 | E6: 2016 | F6: Total Expenditure | G6: ='App.2-AB_Capital Expenditures'!B14 -> 2012 | H6: ='App.2-AB_Capital Expenditures'!B21 -> 0 | I6: ='App.2-AB_Capital Expenditures'!C21 -> 0
A7: ='LDC Info'!$E$14 -> Waterloo North Hydro Inc. | B7: EB-2020-0059 | C7: 2021 | D7: 2020 | E7: 2016 | F7: Capital Contributions | G7: ='App.2-AB_Capital Expenditures'!B14 -> 2012 | H7: ='App.2-AB_Capital Expenditures'!B22 -> 0 | I7: ='App.2-AB_Capital Expenditures'!C22 -> 0
A8: ='LDC Info'!$E$14 -> Waterloo North Hydro Inc. | B8: EB-2020-0059 | C8: 2021 | D8: 2020 | E8: 2016 | F8: Net Capital Expenditures | G8: ='App.2-AB_Capital Expenditures'!B14 -> 2012 | H8: ='App.2-AB_Capital Expenditures'!B23 -> 0 | I8: ='App.2-AB_Capital Expenditures'!C23 -> 0
A9: ='LDC Info'!$E$14 -> Waterloo North Hydro Inc. | B9: EB-2020-0059 | C9: 2021 | D9: 2020 | E9: 2016 | F9: System O&M | G9: ='App.2-AB_Capital Expenditures'!B14 -> 2012 | H9: ='App.2-AB_Capital Expenditures'!B24 -> 0 | I9: ='App.2-AB_Capital Expenditures'!C24 -> 0
A10: ='LDC Info'!$E$14 -> Waterloo North Hydro Inc. | B10: EB-2020-0059 | C10: 2021 | D10: 2020 | E10: 2016 | F10: System Access | G10: ='App.2-AB_Capital Expenditures'!E14 -> 2013 | H10: ='App.2-AB_Capital Expenditures'!E17 -> 0 | I10: ='App.2-AB_Capital Expenditures'!F17 -> 0
A11: ='LDC Info'!$E$14 -> Waterloo North Hydro Inc. | B11: EB-2020-0059 | C11: 2021 | D11: 2020 | E11: 2016 | F11: System Renewal | G11: ='App.2-AB_Capital Expenditures'!E14 -> 2013 | H11: ='App.2-AB_Capital Expenditures'!E18 -> 0 | I11: ='App.2-AB_Capital Expenditures'!F18 -> 0
A12: ='LDC Info'!$E$14 -> Waterloo North Hydro Inc. | B12: EB-2020-0059 | C12: 2021 | D12: 2020 | E12: 2016 | F12: System Service | G12: ='App.2-AB_Capital Expenditures'!E14 -> 2013 | H12: ='App.2-AB_Capital Expenditures'!E19 -> 0 | I12: ='App.2-AB_Capital Expenditures'!F19 -> 0
A13: ='LDC Info'!$E$14 -> Waterloo North Hydro Inc. | B13: EB-2020-0059 | C13: 2021 | D13: 2020 | E13: 2016 | F13: General Plant | G13: ='App.2-AB_Capital Expenditures'!E14 -> 2013 | H13: ='App.2-AB_Capital Expenditures'!E20 -> 0 | I13: ='App.2-AB_Capital Expenditures'!F20 -> 0
A14: ='LDC Info'!$E$14 -> Waterloo North Hydro Inc. | B14: EB-2020-0059 | C14: 2021 | D14: 2020 | E14: 2016 | F14: Total Expenditure | G14: ='App.2-AB_Capital Expenditures'!E14 -> 2013 | H14: ='App.2-AB_Capital Expenditures'!E21 -> 0 | I14: ='App.2-AB_Capital Expenditures'!F21 -> 0
A15: ='LDC Info'!$E$14 -> Waterloo North Hydro Inc. | B15: EB-2020-0059 | C15: 2021 | D15: 2020 | E15: 2016 | F15: Capital Contributions | G15: ='App.2-AB_Capital Expenditures'!E14 -> 2013 | H15: ='App.2-AB_Capital Expenditures'!E22 -> 0 | I15: ='App.2-AB_Capital Expenditures'!F22 -> 0
A16: ='LDC Info'!$E$14 -> Waterloo North Hydro Inc. | B16: EB-2020-0059 | C16: 2021 | D16: 2020 | E16: 2016 | F16: Net Capital Expenditures | G16: ='App.2-AB_Capital Expenditures'!E14 -> 2013 | H16: ='App.2-AB_Capital Expenditures'!E23 -> 0 | I16: ='App.2-AB_Capital Expenditures'!F23 -> 0
A17: ='LDC Info'!$E$14 -> Waterloo North Hydro Inc. | B17: EB-2020-0059 | C17: 2021 | D17: 2020 | E17: 2016 | F17: System O&M | G17: ='App.2-AB_Capital Expenditures'!E14 -> 2013 | H17: ='App.2-AB_Capital Expenditures'!E24 -> 0 | I17: ='App.2-AB_Capital Expenditures'!F24 -> 0
A18: ='LDC Info'!$E$14 -> Waterloo North Hydro Inc. | B18: EB-2020-0059 | C18: 2021 | D18: 2020 | E18: 2016 | F18: System Access | G18: ='App.2-AB_Capital Expenditures'!H14 -> 2014 | H18: ='App.2-AB_Capital Expenditures'!H17 -> 0 | I18: ='App.2-AB_Capital Expenditures'!I17 -> 0
A19: ='LDC Info'!$E$14 -> Waterloo North Hydro Inc. | B19: EB-2020-0059 | C19: 2021 | D19: 2020 | E19: 2016 | F19: System Renewal | G19: ='App.2-AB_Capital Expenditures'!H14 -> 2014 | H19: ='App.2-AB_Capital Expenditures'!H18 -> 0 | I19: ='App.2-AB_Capital Expenditures'!I18 -> 0
A20: ='LDC Info'!$E$14 -> Waterloo North Hydro Inc. | B20: EB-2020-0059 | C20: 2021 | D20: 2020 | E20: 2016 | F20: System Service | G20: ='App.2-AB_Capital Expenditures'!H14 -> 2014 | H20: ='App.2-AB_Capital Expenditures'!H19 -> 0 | I20: ='App.2-AB_Capital Expenditures'!I19 -> 0
A21: ='LDC Info'!$E$14 -> Waterloo North Hydro Inc. | B21: EB-2020-0059 | C21: 2021 | D21: 2020 | E21: 2016 | F21: General Plant | G21: ='App.2-AB_Capital Expenditures'!H14 -> 2014 | H21: ='App.2-AB_Capital Expenditures'!H20 -> 0 | I21: ='App.2-AB_Capital Expenditures'!I20 -> 0
A22: ='LDC Info'!$E$14 -> Waterloo North Hydro Inc. | B22: EB-2020-0059 | C22: 2021 | D22: 2020 | E22: 2016 | F22: Total Expenditure | G22: ='App.2-AB_Capital Expenditures'!H14 -> 2014 | H22: ='App.2-AB_Capital Expenditures'!H21 -> 0 | I22: ='App.2-AB_Capital Expenditures'!I21 -> 0
A23: ='LDC Info'!$E$14 -> Waterloo North Hydro Inc. | B23: EB-2020-0059 | C23: 2021 | D23: 2020 | E23: 2016 | F23: Capital Contributions | G23: ='App.2-AB_Capital Expenditures'!H14 -> 2014 | H23: ='App.2-AB_Capital Expenditures'!H22 -> 0 | I23: ='App.2-AB_Capital Expenditures'!I22 -> 0
A24: ='LDC Info'!$E$14 -> Waterloo North Hydro Inc. | B24: EB-2020-0059 | C24: 2021 | D24: 2020 | E24: 2016 | F24: Net Capital Expenditures | G24: ='App.2-AB_Capital Expenditures'!H14 -> 2014 | H24: ='App.2-AB_Capital Expenditures'!H23 -> 0 | I24: ='App.2-AB_Capital Expenditures'!I23 -> 0
A25: ='LDC Info'!$E$14 -> Waterloo North Hydro Inc. | B25: EB-2020-0059 | C25: 2021 | D25: 2020 | E25: 2016 | F25: System O&M | G25: ='App.2-AB_Capital Expenditures'!H14 -> 2014 | H25: ='App.2-AB_Capital Expenditures'!H24 -> 0 | I25: ='App.2-AB_Capital Expenditures'!I24 -> 0
A26: ='LDC Info'!$E$14 -> Waterloo North Hydro Inc. | B26: EB-2020-0059 | C26: 2021 | D26: 2020 | E26: 2016 | F26: System Access | G26: ='App.2-AB_Capital Expenditures'!K14 -> 2015 | H26: ='App.2-AB_Capital Expenditures'!K17 -> 0 | I26: ='App.2-AB_Capital Expenditures'!L17 -> 0
A27: ='LDC Info'!$E$14 -> Waterloo North Hydro Inc. | B27: EB-2020-0059 | C27: 2021 | D27: 2020 | E27: 2016 | F27: System Renewal | G27: ='App.2-AB_Capital Expenditures'!K14 -> 2015 | H27: ='App.2-AB_Capital Expenditures'!K18 -> 0 | I27: ='App.2-AB_Capital Expenditures'!L18 -> 0
A28: ='LDC Info'!$E$14 -> Waterloo North Hydro Inc. | B28: EB-2020-0059 | C28: 2021 | D28: 2020 | E28: 2016 | F28: System Service | G28: ='App.2-AB_Capital Expenditures'!K14 -> 2015 | H28: ='App.2-AB_Capital Expenditures'!K19 -> 0 | I28: ='App.2-AB_Capital Expenditures'!L19 -> 0
A29: ='LDC Info'!$E$14 -> Waterloo North Hydro Inc. | B29: EB-2020-0059 | C29: 2021 | D29: 2020 | E29: 2016 | F29: General Plant | G29: ='App.2-AB_Capital Expenditures'!K14 -> 2015 | H29: ='App.2-AB_Capital Expenditures'!K20 -> 0 | I29: ='App.2-AB_Capital Expenditures'!L20 -> 0
A30: ='LDC Info'!$E$14 -> Waterloo North Hydro Inc. | B30: EB-2020-0059 | C30: 2021 | D30: 2020 | E30: 2016 | F30: Total Expenditure | G30: ='App.2-AB_Capital Expenditures'!K14 -> 2015 | H30: ='App.2-AB_Capital Expenditures'!K21 -> 0 | I30: ='App.2-AB_Capital Expenditures'!L21 -> 0
A31: ='LDC Info'!$E$14 -> Waterloo North Hydro Inc. | B31: EB-2020-0059 | C31: 2021 | D31: 2020 | E31: 2016 | F31: Capital Contributions | G31: ='App.2-AB_Capital Expenditures'!K14 -> 2015 | H31: ='App.2-AB_Capital Expenditures'!K22 -> 0 | I31: ='App.2-AB_Capital Expenditures'!L22 -> 0
A32: ='LDC Info'!$E$14 -> Waterloo North Hydro Inc. | B32: EB-2020-0059 | C32: 2021 | D32: 2020 | E32: 2016 | F32: Net Capital Expenditures | G32: ='App.2-AB_Capital Expenditures'!K14 -> 2015 | H32: ='App.2-AB_Capital Expenditures'!K23 -> 0 | I32: ='App.2-AB_Capital Expenditures'!L23 -> 0
A33: ='LDC Info'!$E$14 -> Waterloo North Hydro Inc. | B33: EB-2020-0059 | C33: 2021 | D33: 2020 | E33: 2016 | F33: System O&M | G33: ='App.2-AB_Capital Expenditures'!K14 -> 2015 | H33: ='App.2-AB_Capital Expenditures'!K24 -> 0 | I33: ='App.2-AB_Capital Expenditures'!L24 -> 0
A34: ='LDC Info'!$E$14 -> Waterloo North Hydro Inc. | B34: =EBNUMBER -> EB-2020-0059 | C34: =TestYear -> 2021 | D34: =BridgeYear -> 2020 | E34: =RebaseYear -> 2016 | F34: System Access | G34: ='App.2-AB_Capital Expenditures'!N14 -> 2016 | H34: ='App.2-AB_Capital Expenditures'!N17 -> 11171.628 | I34: ='App.2-AB_Capital Expenditures'!O17 -> 17628.16416
A35: ='LDC Info'!$E$14 -> Waterloo North Hydro Inc. | B35: EB-2020-0059 | C35: 2021 | D35: 2020 | E35: 2016 | F35: System Renewal | G35: ='App.2-AB_Capital Expenditures'!N14 -> 2016 | H35: ='App.2-AB_Capital Expenditures'!N18 -> 7360.065 | I35: ='App.2-AB_Capital Expenditures'!O18 -> 7801.17789
A36: ='LDC Info'!$E$14 -> Waterloo North Hydro Inc. | B36: EB-2020-0059 | C36: 2021 | D36: 2020 | E36: 2016 | F36: System Service | G36: ='App.2-AB_Capital Expenditures'!N14 -> 2016 | H36: ='App.2-AB_Capital Expenditures'!N19 -> 2405.95 | I36: ='App.2-AB_Capital Expenditures'!O19 -> 1742.06603
A37: ='LDC Info'!$E$14 -> Waterloo North Hydro Inc. | B37: EB-2020-0059 | C37: 2021 | D37: 2020 | E37: 2016 | F37: General Plant | G37: ='App.2-AB_Capital Expenditures'!N14 -> 2016 | H37: ='App.2-AB_Capital Expenditures'!N20 -> 1869.078 | I37: ='App.2-AB_Capital Expenditures'!O20 -> 2288.20444
A38: ='LDC Info'!$E$14 -> Waterloo North Hydro Inc. | B38: EB-2020-0059 | C38: 2021 | D38: 2020 | E38: 2016 | F38: Total Expenditure | G38: ='App.2-AB_Capital Expenditures'!N14 -> 2016 | H38: ='App.2-AB_Capital Expenditures'!N21 -> 22806.721 | I38: ='App.2-AB_Capital Expenditures'!O21 -> 29459.61252
A39: ='LDC Info'!$E$14 -> Waterloo North Hydro Inc. | B39: EB-2020-0059 | C39: 2021 | D39: 2020 | E39: 2016 | F39: Capital Contributions | G39: ='App.2-AB_Capital Expenditures'!N14 -> 2016 | H39: ='App.2-AB_Capital Expenditures'!N22 -> -6372.31 | I39: ='App.2-AB_Capital Expenditures'!O22 -> -12636.204
A40: ='LDC Info'!$E$14 -> Waterloo North Hydro Inc. | B40: EB-2020-0059 | C40: 2021 | D40: 2020 | E40: 2016 | F40: Net Capital Expenditures | G40: ='App.2-AB_Capital Expenditures'!N14 -> 2016 | H40: ='App.2-AB_Capital Expenditures'!N23 -> 16434.411 | I40: ='App.2-AB_Capital Expenditures'!O23 -> 16823.40852
A41: ='LDC Info'!$E$14 -> Waterloo North Hydro Inc. | B41: EB-2020-0059 | C41: 2021 | D41: 2020 | E41: 2016 | F41: System O&M | G41: ='App.2-AB_Capital Expenditures'!N14 -> 2016 | H41: ='App.2-AB_Capital Expenditures'!N24 -> 7547.972 | I41: ='App.2-AB_Capital Expenditures'!O24 -> 7362.82
A42: ='LDC Info'!$E$14 -> Waterloo North Hydro Inc. | B42: EB-2020-0059 | C42: 2021 | D42: 2020 | E42: 2016 | F42: System Access | G42: ='App.2-AB_Capital Expenditures'!Q14 -> 2017 | H42: ='App.2-AB_Capital Expenditures'!Q17 -> 7520.91 | I42: ='App.2-AB_Capital Expenditures'!R17 -> 6298.50309
A43: ='LDC Info'!$E$14 -> Waterloo North Hydro Inc. | B43: EB-2020-0059 | C43: 2021 | D43: 2020 | E43: 2016 | F43: System Renewal | G43: ='App.2-AB_Capital Expenditures'!Q14 -> 2017 | H43: ='App.2-AB_Capital Expenditures'!Q18 -> 10001.084 | I43: ='App.2-AB_Capital Expenditures'!R18 -> 9481.89986
A44: ='LDC Info'!$E$14 -> Waterloo North Hydro Inc. | B44: EB-2020-0059 | C44: 2021 | D44: 2020 | E44: 2016 | F44: System Service | G44: ='App.2-AB_Capital Expenditures'!Q14 -> 2017 | H44: ='App.2-AB_Capital Expenditures'!Q19 -> 1680 | I44: ='App.2-AB_Capital Expenditures'!R19 -> 566.84316
A45: ='LDC Info'!$E$14 -> Waterloo North Hydro Inc. | B45: EB-2020-0059 | C45: 2021 | D45: 2020 | E45: 2016 | F45: General Plant | G45: ='App.2-AB_Capital Expenditures'!Q14 -> 2017 | H45: ='App.2-AB_Capital Expenditures'!Q20 -> 2813.765 | I45: ='App.2-AB_Capital Expenditures'!R20 -> 2264.67079
A46: ='LDC Info'!$E$14 -> Waterloo North Hydro Inc. | B46: EB-2020-0059 | C46: 2021 | D46: 2020 | E46: 2016 | F46: Total Expenditure | G46: ='App.2-AB_Capital Expenditures'!Q14 -> 2017 | H46: ='App.2-AB_Capital Expenditures'!Q21 -> 22015.759 | I46: ='App.2-AB_Capital Expenditures'!R21 -> 18611.9169
A47: ='LDC Info'!$E$14 -> Waterloo North Hydro Inc. | B47: EB-2020-0059 | C47: 2021 | D47: 2020 | E47: 2016 | F47: Capital Contributions | G47: ='App.2-AB_Capital Expenditures'!Q14 -> 2017 | H47: ='App.2-AB_Capital Expenditures'!Q22 -> -2352 | I47: ='App.2-AB_Capital Expenditures'!R22 -> -4578.501
A48: ='LDC Info'!$E$14 -> Waterloo North Hydro Inc. | B48: EB-2020-0059 | C48: 2021 | D48: 2020 | E48: 2016 | F48: Net Capital Expenditures | G48: ='App.2-AB_Capital Expenditures'!Q14 -> 2017 | H48: ='App.2-AB_Capital Expenditures'!Q23 -> 19663.759 | I48: ='App.2-AB_Capital Expenditures'!R23 -> 14033.4159
A49: ='LDC Info'!$E$14 -> Waterloo North Hydro Inc. | B49: EB-2020-0059 | C49: 2021 | D49: 2020 | E49: 2016 | F49: System O&M | G49: ='App.2-AB_Capital Expenditures'!Q14 -> 2017 | H49: ='App.2-AB_Capital Expenditures'!Q24 -> 0 | I49: ='App.2-AB_Capital Expenditures'!R24 -> 7558.307
A50: ='LDC Info'!$E$14 -> Waterloo North Hydro Inc. | B50: EB-2020-0059 | C50: 2021 | D50: 2020 | E50: 2016 | F50: System Access | G50: ='App.2-AB_Capital Expenditures'!T14 -> 2018 | H50: ='App.2-AB_Capital Expenditures'!T17 -> 6020.046 | I50: ='App.2-AB_Capital Expenditures'!U17 -> 6091.46033
A51: ='LDC Info'!$E$14 -> Waterloo North Hydro Inc. | B51: EB-2020-0059 | C51: 2021 | D51: 2020 | E51: 2016 | F51: System Renewal | G51: ='App.2-AB_Capital Expenditures'!T14 -> 2018 | H51: ='App.2-AB_Capital Expenditures'!T18 -> 9438.2 | I51: ='App.2-AB_Capital Expenditures'!U18 -> 8423.58886
A52: ='LDC Info'!$E$14 -> Waterloo North Hydro Inc. | B52: EB-2020-0059 | C52: 2021 | D52: 2020 | E52: 2016 | F52: System Service | G52: ='App.2-AB_Capital Expenditures'!T14 -> 2018 | H52: ='App.2-AB_Capital Expenditures'!T19 -> 1725.2 | I52: ='App.2-AB_Capital Expenditures'!U19 -> 1822.41163
A53: ='LDC Info'!$E$14 -> Waterloo North Hydro Inc. | B53: EB-2020-0059 | C53: 2021 | D53: 2020 | E53: 2016 | F53: General Plant | G53: ='App.2-AB_Capital Expenditures'!T14 -> 2018 | H53: ='App.2-AB_Capital Expenditures'!T20 -> 1661.176 | I53: ='App.2-AB_Capital Expenditures'!U20 -> 2030.13944
A54: ='LDC Info'!$E$14 -> Waterloo North Hydro Inc. | B54: EB-2020-0059 | C54: 2021 | D54: 2020 | E54: 2016 | F54: Total Expenditure | G54: ='App.2-AB_Capital Expenditures'!T14 -> 2018 | H54: ='App.2-AB_Capital Expenditures'!T21 -> 18844.622 | I54: ='App.2-AB_Capital Expenditures'!U21 -> 18367.60026
A55: ='LDC Info'!$E$14 -> Waterloo North Hydro Inc. | B55: EB-2020-0059 | C55: 2021 | D55: 2020 | E55: 2016 | F55: Capital Contributions | G55: ='App.2-AB_Capital Expenditures'!T14 -> 2018 | H55: ='App.2-AB_Capital Expenditures'!T22 -> -1902 | I55: ='App.2-AB_Capital Expenditures'!U22 -> -2968.93
A56: ='LDC Info'!$E$14 -> Waterloo North Hydro Inc. | B56: EB-2020-0059 | C56: 2021 | D56: 2020 | E56: 2016 | F56: Net Capital Expenditures | G56: ='App.2-AB_Capital Expenditures'!T14 -> 2018 | H56: ='App.2-AB_Capital Expenditures'!T23 -> 16942.622 | I56: ='App.2-AB_Capital Expenditures'!U23 -> 15398.67026
A57: ='LDC Info'!$E$14 -> Waterloo North Hydro Inc. | B57: EB-2020-0059 | C57: 2021 | D57: 2020 | E57: 2016 | F57: System O&M | G57: ='App.2-AB_Capital Expenditures'!T14 -> 2018 | H57: ='App.2-AB_Capital Expenditures'!T24 -> 0 | I57: ='App.2-AB_Capital Expenditures'!U24 -> 7985.11705
A58: ='LDC Info'!$E$14 -> Waterloo North Hydro Inc. | B58: EB-2020-0059 | C58: 2021 | D58: 2020 | E58: 2016 | F58: System Access | G58: ='App.2-AB_Capital Expenditures'!W14 -> 2019 | H58: ='App.2-AB_Capital Expenditures'!W17 -> 5946.859126 | I58: ='App.2-AB_Capital Expenditures'!X17 -> 6243.182
A59: ='LDC Info'!$E$14 -> Waterloo North Hydro Inc. | B59: EB-2020-0059 | C59: 2021 | D59: 2020 | E59: 2016 | F59: System Renewal | G59: ='App.2-AB_Capital Expenditures'!W14 -> 2019 | H59: ='App.2-AB_Capital Expenditures'!W18 -> 8800.764 | I59: ='App.2-AB_Capital Expenditures'!X18 -> 9438.714
A60: ='LDC Info'!$E$14 -> Waterloo North Hydro Inc. | B60: EB-2020-0059 | C60: 2021 | D60: 2020 | E60: 2016 | F60: System Service | G60: ='App.2-AB_Capital Expenditures'!W14 -> 2019 | H60: ='App.2-AB_Capital Expenditures'!W19 -> 1175.404 | I60: ='App.2-AB_Capital Expenditures'!X19 -> 2449.054
A61: ='LDC Info'!$E$14 -> Waterloo North Hydro Inc. | B61: EB-2020-0059 | C61: 2021 | D61: 2020 | E61: 2016 | F61: General Plant | G61: ='App.2-AB_Capital Expenditures'!W14 -> 2019 | H61: ='App.2-AB_Capital Expenditures'!W20 -> 1670.309 | I61: ='App.2-AB_Capital Expenditures'!X20 -> 1810.228
A62: ='LDC Info'!$E$14 -> Waterloo North Hydro Inc. | B62: EB-2020-0059 | C62: 2021 | D62: 2020 | E62: 2016 | F62: Total Expenditure | G62: ='App.2-AB_Capital Expenditures'!W14 -> 2019 | H62: ='App.2-AB_Capital Expenditures'!W21 -> 17593.33613 | I62: ='App.2-AB_Capital Expenditures'!X21 -> 19941.178
A63: ='LDC Info'!$E$14 -> Waterloo North Hydro Inc. | B63: EB-2020-0059 | C63: 2021 | D63: 2020 | E63: 2016 | F63: Capital Contributions | G63: ='App.2-AB_Capital Expenditures'!W14 -> 2019 | H63: ='App.2-AB_Capital Expenditures'!W22 -> -1902 | I63: ='App.2-AB_Capital Expenditures'!X22 -> -2110.939
A64: ='LDC Info'!$E$14 -> Waterloo North Hydro Inc. | B64: EB-2020-0059 | C64: 2021 | D64: 2020 | E64: 2016 | F64: Net Capital Expenditures | G64: ='App.2-AB_Capital Expenditures'!W14 -> 2019 | H64: ='App.2-AB_Capital Expenditures'!W23 -> 15691.33613 | I64: ='App.2-AB_Capital Expenditures'!X23 -> 17830.239
A65: ='LDC Info'!$E$14 -> Waterloo North Hydro Inc. | B65: EB-2020-0059 | C65: 2021 | D65: 2020 | E65: 2016 | F65: System O&M | G65: ='App.2-AB_Capital Expenditures'!W14 -> 2019 | H65: ='App.2-AB_Capital Expenditures'!W24 -> 0 | I65: ='App.2-AB_Capital Expenditures'!X24 -> 7766.704
A66: ='LDC Info'!$E$14 -> Waterloo North Hydro Inc. | B66: =EBNUMBER -> EB-2020-0059 | C66: =TestYear -> 2021 | D66: =BridgeYear -> 2020 | E66: =RebaseYear -> 2016 | F66: System Access | G66: ='App.2-AB_Capital Expenditures'!Z14 -> 2020 | H66: ='App.2-AB_Capital Expenditures'!Z17 -> 6085.795869 | I66: ='App.2-AB_Capital Expenditures'!AA17 -> 5839.159
A67: ='LDC Info'!$E$14 -> Waterloo North Hydro Inc. | B67: EB-2020-0059 | C67: 2021 | D67: 2020 | E67: 2016 | F67: System Renewal | G67: ='App.2-AB_Capital Expenditures'!Z14 -> 2020 | H67: ='App.2-AB_Capital Expenditures'!Z18 -> 8975.77928 | I67: ='App.2-AB_Capital Expenditures'!AA18 -> 8612.076
A68: ='LDC Info'!$E$14 -> Waterloo North Hydro Inc. | B68: EB-2020-0059 | C68: 2021 | D68: 2020 | E68: 2016 | F68: System Service | G68: ='App.2-AB_Capital Expenditures'!Z14 -> 2020 | H68: ='App.2-AB_Capital Expenditures'!Z19 -> 1175.61208 | I68: ='App.2-AB_Capital Expenditures'!AA19 -> 2198.991
A69: ='LDC Info'!$E$14 -> Waterloo North Hydro Inc. | B69: EB-2020-0059 | C69: 2021 | D69: 2020 | E69: 2016 | F69: General Plant | G69: ='App.2-AB_Capital Expenditures'!Z14 -> 2020 | H69: ='App.2-AB_Capital Expenditures'!Z20 -> 1649.525318 | I69: ='App.2-AB_Capital Expenditures'!AA20 -> 3554.579
A70: ='LDC Info'!$E$14 -> Waterloo North Hydro Inc. | B70: EB-2020-0059 | C70: 2021 | D70: 2020 | E70: 2016 | F70: Total Expenditure | G70: ='App.2-AB_Capital Expenditures'!Z14 -> 2020 | H70: ='App.2-AB_Capital Expenditures'!Z21 -> 17886.71255 | I70: ='App.2-AB_Capital Expenditures'!AA21 -> 20204.805
A71: ='LDC Info'!$E$14 -> Waterloo North Hydro Inc. | B71: EB-2020-0059 | C71: 2021 | D71: 2020 | E71: 2016 | F71: Capital Contributions | G71: ='App.2-AB_Capital Expenditures'!Z14 -> 2020 | H71: ='App.2-AB_Capital Expenditures'!Z22 -> -1902 | I71: ='App.2-AB_Capital Expenditures'!AA22 -> -2065.806
A72: ='LDC Info'!$E$14 -> Waterloo North Hydro Inc. | B72: EB-2020-0059 | C72: 2021 | D72: 2020 | E72: 2016 | F72: Net Capital Expenditures | G72: ='App.2-AB_Capital Expenditures'!Z14 -> 2020 | H72: ='App.2-AB_Capital Expenditures'!Z23 -> 15984.71255 | I72: ='App.2-AB_Capital Expenditures'!AA23 -> 18138.999
A73: ='LDC Info'!$E$14 -> Waterloo North Hydro Inc. | B73: EB-2020-0059 | C73: 2021 | D73: 2020 | E73: 2016 | F73: System O&M | G73: ='App.2-AB_Capital Expenditures'!Z14 -> 2020 | H73: ='App.2-AB_Capital Expenditures'!Z24 -> 0 | I73: ='App.2-AB_Capital Expenditures'!AA24 -> 7907.04862
A74: ='LDC Info'!$E$14 -> Waterloo North Hydro Inc. | B74: EB-2020-0059 | C74: 2021 | D74: 2020 | E74: 2016 | F74: System Access | G74: ='App.2-AB_Capital Expenditures'!AC14 -> 2021 | H74: ='App.2-AB_Capital Expenditures'!AC17 -> 5840.262
A75: ='LDC Info'!$E$14 -> Waterloo North Hydro Inc. | B75: EB-2020-0059 | C75: 2021 | D75: 2020 | E75: 2016 | F75: System Renewal | G75: ='App.2-AB_Capital Expenditures'!AC14 -> 2021 | H75: ='App.2-AB_Capital Expenditures'!AC18 -> 8095.769
A76: ='LDC Info'!$E$14 -> Waterloo North Hydro Inc. | B76: EB-2020-0059 | C76: 2021 | D76: 2020 | E76: 2016 | F76: System Service | G76: ='App.2-AB_Capital Expenditures'!AC14 -> 2021 | H76: ='App.2-AB_Capital Expenditures'!AC19 -> 2293.605
A77: ='LDC Info'!$E$14 -> Waterloo North Hydro Inc. | B77: EB-2020-0059 | C77: 2021 | D77: 2020 | E77: 2016 | F77: General Plant | G77: ='App.2-AB_Capital Expenditures'!AC14 -> 2021 | H77: ='App.2-AB_Capital Expenditures'!AC20 -> 2818.876
A78: ='LDC Info'!$E$14 -> Waterloo North Hydro Inc. | B78: EB-2020-0059 | C78: 2021 | D78: 2020 | E78: 2016 | F78: Total Expenditure | G78: ='App.2-AB_Capital Expenditures'!AC14 -> 2021 | H78: ='App.2-AB_Capital Expenditures'!AC21 -> 19048.512
A79: ='LDC Info'!$E$14 -> Waterloo North Hydro Inc. | B79: EB-2020-0059 | C79: 2021 | D79: 2020 | E79: 2016 | F79: Capital Contributions | G79: ='App.2-AB_Capital Expenditures'!AC14 -> 2021 | H79: ='App.2-AB_Capital Expenditures'!AC22 -> -2642.394
A80: ='LDC Info'!$E$14 -> Waterloo North Hydro Inc. | B80: EB-2020-0059 | C80: 2021 | D80: 2020 | E80: 2016 | F80: Net Capital Expenditures | G80: ='App.2-AB_Capital Expenditures'!AC14 -> 2021 | H80: ='App.2-AB_Capital Expenditures'!AC23 -> 16406.118
A81: ='LDC Info'!$E$14 -> Waterloo North Hydro Inc. | B81: EB-2020-0059 | C81: 2021 | D81: 2020 | E81: 2016 | F81: System O&M | G81: ='App.2-AB_Capital Expenditures'!AC14 -> 2021 | H81: ='App.2-AB_Capital Expenditures'!AC24 -> 8213.83162
A82: ='LDC Info'!$E$14 -> Waterloo North Hydro Inc. | B82: EB-2020-0059 | C82: 2021 | D82: 2020 | E82: 2016 | F82: System Access | G82: ='App.2-AB_Capital Expenditures'!AD14 -> 2022 | H82: ='App.2-AB_Capital Expenditures'!AD17 -> 6166.098616
A83: ='LDC Info'!$E$14 -> Waterloo North Hydro Inc. | B83: EB-2020-0059 | C83: 2021 | D83: 2020 | E83: 2016 | F83: System Renewal | G83: ='App.2-AB_Capital Expenditures'!AD14 -> 2022 | H83: ='App.2-AB_Capital Expenditures'!AD18 -> 9371.994573
A84: ='LDC Info'!$E$14 -> Waterloo North Hydro Inc. | B84: EB-2020-0059 | C84: 2021 | D84: 2020 | E84: 2016 | F84: System Service | G84: ='App.2-AB_Capital Expenditures'!AD14 -> 2022 | H84: ='App.2-AB_Capital Expenditures'!AD19 -> 1346.20874
A85: ='LDC Info'!$E$14 -> Waterloo North Hydro Inc. | B85: EB-2020-0059 | C85: 2021 | D85: 2020 | E85: 2016 | F85: General Plant | G85: ='App.2-AB_Capital Expenditures'!AD14 -> 2022 | H85: ='App.2-AB_Capital Expenditures'!AD20 -> 3567.43166
A86: ='LDC Info'!$E$14 -> Waterloo North Hydro Inc. | B86: EB-2020-0059 | C86: 2021 | D86: 2020 | E86: 2016 | F86: Total Expenditure | G86: ='App.2-AB_Capital Expenditures'!AD14 -> 2022 | H86: ='App.2-AB_Capital Expenditures'!AD21 -> 20451.73359
A87: ='LDC Info'!$E$14 -> Waterloo North Hydro Inc. | B87: EB-2020-0059 | C87: 2021 | D87: 2020 | E87: 2016 | F87: Capital Contributions | G87: ='App.2-AB_Capital Expenditures'!AD14 -> 2022 | H87: ='App.2-AB_Capital Expenditures'!AD22 -> -2709.839262
A88: ='LDC Info'!$E$14 -> Waterloo North Hydro Inc. | B88: EB-2020-0059 | C88: 2021 | D88: 2020 | E88: 2016 | F88: Net Capital Expenditures | G88: ='App.2-AB_Capital Expenditures'!AD14 -> 2022 | H88: ='App.2-AB_Capital Expenditures'!AD23 -> 17741.89433
A89: ='LDC Info'!$E$14 -> Waterloo North Hydro Inc. | B89: EB-2020-0059 | C89: 2021 | D89: 2020 | E89: 2016 | F89: System O&M | G89: ='App.2-AB_Capital Expenditures'!AD14 -> 2022 | H89: ='App.2-AB_Capital Expenditures'!AD24 -> 8378.108252
A90: ='LDC Info'!$E$14 -> Waterloo North Hydro Inc. | B90: EB-2020-0059 | C90: 2021 | D90: 2020 | E90: 2016 | F90: System Access | G90: ='App.2-AB_Capital Expenditures'!AE14 -> 2023 | H90: ='App.2-AB_Capital Expenditures'!AE17 -> 6305.420588
A91: ='LDC Info'!$E$14 -> Waterloo North Hydro Inc. | B91: EB-2020-0059 | C91: 2021 | D91: 2020 | E91: 2016 | F91: System Renewal | G91: ='App.2-AB_Capital Expenditures'!AE14 -> 2023 | H91: ='App.2-AB_Capital Expenditures'!AE18 -> 9548.434465
A92: ='LDC Info'!$E$14 -> Waterloo North Hydro Inc. | B92: EB-2020-0059 | C92: 2021 | D92: 2020 | E92: 2016 | F92: System Service | G92: ='App.2-AB_Capital Expenditures'!AE14 -> 2023 | H92: ='App.2-AB_Capital Expenditures'!AE19 -> 1288.332915
A93: ='LDC Info'!$E$14 -> Waterloo North Hydro Inc. | B93: EB-2020-0059 | C93: 2021 | D93: 2020 | E93: 2016 | F93: General Plant | G93: ='App.2-AB_Capital Expenditures'!AE14 -> 2023 | H93: ='App.2-AB_Capital Expenditures'!AE20 -> 3593.891093
A94: ='LDC Info'!$E$14 -> Waterloo North Hydro Inc. | B94: EB-2020-0059 | C94: 2021 | D94: 2020 | E94: 2016 | F94: Total Expenditure | G94: ='App.2-AB_Capital Expenditures'!AE14 -> 2023 | H94: ='App.2-AB_Capital Expenditures'!AE21 -> 20736.07906
A95: ='LDC Info'!$E$14 -> Waterloo North Hydro Inc. | B95: EB-2020-0059 | C95: 2021 | D95: 2020 | E95: 2016 | F95: Capital Contributions | G95: ='App.2-AB_Capital Expenditures'!AE14 -> 2023 | H95: ='App.2-AB_Capital Expenditures'!AE22 -> -2764.036048
A96: ='LDC Info'!$E$14 -> Waterloo North Hydro Inc. | B96: EB-2020-0059 | C96: 2021 | D96: 2020 | E96: 2016 | F96: Net Capital Expenditures | G96: ='App.2-AB_Capital Expenditures'!AE14 -> 2023 | H96: ='App.2-AB_Capital Expenditures'!AE23 -> 17972.04301
A97: ='LDC Info'!$E$14 -> Waterloo North Hydro Inc. | B97: EB-2020-0059 | C97: 2021 | D97: 2020 | E97: 2016 | F97: System O&M | G97: ='App.2-AB_Capital Expenditures'!AE14 -> 2023 | H97: ='App.2-AB_Capital Expenditures'!AE24 -> 8545.670417
A98: ='LDC Info'!$E$14 -> Waterloo North Hydro Inc. | B98: =EBNUMBER -> EB-2020-0059 | C98: =TestYear -> 2021 | D98: =BridgeYear -> 2020 | E98: =RebaseYear -> 2016 | F98: System Access | G98: ='App.2-AB_Capital Expenditures'!AF14 -> 2024 | H98: ='App.2-AB_Capital Expenditures'!AF17 -> 6447.529
A99: ='LDC Info'!$E$14 -> Waterloo North Hydro Inc. | B99: EB-2020-0059 | C99: 2021 | D99: 2020 | E99: 2016 | F99: System Renewal | G99: ='App.2-AB_Capital Expenditures'!AF14 -> 2024 | H99: ='App.2-AB_Capital Expenditures'!AF18 -> 9693.203154
A100: ='LDC Info'!$E$14 -> Waterloo North Hydro Inc. | B100: EB-2020-0059 | C100: 2021 | D100: 2020 | E100: 2016 | F100: System Service | G100: ='App.2-AB_Capital Expenditures'!AF14 -> 2024 | H100: ='App.2-AB_Capital Expenditures'!AF19 -> 1211.459573
A101: ='LDC Info'!$E$14 -> Waterloo North Hydro Inc. | B101: EB-2020-0059 | C101: 2021 | D101: 2020 | E101: 2016 | F101: General Plant | G101: ='App.2-AB_Capital Expenditures'!AF14 -> 2024 | H101: ='App.2-AB_Capital Expenditures'!AF20 -> 2062.636731
A102: ='LDC Info'!$E$14 -> Waterloo North Hydro Inc. | B102: EB-2020-0059 | C102: 2021 | D102: 2020 | E102: 2016 | F102: Total Expenditure | G102: ='App.2-AB_Capital Expenditures'!AF14 -> 2024 | H102: ='App.2-AB_Capital Expenditures'!AF21 -> 19414.82846
A103: ='LDC Info'!$E$14 -> Waterloo North Hydro Inc. | B103: EB-2020-0059 | C103: 2021 | D103: 2020 | E103: 2016 | F103: Capital Contributions | G103: ='App.2-AB_Capital Expenditures'!AF14 -> 2024 | H103: ='App.2-AB_Capital Expenditures'!AF22 -> -2819.316769
A104: ='LDC Info'!$E$14 -> Waterloo North Hydro Inc. | B104: EB-2020-0059 | C104: 2021 | D104: 2020 | E104: 2016 | F104: Net Capital Expenditures | G104: ='App.2-AB_Capital Expenditures'!AF14 -> 2024 | H104: ='App.2-AB_Capital Expenditures'!AF23 -> 16595.51169
A105: ='LDC Info'!$E$14 -> Waterloo North Hydro Inc. | B105: EB-2020-0059 | C105: 2021 | D105: 2020 | E105: 2016 | F105: System O&M | G105: ='App.2-AB_Capital Expenditures'!AF14 -> 2024 | H105: ='App.2-AB_Capital Expenditures'!AF24 -> 8716.583826
A106: ='LDC Info'!$E$14 -> Waterloo North Hydro Inc. | B106: EB-2020-0059 | C106: 2021 | D106: 2020 | E106: 2016 | F106: System Access | G106: ='App.2-AB_Capital Expenditures'!AG14 -> 2025 | H106: ='App.2-AB_Capital Expenditures'!AG17 -> 6592.47958
A107: ='LDC Info'!$E$14 -> Waterloo North Hydro Inc. | B107: EB-2020-0059 | C107: 2021 | D107: 2020 | E107: 2016 | F107: System Renewal | G107: ='App.2-AB_Capital Expenditures'!AG14 -> 2025 | H107: ='App.2-AB_Capital Expenditures'!AG18 -> 9951.367217
A108: ='LDC Info'!$E$14 -> Waterloo North Hydro Inc. | B108: EB-2020-0059 | C108: 2021 | D108: 2020 | E108: 2016 | F108: System Service | G108: ='App.2-AB_Capital Expenditures'!AG14 -> 2025 | H108: ='App.2-AB_Capital Expenditures'!AG19 -> 1211.588765
A109: ='LDC Info'!$E$14 -> Waterloo North Hydro Inc. | B109: EB-2020-0059 | C109: 2021 | D109: 2020 | E109: 2016 | F109: General Plant | G109: ='App.2-AB_Capital Expenditures'!AG14 -> 2025 | H109: ='App.2-AB_Capital Expenditures'!AG20 -> 2221.975466
A110: ='LDC Info'!$E$14 -> Waterloo North Hydro Inc. | B110: EB-2020-0059 | C110: 2021 | D110: 2020 | E110: 2016 | F110: Total Expenditure | G110: ='App.2-AB_Capital Expenditures'!AG14 -> 2025 | H110: ='App.2-AB_Capital Expenditures'!AG21 -> 19977.41103
A111: ='LDC Info'!$E$14 -> Waterloo North Hydro Inc. | B111: EB-2020-0059 | C111: 2021 | D111: 2020 | E111: 2016 | F111: Capital Contributions | G111: ='App.2-AB_Capital Expenditures'!AG14 -> 2025 | H111: ='App.2-AB_Capital Expenditures'!AG22 -> -2875.703104
A112: ='LDC Info'!$E$14 -> Waterloo North Hydro Inc. | B112: EB-2020-0059 | C112: 2021 | D112: 2020 | E112: 2016 | F112: Net Capital Expenditures | G112: ='App.2-AB_Capital Expenditures'!AG14 -> 2025 | H112: ='App.2-AB_Capital Expenditures'!AG23 -> 17101.70792
A113: ='LDC Info'!$E$14 -> Waterloo North Hydro Inc. | B113: EB-2020-0059 | C113: 2021 | D113: 2020 | E113: 2016 | F113: System O&M | G113: ='App.2-AB_Capital Expenditures'!AG14 -> 2025 | H113: ='App.2-AB_Capital Expenditures'!AG24 -> 8890.915502

Sheet App.2-AC_Customer Engagement
B1: File Number: | C1: =EBNUMBER -> EB-2020-0059
B2: Exhibit: | C2: 1
B3: Tab:
B4: Schedule:
B5: Page: | C5: 85
B7: Date: | C7: 2020-06-30
A9: Appendix 2-AC
A10: Customer Engagement Activities Summary
A12: Provide a list of customer engagement activities | B12: Provide a list of customer needs and preferences identified through each engagement activity | C12: Actions taken to respond to identified needs and preferences. If no action was taken, explain why.
A13: Enhanced Customer Engagement - Distribution System Plan & Cost of Service Rate Application
A14: Brickworks Communication - Customer Consultation Online Surveys - February 2019 (all customers) and November 2019 (residential/small commercial customers) | B14: Customers want continued delivery of high quality services, reliability of service, affordable electricity costs, assistance to reduce consumption and thereby costs, as well as better information when outages occur. | C14: Refer to Exhibit 1 - WNH's Response to Customer Preferences
A15: Brickworks Communication - Customer Consultation Telephone Surveys - November 2019 (residential/small commercial customers) | B15: Customers want continued delivery of high quality services, reliability of service, affordable electricity costs, assistance to reduce consumption and thereby costs, as well as better information when outages occur. | C15: Refer to Exhibit 1 - WNH's Response to Customer Preferences
A16: Large Business - Breakfast meeting on November 28th, 2019 | B16: Customers want continued delivery of high quality services, reliability of service, affordable electricity costs, assistance to reduce consumption and thereby costs, as well as better information when outages occur. | C16: Refer to Exhibit 1 - WNH's Response to Customer Preferences
A17: Large User | B17: Customers want continued delivery of high quality services, reliability of service, affordable electricity costs, assistance to reduce consumption and thereby costs, as well as better information when outages occur. | C17: Refer to Exhibit 1 - WNH's Response to Customer Preferences
A18: Customers with Load Displacements | B18: Customers want continued delivery of high quality services, reliability of service, affordable electricity costs, assistance to reduce consumption and thereby costs, as well as better information when outages occur. | C18: Refer to Exhibit 1 - WNH's Response to Customer Preferences
A19: Embedded Distributors | B19: Customers want continued delivery of high quality services, reliability of service, affordable electricity costs, assistance to reduce consumption and thereby costs, as well as better information when outages occur. | C19: Refer to Exhibit 1 - WNH's Response to Customer Preferences
A20: On going Customer Engagement
A21: Approximately 4,000-7,000 customer walk ins per year to office for service | B21: Need to explain the bill, need to make payment arrangements, account balances, billing inquiries, services such as e-Billing, TOU rates, outages, conservation programs, bill components | C21: Maintain this service option including an ability to make payment in-person. Trained all front office staff to handle majority of issues
A22: 26,032 Inbound phone calls to WNH in 2019 | B22: Need to explain the bill, need to make payment arrangements, account balances, billing inquiries, services such as e-Billing, TOU rates, outages, conservation programs, bill components | C22: Trained all front office staff to handle inquiries
A23: 8,526 inbound written enquires were responded to by WNH in 2019 | B23: Need to explain the bill, need to make payment arrangements, account balances, billing inquiries, services such as e-Billing, TOU rates, outages, conservation programs, bill components | C23: Trained all front office staff to handle inquiries
A24: Annual vegetation control program | B24: Need to confirm scope of work on each property to safely establish right of way | C24: Notices of Annual Tree Trimming to all customers in the area with an explanation as to why this work is necessary. If customers have further inquiries they are directed to call the operations department at WNH
A25: Approximately 100 Forestry Customer Calls in 2019 | B25: Requests to cut back trees interfering with power lines | C25: Customers required to sign off on work consent before work begins. WNH will continue to investigate all customer requests.
A26: Locating electrical infrastructure, approximately 13,000 requests per year | B26: Need to build new infrastructure requires electrical plant to be safely located so construction can proceed | C26: Locates are all now scheduled through On1Call as mandated by the Government of Ontario. On1Call then contacts our contractor to schedule the locates
A27: Approximately 5,000 power outaged routed calls and service calls to the control room in 2019 | B27: Customer request for information on power outages | C27: Developing and utilizing Outage Management Software as well as increase usage of social media updates
A28: Electrical Safety Awareness training - 164 Elementary school presentations in 2019 | B28: Need for elementary students to understand and respect electrical system hazards as well as need for future electricity consumers to understand Ontario's electrical system | C28: Offer an in-classroom program for elementary school students in the Region of Waterloo
A29: Construction Projects Including: Line Rebuilds, Area Plan Development, and Line Relocations | B29: Need for coordinated, multi utility infrastructure development according to customer schedule and budgets | C29: WNH solicits information about plans and requests input and/or concerns from customers. Depending on the project various notifications are done - see details in exhibit 1. Pre-Construction notices are sent describing timelines and details.
A30: High Consumption Energy Users | B30: Need to control electricity consumption, need to understand the bill, need to reduce electricity costs | C30: Business customer breakfast sessions, meetings through Chamber of Commerce, individual customer meetings, provide expert advise on metering, supply and power quality issues
A31: Municipal Government Consultations | B31: Need for shared information on planning and development | C31: Plans need to be communicated in order to ensure appropriate design or construction decisions and system planning
A32: Customer Demand Work | B32: Customer require new services, service upgrades, increased transformation, sevice new developments including subdivisions | C32: Requests are managed through a customer que with appropriate prioritzation
A33: Trouble call response | B33: Customer need for power restoration | C33: 24/7 coverage with ability to call in necessary resources to respond to most contingency situations
A34: Participation in conservation programs - Businesses | B34: Business customer needs to participate in the energy conservation programs include education on energy conservation and the value it provides customers, information on the programs available, support to help customers identify projects, complete program applications and implement energy conservation projects. | C34: Up until the centralization of the Conservation First Frame work and the Save on Energy programs, WNH continued to actively promote and engage customers in the Business Save on Energy programs through email marketing, social media, customer information and engagement breakfasts and direct in-person engagement and energy conservation support (site walk through to identify projects, developing business cases for energy conservation projects, energy conservation project application support). Since 2015 WNH has assisted 566 business customers with implement over 1,300 energy efficiency projects through the replacement of old equipment including lighting, heating and cooling equipment, motors, pumps, fans and process equipment, resulting in an savings to customers of 68.97 GWh's and $11.3 Million, with incentives of $8.95 Million.
A35: Participation in conservation programs - Residents | B35: Residential customer needs to participate in the energy conservation programs include education on energy conservation and the value it provides , information on the programs available and how to apply to or participate in the energy conservation programs, and a way to validate the energy conservation project savings. | C35: Up until the centralization of the Conservation First Frame work and the Save on Energy programs, WNH continued to actively promote and engage customers in the residential Save on Energy programs through email marketing, retail events, on bill messaging, social media and the corporate website.
A36: Roving Energy Managers | B36: Need for technical expertise to identify and implement commercial, institutional and industrial conservation projects | C36: WNH continues to deploy Energy Efficiency Advisors to provide commercial, institutional and industrial customers with energy conservation support including identifying projects, building the business case for the projects, completing and submitting applications for projects, and closing out and completing program requirements once projects had been implemented
A37: UtilityPulse Customer Satisfaction Survey 2018 | B37: Customers want low price and high value, customer service, company leadership, the business to be a good corporate steward, operational effectiveness and power quality/reliability. Customers require various communication channels to be kept informed | C37: Working on a communication plan as to how we can better inform our customers on information that is important to them. i.e. current usage, energy savings, and outage information
A38: UtilityPulse Public Awareness of Electrical Safety Survey 2019 | B38: WNH reviews the results of these surveys to address gaps in public understanding of the risks associated with electricity | C38: Working on a communication plan as to how we can better inform our customers on information that is important to them. i.e. current usage and outage information
A39: Conducts Open House meetings | B39: Customers are informed of engineering design changes planned in their community and how they will be impacted. | C39: WNH takes customer feedback into account when finalizing designs if practical.
A40: Chamber of Commerce events | B40: WNH actively participates in its local Chamber of Commerce both on the Board of Directors and at events to interact with local business persons | C40: WNH staff are able to hear their electricity concerns, provide industry education and assistance where needed.
A41: Sustainable Waterloo Region | B41: WNH was a founding member of a local carbon reduction and energy conservation organization, Sustainable Waterloo Region. WNH is committed to conservation for its customers and organizations. | C41: WNH continues to demonstrate its role as a leader in environmental stewardship by committing to reduce its carbon footprint in the community.
A42: Doors Open Waterloo Event | B42: WNH participated in a local annual event 'Doors Open' in which members of the public tour local area businesses. WNH received much interest and participation from the community, over 300 people toured WNH 's facilities. | C42: Management was on hand to meet with WNH customers and discussed electricity concerns and electricity conservation practices
A43: Shareholder Meetings | B43: WNH regulary meets with its shareholders to discuss WNH's plans, rates and the impact on customers. | C43: WNH takes shareholder feedback and integrates into strategic planning
A44: Online Web Forms | B44: On an annual basis, WNH serves approximately 45,900 customers at its customer service counter. The top two reasons a customer comes to WNH's customer service counter are to open up a new account, or to make a payment. Customer satisfaction scores indicated that customers prefer to use online, self-service tools, and through Google Analytics, WNH determined that many customers are accessing the website from the Customer Forms page, suggesting that there is a strong desire to complete applications online and that customers are specifically looking for web forms. | C44: In 2015, WNH launched an updated website and included more self-serve options for customers, including digital forms and flexible options to provide new account details. In 2016, WNH introduced mobile-responsive forms to allow customers flexible options for opening, closing and updating their account information. In 2017, WNH launched a new online platform called "FormBuilder" that allows the utility to create forms that are both accessible and optimized for mobile use. Since being launched, web access to online forms has consistently been one of the most-used features on the website, with approximately 55,000 views and more than 30,000 forms completed and submitted, and continuing to grow.
A45: MyAccount Online | B45: WNH's customer portal, My Account allows customers to provide feedback on features they would like to see or features that aren't working the way they believe they should. As of December 3, 2018, approximately 13,000 customers have registered for MyAccount, and there have been more than 32,000 logins for commercial and residential customers since January 1, 2017. WNH Communications and IT team routinely review the feedback provided on the internal pages of MyAccount in an effort to respond to this feedback in a timely basis. Review of this feedback revealed that on the landing page dashboard of MyAccount, customers wanted an easy way to see what they currently owe, biling and payment history, access to past bills, consumption information, a way to compare bills and consumption over a period of time. | C45: To address the issues identified with MyAccount, WNH worked with SilverBlaze, the company that hosts WNH's MyAccount online portal, to add up to 24 months of past bills and to improve the MyAccount dashboard to show billing and payment activity and display the information more prominently. The improvements to the dashboard are still pending roll out to ensure abosolute security of customer data, but are anticipated to be rolled out in 2019/2020. In 2019, WNH will continue to explore ways to improve the MyAccount experience for customers, including making it easier for customers to register their accounts for My Account and e-billing at the time they open their account, and to provide tools and resources within My Account that customers who use the service find valuable.

Sheet App.2-B_Acctg Instructions
A1: General Instructions to MIFRS Appendices
A2: Types of Schedules to File
A4: The purpose of this tab is to provide general instructions. The specific instructions to each appendix are listed in footnotes of each appendix.
A6: The typical applicant is expected to have made capitalization and depreciation policy changes under CGAAP as permitted by the OEB on January 1, 2012 or mandated by the OEB by January 1, 2013, and adopted IFRS for reporting purposes on January 1, 2015 (transition date January 1, 2014). Most distributors filing for 2021 rates have rebased with these accounting changes reflected in a prior rebasing application. If that is the case, information relating to pre-accounting policy changes is not generally required. Most distributors may have rebased under MIFRS. If that is the case, information related to the accounting standard used prior to IFRS is not generally required. The information to be provided by applicants will depend on when the accounting policy changes were made and when they last rebased. In general, applicants should provide the following information in the appendices:
E9: Reflecting Accounting Policy Changes in Current Application | G9: Reflected Accounting Policy Changes in Prior Application3 | H9: Rebased under MIFRS in Prior Application3
E10: Accounting Policy Changes in 2012 and Adopted IFRS in 2015 | F10: Accounting Policy Changes in 2013 and Adopted IFRS in 2015 | G10: Adopted IFRS in 2015 | H10: IFRS Since 2015
B11: 2021 | C11: Test | E11: MIFRS | F11: MIFRS | G11: MIFRS | H11: MIFRS
A12: Information to be filed in 2019 CoS Application | B12: 2020 | C12: Bridge | E12: MIFRS | F12: MIFRS | G12: MIFRS | H12: MIFRS
B13: 2019 | C13: Bridge | E13: MIFRS | F13: MIFRS | G13: MIFRS | H13: MIFRS
B14: 2018 | C14: Bridge | E14: MIFRS | F14: MIFRS | G14: MIFRS | H14: MIFRS
B15: 2017 | C15: Historical | E15: MIFRS | F15: MIFRS | G15: MIFRS | H15: MIFRS
B16: 2016 | C16: Historical | E16: MIFRS | F16: MIFRS | G16: MIFRS | H16: MIFRS
B17: 2015 | C17: Historical | E17: MIFRS and Revised CGAAP1 | F17: MIFRS and Revised CGAAP1 | G17: MIFRS and Revised CGAAP1 | H17: N/A
B18: 2014 | C18: Historical | E18: Revised CGAAP | F18: CGAAP and Revised CGAAP2 | G18: N/A | H18: N/A
B19: 2013 | C19: Historical | E19: CGAAP and Revised CGAAP2 | F19: N/A | G19: N/A | H19: N/A
A21: 1) For the transition year (2014), the applicant may file two appendices, one under Revised CGAAP and one under MIFRS, depending on the materiality of impacts. See the specific instructions under each appendix below for further details.
A22: 2) For applicants that are reflecting accounting policy changes for the first time in a rebasing application, the applicant must file two appendices in the year that the applicant implemented changes to its capitalization and depreciation policies (2012 or 2013), one before and one after the policy changes.
A23: 3) Applicants should provide CGAAP and Revised CGAAP schedules (i.e. as indicated in the first two columns of the above table) to support balances in Account 1576 if the account has yet to be disposed of.
A26: Appendix 2-BA - Fixed Asset Schedule
A28: Applicants are to provide Appendix 2-BA in accordance with the years and corresponding accounting standards noted in the above table to provide a year over year continuity in fixed assets.
A29: If this is the first application where the applicant is rebasing under MIFRS, the applicant should file two appendices, one under Revised CGAAP and one under MIFRS for the transition year (2014), if the change between Revised CGAAP and MIFRS is material. If the change from the accounting standards is not material, the applicant may choose to only provide one appendix under MIFRS. However, the applicant must also indicate the fixed asset net book value balance under Revised CGAAP, the total dollar value of the change and explain why it is not material.
A33: The applicant must establish the continuity of historical cost for gross assets and accumulated depreciation by asset class by ensuring that the opening balance in the year agrees to the closing balance in the prior year.
A36: Appendix 2-Cx - Depreciation and Amortization
A38: Applicants are to provide Appendix 2-C in accordance with the years and corresponding accounting standards listed in the above table.
A39: Appendix 2-C is to be used under all of the scenarios presented in the table above. In the appendix, the applicant will need to indicate which scenario applies. The appendix is to be duplicated for each year and for each accounting standard required as per the above table.
A40: Depreciation accounting policy changes were mandated by the OEB by January 1, 2013. In general, no further changes to an applicant's depreciation policy (i.e. assets' service lives) are expected after the OEB mandated changes by January 1, 2013, unless a change is determined to be necessary in accordance with the depreciation review required under IFRS. If the applicant has made any changes to its depreciation policy subsequent to the OEB mandated changes, for the year of the change, applicants must quantify the change in depreciation. If there are significant changes to multiple asset classes, the applicant must complete Appendix 2-C before and after the change. Applicants must also explain the nature of the change, the reason for the change, quantify the impact of the change.
A42: Appendix 2-E - Account 1575, IFRS-CGAAP Transitional PP&E Amounts (2-EA), Account 1576, Accounting Changes Under CGAAP (2-EB, 2-EC) CONTACT OEB STAFF IF TAB REQUIRED
A44: 1) For an applicant that has a balance in Account 1576 to dispose:
A45: · | B45: If an applicant changed capitalization and depreciation policies effective January 1, 2012, the applicant must complete Appendix 2-EB
A46: · | B46: If an applicant changed capitalization and depreciation policies effective January 1, 2013, the applicant must complete Appendix 2-EC
A48: 2) For an applicant that has a balance in Account 1575 to dispose:
A49: · | B49: The applicant must complete 2-EA
A50: If the applicant did not make any further PP&E accounting policy changes beyond the capitalization and depreciation policy changes as mandated by the OEB by January 1, 2013 (i.e. no further changes made on transition to IFRS), the applicant must indicate this and does not need to complete Appendix 2-EA.
A54: Appendix 2-Y - Summary of Impacts to Revenue Requirement from Transition to MIFRS CONTACT OEB STAFF IF TAB REQUIRED
A56: Applicants must complete Appendix 2-Y if this is the first rebasing application under MIFRS. An applicant must provide a summary of the dollar impacts of MIFRS to each component of the revenue requirement (e.g. rate base, operating costs, etc.), including the overall impact on the proposed revenue requirement. Accordingly, the applicant must identify financial differences and resulting revenue requirement impacts arising from the adoption of MIFRS as compared to CGAAP. If the applicant is reflecting the changes in capitalization and depreciation policies for the first time in a rebasing application as well, then a comparison between MIFRS and CGAAP before the change in accounting policies should be completed. If the applicant changed capitalization and depreciation policies and reflected these changes in a prior rebasing application, then a comparison between MIFRS and CGAAP after the change in accounting policies should be completed.

Sheet App.2-BA_Fixed Asset Cont
L1: File Number: | M1: =EBNUMBER -> EB-2020-0059
L2: Exhibit: | M2: 2
L3: Tab:
L4: Schedule: | M4: Table 2-9 to 2-14
L5: Page: | M5: 12 to 23
L7: Date: | M7: 2020-06-30
A9: Appendix 2-BA
A10: Fixed Asset Continuity Schedule 1
E12: Accounting Standard | F12: MIFRS
E13: Year | F13: 2016
D15: Cost | J15: Accumulated Depreciation
A16: CCA Class 2 | B16: OEB Account 3 | C16: Description 3 | D16: Opening Balance | E16: Additions 4 | F16: Disposals 6 | G16: Closing Balance | I16: Opening Balance | J16: Additions | K16: Disposals 6 | L16: Closing Balance | M16: Net Book Value
B17: 1609 | C17: Capital Contributions Paid | D17: 0 | E17: 0 | F17: 0 | G17: =D17+E17+F17 -> 0 | I17: 0 | J17: 0 | K17: 0 | L17: =I17+J17+K17 -> 0 | M17: =G17+L17 -> 0
A18: 12 | B18: 1611 | C18: Computer Software (Formally known as Account 1925) | D18: 6649049.17 | E18: 194925 | F18: -6542.4 | G18: =D18+E18+F18 -> 6837431.77 | I18: -5758915.77 | J18: -392515.81 | K18: 0 | L18: =I18+J18+K18 -> -6151431.58 | M18: =G18+L18 -> 686000.19
A19: 12 | B19: 1611 | C19: Computer Software (Formally known as Account 1925) - CIS/ERP | D19: 0 | E19: 0 | F19: 0 | G19: 0 | I19: 0 | J19: 0 | K19: 0 | L19: 0 | M19: 0
A20: CEC | B20: 1612 | C20: Land Rights (Formally known as Account 1906) | D20: 758776.33 | E20: 139141.27 | F20: 0 | G20: 897917.6 | I20: 0 | J20: 0 | K20: 0 | L20: 0 | M20: 897917.6
A21: N/A | B21: 1805 | C21: Land | D21: 2323796 | E21: 0 | F21: -15204.35 | G21: 2308591.65 | I21: 0 | J21: 0 | K21: 0 | L21: 0 | M21: 2308591.65
A22: 47 | B22: 1808 | C22: Buildings - MS | D22: 399157.8 | E22: 547235.61 | F22: -614212.25 | G22: 332181.16 | I22: -241878.46 | J22: -6219.36 | K22: 56060.05 | L22: -192037.77 | M22: 140143.39
A23: 47 | B23: 1808 | C23: Buildings - TS | D23: 4327243.64 | E23: 295935.8 | F23: 0 | G23: 4623179.44 | I23: -1055614.16 | J23: -73812.6 | K23: 0 | L23: -1129426.76 | M23: 3493752.68
A24: 47 | B24: 1808 | C24: Buildings & Fixtures - Service Centre | D24: 20263861.29 | E24: 62501.76 | F24: 0 | G24: 20326363.05 | I24: -1606241.25 | J24: -399944.4 | K24: 0 | L24: -2006185.65 | M24: 18320177.4
A25: 47 | B25: 1808 | C25: Service Centre - Parking Lot & Fence | D25: 788823.8 | E25: 2075 | F25: 0 | G25: 790898.8 | I25: -114502.88 | J25: -33358.56 | K25: 0 | L25: -147861.44 | M25: 643037.36
A26: 47 | B26: 1808 | C26: Service Centre - HVAC | D26: 3916530.78 | E26: 342375.98 | F26: 0 | G26: 4258906.76 | I26: -953777.84 | J26: -315247.56 | K26: 0 | L26: -1269025.4 | M26: 2989881.36
A27: 47 | B27: 1808 | C27: Service Centre - Roof | D27: 613985 | E27: 0 | F27: 0 | G27: 613985 | I27: -113209.01 | J27: -33345.24 | K27: 0 | L27: -146554.25 | M27: 467430.75
A28: 47 | B28: 1808 | C28: Service Centre - Automation | D28: 50289.82 | E28: 0 | F28: 0 | G28: 50289.82 | I28: -10839.96 | J28: -3481.08 | K28: 0 | L28: -14321.04 | M28: 35968.78
A29: 47 | B29: 1808 | C29: Operation Centre - Workshop | D29: 61363.87 | E29: 0 | F29: 0 | G29: 61363.87 | I29: -56490.91 | J29: -150 | K29: 0 | L29: -56640.91 | M29: 4722.96
A30: 13 | B30: 1810 | C30: Leasehold Improvements | D30: 0 | E30: 0 | F30: 0 | G30: 0 | I30: 0 | J30: 0 | K30: 0 | L30: 0 | M30: 0
A31: 47 | B31: 1815 | C31: Transformer Station Equipment >50 kV | D31: 15031200.07 | E31: 125071.88 | F31: 0 | G31: 15156271.95 | I31: -9373291.95 | J31: -570617.41 | K31: 0 | L31: -9943909.36 | M31: 5212362.59
A32: 47 | B32: 1815 | C32: TSE Auxiliary equipment | D32: 1734925.05 | E32: 103572.29 | F32: 0 | G32: 1838497.34 | I32: -421736.2 | J32: -64965.96 | K32: 0 | L32: -486702.16 | M32: 1351795.18
A33: 47 | B33: 1815 | C33: TSE - P&C equipment | D33: 3333245.15 | E33: 36460 | F33: 0 | G33: 3369705.15 | I33: -917743.44 | J33: -255134.44 | K33: 0 | L33: -1172877.88 | M33: 2196827.27
A34: 47 | B34: 1815 | C34: TSE - Power transformer | D34: 12341512.24 | E34: 0 | F34: 0 | G34: 12341512.24 | I34: -2458861.38 | J34: -244209.24 | K34: 0 | L34: -2703070.62 | M34: 9638441.62
A35: 47 | B35: 1820 | C35: Distribution Station Equipment <50 kV | D35: 5597083 | E35: 0 | F35: -473547.98 | G35: 5123535.02 | I35: -3600289.76 | J35: -89242.21 | K35: 444084.34 | L35: -3245447.63 | M35: 1878087.39
A36: 47 | B36: 1825 | C36: Storage Battery Equipment | D36: 0 | E36: 0 | F36: 0 | G36: 0 | I36: 0 | J36: 0 | K36: 0 | L36: 0 | M36: 0
A37: 47 | B37: 1830 | C37: Poles, Towers & Fixtures | D37: 69776950 | E37: 5079265.86 | F37: 0 | G37: 74856215.86 | I37: -26102041.93 | J37: -1288473.96 | K37: 0 | L37: -27390515.89 | M37: 47465699.97
A38: 47 | B38: 1835 | C38: Overhead Conductors & Devices | D38: 35646660.56 | E38: 2709950.22 | F38: 0 | G38: 38356610.78 | I38: -11135775.59 | J38: -724413.84 | K38: 0 | L38: -11860189.43 | M38: 26496421.35
A39: 47 | B39: 1835 | C39: OH Manual line switches | D39: 861523.54 | E39: 219181.65 | F39: 0 | G39: 1080705.19 | I39: -64363.56 | J39: -36023.4 | K39: 0 | L39: -100386.96 | M39: 980318.23
A40: 47 | B40: 1835 | C40: OH SCADA control equipment | D40: 1641740.71 | E40: 783923.63 | F40: 0 | G40: 2425664.34 | I40: -191695.44 | J40: -161711.04 | K40: 0 | L40: -353406.48 | M40: 2072257.86
A41: 47 | B41: 1840 | C41: Underground Conduit | D41: 18659276.67 | E41: 3793786.61 | F41: 0 | G41: 22453063.28 | I41: -8416805.03 | J41: -326225.88 | K41: 0 | L41: -8743030.91 | M41: 13710032.37
A42: 47 | B42: 1845 | C42: Underground Conductors & Devices | D42: 41226702.05 | E42: 11761669.85 | F42: 0.01 | G42: 52988371.91 | I42: -20029493.14 | J42: -1192967.27 | K42: 0 | L42: -21222460.41 | M42: 31765911.5
A43: 47 | B43: 1850 | C43: Line Transformers - Overhead | D43: 30218911.17 | E43: 1347428.77 | F43: -199034.62 | G43: 31367305.32 | I43: -14885540.38 | J43: -443315.04 | K43: 0 | L43: -15328855.42 | M43: 16038449.9
A44: 47 | B44: 1850 | C44: Line Transformers - Underground | D44: 26418591.48 | E44: 1686703.81 | F44: -41032.95 | G44: 28064262.34 | I44: -9207622.13 | J44: -702143.64 | K44: 0 | L44: -9909765.77 | M44: 18154496.57
A45: 47 | B45: 1855 | C45: Services - Overhead | D45: 10000235.38 | E45: 151283.05 | F45: 0 | G45: 10151518.43 | I45: -5148397.7 | J45: -139544.76 | K45: 0 | L45: -5287942.46 | M45: 4863575.97
A46: 47 | B46: 1855 | C46: Services - Underground | D46: 16554336.14 | E46: 544345.59 | F46: 0 | G46: 17098681.73 | I46: -7634290.07 | J46: -230732.28 | K46: 0 | L46: -7865022.35 | M46: 9233659.38
A47: 47 | B47: 1860 | C47: Meters - Bidirectional | D47: 35895.57 | E47: 0 | F47: 0 | G47: 35895.57 | I47: -6612.84 | J47: -1435.92 | K47: 0 | L47: -8048.76 | M47: 27846.81
A48: 47 | B48: 1860 | C48: Meters - Commercial | D48: 2859089.06 | E48: 790.71 | F48: -790.71 | G48: 2859089.06 | I48: -1617385.33 | J48: -140845.83 | K48: 0 | L48: -1758231.16 | M48: 1100857.9
A49: 47 | B49: 1860 | C49: Meters - Residential | D49: 1142342.21 | E49: 240707.94 | F49: 0 | G49: 1383050.15 | I49: -178873.56 | J49: -82371.72 | K49: 0 | L49: -261245.28 | M49: 1121804.87
A50: 47 | B50: 1860 | C50: Meters C& I | D50: 1064325.78 | E50: 250571.21 | F50: 790.71 | G50: 1315687.7 | I50: -146257.84 | J50: -87752.64 | K50: 0 | L50: -234010.48 | M50: 1081677.22
A51: 47 | B51: 1860 | C51: Meters (Smart Meters) | D51: 7709608.05 | E51: 0 | F51: 0 | G51: 7709608.05 | I51: -3122938.31 | J51: -536248.56 | K51: 0 | L51: -3659186.87 | M51: 4050421.18
A52: 47 | B52: 1860 | C52: Meters (Wholesale) | D52: 589064.33 | E52: 113659.26 | F52: 0 | G52: 702723.59 | I52: -407092.74 | J52: -50276.88 | K52: 0 | L52: -457369.62 | M52: 245353.97
A53: N/A | B53: 1905 | C53: Land | D53: 0 | E53: 0 | F53: 0 | G53: 0 | I53: 0 | J53: 0 | K53: 0 | L53: 0 | M53: 0
A54: 47 | B54: 1908 | C54: Buildings & Fixtures | D54: 0 | E54: 0 | F54: 0 | G54: 0 | I54: 0 | J54: 0 | K54: 0 | L54: 0 | M54: 0
A55: 13 | B55: 1910 | C55: Leasehold Improvements | D55: 0 | E55: 0 | F55: 0 | G55: 0 | I55: 0 | J55: 0 | K55: 0 | L55: 0 | M55: 0
A56: 8 | B56: 1915 | C56: Office Furniture & Equipment (10 years) | D56: 1567318.25 | E56: 16708.52 | F56: 0 | G56: 1584026.77 | I56: -1006593.91 | J56: -108298.48 | K56: 0 | L56: -1114892.39 | M56: 469134.38
A57: 8 | B57: 1915 | C57: Office Furniture & Equipment (5 years) | D57: 10005.39 | E57: 7510 | F57: 0 | G57: 17515.39 | I57: -10005.39 | J57: -1502.04 | K57: 0 | L57: -11507.43 | M57: 6007.96
A58: 10 | B58: 1920 | C58: Computer Equipment - Hardware | D58: 0 | E58: 0 | F58: 0 | G58: 0 | I58: 0 | J58: 0 | K58: 0 | L58: 0 | M58: 0
A59: 45 | B59: 1920 | C59: Computer Equip.-Hardware(Post Mar. 22/04) | D59: 0 | E59: 0 | F59: 0 | G59: 0 | I59: 0 | J59: 0 | K59: 0 | L59: 0 | M59: 0
A60: 50 | B60: 1920 | C60: Computer Equip.-Hardware(Post Mar. 19/07) | D60: 4196116.71 | E60: 140467.32 | F60: 6542.4 | G60: 4343126.43 | I60: -3909626.89 | J60: -146295.76 | K60: 0 | L60: -4055922.65 | M60: 287203.78
A61: 10 | B61: 1930 | C61: Transportation Equipment - car | D61: 37161.7 | E61: 0 | F61: 0 | G61: 37161.7 | I61: -29729.28 | J61: -7432.42 | K61: 0 | L61: -37161.7 | M61: 0
A62: 10 | B62: 1930 | C62: Transportation Equipment - Other - trailers etc | D62: 737546.95 | E62: 60734.6 | F62: 0 | G62: 798281.55 | I62: -346961.73 | J62: -40259.16 | K62: 0 | L62: -387220.89 | M62: 411060.66
A63: 10 | B63: 1930 | C63: Transportation Equipment - small trucks | D63: 1650798.25 | E63: 56783.6 | F63: -30206.12 | G63: 1677375.73 | I63: -1201895.67 | J63: -135637.56 | K63: 30206.12 | L63: -1307327.11 | M63: 370048.62
A64: 10 | B64: 1930 | C64: Transportation Equipment - workplatform | D64: 6438667.92 | E64: 460120.02 | F64: -257175.9 | G64: 6641612.04 | I64: -3739328.55 | J64: -367291.8 | K64: 246188.87 | L64: -3860431.48 | M64: 2781180.56
A65: 10 | B65: 1930 | C65: Transportation Equipment - Hybrid system | D65: 325429.46 | E65: 0 | F65: -73454.65 | G65: 251974.81 | I65: -157538.16 | J65: -54233.17 | K65: 44072.76 | L65: -167698.57 | M65: 84276.24
A66: 8 | B66: 1935 | C66: Stores Equipment | D66: 544135.25 | E66: 111785.38 | F66: 0 | G66: 655920.63 | I66: -334794.06 | J66: -58283.04 | K66: 0 | L66: -393077.1 | M66: 262843.53
A67: 8 | B67: 1940 | C67: Tools, Shop & Garage Equipment | D67: 320660.5 | E67: 1258.95 | F67: 0 | G67: 321919.45 | I67: -199479.08 | J67: -35109.24 | K67: 0 | L67: -234588.32 | M67: 87331.13
A68: 8 | B68: 1940 | C68: Truck tools | D68: 1126122.38 | E68: 56953.77 | F68: 0 | G68: 1183076.15 | I68: -932857.35 | J68: -88428.35 | K68: 0 | L68: -1021285.7 | M68: 161790.45
A69: 8 | B69: 1945 | C69: Measurement & Testing Equipment | D69: 936864.02 | E69: 1227.58 | F69: 0 | G69: 938091.6 | I69: -822059.65 | J69: -43446.62 | K69: 0 | L69: -865506.27 | M69: 72585.33
A70: 8 | B70: 1950 | C70: Power Operated Equipment | D70: 0 | E70: 0 | F70: 0 | G70: 0 | I70: 0 | J70: 0 | K70: 0 | L70: 0 | M70: 0
A71: 8 | B71: 1955 | C71: Communications Equipment - phones | D71: 583790.99 | E71: 1091.52 | F71: 0 | G71: 584882.51 | I71: -361860.1 | J71: -48368.71 | K71: 0 | L71: -410228.81 | M71: 174653.7
A72: 8 | B72: 1955 | C72: Communications Equipment - Radio wireless | D72: 169772.86 | E72: 52391.34 | F72: 0 | G72: 222164.2 | I72: -137478 | J72: -31587.91 | K72: 0 | L72: -169065.91 | M72: 53098.29
A73: 8 | B73: 1955 | C73: Communications Equipment - Radio | D73: 176199.12 | E73: 0 | F73: 0 | G73: 176199.12 | I73: -107047.2 | J73: -17619.84 | K73: 0 | L73: -124667.04 | M73: 51532.08
A74: 8 | B74: 1955 | C74: Communication Equipment (Smart Meters) | D74: 0 | E74: 0 | F74: 0 | G74: 0 | I74: 0 | J74: 0 | K74: 0 | L74: 0 | M74: 0
A75: 8 | B75: 1960 | C75: Miscellaneous Equipment | D75: 2643170.18 | E75: 2507.22 | F75: 0 | G75: 2645677.4 | I75: -1715550.73 | J75: -243769.7 | K75: 0 | L75: -1959320.43 | M75: 686356.97
A76: 47 | B76: 1970 | C76: Load Management Controls Customer Premises | D76: 0 | E76: 0 | F76: 0 | G76: 0 | I76: 0 | J76: 0 | K76: 0 | L76: 0 | M76: 0
A77: 47 | B77: 1975 | C77: Load Management Controls Utility Premises | D77: 0 | E77: 0 | F77: 0 | G77: 0 | I77: 0 | J77: 0 | K77: 0 | L77: 0 | M77: 0
A78: 47 | B78: 1980 | C78: System Supervisor Equipment | D78: 5049579.77 | E78: 64976.35 | F78: 0 | G78: 5114556.12 | I78: -2934946.95 | J78: -211421.77 | K78: 0 | L78: -3146368.72 | M78: 1968187.4
A79: 47 | B79: 1985 | C79: Miscellaneous Fixed Assets | D79: 0 | E79: 0 | F79: 0 | G79: 0 | I79: 0 | J79: 0 | K79: 0 | L79: 0 | M79: 0
A80: 47 | B80: 1990 | C80: Other Tangible Property | D80: 0 | E80: 0 | F80: 0 | G80: 0 | I80: 0 | J80: 0 | K80: 0 | L80: 0 | M80: 0
A81: 47 | B81: 1995 | C81: Contributions & Grants | D81: -31831420 | E81: 0 | F81: 0 | G81: -31831420 | I81: 10448904 | J81: 739530 | K81: 0 | L81: 11188434 | M81: -20642986
A82: 47 | B82: 2440 | C82: Deferred Revenue - 18085 | D82: 0 | E82: -24595.25 | F82: 0 | G82: =D82+E82+F82 -> -24595.25 | I82: 0 | J82: 1639.68 | K82: 0 | L82: =I82+J82+K82 -> 1639.68 | M82: =G82+L82 -> -22955.57
A83: 47 | B83: 2440 | C83: Deferred Revenue - 18305 | D83: -860428.26 | E83: -394191.07 | F83: 0 | G83: -1254619.33 | I83: 24878.31 | J83: 27880.43 | K83: 0 | L83: 52758.74 | M83: -1201860.59
A84: 47 | B84: 2440 | C84: Deferred Revenue - 18355 | D84: -488363.86 | E84: -223568.51 | F84: 0 | G84: -711932.37 | I84: 14136.03 | J84: 15820.72 | K84: 0 | L84: 29956.75 | M84: -681975.62
A85: 47 | B85: 2440 | C85: Deferred Revenue - 18405 | D85: -615174.96 | E85: -2345593.17 | F85: 0 | G85: -2960768.13 | I85: 13811.28 | J85: 59215.35 | K85: 0 | L85: 73026.63 | M85: -2887741.5
A86: 47 | B86: 2440 | C86: Deferred Revenue - 18455 | D86: -1473793.13 | E86: -5614021.66 | F86: 0 | G86: -7087814.79 | I86: 47695.37 | J86: 202508.99 | K86: 0 | L86: 250204.36 | M86: -6837610.43
A87: 47 | B87: 2440 | C87: Deferred Revenue - 18505 | D87: -2134626.57 | E87: -3637535.85 | F87: 0 | G87: -5772162.42 | I87: 72979.54 | J87: 151899.02 | K87: 0 | L87: 224878.56 | M87: -5547283.86
A88: 47 | B88: 2440 | C88: Deferred Revenue - 18555 | D88: -650041.09 | E88: -379699.89 | F88: 0 | G88: -1029740.98 | I88: 18593.53 | J88: 21015.13 | K88: 0 | L88: 39608.66 | M88: -990132.32
A89: 47 | B89: 2440 | C89: Deferred Revenue - 18605 | D89: -19860.04 | E89: -16998.88 | F89: 0 | G89: -36858.92 | I89: 2378.59 | J89: 2457.26 | K89: 0 | L89: 4835.85 | M89: -32023.07
B90: 2005 | C90: Property Under Finance Lease7 | D90: 0 | G90: 0 | I90: 0 | L90: 0 | M90: 0
C91: Sub-Total | D91: =SUM(D17:D90) -> 331035727.5 | E91: =SUM(E17:E90) -> 18930874.64 | F91: =SUM(F17:F90) -> -1703868.81 | G91: =SUM(G17:G90) -> 348262733.3 | I91: =SUM(I17:I90) -> -142282954.6 | J91: =SUM(J17:J90) -> -9043745.52 | K91: =SUM(K17:K90) -> 820612.14 | L91: =SUM(L17:L90) -> -150506088 | M91: =SUM(M17:M90) -> 197756645.3
C92: Less Socialized Renewable Energy Generation Investments (input as negative) | G92: =D92+E92+F92 -> 0 | L92: =I92+J92+K92 -> 0 | M92: =G92+L92 -> 0
C93: Less Other Non Rate-Regulated Utility Assets (input as negative) | G93: 0 | L93: =I93+J93+K93 -> 0 | M93: 0
C94: Total PP&E | D94: =SUM(D91:D93) -> 331035727.5 | E94: =SUM(E91:E93) -> 18930874.64 | F94: =SUM(F91:F93) -> -1703868.81 | G94: =SUM(G91:G93) -> 348262733.3 | I94: =SUM(I91:I93) -> -142282954.6 | J94: =SUM(J91:J93) -> -9043745.52 | K94: =SUM(K91:K93) -> 820612.14 | L94: =SUM(L91:L93) -> -150506088 | M94: =SUM(M91:M93) -> 197756645.3
C95: Depreciation Expense adj. from gain or loss on the retirement of assets (pool of like assets), if applicable6 | J95: 0
C96: Total | J96: =J94+J95 -> -9043745.52
I98: Less: Fully Allocated Depreciation
A99: 10 | B99: 1930&1940 | C99: Transportation | I99: Transportation | K99: =SUM(J61:J65, J67:J68) -> -728391.7
A100: 8 | B100: 1935 | C100: Stores Equipment | I100: Stores Equipment | K100: =J66 -> -58283.04
A101: 47 | B101: 2440 | C101: Deferred Revenue | I101: Deferred Revenue | K101: =SUM(J82:J89) -> 482436.58
I102: Net Depreciation | K102: =J96-K99-K100-K101 -> -8739507.36
E104: Accounting Standard | F104: MIFRS
E105: Year | F105: 2017
D107: Cost | J107: Accumulated Depreciation
A108: CCA Class 2 | B108: OEB Account 3 | C108: Description 3 | D108: Opening Balance | E108: Additions 4 | F108: Disposals 6 | G108: Closing Balance | I108: Opening Balance | J108: Additions | K108: Disposals 6 | L108: Closing Balance | M108: Net Book Value
B109: 1609 | C109: Capital Contributions Paid | D109: =G17 -> 0 | E109: 0 | F109: 0 | G109: =D109+E109+F109 -> 0 | I109: =L17 -> 0 | J109: 0 | K109: 0 | L109: =I109+J109+K109 -> 0 | M109: =G109+L109 -> 0
A110: 12 | B110: 1611 | C110: Computer Software (Formally known as Account 1925) | D110: =G18 -> 6837431.77 | E110: 327877.4 | F110: 0 | G110: =D110+E110+F110 -> 7165309.17 | I110: =L18 -> -6151431.58 | J110: -351558.7 | K110: 0 | L110: =I110+J110+K110 -> -6502990.28 | M110: =G110+L110 -> 662318.89
A111: 12 | B111: 1611 | C111: Computer Software (Formally known as Account 1925) - CIS/ERP | D111: 0 | E111: 1432720.78 | F111: 0 | G111: 1432720.78 | I111: 0 | J111: -143272.08 | K111: 0 | L111: -143272.08 | M111: 1289448.7
A112: CEC | B112: 1612 | C112: Land Rights (Formally known as Account 1906) | D112: 897917.6 | E112: 84332.18 | F112: 0 | G112: 982249.78 | I112: 0 | J112: 0 | K112: 0 | L112: 0 | M112: 982249.78
A113: N/A | B113: 1805 | C113: Land | D113: 2308591.65 | E113: 0 | F113: -8050.64 | G113: 2300541.01 | I113: 0 | J113: 0 | K113: 0 | L113: 0 | M113: 2300541.01
A114: 47 | B114: 1808 | C114: Buildings - MS | D114: 332181.16 | E114: 281920.51 | F114: -335103.95 | G114: 278997.72 | I114: -192037.77 | J114: -5344.8 | K114: 33637.2 | L114: -163745.37 | M114: 115252.35
A115: 47 | B115: 1808 | C115: Buildings - TS | D115: 4623179.44 | E115: 22431.11 | F115: 0 | G115: 4645610.55 | I115: -1129426.76 | J115: -74186.4 | K115: 0 | L115: -1203613.16 | M115: 3441997.39
A116: 47 | B116: 1808 | C116: Buildings & Fixtures - Service Centre | D116: 20326363.05 | E116: 180233.6 | F116: 0 | G116: 20506596.65 | I116: -2006185.65 | J116: -403548.72 | K116: 0 | L116: -2409734.37 | M116: 18096862.28
A117: 47 | B117: 1808 | C117: Service Centre - Parking Lot & Fence | D117: 790898.8 | E117: 0 | F117: 0 | G117: 790898.8 | I117: -147861.44 | J117: -33358.68 | K117: 0 | L117: -181220.12 | M117: 609678.68
A118: 47 | B118: 1808 | C118: Service Centre - HVAC | D118: 4258906.76 | E118: 6583 | F118: 0 | G118: 4265489.76 | I118: -1269025.4 | J118: -315686.52 | K118: 0 | L118: -1584711.92 | M118: 2680777.84
A119: 47 | B119: 1808 | C119: Service Centre - Roof | D119: 613985 | E119: 0 | F119: 0 | G119: 613985 | I119: -146554.25 | J119: -33345.24 | K119: 0 | L119: -179899.49 | M119: 434085.51
A120: 47 | B120: 1808 | C120: Service Centre - Automation | D120: 50289.82 | E120: 0 | F120: 0 | G120: 50289.82 | I120: -14321.04 | J120: -3481.2 | K120: 0 | L120: -17802.24 | M120: 32487.58
A121: 47 | B121: 1808 | C121: Operation Centre - Workshop | D121: 61363.87 | E121: 0 | F121: 0 | G121: 61363.87 | I121: -56640.91 | J121: -150 | K121: 0 | L121: -56790.91 | M121: 4572.96
A122: 13 | B122: 1810 | C122: Leasehold Improvements | D122: 0 | E122: 0 | F122: 0 | G122: 0 | I122: 0 | J122: 0 | K122: 0 | L122: 0 | M122: 0
A123: 47 | B123: 1815 | C123: Transformer Station Equipment >50 kV | D123: 15156271.95 | E123: 18670 | F123: 0 | G123: 15174941.95 | I123: -9943909.36 | J123: -570428.08 | K123: 0 | L123: -10514337.44 | M123: 4660604.51
A124: 47 | B124: 1815 | C124: TSE Auxiliary equipment | D124: 1838497.34 | E124: 137102.44 | F124: 0 | G124: 1975599.78 | I124: -486702.16 | J124: -69536.04 | K124: 0 | L124: -556238.2 | M124: 1419361.58
A125: 47 | B125: 1815 | C125: TSE - P&C equipment | D125: 3369705.15 | E125: 152862.9 | F125: 0 | G125: 3522568.05 | I125: -1172877.88 | J125: -265562.64 | K125: 0 | L125: -1438440.52 | M125: 2084127.53
A126: 47 | B126: 1815 | C126: TSE - Power transformer | D126: 12341512.24 | E126: 0 | F126: 0 | G126: 12341512.24 | I126: -2703070.62 | J126: -244209.24 | K126: 0 | L126: -2947279.86 | M126: 9394232.38
A127: 47 | B127: 1820 | C127: Distribution Station Equipment <50 kV | D127: 5123535.02 | E127: 339762.87 | F127: -301983.7 | G127: 5161314.19 | I127: -3245447.63 | J127: -96618.48 | K127: 292274.47 | L127: -3049791.64 | M127: 2111522.55
A128: 47 | B128: 1825 | C128: Storage Battery Equipment | D128: 0 | E128: 0 | F128: 0 | G128: 0 | I128: 0 | J128: 0 | K128: 0 | L128: 0 | M128: 0
A129: 47 | B129: 1830 | C129: Poles, Towers & Fixtures | D129: 74856215.86 | E129: 4737204.8 | F129: -34999.33 | G129: 79558421.33 | I129: -27390515.89 | J129: -1393433.4 | K129: 27891.13 | L129: -28756058.16 | M129: 50802363.17
A130: 47 | B130: 1835 | C130: Overhead Conductors & Devices | D130: 38356610.78 | E130: 2794117.16 | F130: 0 | G130: 41150727.94 | I130: -11860189.43 | J130: -786505.25 | K130: 0 | L130: -12646694.68 | M130: 28504033.26
A131: 47 | B131: 1835 | C131: OH Manual line switches | D131: 1080705.19 | E131: 207230.31 | F131: 0 | G131: 1287935.5 | I131: -100386.96 | J131: -42931.08 | K131: 0 | L131: -143318.04 | M131: 1144617.46
A132: 47 | B132: 1835 | C132: OH SCADA control equipment | D132: 2425664.34 | E132: 10079.75 | F132: 0 | G132: 2435744.09 | I132: -353406.48 | J132: -162382.92 | K132: 0 | L132: -515789.4 | M132: 1919954.69
A133: 47 | B133: 1840 | C133: Underground Conduit | D133: 22453063.28 | E133: 956850.46 | F133: 0 | G133: 23409913.74 | I133: -8743030.91 | J133: -345362.88 | K133: 0 | L133: -9088393.79 | M133: 14321519.95
A134: 47 | B134: 1845 | C134: Underground Conductors & Devices | D134: 52988371.91 | E134: 2533856.17 | F134: 0 | G134: 55522228.08 | I134: -21222460.41 | J134: -1255035.1 | K134: 0 | L134: -22477495.51 | M134: 33044732.57
A135: 47 | B135: 1850 | C135: Line Transformers - Overhead | D135: 31367305.32 | E135: 1862118.79 | F135: -340865.02 | G135: 32888559.09 | I135: -15328855.42 | J135: -478160.76 | K135: 74754.05 | L135: -15732262.13 | M135: 17156296.96
A136: 47 | B136: 1850 | C136: Line Transformers - Underground | D136: 28064262.34 | E136: 1688855.68 | F136: -115604.85 | G136: 29637513.17 | I136: -9909765.77 | J136: -746597.4 | K136: 2897.16 | L136: -10653466.01 | M136: 18984047.16
A137: 47 | B137: 1855 | C137: Services - Overhead | D137: 10151518.43 | E137: 258767.03 | F137: 0 | G137: 10410285.46 | I137: -5287942.46 | J137: -145295.04 | K137: 0 | L137: -5433237.5 | M137: 4977047.96
A138: 47 | B138: 1855 | C138: Services - Underground | D138: 17098681.73 | E138: 962103.38 | F138: 0 | G138: 18060785.11 | I138: -7865022.35 | J138: -249974.16 | K138: 0 | L138: -8114996.51 | M138: 9945788.6
A139: 47 | B139: 1860 | C139: Meters - Bidirectional | D139: 35895.57 | E139: 0 | F139: 0 | G139: 35895.57 | I139: -8048.76 | J139: -1435.8 | K139: 0 | L139: -9484.56 | M139: 26411.01
A140: 47 | B140: 1860 | C140: Meters - Commercial | D140: 2859089.06 | E140: 0 | F140: 0 | G140: 2859089.06 | I140: -1758231.16 | J140: -135969.72 | K140: 0 | L140: -1894200.88 | M140: 964888.18
A141: 47 | B141: 1860 | C141: Meters - Residential | D141: 1383050.15 | E141: 248473.52 | F141: 0 | G141: 1631523.67 | I141: -261245.28 | J141: -98936.76 | K141: 0 | L141: -360182.04 | M141: 1271341.63
A142: 47 | B142: 1860 | C142: Meters C& I | D142: 1315687.7 | E142: 398573.06 | F142: 0 | G142: 1714260.76 | I142: -234010.48 | J142: -114324.12 | K142: 0 | L142: -348334.6 | M142: 1365926.16
A143: 47 | B143: 1860 | C143: Meters (Smart Meters) | D143: 7709608.05 | E143: 0 | F143: 0 | G143: 7709608.05 | I143: -3659186.87 | J143: -536248.56 | K143: 0 | L143: -4195435.43 | M143: 3514172.62
A144: 47 | B144: 1860 | C144: Meters (Wholesale) | D144: 702723.59 | E144: 70546.87 | F144: 0 | G144: 773270.46 | I144: -457369.62 | J144: -54979.74 | K144: 0 | L144: -512349.36 | M144: 260921.1
A145: N/A | B145: 1905 | C145: Land | D145: 0 | E145: 0 | F145: 0 | G145: 0 | I145: 0 | J145: 0 | K145: 0 | L145: 0 | M145: 0
A146: 47 | B146: 1908 | C146: Buildings & Fixtures | D146: 0 | E146: 0 | F146: 0 | G146: 0 | I146: 0 | J146: 0 | K146: 0 | L146: 0 | M146: 0
A147: 13 | B147: 1910 | C147: Leasehold Improvements | D147: 0 | E147: 0 | F147: 0 | G147: 0 | I147: 0 | J147: 0 | K147: 0 | L147: 0 | M147: 0
A148: 8 | B148: 1915 | C148: Office Furniture & Equipment (10 years) | D148: 1584026.77 | E148: 2710 | F148: 0 | G148: 1586736.77 | I148: -1114892.39 | J148: -106150.33 | K148: 0 | L148: -1221042.72 | M148: 365694.05
A149: 8 | B149: 1915 | C149: Office Furniture & Equipment (5 years) | D149: 17515.39 | E149: 22557.49 | F149: 0 | G149: 40072.88 | I149: -11507.43 | J149: -6013.56 | K149: 0 | L149: -17520.99 | M149: 22551.89
A150: 10 | B150: 1920 | C150: Computer Equipment - Hardware | D150: 0 | E150: 0 | F150: 0 | G150: 0 | I150: 0 | J150: 0 | K150: 0 | L150: 0 | M150: 0
A151: 45 | B151: 1920 | C151: Computer Equip.-Hardware(Post Mar. 22/04) | D151: 0 | E151: 0 | F151: 0 | G151: 0 | I151: 0 | J151: 0 | K151: 0 | L151: 0 | M151: 0
A152: 50 | B152: 1920 | C152: Computer Equip.-Hardware(Post Mar. 19/07) | D152: 4343126.43 | E152: 122517.28 | F152: 0 | G152: 4465643.71 | I152: -4055922.65 | J152: -130051.91 | K152: 0 | L152: -4185974.56 | M152: 279669.15
A153: 10 | B153: 1930 | C153: Transportation Equipment - car | D153: 37161.7 | E153: 0 | F153: 0 | G153: 37161.7 | I153: -37161.7 | J153: 0 | K153: 0 | L153: -37161.7 | M153: 0
A154: 10 | B154: 1930 | C154: Transportation Equipment - Other - trailers etc | D154: 798281.55 | E154: 25470.84 | F154: 0 | G154: 823752.39 | I154: -387220.89 | J154: -41956.68 | K154: 0 | L154: -429177.57 | M154: 394574.82
A155: 10 | B155: 1930 | C155: Transportation Equipment - small trucks | D155: 1677375.73 | E155: 38238.71 | F155: -86176.54 | G155: 1629437.9 | I155: -1307327.11 | J155: -136940.28 | K155: 85760.18 | L155: -1358507.21 | M155: 270930.69
A156: 10 | B156: 1930 | C156: Transportation Equipment - workplatform | D156: 6641612.04 | E156: 449181.3 | F156: -279322.58 | G156: 6811470.76 | I156: -3860431.48 | J156: -403650.93 | K156: 274922.44 | L156: -3989159.97 | M156: 2822310.79
A157: 10 | B157: 1930 | C157: Transportation Equipment - Hybrid system | D157: 251974.81 | E157: 0 | F157: -59250 | G157: 192724.81 | I157: -167698.57 | J157: -31126.16 | K157: 23700 | L157: -175124.73 | M157: 17600.08
A158: 8 | B158: 1935 | C158: Stores Equipment | D158: 655920.63 | E158: 1000 | F158: 0 | G158: 656920.63 | I158: -393077.1 | J158: -58383.14 | K158: 0 | L158: -451460.24 | M158: 205460.39
A159: 8 | B159: 1940 | C159: Tools, Shop & Garage Equipment | D159: 321919.45 | E159: 5100 | F159: 0 | G159: 327019.45 | I159: -234588.32 | J159: -35746.92 | K159: 0 | L159: -270335.24 | M159: 56684.21
A160: 8 | B160: 1940 | C160: Truck tools | D160: 1183076.15 | E160: 27470.07 | F160: 0 | G160: 1210546.22 | I160: -1021285.7 | J160: -72696.83 | K160: 0 | L160: -1093982.53 | M160: 116563.69
A161: 8 | B161: 1945 | C161: Measurement & Testing Equipment | D161: 938091.6 | E161: 29045 | F161: 0 | G161: 967136.6 | I161: -865506.27 | J161: -42792.38 | K161: 0 | L161: -908298.65 | M161: 58837.95
A162: 8 | B162: 1950 | C162: Power Operated Equipment | D162: 0 | E162: 0 | F162: 0 | G162: 0 | I162: 0 | J162: 0 | K162: 0 | L162: 0 | M162: 0
A163: 8 | B163: 1955 | C163: Communications Equipment - phones | D163: 584882.51 | E163: 0 | F163: 0 | G163: 584882.51 | I163: -410228.81 | J163: -43600.68 | K163: 0 | L163: -453829.49 | M163: 131053.02
A164: 8 | B164: 1955 | C164: Communications Equipment - Radio wireless | D164: 222164.2 | E164: 0 | F164: 0 | G164: 222164.2 | I164: -169065.91 | J164: -9850.49 | K164: 0 | L164: -178916.4 | M164: 43247.8
A165: 8 | B165: 1955 | C165: Communications Equipment - Radio | D165: 176199.12 | E165: 0 | F165: 0 | G165: 176199.12 | I165: -124667.04 | J165: -17619.96 | K165: 0 | L165: -142287 | M165: 33912.12
A166: 8 | B166: 1955 | C166: Communication Equipment (Smart Meters) | D166: 0 | E166: 0 | F166: 0 | G166: 0 | I166: 0 | J166: 0 | K166: 0 | L166: 0 | M166: 0
A167: 8 | B167: 1960 | C167: Miscellaneous Equipment | D167: 2645677.4 | E167: 21067.34 | F167: -2507.25 | G167: 2664237.49 | I167: -1959320.43 | J167: -239437.61 | K167: 0 | L167: -2198758.04 | M167: 465479.45
A168: 47 | B168: 1970 | C168: Load Management Controls Customer Premises | D168: 0 | E168: 0 | F168: 0 | G168: 0 | I168: 0 | J168: 0 | K168: 0 | L168: 0 | M168: 0
A169: 47 | B169: 1975 | C169: Load Management Controls Utility Premises | D169: 0 | E169: 0 | F169: 0 | G169: 0 | I169: 0 | J169: 0 | K169: 0 | L169: 0 | M169: 0
A170: 47 | B170: 1980 | C170: System Supervisor Equipment | D170: 5114556.12 | E170: 12466.23 | F170: 0 | G170: 5127022.35 | I170: -3146368.72 | J170: -212021.41 | K170: 0 | L170: -3358390.13 | M170: 1768632.22
A171: 47 | B171: 1985 | C171: Miscellaneous Fixed Assets | D171: 0 | E171: 0 | F171: 0 | G171: 0 | I171: 0 | J171: 0 | K171: 0 | L171: 0 | M171: 0
A172: 47 | B172: 1990 | C172: Other Tangible Property | D172: 0 | E172: 0 | F172: 0 | G172: 0 | I172: 0 | J172: 0 | K172: 0 | L172: 0 | M172: 0
A173: 47 | B173: 1995 | C173: Contributions & Grants | D173: -31831420 | E173: 0 | F173: 0 | G173: -31831420 | I173: 11188434 | J173: 738533 | K173: 0 | L173: 11926967 | M173: -19904453
A174: 47 | B174: 2440 | C174: Deferred Revenue - 18085 | D174: =G82 -> -24595.25 | E174: 0 | F174: 0 | G174: =D174+E174+F174 -> -24595.25 | I174: =L82 -> 1639.68 | J174: 1639.68 | K174: 0 | L174: =I174+J174+K174 -> 3279.36 | M174: =G174+L174 -> -21315.89
A175: 47 | B175: 2440 | C175: Deferred Revenue - 18305 | D175: -1254619.33 | E175: -352048.39 | F175: 0 | G175: -1606667.72 | I175: 52758.74 | J175: 35703.73 | K175: 0 | L175: 88462.47 | M175: -1518205.25
A176: 47 | B176: 2440 | C176: Deferred Revenue - 18355 | D176: -711932.37 | E176: -199866.81 | F176: 0 | G176: -911799.18 | I176: 29956.75 | J176: 20262.2 | K176: 0 | L176: 50218.95 | M176: -861580.23
A177: 47 | B177: 2440 | C177: Deferred Revenue - 18405 | D177: -2960768.13 | E177: -547329.64 | F177: 0 | G177: -3508097.77 | I177: 73026.63 | J177: 70161.94 | K177: 0 | L177: 143188.57 | M177: -3364909.2
A178: 47 | B178: 2440 | C178: Deferred Revenue - 18455 | D178: -7087814.79 | E178: -1387526.2 | F178: 0 | G178: -8475340.99 | I178: 250204.36 | J178: 242152.6 | K178: 0 | L178: 492356.96 | M178: -7982984.03
A179: 47 | B179: 2440 | C179: Deferred Revenue - 18505 | D179: -5772162.42 | E179: -1637061.95 | F179: 0 | G179: -7409224.37 | I179: 224878.56 | J179: 194979.6 | K179: 0 | L179: 419858.16 | M179: -6989366.21
A180: 47 | B180: 2440 | C180: Deferred Revenue - 18555 | D180: -1029740.98 | E180: -432271.03 | F180: 0 | G180: -1462012.01 | I180: 39608.66 | J180: 29836.99 | K180: 0 | L180: 69445.65 | M180: -1392566.36
A181: 47 | B181: 2440 | C181: Deferred Revenue - 18605 | D181: -36858.92 | E181: -22397.43 | F181: 0 | G181: -59256.35 | I181: 4835.85 | J181: 3950.42 | K181: 0 | L181: 8786.27 | M181: -50470.08
B182: 2005 | C182: Property Under Finance Lease7 | D182: 0 | G182: 0 | I182: 0 | L182: 0 | M182: 0
C183: Sub-Total | D183: =SUM(D109:D182) -> 348262733.3 | E183: =SUM(E109:E182) -> 15891596.58 | F183: =SUM(F109:F182) -> -1563863.86 | G183: =SUM(G109:G182) -> 362590466 | I183: =SUM(I109:I182) -> -150506088 | J183: =SUM(J109:J182) -> -9408678.62 | K183: =SUM(K109:K182) -> 815836.63 | L183: =SUM(L109:L182) -> -159098930 | M183: =SUM(M109:M182) -> 203491536.1
C184: Less Socialized Renewable Energy Generation Investments (input as negative) | G184: =D184+E184+F184 -> 0 | L184: =I184+J184+K184 -> 0 | M184: =G184+L184 -> 0
C185: Less Other Non Rate-Regulated Utility Assets (input as negative) | G185: =D185+E185+F185 -> 0 | L185: =I185+J185+K185 -> 0 | M185: =G185+L185 -> 0
C186: Total PP&E | D186: =SUM(D183:D185) -> 348262733.3 | E186: =SUM(E183:E185) -> 15891596.58 | F186: =SUM(F183:F185) -> -1563863.86 | G186: =SUM(G183:G185) -> 362590466 | I186: =SUM(I183:I185) -> -150506088 | J186: =SUM(J183:J185) -> -9408678.62 | K186: =SUM(K183:K185) -> 815836.63 | L186: =SUM(L183:L185) -> -159098930 | M186: =SUM(M183:M185) -> 203491536.1
C187: Depreciation Expense adj. from gain or loss on the retirement of assets (pool of like assets), if applicable6 | J187: 0
C188: Total | J188: =J186+J187 -> -9408678.62
I190: Less: Fully Allocated Depreciation
A191: 10 | B191: 1930&1940 | C191: Transportation | I191: Transportation | K191: =SUM(J153:J157, J159:J160) -> -722117.8
A192: 8 | B192: 1935 | C192: Stores Equipment | I192: Stores Equipment | K192: =J158 -> -58383.14
A193: 47 | B193: 2440 | C193: Deferred Revenue | I193: Deferred Revenue | K193: =SUM(J174:J181) -> 598687.16
I194: Net Depreciation | K194: =J188-K191-K192-K193 -> -9226864.84
E196: Accounting Standard | F196: MIFRS
E197: Year | F197: 2018
D199: Cost | J199: Accumulated Depreciation
A200: CCA Class 2 | B200: OEB Account 3 | C200: Description 3 | D200: Opening Balance | E200: Additions 4 | F200: Disposals 6 | G200: Closing Balance | I200: Opening Balance | J200: Additions | K200: Disposals 6 | L200: Closing Balance | M200: Net Book Value
B201: 1609 | C201: Capital Contributions Paid | D201: =G109 -> 0 | E201: 0 | F201: 0 | G201: =D201+E201+F201 -> 0 | I201: =L109 -> 0 | J201: 0 | K201: 0 | L201: =I201+J201+K201 -> 0 | M201: =G201+L201 -> 0
A202: 12 | B202: 1611 | C202: Computer Software (Formally known as Account 1925) | D202: =G110 -> 7165309.17 | E202: 529216.32 | F202: 0 | G202: =D202+E202+F202 -> 7694525.49 | I202: =L110 -> -6502990.28 | J202: -388743.03 | K202: 0 | L202: =I202+J202+K202 -> -6891733.31 | M202: =G202+L202 -> 802792.18
A203: 12 | B203: 1611 | C203: Computer Software (Formally known as Account 1925) - CIS/ERP | D203: 1432720.78 | E203: 451354.65 | F203: 0 | G203: 1884075.43 | I203: -143272.08 | J203: -188407.32 | K203: 0 | L203: -331679.4 | M203: 1552396.03
A204: CEC | B204: 1612 | C204: Land Rights (Formally known as Account 1906) | D204: 982249.78 | E204: 77374.93 | F204: 0 | G204: 1059624.71 | I204: 0 | J204: 0 | K204: 0 | L204: 0 | M204: 1059624.71
A205: N/A | B205: 1805 | C205: Land | D205: 2300541.01 | E205: 0 | F205: 0 | G205: 2300541.01 | I205: 0 | J205: 0 | K205: 0 | L205: 0 | M205: 2300541.01
A206: 47 | B206: 1808 | C206: Buildings - MS | D206: 278997.72 | E206: 0 | F206: 0 | G206: 278997.72 | I206: -163745.37 | J206: -5344.56 | K206: 0 | L206: -169089.93 | M206: 109907.79
A207: 47 | B207: 1808 | C207: Buildings - TS | D207: 4645610.55 | E207: 109904.11 | F207: 0 | G207: 4755514.66 | I207: -1203613.16 | J207: -76018.2 | K207: 0 | L207: -1279631.36 | M207: 3475883.3
A208: 47 | B208: 1808 | C208: Buildings & Fixtures - Service Centre | D208: 20506596.65 | E208: 4930 | F208: 0 | G208: 20511526.65 | I208: -2409734.37 | J208: -403647.72 | K208: 0 | L208: -2813382.09 | M208: 17698144.56
A209: 47 | B209: 1808 | C209: Service Centre - Parking Lot & Fence | D209: 790898.8 | E209: 25465 | F209: 0 | G209: 816363.8 | I209: -181220.12 | J209: -34377.12 | K209: 0 | L209: -215597.24 | M209: 600766.56
A210: 47 | B210: 1808 | C210: Service Centre - HVAC | D210: 4265489.76 | E210: 0 | F210: 0 | G210: 4265489.76 | I210: -1584711.92 | J210: -315686.52 | K210: 0 | L210: -1900398.44 | M210: 2365091.32
... 350 more rows

Sheet Appendix 2-BB Service Life
N1: File Number: | P1: ='LDC Info'!E16 -> EB-2020-0059
N2: Exhibit: | P2: 4
N3: Tab:
N4: Schedule: | P4: Table 4-43
N5: Page: | P5: 89
N7: Date: | P7: 2020-06-30
A9: Appendix 2-BB
A10: Service Life Comparison
A11: Table F-1 from Kinetrics Report1
C15: Asset Details | F15: Useful Life | J15: USoA Account Number | K15: USoA Account Description | L15: Current | N15: Proposed | P15: Outside Range of Min, Max TUL?
A16: Parent* | B16: # | C16: Category| Component | Type | F16: MIN UL | G16: TUL | H16: MAX UL | L16: Years | M16: Rate | N16: Years | O16: Rate | P16: Below Min TUL | Q16: Above Max TUL
A17: OH | B17: 1 | C17: Fully Dressed Wood Poles | D17: Overall | F17: 35 | G17: 45 | H17: 75 | J17: 1830 | K17: Poles, Towers & Fixtures | L17: 45 | M17: =IF(ISERROR(1/L17), "", 1/L17) -> 0.02222222222 | N17: 45 | O17: =IF(ISERROR(1/N17), "", 1/N17) -> 0.02222222222 | P17: =IF(ISBLANK(N17),"",IF(N17<F17,"Yes","No")) -> No | Q17: =IF(ISBLANK(N17),"",IF(N17>H17,"Yes","No")) -> No
D18: Cross Arm | E18: Wood | F18: 20 | G18: 40 | H18: 55 | M18: =IF(ISERROR(1/L18), "", 1/L18) ->  | O18: =IF(ISERROR(1/N18), "", 1/N18) ->  | P18: =IF(ISBLANK(N18),"",IF(N18<F18,"Yes","No")) ->  | Q18: =IF(ISBLANK(N18),"",IF(N18>H18,"Yes","No")) -> 
E19: Steel | F19: 30 | G19: 70 | H19: 95
B20: 2 | C20: Fully Dressed Concrete Poles | D20: Overall | F20: 50 | G20: 60 | H20: 80
D21: Cross Arm | E21: Wood | F21: 20 | G21: 40 | H21: 55
E22: Steel | F22: 30 | G22: 70 | H22: 95
B23: 3 | C23: Fully Dressed Steel Poles | D23: Overall | F23: 60 | G23: 60 | H23: 80
D24: Cross Arm | E24: Wood | F24: 20 | G24: 40 | H24: 55
E25: Steel | F25: 30 | G25: 70 | H25: 95
B26: 4 | C26: OH Line Switch | F26: 30 | G26: 45 | H26: 55 | J26: 1835 | K26: OH Conductors & Devices | L26: 30 | M26: 0.03333333333 | N26: 30 | O26: 0.03333333333 | P26: No | Q26: No
B27: 5 | C27: OH Line Switch Motor | F27: 15 | G27: 25 | H27: 25
B28: 6 | C28: OH Line Switch RTU | F28: 15 | G28: 20 | H28: 20 | J28: 1835 | K28: OH Conductors & Devices | L28: 15 | M28: 0.06666666667 | N28: 15 | O28: 0.06666666667 | P28: No | Q28: No
B29: 7 | C29: OH Integral Switches | F29: 35 | G29: 45 | H29: 60
B30: 8 | C30: OH Conductors | F30: 50 | G30: 60 | H30: 75 | J30: 1835 | K30: OH Conductors & Devices | L30: 45 | M30: 0.02222222222 | N30: 45 | O30: 0.02222222222 | P30: Yes | Q30: No
B31: 9 | C31: OH Transformers & Voltage Regulators | F31: 30 | G31: 40 | H31: 60 | J31: 1850 | K31: Line Transformers | L31: 45 | M31: 0.02222222222 | N31: 45 | O31: 0.02222222222 | P31: No | Q31: No
B32: 10 | C32: OH Shunt Capacitor Banks | F32: 25 | G32: 30 | H32: 40 | J32: 1830 | K32: Poles, Towers & Fixtures | L32: 25 | M32: 0.04 | N32: 25 | O32: 0.04 | P32: No | Q32: No
C33: OH Services | F33: no guideline | J33: 1855 | K33: Services | L33: 45 | M33: 0.02222222222 | N33: 45 | O33: 0.02222222222 | P33: no guideline
B34: 11 | C34: Reclosers | F34: 25 | G34: 40 | H34: 55
A35: TS & MS | B35: 12 | C35: Power Transformers | D35: Overall | F35: 30 | G35: 45 | H35: 60 | J35: 1815 | K35: Transformer Station Equipment | L35: 50 | M35: 0.02 | N35: 50 | O35: 0.02 | P35: No | Q35: No
D36: Bushing | F36: 10 | G36: 20 | H36: 30
D37: Tap Changer | F37: 20 | G37: 30 | H37: 60
B38: 13 | C38: Station Service Transformer | F38: 30 | G38: 45 | H38: 55
B39: 14 | C39: Station Grounding Transformer | F39: 30 | G39: 40 | H39: 40
B40: 15 | C40: Station DC System | D40: Overall | F40: 10 | G40: 20 | H40: 30
D41: Battery Bank | F41: 10 | G41: 15 | H41: 15
D42: Charger | F42: 20 | G42: 20 | H42: 30
C43: MS/DS Equipment | F43: 30 | G43: 40 | H43: 60 | J43: 1820 | K43: Distribution Station Equipment | L43: 30 | M43: 0.03333333333 | N43: 30 | O43: 0.03333333333 | P43: No | Q43: No
B44: 16 | C44: Station Metal Clad Switchgear | D44: Overall | F44: 30 | G44: 40 | H44: 60
D45: Removable Breaker | F45: 25 | G45: 40 | H45: 60
B46: 17 | C46: Station Independent Breakers | F46: 35 | G46: 45 | H46: 65
C47: TS Auxiliary Equipment | F47: 30 | G47: 50 | H47: 60 | J47: 1815 | K47: Transformer Station Equipment | L47: 30 | M47: 0.03333333333 | N47: 30 | O47: 0.03333333333 | P47: No | Q47: No
C48: TS P&C Equipment | F48: 15 | G48: 20 | H48: 20 | J48: 1815 | K48: Transformer Station Equipment | L48: 15 | M48: 0.06666666667 | N48: 15 | O48: 0.06666666667 | P48: No | Q48: No
B49: 18 | C49: Station Switch | F49: 30 | G49: 50 | H49: 60
B50: 19 | C50: Electromechanical Relays | F50: 25 | G50: 35 | H50: 50
B51: 20 | C51: Solid State Relays | F51: 10 | G51: 30 | H51: 45
B52: 21 | C52: Digital & Numeric Relays | F52: 15 | G52: 20 | H52: 20
B53: 22 | C53: Rigid Busbars | F53: 30 | G53: 55 | H53: 60
B54: 23 | C54: Steel Structure | F54: 35 | G54: 50 | H54: 90
A55: UG | B55: 24 | C55: Primary Paper Insulated Lead Covered (PILC) Cables | F55: 60 | G55: 65 | H55: 75
B56: 25 | C56: Primary Ethylene-Propylene Rubber (EPR) Cables | F56: 20 | G56: 25 | H56: 25
B57: 26 | C57: Primary Non-Tree Retardant (TR) Cross Linked Polyethylene (XLPE) Cables Direct Buried | F57: 20 | G57: 25 | H57: 30
B58: 27 | C58: Primary Non-TR XLPE Cables in Duct | F58: 20 | G58: 25 | H58: 30
B59: 29 | C59: Primary TR XLPE Cables in Duct | F59: 35 | G59: 40 | H59: 55 | J59: 1845 | K59: Underground Conductors & Devices | L59: 35 | M59: 0.02857142857 | N59: 35 | O59: 0.02857142857 | P59: No | Q59: No
B60: 30 | C60: Secondary PILC Cables | F60: 70 | G60: 75 | H60: 80
B61: 31 | C61: Secondary Cables Direct Buried | F61: 25 | G61: 35 | H61: 40
B62: 32 | C62: Secondary Cables in Duct | F62: 35 | G62: 40 | H62: 60 | J62: 1855 | K62: Services | L62: 50 | M62: 0.02 | N62: 50 | O62: 0.02 | P62: No | Q62: No
B63: 33 | C63: Network Tranformers | D63: Overall | F63: 20 | G63: 35 | H63: 50
D64: Protector | F64: 20 | G64: 35 | H64: 40
B65: 34 | C65: Pad-Mounted Transformers | F65: 25 | G65: 40 | H65: 45 | J65: 1850 | K65: Line Transformers | L65: 35 | M65: 0.02857142857 | N65: 35 | O65: 0.02857142857 | P65: No | Q65: No
B66: 35 | C66: Submersible/Vault Transformers | F66: 25 | G66: 35 | H66: 45 | J66: 1850 | K66: Line Transformers | L66: 35 | M66: 0.02857142857 | N66: 35 | O66: 0.02857142857 | P66: No | Q66: No
B67: 36 | C67: UG Foundation | F67: 35 | G67: 55 | H67: 70
B68: 37 | C68: UG Vaults | D68: Overall | F68: 40 | G68: 60 | H68: 80
D69: Roof | F69: 20 | G69: 30 | H69: 45
B70: 38 | C70: UG Vault Switches | F70: 20 | G70: 35 | H70: 50
B71: 39 | C71: Pad-Mounted Switchgear | F71: 20 | G71: 30 | H71: 45
B72: 40 | C72: Ducts | F72: 30 | G72: 50 | H72: 85 | J72: 1840 | K72: Underground conduit | L72: 50 | M72: 0.02 | N72: 50 | O72: 0.02 | P72: No | Q72: No
B73: 41 | C73: Concrete Encased Duct Banks | F73: 35 | G73: 55 | H73: 80
B74: 42 | C74: Cable Chambers | F74: 50 | G74: 60 | H74: 80
A75: S | B75: 43 | C75: Remote SCADA | F75: 15 | G75: 20 | H75: 30 | J75: 1980 | K75: System Supervisory Equipment | L75: 15 | M75: 0.06666666667 | N75: 15 | O75: 0.06666666667 | P75: No | Q75: No
A78: Table F-2 from Kinetrics Report1
C80: Asset Details | F80: Useful Life Range | J80: USoA Account Number | K80: USoA Account Description | L80: Current | N80: Proposed | P80: Outside Range of Min, Max TUL?
B81: # | C81: Category| Component | Type | L81: Years | M81: Rate | N81: Years | O81: Rate | P81: Below Min Range | Q81: Above Max Range
B82: 1 | C82: Office Equipment | F82: 5 | G82: 15 | J82: 1915 | K82: Office Furniture and Equipment | L82: 5 | M82: =IF(ISERROR(1/L82), "", 1/L82) -> 0.2 | N82: 5 | O82: =IF(ISERROR(1/N82), "", 1/N82) -> 0.2 | P82: =IF(ISBLANK(N82),"",IF(N82<F82,"Yes","No")) -> No | Q82: =IF(ISBLANK(N82),"",IF(N82>G82,"Yes","No")) -> No
C83: Office Furniture | F83: 5 | G83: 15 | J83: 1915 | K83: Office Furniture and Equipment | L83: 10 | M83: =IF(ISERROR(1/L83), "", 1/L83) -> 0.1 | N83: 10 | O83: =IF(ISERROR(1/N83), "", 1/N83) -> 0.1 | P83: =IF(ISBLANK(N83),"",IF(N83<F83,"Yes","No")) -> No | Q83: =IF(ISBLANK(N83),"",IF(N83>G83,"Yes","No")) -> No
B84: 2 | C84: Vehicles | D84: Trucks & Buckets | F84: 5 | G84: 15 | J84: 1930 | K84: Transportation Equipment | L84: 12 | M84: =IF(ISERROR(1/L84), "", 1/L84) -> 0.08333333333 | N84: 12 | O84: =IF(ISERROR(1/N84), "", 1/N84) -> 0.08333333333 | P84: =IF(ISBLANK(N84),"",IF(N84<F84,"Yes","No")) -> No | Q84: =IF(ISBLANK(N84),"",IF(N84>G84,"Yes","No")) -> No
D85: Trailers | F85: 5 | G85: 20 | J85: 1930 | K85: Transportation Equipment | L85: 15 | M85: 0.06666666667 | N85: 15 | O85: 0.06666666667 | P85: No | Q85: No
D86: Cars | F86: 5 | G86: 10 | J86: 1930 | K86: Transportation Equipment | L86: 5 | M86: 0.2 | N86: 5 | O86: 0.2 | P86: No | Q86: No
D87: Vans | F87: 5 | G87: 10 | J87: 1930 | K87: Transportation Equipment | L87: 8 | M87: 0.125 | N87: 8 | O87: 0.125 | P87: No | Q87: No
B88: 3 | C88: Administrative Buildings | D88: Building | F88: 50 | G88: 75 | J88: 1808 | K88: Buildings and Fixtures | L88: 50 | M88: 0.02 | N88: 50 | O88: 0.02 | P88: No | Q88: No
D89: Fence | F89: 25 | G89: 60 | J89: 1808 | K89: Buildings and Fixtures | L89: 25 | M89: 0.04 | N89: 25 | O89: 0.04 | P89: No | Q89: No
D90: Parking | F90: 25 | G90: 30 | J90: 1808 | K90: Buildings and Fixtures | L90: 25 | M90: 0.04 | N90: 25 | O90: 0.04 | P90: No | Q90: No
D91: Roof | F91: 20 | G91: 30 | J91: 1808 | K91: Buildings and Fixtures | L91: 20 | M91: 0.05 | N91: 20 | O91: 0.05 | P91: No | Q91: No
D92: Controls and Automation/HVAC | F92: no guideline | J92: 1808 | K92: Buildings and Fixtures | L92: 15 | M92: 0.06666666667 | N92: 15 | O92: 0.06666666667 | P92: no guideline
B93: 4 | C93: Leasehold Improvements | F93: Lease dependent | P93: =IF(ISBLANK(N93),"",IF(N93<F93,"Yes","No")) ->  | Q93: =IF(ISBLANK(N93),"",IF(N93>G93,"Yes","No")) -> 
B94: 5 | C94: Station Buildings | D94: Station Buildings - TS | F94: 50 | G94: 75 | J94: 1808 | K94: Buildings and Fixtures | L94: 60 | M94: 0.01666666667 | N94: 60 | O94: 0.01666666667 | P94: No | Q94: No
D95: Station Buildings - MS/DS | F95: 50 | G95: 75 | J95: 1808 | K95: Buildings and Fixtures | L95: 50 | M95: 0.02 | N95: 50 | O95: 0.02 | P95: No | Q95: No
D96: Parking | F96: 25 | G96: 30
D97: Fence | F97: 25 | G97: 60
D98: Roof | F98: 20 | G98: 30
B99: 6 | C99: Computer Equipment | D99: Hardware | F99: 3 | G99: 5 | J99: 1920 | K99: Computer Equipment - Hardware | L99: 5 | M99: 0.2 | N99: 5 | O99: 0.2 | P99: No | Q99: No
D100: Software | F100: 2 | G100: 5 | J100: 1925 | K100: Computer Software | L100: 5 | M100: 0.2 | N100: 5 | O100: 0.2 | P100: No | Q100: No
D101: Software - ERP/CIS | F101: no guideline | J101: 1925 | K101: Computer Software | L101: 10 | M101: 0.1 | N101: 10 | O101: 0.1 | P101: no guideline
B102: 7 | C102: Equipment | D102: Power Operated | F102: 5 | G102: 10 | J102: 1960 | K102: Miscellaneous Equipment | L102: 10 | M102: 0.1 | N102: 10 | O102: 0.1 | P102: No | Q102: No
D103: Stores | F103: 5 | G103: 10 | J103: 1935 | K103: Stores Equipment | L103: 10 | M103: 0.1 | N103: 10 | O103: 0.1 | P103: No | Q103: No
D104: Tools, Shop, Garage Equipment | F104: 5 | G104: 10 | J104: 1940 | K104: Tools, Shop and Garage Equipment | L104: 8 | M104: 0.125 | N104: 8 | O104: 0.125 | P104: No | Q104: No
D105: Truck Tools | F105: 5 | G105: 10 | J105: 1940 | K105: Tools, Shop and Garage Equipment | L105: 5 | M105: 0.2 | N105: 5 | O105: 0.2 | P105: No | Q105: No
D106: Measurement & Testing Equipment | F106: 5 | G106: 10 | J106: 1945 | K106: Measurement and Testing Equipment | L106: 7 | M106: 0.1428571429 | N106: 7 | O106: 0.1428571429 | P106: No | Q106: No
B107: 8 | C107: Communication | D107: Towers | F107: 60 | G107: 70 | J107: 1955 | K107: Communication Equipment | L107: 50 | M107: 0.02 | N107: 50 | O107: 0.02 | P107: Yes | Q107: No
D108: Wireless | F108: 2 | G108: 10 | J108: 1955 | K108: Communication Equipment | L108: 8 | M108: 0.125 | N108: 8 | O108: 0.125 | P108: No | Q108: No
D109: Telephone System / Radio Station Equipment | F109: no guideline | J109: 1955 | K109: Communication Equipment | L109: 10 | M109: 0.1 | N109: 10 | O109: 0.1 | P109: no guideline
B110: 9 | C110: Residential Energy Meters | F110: 25 | G110: 35 | J110: 1860 | K110: Meters | L110: 25 | M110: 0.04 | N110: 25 | O110: 0.04 | P110: No | Q110: No
B111: 10 | C111: Industrial/Commercial Energy Meters | F111: 25 | G111: 35 | J111: 1860 | K111: Meters | L111: 25 | M111: 0.04 | N111: 25 | O111: 0.04 | P111: No | Q111: No
B112: 11 | C112: Wholesale Energy Meters | F112: 15 | G112: 30 | J112: 1860 | K112: Meters | L112: 15 | M112: 0.06666666667 | N112: 15 | O112: 0.06666666667 | P112: No | Q112: No
B113: 12 | C113: Current & Potential Transformer (CT & PT) | F113: 35 | G113: 50
B114: 13 | C114: Smart Meters | F114: 5 | G114: 15 | J114: 1860 | K114: Meters | L114: 15 | M114: 0.06666666667 | N114: 15 | O114: 0.06666666667 | P114: No | Q114: No
B115: 14 | C115: Repeaters - Smart Metering | F115: 10 | G115: 15 | J115: 1860 | K115: Meters | L115: 15 | M115: 0.06666666667 | N115: 15 | O115: 0.06666666667 | P115: No | Q115: No
B116: 15 | C116: Data Collectors - Smart Metering | F116: 15 | G116: 20 | J116: 1860 | K116: Meters | L116: 15 | M116: 0.06666666667 | N116: 15 | O116: 0.06666666667 | P116: No | Q116: No
A119: * TS & MS = Transformer and Municipal Stations UG = Underground Systems S = Monitoring and Control Systems
A121: Note 1: | B121: Tables F-1 and F-2 above are to be used as a reference in order to complete columns J, K, L and N.
B122: See pages 17-19 of Kinetrics Report

Sheet App.2-C_DepExp
R1: File Number: | S1: ='LDC Info'!H16 -> 0
R2: Exhibit: | S2: 4
R3: Tab:
R4: Schedule: | S4: Tables 4-45 to 5-50
R5: Page: | S5: 93
R7: Date: | S7: 2020-06-30
A9: Appendix 2-C | Y9: CGAAP
A10: Depreciation and Amortization Expense | Y10: Revised CGAAP
Y11: MIFRS
A12: This appendix is to be completed in conjunction with the accounting instructions in Appendix 2-B
A14: Scenario that applies | C14: Applicable Years and Accounting Standard | R14: Year Reflected in Schedule Below | S14: Accounting Standard Reflected in Schedule Below | Y14: 2012
A15: Rebasing for the first time with depreciation policy changes made in 2012. | C15: ="This appendix must be duplicated and completed for the years 2012 to " & TestYear & ". The appendix for 2012 is to be completed under CGAAP (prior to changes in depreciation policies)." &" The appendix for 2012 to 2014 must be completed under Revised CGAAP (after changes in depreciation policies). The appendix for 2014 to " & TestYear & " is to be completed under MIFRS (2014 if changes to MIFRS are material)." -> This appendix must be duplicated and completed for the years 2012 to 2021. The appendix for 2012 is to be completed under CGAAP (prior to changes in depreciation policies). The appendix for 2012 to 2014 must be completed under Revised CGAAP (after changes in depreciation policies). The appendix for 2014 to 2021 is to be completed under MIFRS (2014 if changes to MIFRS are material). | Y15: 2013
A16: Rebasing for the first time with depreciation policy changes made in 2013. | C16: ="This appendix must be duplicated and completed for the years 2013 to " & TestYear & ". The appendix for 2013 is to be completed under CGAAP (prior to changes in depreciation policies)."&" The appendix for 2013 to 2014 must be completed under Revised CGAAP (after changes in depreciation policies). The appendix for 2014 to " & TestYear & " is to be completed under MIFRS (2014 if changes to MIFRS are material)." -> This appendix must be duplicated and completed for the years 2013 to 2021. The appendix for 2013 is to be completed under CGAAP (prior to changes in depreciation policies). The appendix for 2013 to 2014 must be completed under Revised CGAAP (after changes in depreciation policies). The appendix for 2014 to 2021 is to be completed under MIFRS (2014 if changes to MIFRS are material). | Y16: 2014
A17: Already rebased with depreciation policy changes in a prior rate application and rebasing MIFRS for the first time. | C17: This appendix must be completed for 2014 to the test year. The appendix for 2014 is to be completed under Revised CGAAP (after changes in depreciation policies). The appendix for 2014 to the test year is to be completed under MIFRS (2014 if changes to MIFRS are material). | Y17: 2015
A18: Already rebased under MIFRS in a prior rate application | C18: ="This appendix must be completed under MIFRS for each year for the earlier of: 1) all historical years back to its last rebasing; or 2) at least three years of historical actuals, in addition to Bridge Year and Test Year forecasts." -> This appendix must be completed under MIFRS for each year for the earlier of: 1) all historical years back to its last rebasing; or 2) at least three years of historical actuals, in addition to Bridge Year and Test Year forecasts. | R18: 2016 | S18: MIFRS | Y18: 2016
Y19: 2017
A20: 2016 | B20: MIFRS | C20: Book Values | J20: Service Lives | N20: Depreciation Expense | Y20: 2018
A21: Account | B21: Description | C21: Opening Net Book Value of Existing Assets as at Date of Policy Change (Jan. 1) 1 | D21: Less Fully Depreciated 7 | E21: Net Amount of Existing Assets Before Policy Change to be Depreciated | F21: Opening Gross Book Value of Assets Acquired After Policy Change 2 | G21: Less Fully Depreciated 8 | H21: Net Amount of Assets Acquired After Policy Change to be Depreciated | I21: Current Year Additions | J21: Average Remaining Life of Assets Existing Before Policy Change 3 | K21: Depreciation Rate Assets Acquired After Policy Change | L21: Life of Assets Acquired After Policy Change 4 | M21: Depreciation Rate on New Additions | N21: Depreciation Expense on Assets Existing Before Policy Change | O21: Depreciation Expense on Assets Acquired After Policy Change | P21: Depreciation Expense on Current Year Additions 5 | Q21: Total Current Year Depreciation Expense | R21: Depreciation Expense per Appendix 2-BA Fixed Assets, Column J | S21: Variance 6
C22: a | D22: b | E22: c = a-b | F22: d | G22: e | H22: f = d- e | I22: g | J22: h | K22: i = 1/h | L22: j | M22: k = 1/j | N22: l = c/h | O22: m = f/j | P22: n = g*1.0/j | Q22: o = l+m+n | R22: p | S22: q = p-o
A23: 1611 | B23: Computer Software (Formally known as Account 1925) | C23: 1137960.47 | D23: 711826.9 | E23: =C23-D23 -> 426133.57 | F23: 1241415.51 | H23: =F23-G23 -> 1241415.51 | I23: 194925 | J23: 2.437 | K23: =IF(J23=0,0,1/J23) -> 0.4103405827 | L23: 5 | M23: =IF(L23=0,0,1/L23) -> 0.2 | N23: =IF(J23=0,0,+E23/J23) -> 174859.8974 | O23: =IF(L23=0,0,+H23/L23) -> 248283.102 | P23: =IF(L23=0,0,+(I23*1)/L23) -> 38985 | Q23: =IF(ISERROR(+N23+O23+P23), 0, +N23+O23+P23) -> 462127.9994 | R23: =-'App.2-BA_Fixed Asset Cont'!J18 -> 392515.81 | S23: =IF(ISERROR(+R23-Q23), 0, +R23-Q23) -> -69612.18941
A24: 1611 | B24: Computer Software (Formally known as Account 1925) - CIS/ERP | C24: 0 | D24: 0 | E24: =C24-D24 -> 0 | F24: 0 | H24: =F24-G24 -> 0 | I24: 0 | J24: 0 | K24: =IF(J24=0,0,1/J24) -> 0 | L24: 10 | M24: =IF(L24=0,0,1/L24) -> 0.1 | N24: =IF(J24=0,0,+E24/J24) -> 0 | O24: =IF(L24=0,0,+H24/L24) -> 0 | P24: =IF(L24=0,0,+(I24*1)/L24) -> 0 | Q24: =IF(ISERROR(+N24+O24+P24), 0, +N24+O24+P24) -> 0 | R24: =-'App.2-BA_Fixed Asset Cont'!J19 -> 0 | S24: =IF(ISERROR(+R24-Q24), 0, +R24-Q24) -> 0
A25: 1612 | B25: Land Rights (Formally known as Account 1906) | C25: 510696.18 | D25: 0 | E25: =C25-D25 -> 510696.18 | F25: 248080.15 | H25: =F25-G25 -> 248080.15 | I25: 139141.27 | J25: 0 | K25: =IF(J25=0,0,1/J25) -> 0 | L25: 0 | M25: =IF(L25=0,0,1/L25) -> 0 | N25: =IF(J25=0,0,+E25/J25) -> 0 | O25: =IF(L25=0,0,+H25/L25) -> 0 | P25: =IF(L25=0,0,+(I25*1)/L25) -> 0 | Q25: =IF(ISERROR(+N25+O25+P25), 0, +N25+O25+P25) -> 0 | R25: =-'App.2-BA_Fixed Asset Cont'!J20 -> 0 | S25: =IF(ISERROR(+R25-Q25), 0, +R25-Q25) -> 0
A26: 1805 | B26: Land | C26: 2323796.46 | D26: 0 | E26: 2323796.46 | F26: 0 | H26: 0 | I26: 0 | K26: 0 | M26: 0 | N26: 0 | O26: 0 | P26: 0 | Q26: 0 | R26: =-'App.2-BA_Fixed Asset Cont'!J21 -> 0 | S26: 0
A27: 1808 | B27: Buildings - MS | C27: 158628.96 | D27: 0 | E27: 158628.96 | F27: 19349.3 | H27: 19349.3 | I27: 547235.61 | J27: 24.36 | K27: 0.04105090312 | L27: 50 | M27: 0.02 | N27: 6511.862069 | O27: 386.986 | P27: 10944.7122 | Q27: 17843.56027 | R27: =-'App.2-BA_Fixed Asset Cont'!J22 -> 6219.36 | S27: -11624.20027
A28: 1808 | B28: Buildings - TS | C28: 3132108.26 | D28: 0 | E28: 3132108.26 | F28: 510039.49 | H28: 510039.49 | I28: 295935.8 | J28: 49.28 | K28: 0.02029220779 | L28: 60 | M28: 0.01666666667 | N28: 63557.39164 | O28: 8500.658167 | P28: 4932.263333 | Q28: 76990.31314 | R28: =-'App.2-BA_Fixed Asset Cont'!J23 -> 73812.6 | S28: -3177.71314
A29: 1808 | B29: Buildings & Fixtures - Service Centre | C29: 19340595.09 | D29: 0 | E29: 19340595.09 | F29: 544157.78 | H29: 544157.78 | I29: 62501.76 | J29: 49.8718 | K29: 0.02005141182 | L29: 50 | M29: 0.02 | N29: 387806.237 | O29: 10883.1556 | P29: 1250.0352 | Q29: 399939.4278 | R29: =-'App.2-BA_Fixed Asset Cont'!J24 -> 399944.4 | S29: 4.972178993
A30: 1808 | B30: Service Centre - Parking Lot & Fence | C30: 690605.46 | D30: 0 | E30: 690605.46 | F30: 82991.22 | H30: 82991.22 | I30: 2075 | J30: 23.05 | K30: 0.04338394794 | L30: 25 | M30: 0.04 | N30: 29961.19132 | O30: 3319.6488 | P30: 83 | Q30: 33363.84012 | R30: =-'App.2-BA_Fixed Asset Cont'!J25 -> 33358.56 | S30: -5.28012321
A31: 1808 | B31: Service Centre - HVAC | C31: 3577996.8 | D31: 0 | E31: 3577996.8 | F31: 259324.18 | H31: 259324.18 | I31: 342375.98 | J31: 13.00453 | K31: 0.07689628153 | L31: 15 | M31: 0.06666666667 | N31: 275134.6492 | O31: 17288.27867 | P31: 22825.06533 | Q31: 315247.9932 | R31: =-'App.2-BA_Fixed Asset Cont'!J26 -> 315247.56 | S31: -0.4332337669
A32: 1808 | B32: Service Centre - Roof | C32: 594826.71 | D32: 0 | E32: 594826.71 | F32: 5985 | H32: 5985 | I32: 0 | J32: 18 | K32: 0.05555555556 | L32: 20 | M32: 0.05 | N32: 33045.92833 | O32: 299.25 | P32: 0 | Q32: 33345.17833 | R32: =-'App.2-BA_Fixed Asset Cont'!J27 -> 33345.24 | S32: 0.06166666667
A33: 1808 | B33: Service Centre - Automation | C33: 0 | D33: 0 | E33: 0 | F33: 11747.81 | H33: 11747.81 | I33: 0 | J33: 13.99 | K33: 0.07147962831 | L33: 15 | M33: 0.06666666667 | N33: 0 | O33: 783.1873333 | P33: 0 | Q33: 783.1873333 | R33: =-'App.2-BA_Fixed Asset Cont'!J28 -> 3481.08 | S33: 2697.892667
A34: 1808 | B34: Operation Centre - Workshop | C34: 5322.96 | D34: 0 | E34: 5322.96 | F34: 0 | H34: 0 | I34: 0 | J34: 35.49 | K34: 0.02817695125 | L34: 50 | M34: 0.02 | N34: 149.9847844 | O34: 0 | P34: 0 | Q34: 149.9847844 | R34: =-'App.2-BA_Fixed Asset Cont'!J29 -> 150 | S34: 0.01521555368
A35: 1810 | B35: Leasehold Improvements | D35: 0 | E35: 0 | F35: 0 | H35: 0 | I35: 0 | K35: 0 | M35: 0 | N35: 0 | O35: 0 | P35: 0 | Q35: 0 | R35: =-'App.2-BA_Fixed Asset Cont'!J30 -> 0 | S35: 0
A36: 1815 | B36: Transformer Station Equipment >50 kV | C36: 8117510.36 | D36: 1870458.33 | E36: 6247052.03 | F36: 128621.22 | H36: 128621.22 | I36: 125071.88 | J36: 10.4335 | K36: 0.0958451143 | L36: 30 | M36: 0.03333333333 | N36: 598749.4158 | O36: 4287.374 | P36: 4169.062667 | Q36: 607205.8525 | R36: =-'App.2-BA_Fixed Asset Cont'!J31 -> 570617.41 | S36: -36588.44249
A37: 1815 | B37: TSE Auxiliary equipment | C37: 1260559.77 | D37: 0 | E37: 1260559.77 | F37: 174285.08 | H37: 174285.08 | I37: 103572.29 | J37: 22.629 | K37: 0.04419108224 | L37: 30 | M37: 0.03333333333 | N37: 55705.50046 | O37: 5809.502667 | P37: 3452.409667 | Q37: 64967.4128 | R37: =-'App.2-BA_Fixed Asset Cont'!J32 -> 64965.96 | S37: -1.45279734
A38: 1815 | B38: TSE - P&C equipment | C38: 2208862.29 | D38: 11000.92 | E38: 2197861.37 | F38: 706120.74 | H38: 706120.74 | I38: 36460 | J38: 10.4621 | K38: 0.09558310473 | L38: 15 | M38: 0.06666666667 | N38: 210078.4135 | O38: 47074.716 | P38: 2430.666667 | Q38: 259583.7962 | R38: =-'App.2-BA_Fixed Asset Cont'!J33 -> 255134.44 | S38: -4449.356178
A39: 1815 | B39: TSE - Power transformer | C39: 10172575.47 | D39: 0 | E39: 10172575.47 | F39: 201496.63 | H39: 201496.63 | I39: 0 | J39: 42.354 | K39: 0.02361052085 | L39: 50 | M39: 0.02 | N39: 240179.8052 | O39: 4029.9326 | P39: 0 | Q39: 244209.7378 | R39: =-'App.2-BA_Fixed Asset Cont'!J34 -> 244209.24 | S39: -0.497813203
A40: 1820 | B40: Distribution Station Equipment <50 kV | C40: 796679.34 | D40: 63903.49 | E40: 732775.85 | F40: 612541.52 | H40: 612541.52 | I40: 0 | J40: 6.6855 | K40: 0.1495774437 | L40: 30 | M40: 0.03333333333 | N40: 109606.7385 | O40: 20418.05067 | P40: 0 | Q40: 130024.7891 | R40: =-'App.2-BA_Fixed Asset Cont'!J35 -> 89242.21 | S40: -40782.57913
A41: 1825 | B41: Storage Battery Equipment | D41: 0 | E41: 0 | F41: 0 | H41: 0 | I41: 0 | K41: 0 | M41: 0 | N41: 0 | O41: 0 | P41: 0 | Q41: 0 | R41: =-'App.2-BA_Fixed Asset Cont'!J36 -> 0 | S41: 0
A42: 1830 | B42: Poles, Towers & Fixtures | C42: 32108265.47 | D42: 0 | E42: 32108265.47 | F42: 14754693.38 | H42: 14754693.38 | I42: 5079265.86 | J42: 38.286 | K42: 0.02611920807 | L42: 45 | M42: 0.02222222222 | N42: 838642.4664 | O42: 327882.0751 | P42: 112872.5747 | Q42: 1279397.116 | R42: =-'App.2-BA_Fixed Asset Cont'!J37 -> 1288473.96 | S42: 9076.843785
A43: 1835 | B43: Overhead Conductors & Devices | C43: 17765762.07 | D43: 0 | E43: 17765762.07 | F43: 8165660.09 | H43: 8165660.09 | I43: 2709950.22 | J43: 36.802 | K43: 0.02717243628 | L43: 45 | M43: 0.02222222222 | N43: 482739.0378 | O43: 181459.1131 | P43: 60221.116 | Q43: 724419.2669 | R43: =-'App.2-BA_Fixed Asset Cont'!J38 -> 724413.84 | S43: -5.426935143
A44: 1835 | B44: OH Manual line switches | D44: 0 | E44: 0 | F44: 861523.54 | H44: 861523.54 | I44: 219181.65 | J44: 0 | K44: 0 | L44: 30 | M44: 0.03333333333 | N44: 0 | O44: 28717.45133 | P44: 7306.055 | Q44: 36023.50633 | R44: =-'App.2-BA_Fixed Asset Cont'!J39 -> 36023.4 | S44: -0.1063333333
A45: 1835 | B45: OH SCADA control equipment | D45: 0 | E45: 0 | F45: 2050022.71 | H45: 2050022.71 | I45: 783923.63 | J45: 0 | K45: 0 | L45: 15 | M45: 0.06666666667 | N45: 0 | O45: 136668.1807 | P45: 52261.57533 | Q45: 188929.756 | R45: =-'App.2-BA_Fixed Asset Cont'!J40 -> 161711.04 | S45: -27218.716
A46: 1840 | B46: Underground Conduit | C46: 7776100.81 | D46: 0 | E46: 7776100.81 | F46: 3148502.43 | H46: 3148502.43 | I46: 3793786.61 | J46: 41.475 | K46: 0.02411091019 | L46: 50 | M46: 0.02 | N46: 187488.8682 | O46: 62970.0486 | P46: 75875.7322 | Q46: 326334.649 | R46: =-'App.2-BA_Fixed Asset Cont'!J41 -> 326225.88 | S46: -108.7690339
A47: 1845 | B47: Underground Conductors & Devices | C47: 17387400.65 | D47: -86613.98 | E47: 17474014.63 | F47: 6839373.17 | H47: 6839373.17 | I47: 11761669.85 | J47: 24.985 | K47: 0.04002401441 | L47: 35 | M47: 0.02857142857 | N47: 699380.2133 | O47: 195410.662 | P47: 336047.71 | Q47: 1230838.585 | R47: =-'App.2-BA_Fixed Asset Cont'!J42 -> 1192967.27 | S47: -37871.31533
A48: 1850 | B48: Line Transformers - Overhead | C48: 12702530.35 | D48: 0 | E48: 12702530.35 | F48: 3884714.85 | H48: 3884714.85 | I48: 1347428.77 | J48: 37.846 | K48: 0.02642287164 | L48: 45 | M48: 0.02222222222 | N48: 335637.3289 | O48: 86326.99667 | P48: 29942.86156 | Q48: 451907.1871 | R48: =-'App.2-BA_Fixed Asset Cont'!J43 -> 443315.04 | S48: -8592.147134
A49: 1850 | B49: Line Transformers - Underground | C49: 14232826.71 | D49: 0 | E49: 14232826.71 | F49: 5043556.88 | H49: 5043556.88 | I49: 1686703.81 | J49: 27.451 | K49: 0.03642854541 | L49: 35 | M49: 0.02857142857 | N49: 518481.1741 | O49: 144101.6251 | P49: 48191.53743 | Q49: 710774.3367 | R49: =-'App.2-BA_Fixed Asset Cont'!J44 -> 702143.64 | S49: -8630.696663
A50: 1855 | B50: Services - Overhead | C50: 4150228.8 | D50: 0 | E50: 4150228.8 | F50: 1084451.84 | H50: 1084451.84 | I50: 151283.05 | J50: 37.0279 | K50: 0.02700666254 | L50: 45 | M50: 0.02222222222 | N50: 112083.8287 | O50: 24098.92978 | P50: 3361.845556 | Q50: 139544.604 | R50: =-'App.2-BA_Fixed Asset Cont'!J45 -> 139544.76 | S50: 0.1559861312
A51: 1855 | B51: Services - Underground | C51: 6889107.25 | D51: 0 | E51: 6889107.25 | F51: 2640539.06 | H51: 2640539.06 | I51: 544345.59 | J51: 41.243 | K51: 0.02424653881 | L51: 50 | M51: 0.02 | N51: 167037.0063 | O51: 52810.7812 | P51: 10886.9118 | Q51: 230734.6993 | R51: =-'App.2-BA_Fixed Asset Cont'!J46 -> 230732.28 | S51: -2.419279854
A52: 1860 | B52: Meters - Bidirectional | C52: 33590.49 | D52: 0 | E52: 33590.49 | F52: 0 | H52: 0 | I52: 0 | J52: 23.393 | K52: 0.04274783055 | L52: 25 | M52: 0.04 | N52: 1435.920575 | O52: 0 | P52: 0 | Q52: 1435.920575 | R52: =-'App.2-BA_Fixed Asset Cont'!J47 -> 1435.92 | S52: -0.0005745308424
A53: 1860 | B53: Meters - Commercial | C53: 1798459.54 | D53: 0 | E53: 1798459.54 | F53: 12931.82 | H53: 12931.82 | I53: 790.71 | J53: 21.329 | K53: 0.04688452342 | L53: 25 | M53: 0.04 | N53: 84319.91842 | O53: 517.2728 | P53: 31.6284 | Q53: 84868.81962 | R53: =-'App.2-BA_Fixed Asset Cont'!J48 -> 140845.83 | S53: 55977.01038
A54: 1860 | B54: Meters - Residential | C54: 2397467.43 | D54: 2315951.84 | E54: 81515.59 | F54: 289010.99 | H54: 289010.99 | I54: 240707.94 | J54: 10.9717 | K54: 0.09114357848 | L54: 25 | M54: 0.04 | N54: 7429.622574 | O54: 11560.4396 | P54: 9628.3176 | Q54: 28618.37977 | R54: =-'App.2-BA_Fixed Asset Cont'!J49 -> 82371.72 | S54: 53753.34023
A55: 1860 | B55: Meters C& I | C55: 0 | D55: 0 | E55: 0 | F55: 1533495.58 | H55: 1533495.58 | I55: 250571.21 | J55: 0 | K55: 0 | L55: 15 | M55: 0.06666666667 | N55: 0 | O55: 102233.0387 | P55: 16704.74733 | Q55: 118937.786 | R55: =-'App.2-BA_Fixed Asset Cont'!J50 -> 87752.64 | S55: -31185.146
A56: 1860 | B56: Meters (Smart Meters) | C56: 6265880 | D56: 0 | E56: 6265880 | F56: 0 | H56: 0 | I56: 0 | J56: 11.568 | K56: 0.08644536653 | L56: 15 | M56: 0.06666666667 | N56: 541656.2932 | O56: 0 | P56: 0 | Q56: 541656.2932 | R56: =-'App.2-BA_Fixed Asset Cont'!J51 -> 536248.56 | S56: -5407.733223
A57: 1860 | B57: Meters (Wholesale) | C57: 739069.06 | D57: 0 | E57: 739069.06 | F57: 216713 | H57: 216713 | I57: 113659.26 | J57: 13.55 | K57: 0.07380073801 | L57: 15 | M57: 0.06666666667 | N57: 54543.84207 | O57: 14447.53333 | P57: 7577.284 | Q57: 76568.6594 | R57: =-'App.2-BA_Fixed Asset Cont'!J52 -> 50276.88 | S57: -26291.7794
A58: 1905 | B58: Land | D58: 0 | E58: 0 | F58: 0 | H58: 0 | I58: 0 | K58: 0 | M58: 0 | N58: 0 | O58: 0 | P58: 0 | Q58: 0 | R58: =-'App.2-BA_Fixed Asset Cont'!J53 -> 0 | S58: 0
A59: 1908 | B59: Buildings & Fixtures | D59: 0 | E59: 0 | F59: 0 | H59: 0 | I59: 0 | K59: 0 | M59: 0 | N59: 0 | O59: 0 | P59: 0 | Q59: 0 | R59: =-'App.2-BA_Fixed Asset Cont'!J54 -> 0 | S59: 0
A60: 1910 | B60: Leasehold Improvements | D60: 0 | E60: 0 | F60: 0 | H60: 0 | I60: 0 | K60: 0 | M60: 0 | N60: 0 | O60: 0 | P60: 0 | Q60: 0 | R60: =-'App.2-BA_Fixed Asset Cont'!J55 -> 0 | S60: 0
A61: 1915 | B61: Office Furniture & Equipment (10 years) | C61: 886158.36 | D61: 61278 | E61: 824880.36 | F61: 51553.27 | H61: 51553.27 | I61: 16708.52 | J61: 8.733 | K61: 0.1145081873 | L61: 10 | M61: 0.1 | N61: 94455.55479 | O61: 5155.327 | P61: 1670.852 | Q61: 101281.7338 | R61: =-'App.2-BA_Fixed Asset Cont'!J56 -> 108298.48 | S61: 7016.746208
A62: 1915 | B62: Office Furniture & Equipment (5 years) | C62: 7003.71 | D62: 7003.71 | E62: 0 | F62: 0 | H62: 0 | I62: 7510 | J62: 2 | K62: 0.5 | L62: 5 | M62: 0.2 | N62: 0 | O62: 0 | P62: 1502 | Q62: 1502 | R62: =-'App.2-BA_Fixed Asset Cont'!J57 -> 1502.04 | S62: 0.04
A63: 1920 | B63: Computer Equipment - Hardware | D63: 0 | E63: 0 | F63: 0 | H63: 0 | I63: 0 | K63: 0 | M63: 0 | N63: 0 | O63: 0 | P63: 0 | Q63: 0 | R63: =-'App.2-BA_Fixed Asset Cont'!J58 -> 0 | S63: 0
A64: 1920 | B64: Computer Equip.-Hardware(Post Mar. 22/04) | D64: 0 | E64: 0 | F64: 0 | H64: 0 | I64: 0 | K64: 0 | M64: 0 | N64: 0 | O64: 0 | P64: 0 | Q64: 0 | R64: =-'App.2-BA_Fixed Asset Cont'!J59 -> 0 | S64: 0
A65: 1920 | B65: Computer Equip.-Hardware(Post Mar. 19/07) | C65: 473009.83 | D65: 310021.11 | E65: 162988.72 | F65: 380734.44 | H65: 380734.44 | I65: 140467.32 | J65: 3.03 | K65: 0.3300330033 | L65: 5 | M65: 0.2 | N65: 53791.65677 | O65: 76146.888 | P65: 28093.464 | Q65: 158032.0088 | R65: =-'App.2-BA_Fixed Asset Cont'!J60 -> 146295.76 | S65: -11736.24877
A66: 1930 | B66: Transportation Equipment - car | C66: 29729.38 | D66: 0 | E66: 29729.38 | F66: 0 | H66: 0 | I66: 0 | J66: 4 | K66: 0.25 | L66: 5 | M66: 0.2 | N66: 7432.345 | O66: 0 | P66: 0 | Q66: 7432.345 | R66: =-'App.2-BA_Fixed Asset Cont'!J61 -> 7432.42 | S66: 0.075
A67: 1930 | B67: Transportation Equipment - Other - trailers etc | C67: 184654.58 | D67: 0 | E67: 184654.58 | F67: 313608.92 | H67: 313608.92 | I67: 60734.6 | J67: 12.099 | K67: 0.0826514588 | L67: 15 | M67: 0.06666666667 | N67: 15261.97041 | O67: 20907.26133 | P67: 4048.973333 | Q67: 40218.20508 | R67: =-'App.2-BA_Fixed Asset Cont'!J62 -> 40259.16 | S67: 40.95492256
A68: 1930 | B68: Transportation Equipment - small trucks | C68: 629219.14 | D68: 449.47 | E68: 628769.67 | F68: 174165.43 | H68: 174165.43 | I68: 56783.6 | J68: 6.263593009 | K68: 0.1596527742 | L68: 8 | M68: 0.125 | N68: 100384.8221 | O68: 21770.67875 | P68: 7097.95 | Q68: 129253.4509 | R68: =-'App.2-BA_Fixed Asset Cont'!J63 -> 135637.56 | S68: 6384.109132
A69: 1930 | B69: Transportation Equipment - workplatform | C69: 1400100.08 | D69: 0 | E69: 1400100.08 | F69: 2139032.42 | H69: 2139032.42 | I69: 460120.02 | J69: 8.973 | K69: 0.1114454475 | L69: 12 | M69: 0.08333333333 | N69: 156034.7799 | O69: 178252.7017 | P69: 38343.335 | Q69: 372630.8166 | R69: =-'App.2-BA_Fixed Asset Cont'!J64 -> 367291.8 | S69: -5339.016562
A70: 1930 | B70: Transportation Equipment - Hybrid system | C70: 0 | D70: 0 | E70: 0 | F70: 301129.47 | G70: 73455 | H70: 227674.47 | I70: 0 | J70: 0 | K70: 0 | L70: 5 | M70: 0.2 | N70: 0 | O70: 45534.894 | P70: 0 | Q70: 45534.894 | R70: =-'App.2-BA_Fixed Asset Cont'!J65 -> 54233.17 | S70: 8698.276
A71: 1935 | B71: Stores Equipment | C71: 340118.52 | D71: 0 | E71: 340118.52 | F71: 10210.58 | H71: 10210.58 | I71: 111785.38 | J71: 7.38 | K71: 0.135501355 | L71: 10 | M71: 0.1 | N71: 46086.52033 | O71: 1021.058 | P71: 11178.538 | Q71: 58286.11633 | R71: =-'App.2-BA_Fixed Asset Cont'!J66 -> 58283.04 | S71: -3.076325203
A72: 1940 | B72: Tools, Shop & Garage Equipment | C72: 269625.01 | D72: 16139.21 | E72: 253485.8 | F72: 21758.48 | H72: 21758.48 | I72: 1258.95 | J72: 8.365 | K72: 0.1195457262 | L72: 8 | M72: 0.125 | N72: 30303.14405 | O72: 2719.81 | P72: 157.36875 | Q72: 33180.3228 | R72: =-'App.2-BA_Fixed Asset Cont'!J67 -> 35109.24 | S72: 1928.917197
A73: 1940 | B73: Truck tools | C73: 220122.17 | D73: 184722.74 | E73: 35399.43 | F73: 279061.8 | H73: 279061.8 | I73: 56953.77 | J73: 2.494 | K73: 0.4009623095 | L73: 5 | M73: 0.2 | N73: 14193.83721 | O73: 55812.36 | P73: 11390.754 | Q73: 81396.95121 | R73: =-'App.2-BA_Fixed Asset Cont'!J68 -> 88428.35 | S73: 7031.398791
A74: 1945 | B74: Measurement & Testing Equipment | C74: 240372.34 | D74: 47839.16 | E74: 192533.18 | F74: 45582.95 | H74: 45582.95 | I74: 1227.58 | J74: 4.6162 | K74: 0.2166283957 | L74: 7 | M74: 0.1428571429 | N74: 41708.15389 | O74: 6511.85 | P74: 175.3685714 | Q74: 48395.37246 | R74: =-'App.2-BA_Fixed Asset Cont'!J69 -> 43446.62 | S74: -4948.752464
A75: 1950 | B75: Power Operated Equipment | D75: 0 | E75: 0 | F75: 0 | H75: 0 | I75: 0 | K75: 0 | M75: 0 | N75: 0 | O75: 0 | P75: 0 | Q75: 0 | R75: =-'App.2-BA_Fixed Asset Cont'!J70 -> 0 | S75: 0
A76: 1955 | B76: Communications Equipment - phones | C76: 341350.47 | D76: 5917.66 | E76: 335432.81 | F76: 25297.64 | H76: 25297.64 | I76: 1091.52 | J76: 6.731 | K76: 0.1485663349 | L76: 10 | M76: 0.1 | N76: 49834.02318 | O76: 2529.764 | P76: 109.152 | Q76: 52472.93918 | R76: =-'App.2-BA_Fixed Asset Cont'!J71 -> 48368.71 | S76: -4104.229176
A77: 1955 | B77: Communications Equipment - Radio wireless | C77: 109455.16 | D77: 0 | E77: 109455.16 | F77: 2007.18 | H77: 2007.18 | I77: 52391.34 | J77: 4.4157 | K77: 0.2264646602 | L77: 8 | M77: 0.125 | N77: 24787.72562 | O77: 250.8975 | P77: 6548.9175 | Q77: 31587.54062 | R77: =-'App.2-BA_Fixed Asset Cont'!J72 -> 31587.91 | S77: 0.3693845823
A78: 1955 | B78: Communications Equipment - Radio | C78: 122011.8 | D78: 0 | E78: 122011.8 | F78: 0 | H78: 0 | I78: 0 | J78: 6.925 | K78: 0.1444043321 | L78: 10 | M78: 0.1 | N78: 17619.03249 | O78: 0 | P78: 0 | Q78: 17619.03249 | R78: =-'App.2-BA_Fixed Asset Cont'!J73 -> 17619.84 | S78: 0.8075090253
A79: 1955 | B79: Communication Equipment (Smart Meters) | D79: 0 | E79: 0 | F79: 0 | H79: 0 | I79: 0 | K79: 0 | M79: 0 | N79: 0 | O79: 0 | P79: 0 | Q79: 0 | R79: =-'App.2-BA_Fixed Asset Cont'!J74 -> 0 | S79: 0
A80: 1960 | B80: Miscellaneous Equipment | C80: 1554687.143 | D80: 10855.48 | E80: 1543831.663 | F80: 101600.73 | H80: 101600.73 | I80: 2507.22 | J80: 6.575 | K80: 0.1520912548 | L80: 10 | M80: 0.1 | N80: 234803.2948 | O80: 10160.073 | P80: 250.722 | Q80: 245214.0898 | R80: =-'App.2-BA_Fixed Asset Cont'!J75 -> 243769.7 | S80: -1444.389753
A81: 1970 | B81: Load Management Controls Customer Premises | D81: 0 | E81: 0 | F81: 0 | H81: 0 | I81: 0 | K81: 0 | M81: 0 | N81: 0 | O81: 0 | P81: 0 | Q81: 0 | R81: =-'App.2-BA_Fixed Asset Cont'!J76 -> 0 | S81: 0
A82: 1975 | B82: Load Management Controls Utility Premises | D82: 0 | E82: 0 | F82: 0 | H82: 0 | I82: 0 | K82: 0 | M82: 0 | N82: 0 | O82: 0 | P82: 0 | Q82: 0 | R82: =-'App.2-BA_Fixed Asset Cont'!J77 -> 0 | S82: 0
A83: 1980 | B83: System Supervisor Equipment | C83: 1637568.18 | D83: 63332.56 | E83: 1574235.62 | F83: 1100445.19 | H83: 1100445.19 | I83: 64976.35 | J83: 11.225 | K83: 0.08908685969 | L83: 15 | M83: 0.06666666667 | N83: 140243.7078 | O83: 73363.01267 | P83: 4331.756667 | Q83: 217938.4771 | R83: =-'App.2-BA_Fixed Asset Cont'!J78 -> 211421.77 | S83: -6516.707128
A84: 1985 | B84: Miscellaneous Fixed Assets | D84: 0 | E84: 0 | F84: 0 | H84: 0 | I84: 0 | K84: 0 | M84: 0 | N84: 0 | O84: 0 | P84: 0 | Q84: 0 | R84: =-'App.2-BA_Fixed Asset Cont'!J79 -> 0 | S84: 0
A85: 1990 | B85: Other Tangible Property | D85: 0 | E85: 0 | F85: 0 | H85: 0 | I85: 0 | K85: 0 | M85: 0 | N85: 0 | O85: 0 | P85: 0 | Q85: 0 | R85: =-'App.2-BA_Fixed Asset Cont'!J80 -> 0 | S85: 0
A86: 1995 | B86: Contributions & Grants | C86: -21932649.26 | D86: -60000 | E86: -21872649.26 | F86: -1682155 | H86: -1682155 | J86: 31.35 | K86: 0.03189792663 | L86: 40.2 | M86: 0.02487562189 | N86: =IF(J86=0,0,+E86/J86) -> -697692.1614 | O86: =IF(L86=0,0,+H86/L86) -> -41844.65174 | P86: =IF(L86=0,0,+(I86*1)/L86) -> 0 | Q86: -739536.8131 | R86: =-'App.2-BA_Fixed Asset Cont'!J81 -> -739530 | S86: 6.813144802
A87: 2440 | B87: Deferred Revenue - 1808 | C87: 0 | D87: 0 | E87: 0 | F87: 0 | G87: 0 | H87: 0 | I87: -24595.25 | K87: 0 | L87: 15 | M87: 0.06666666667 | N87: =IF(J87=0,0,+E87/J87) -> 0 | O87: =IF(L87=0,0,+H87/L87) -> 0 | P87: =IF(L87=0,0,+(I87*1)/L87) -> -1639.683333 | Q87: -1639.683333 | R87: =-'App.2-BA_Fixed Asset Cont'!J82 -> -1639.68 | S87: 0.003333333333
A88: 2440 | B88: Deferred Revenue - 1830 | C88: 0 | D88: 0 | E88: 0 | F88: -860428.26 | G88: 0 | H88: -860428.26 | I88: -394191.07 | K88: 0 | L88: 45 | M88: 0.02222222222 | N88: 0 | O88: -19120.628 | P88: -8759.801556 | Q88: -27880.42956 | R88: =-'App.2-BA_Fixed Asset Cont'!J83 -> -27880.43 | S88: -0.0004444444421
A89: 2440 | B89: Deferred Revenue - 1835 | C89: 0 | D89: 0 | E89: 0 | F89: -488363.86 | G89: 0 | H89: -488363.86 | I89: -223568.51 | K89: 0 | L89: 45 | M89: 0.02222222222 | N89: 0 | O89: -10852.53022 | P89: -4968.189111 | Q89: -15820.71933 | R89: =-'App.2-BA_Fixed Asset Cont'!J84 -> -15820.72 | S89: -0.0006666666632
A90: 2440 | B90: Deferred Revenue - 1840 | C90: 0 | D90: 0 | E90: 0 | F90: -615174.96 | G90: 0 | H90: -615174.96 | I90: -2345593.17 | K90: 0 | L90: 50 | M90: 0.02 | N90: 0 | O90: -12303.4992 | P90: -46911.8634 | Q90: =IF(ISERROR(+N90+O90+P90), 0, +N90+O90+P90) -> -59215.3626 | R90: =-'App.2-BA_Fixed Asset Cont'!J85 -> -59215.35 | S90: 0.01259999999
A91: 2440 | B91: Deferred Revenue - 1845 | C91: 0 | D91: 0 | E91: 0 | F91: -1473793.13 | G91: 0 | H91: -1473793.13 | I91: -5614021.66 | K91: 0 | L91: 35 | M91: 0.02857142857 | N91: 0 | O91: -42108.37514 | P91: -160400.6189 | Q91: -202508.994 | R91: =-'App.2-BA_Fixed Asset Cont'!J86 -> -202508.99 | S91: 0.004000000015
A92: 2440 | B92: Deferred Revenue - 1850 | C92: 0 | D92: 0 | E92: 0 | F92: -2134626.57 | G92: 0 | H92: -2134626.57 | I92: -3637535.85 | K92: 0 | L92: 38 | M92: 0.02631578947 | N92: 0 | O92: -56174.38342 | P92: -95724.62763 | Q92: -151899.0111 | R92: =-'App.2-BA_Fixed Asset Cont'!J87 -> -151899.02 | S92: -0.008947368449
A93: 2440 | B93: Deferred Revenue - 1855 | C93: 0 | D93: 0 | E93: 0 | F93: -650041.09 | G93: 0 | H93: -650041.09 | I93: -379699.89 | K93: 0 | L93: 49 | M93: 0.02040816327 | N93: 0 | O93: -13266.14469 | P93: -7748.977347 | Q93: -21015.12204 | R93: =-'App.2-BA_Fixed Asset Cont'!J88 -> -21015.13 | S93: -0.007959183677
A94: 2440 | B94: Deferred Revenue - 1860 | C94: 0 | D94: 0 | E94: 0 | F94: -19860.04 | G94: 0 | H94: -19860.04 | I94: -16998.88 | K94: 0 | L94: 15 | M94: 0.06666666667 | N94: 0 | O94: -1324.002667 | P94: -1133.258667 | Q94: -2457.261333 | R94: =-'App.2-BA_Fixed Asset Cont'!J89 -> -2457.26 | S94: 0.001333333334
A95: 2005 | B95: Property Under Finance Lease | E95: 0 | F95: 0 | H95: 0 | K95: 0 | M95: 0 | N95: 0 | O95: 0 | P95: 0 | Q95: 0 | R95: =-'App.2-BA_Fixed Asset Cont'!J90 -> 0 | S95: 0
B96: Total | C96: =SUM(C23:C95) -> 164787949.8 | D96: 5534086.6 | E96: 159253863.2 | F96: 52293090.56 | G96: 73455 | H96: 52219635.56 | I96: 18930874.64 | N96: =SUM(N23:N95) -> 6545470.943 | O96: 2043710.351 | P96: 647594.2439 | Q96: 9236775.538 | R96: 9043745.52 | S96: -193030.018
A98: 2017 | B98: MIFRS | C98: Book Values | J98: Service Lives | N98: Depreciation Expense
A99: Account | B99: Description | C99: Opening Net Book Value of Existing Assets as at Date of Policy Change (Jan. 1) 1 | D99: Less Fully Depreciated 7 | E99: Net Amount of Existing Assets Before Policy Change to be Depreciated | F99: Opening Gross Book Value of Assets Acquired After Policy Change 2 | G99: Less Fully Depreciated 8 | H99: Net Amount of Assets Acquired After Policy Change to be Depreciated | I99: Current Year Additions | J99: Average Remaining Life of Assets Existing Before Policy Change 3 | K99: Depreciation Rate Assets Acquired After Policy Change | L99: Life of Assets Acquired After Policy Change 4 | M99: Depreciation Rate on New Additions | N99: Depreciation Expense on Assets Existing Before Policy Change | O99: Depreciation Expense on Assets Acquired After Policy Change | P99: Depreciation Expense on Current Year Additions 5 | Q99: Total Current Year Depreciation Expense | R99: Depreciation Expense per Appendix 2-BA Fixed Assets, Column J | S99: Variance 6
C100: a | D100: b | E100: c = a-b | F100: d | G100: e | H100: f = d- e | I100: g | J100: h | K100: i = 1/h | L100: j | M100: k = 1/j | N100: l = c/h | O100: m = f/j | P100: n = g*1.0/j | Q100: o = l+m+n | R100: p | S100: q = p-o
A101: 1611 | B101: Computer Software (Formally known as Account 1925) | C101: 1137960.47 | D101: 1137960.47 | E101: =C101-D101 -> 0 | F101: =F23+I23 -> 1436340.51 | H101: =F101-G101 -> 1436340.51 | I101: 327877.4 | J101: 2.437 | K101: =IF(J101=0,0,1/J101) -> 0.4103405827 | L101: 5 | M101: =IF(L101=0,0,1/L101) -> 0.2 | N101: =IF(J101=0,0,+E101/J101) -> 0 | O101: =IF(L101=0,0,+H101/L101) -> 287268.102 | P101: =IF(L101=0,0,+(I101*1)/L101) -> 65575.48 | Q101: =IF(ISERROR(+N101+O101+P101), 0, +N101+O101+P101) -> 352843.582 | R101: =-'App.2-BA_Fixed Asset Cont'!J110 -> 351558.7 | S101: =IF(ISERROR(+R101-Q101), 0, +R101-Q101) -> -1284.882
A102: 1611 | B102: Computer Software (Formally known as Account 1925) - CIS/ERP | C102: 0 | D102: 0 | E102: =C102-D102 -> 0 | F102: =F24+I24 -> 0 | G102: 0 | H102: =F102-G102 -> 0 | I102: 1432720.78 | J102: 0 | K102: =IF(J102=0,0,1/J102) -> 0 | L102: 10 | M102: =IF(L102=0,0,1/L102) -> 0.1 | N102: =IF(J102=0,0,+E102/J102) -> 0 | O102: =IF(L102=0,0,+H102/L102) -> 0 | P102: =IF(L102=0,0,+(I102*1)/L102) -> 143272.078 | Q102: =IF(ISERROR(+N102+O102+P102), 0, +N102+O102+P102) -> 143272.078 | R102: =-'App.2-BA_Fixed Asset Cont'!J111 -> 143272.08 | S102: =IF(ISERROR(+R102-Q102), 0, +R102-Q102) -> 0.001999999979
A103: 1612 | B103: Land Rights (Formally known as Account 1906) | C103: 510696.18 | D103: 0 | E103: =C103-D103 -> 510696.18 | F103: 387221.42 | H103: =F103-G103 -> 387221.42 | I103: 84332.18 | J103: 0 | K103: =IF(J103=0,0,1/J103) -> 0 | L103: 0 | M103: =IF(L103=0,0,1/L103) -> 0 | N103: =IF(J103=0,0,+E103/J103) -> 0 | O103: =IF(L103=0,0,+H103/L103) -> 0 | P103: =IF(L103=0,0,+(I103*1)/L103) -> 0 | Q103: =IF(ISERROR(+N103+O103+P103), 0, +N103+O103+P103) -> 0 | R103: =-'App.2-BA_Fixed Asset Cont'!J112 -> 0 | S103: =IF(ISERROR(+R103-Q103), 0, +R103-Q103) -> 0
A104: 1805 | B104: Land | C104: 2323796.46 | D104: 0 | E104: 2323796.46 | F104: 0 | H104: 0 | I104: 0 | K104: 0 | M104: 0 | N104: 0 | O104: 0 | P104: 0 | Q104: 0 | R104: =-'App.2-BA_Fixed Asset Cont'!J113 -> 0 | S104: 0
A105: 1808 | B105: Buildings - MS | C105: 158628.96 | D105: 0 | E105: 158628.96 | F105: 566584.91 | H105: 566584.91 | I105: 281920.51 | J105: 24.36 | K105: 0.04105090312 | L105: 50 | M105: 0.02 | N105: 6511.862069 | O105: 11331.6982 | P105: 5638.4102 | Q105: 23481.97047 | R105: =-'App.2-BA_Fixed Asset Cont'!J114 -> 5344.8 | S105: -18137.17047
A106: 1808 | B106: Buildings - TS | C106: 3132108.26 | D106: 0 | E106: 3132108.26 | F106: 805975.29 | H106: 805975.29 | I106: 22431.11 | J106: 49.28 | K106: 0.02029220779 | L106: 60 | M106: 0.01666666667 | N106: 63557.39164 | O106: 13432.9215 | P106: 373.8518333 | Q106: 77364.16497 | R106: =-'App.2-BA_Fixed Asset Cont'!J115 -> 74186.4 | S106: -3177.764973
A107: 1808 | B107: Buildings & Fixtures - Service Centre | C107: 19340595.09 | D107: 0 | E107: 19340595.09 | F107: 606659.54 | H107: 606659.54 | I107: 180233.6 | J107: 49.8718 | K107: 0.02005141182 | L107: 50 | M107: 0.02 | N107: 387806.237 | O107: 12133.1908 | P107: 3604.672 | Q107: 403544.0998 | R107: =-'App.2-BA_Fixed Asset Cont'!J116 -> 403548.72 | S107: 4.620178993
A108: 1808 | B108: Service Centre - Parking Lot & Fence | C108: 690605.46 | D108: 0 | E108: 690605.46 | F108: 85066.22 | H108: 85066.22 | I108: 0 | J108: 23.05 | K108: 0.04338394794 | L108: 25 | M108: 0.04 | N108: 29961.19132 | O108: 3402.6488 | P108: 0 | Q108: 33363.84012 | R108: =-'App.2-BA_Fixed Asset Cont'!J117 -> 33358.68 | S108: -5.16012321
A109: 1808 | B109: Service Centre - HVAC | C109: 3577996.8 | D109: 0 | E109: 3577996.8 | F109: 601700.16 | H109: 601700.16 | I109: 6583 | J109: 13.00453 | K109: 0.07689628153 | L109: 15 | M109: 0.06666666667 | N109: 275134.6492 | O109: 40113.344 | P109: 438.8666667 | Q109: 315686.8599 | R109: =-'App.2-BA_Fixed Asset Cont'!J118 -> 315686.52 | S109: -0.3399004336
A110: 1808 | B110: Service Centre - Roof | C110: 594826.71 | D110: 0 | E110: 594826.71 | F110: 5985 | H110: 5985 | I110: 0 | J110: 18 | K110: 0.05555555556 | L110: 20 | M110: 0.05 | N110: 33045.92833 | O110: 299.25 | P110: 0 | Q110: 33345.17833 | R110: =-'App.2-BA_Fixed Asset Cont'!J119 -> 33345.24 | S110: 0.06166666667
A111: 1808 | B111: Service Centre - Automation | C111: 0 | D111: 0 | E111: 0 | F111: 11747.81 | H111: 11747.81 | I111: 0 | J111: 13.99 | K111: 0.07147962831 | L111: 15 | M111: 0.06666666667 | N111: 0 | O111: 783.1873333 | P111: 0 | Q111: 783.1873333 | R111: =-'App.2-BA_Fixed Asset Cont'!J120 -> 3481.2 | S111: 2698.012667
A112: 1808 | B112: Operation Centre - Workshop | C112: 5322.96 | D112: 0 | E112: 5322.96 | F112: 0 | H112: 0 | I112: 0 | J112: 35.49 | K112: 0.02817695125 | L112: 50 | M112: 0.02 | N112: 149.9847844 | O112: 0 | P112: 0 | Q112: 149.9847844 | R112: =-'App.2-BA_Fixed Asset Cont'!J121 -> 150 | S112: 0.01521555368
A113: 1810 | B113: Leasehold Improvements | D113: 0 | E113: 0 | F113: 0 | H113: 0 | I113: 0 | K113: 0 | M113: 0 | N113: 0 | O113: 0 | P113: 0 | Q113: 0 | R113: =-'App.2-BA_Fixed Asset Cont'!J122 -> 0 | S113: 0
A114: 1815 | B114: Transformer Station Equipment >50 kV | C114: 8117510.36 | D114: 1873083.34 | E114: 6244427.02 | F114: 253693.1 | H114: 253693.1 | I114: 18670 | J114: 10.4335 | K114: 0.0958451143 | L114: 30 | M114: 0.03333333333 | N114: 598497.8214 | O114: 8456.436667 | P114: 622.3333333 | Q114: 607576.5914 | R114: =-'App.2-BA_Fixed Asset Cont'!J123 -> 570428.08 | S114: -37148.51144
A115: 1815 | B115: TSE Auxiliary equipment | C115: 1260559.77 | D115: 0 | E115: 1260559.77 | F115: 277857.37 | H115: 277857.37 | I115: 137102.44 | J115: 22.629 | K115: 0.04419108224 | L115: 30 | M115: 0.03333333333 | N115: 55705.50046 | O115: 9261.912333 | P115: 4570.081333 | Q115: 69537.49413 | R115: =-'App.2-BA_Fixed Asset Cont'!J124 -> 69536.04 | S115: -1.454130673
A116: 1815 | B116: TSE - P&C equipment | C116: 2208862.29 | D116: 10055 | E116: 2198807.29 | F116: 742580.74 | H116: 742580.74 | I116: 152862.9 | J116: 10.4621 | K116: 0.09558310473 | L116: 15 | M116: 0.06666666667 | N116: 210168.8275 | O116: 49505.38267 | P116: 10190.86 | Q116: 269865.0701 | R116: =-'App.2-BA_Fixed Asset Cont'!J125 -> 265562.64 | S116: -4302.430149
A117: 1815 | B117: TSE - Power transformer | C117: 10172575.47 | D117: 0 | E117: 10172575.47 | F117: 201496.63 | H117: 201496.63 | I117: 0 | J117: 42.354 | K117: 0.02361052085 | L117: 50 | M117: 0.02 | N117: 240179.8052 | O117: 4029.9326 | P117: 0 | Q117: 244209.7378 | R117: =-'App.2-BA_Fixed Asset Cont'!J126 -> 244209.24 | S117: -0.497813203
A118: 1820 | B118: Distribution Station Equipment <50 kV | C118: 796679.34 | D118: 68337.86 | E118: 728341.48 | F118: 612541.52 | H118: 612541.52 | I118: 339762.87 | J118: 6.6855 | K118: 0.1495774437 | L118: 30 | M118: 0.03333333333 | N118: 108943.4567 | O118: 20418.05067 | P118: 11325.429 | Q118: 140686.9364 | R118: =-'App.2-BA_Fixed Asset Cont'!J127 -> 96618.48 | S118: -44068.4564
A119: 1825 | B119: Storage Battery Equipment | D119: 0 | E119: 0 | F119: 0 | H119: 0 | I119: 0 | K119: 0 | M119: 0 | N119: 0 | O119: 0 | P119: 0 | Q119: 0 | R119: =-'App.2-BA_Fixed Asset Cont'!J128 -> 0 | S119: 0
A120: 1830 | B120: Poles, Towers & Fixtures | C120: 32108265.47 | D120: 0 | E120: 32108265.47 | F120: 19833959.24 | H120: 19833959.24 | I120: 4737204.8 | J120: 38.286 | K120: 0.02611920807 | L120: 45 | M120: 0.02222222222 | N120: 838642.4664 | O120: 440754.6498 | P120: 105271.2178 | Q120: 1384668.334 | R120: =-'App.2-BA_Fixed Asset Cont'!J129 -> 1393433.4 | S120: 8765.066008
A121: 1835 | B121: Overhead Conductors & Devices | C121: 17765762.07 | D121: 0 | E121: 17765762.07 | F121: 10875610.31 | H121: 10875610.31 | I121: 2794117.16 | J121: 36.802 | K121: 0.02717243628 | L121: 45 | M121: 0.02222222222 | N121: 482739.0378 | O121: 241680.2291 | P121: 62091.49244 | Q121: 786510.7594 | R121: =-'App.2-BA_Fixed Asset Cont'!J130 -> 786505.25 | S121: -5.509379587
A122: 1835 | B122: OH Manual line switches | D122: 0 | E122: 0 | F122: 1080705.19 | H122: 1080705.19 | I122: 207230.31 | J122: 0 | K122: 0 | L122: 30 | M122: 0.03333333333 | N122: 0 | O122: 36023.50633 | P122: 6907.677 | Q122: 42931.18333 | R122: =-'App.2-BA_Fixed Asset Cont'!J131 -> 42931.08 | S122: -0.1033333333
A123: 1835 | B123: OH SCADA control equipment | D123: 0 | E123: 0 | F123: 2833946.34 | H123: 2833946.34 | I123: 10079.75 | J123: 0 | K123: 0 | L123: 15 | M123: 0.06666666667 | N123: 0 | O123: 188929.756 | P123: 671.9833333 | Q123: 189601.7393 | R123: =-'App.2-BA_Fixed Asset Cont'!J132 -> 162382.92 | S123: -27218.81933
A124: 1840 | B124: Underground Conduit | C124: 7776100.81 | D124: 0 | E124: 7776100.81 | F124: 6942289.04 | H124: 6942289.04 | I124: 956850.46 | J124: 41.475 | K124: 0.02411091019 | L124: 50 | M124: 0.02 | N124: 187488.8682 | O124: 138845.7808 | P124: 19137.0092 | Q124: 345471.6582 | R124: =-'App.2-BA_Fixed Asset Cont'!J133 -> 345362.88 | S124: -108.7782339
A125: 1845 | B125: Underground Conductors & Devices | C125: 17387400.65 | D125: -45301.11 | E125: 17432701.76 | F125: 18601043.02 | H125: 18601043.02 | I125: 2533856.17 | J125: 24.985 | K125: 0.04002401441 | L125: 35 | M125: 0.02857142857 | N125: 697726.7064 | O125: 531458.372 | P125: 72395.89057 | Q125: 1301580.969 | R125: =-'App.2-BA_Fixed Asset Cont'!J134 -> 1255035.1 | S125: -46545.869
A126: 1850 | B126: Line Transformers - Overhead | C126: 12702530.35 | D126: 0 | E126: 12702530.35 | F126: 5232143.62 | H126: 5232143.62 | I126: 1862118.79 | J126: 37.846 | K126: 0.02642287164 | L126: 45 | M126: 0.02222222222 | N126: 335637.3289 | O126: 116269.8582 | P126: 41380.41756 | Q126: 493287.6047 | R126: =-'App.2-BA_Fixed Asset Cont'!J135 -> 478160.76 | S126: -15126.84469
A127: 1850 | B127: Line Transformers - Underground | C127: 14232826.71 | D127: 0 | E127: 14232826.71 | F127: 6730260.69 | H127: 6730260.69 | I127: 1688855.68 | J127: 27.451 | K127: 0.03642854541 | L127: 35 | M127: 0.02857142857 | N127: 518481.1741 | O127: 192293.1626 | P127: 48253.01943 | Q127: 759027.3561 | R127: =-'App.2-BA_Fixed Asset Cont'!J136 -> 746597.4 | S127: -12429.95609
A128: 1855 | B128: Services - Overhead | C128: 4150228.8 | D128: 0 | E128: 4150228.8 | F128: 1235734.89 | H128: 1235734.89 | I128: 258767.03 | J128: 37.0279 | K128: 0.02700666254 | L128: 45 | M128: 0.02222222222 | N128: 112083.8287 | O128: 27460.77533 | P128: 5750.378444 | Q128: 145294.9825 | R128: =-'App.2-BA_Fixed Asset Cont'!J137 -> 145295.04 | S128: 0.05754168672
A129: 1855 | B129: Services - Underground | C129: 6889107.25 | D129: 0 | E129: 6889107.25 | F129: 3184884.65 | H129: 3184884.65 | I129: 962103.38 | J129: 41.243 | K129: 0.02424653881 | L129: 50 | M129: 0.02 | N129: 167037.0063 | O129: 63697.693 | P129: 19242.0676 | Q129: 249976.7669 | R129: =-'App.2-BA_Fixed Asset Cont'!J138 -> 249974.16 | S129: -2.606879854
A130: 1860 | B130: Meters - Bidirectional | C130: 33590.49 | D130: 0 | E130: 33590.49 | F130: 0 | H130: 0 | I130: 0 | J130: 23.393 | K130: 0.04274783055 | L130: 25 | M130: 0.04 | N130: 1435.920575 | O130: 0 | P130: 0 | Q130: 1435.920575 | R130: =-'App.2-BA_Fixed Asset Cont'!J139 -> 1435.8 | S130: -0.1205745308
A131: 1860 | B131: Meters - Commercial | C131: 1798459.54 | D131: 0 | E131: 1798459.54 | F131: 13722.53 | H131: 13722.53 | I131: 0 | J131: 21.329 | K131: 0.04688452342 | L131: 25 | M131: 0.04 | N131: 84319.91842 | O131: 548.9012 | P131: 0 | Q131: 84868.81962 | R131: =-'App.2-BA_Fixed Asset Cont'!J140 -> 135969.72 | S131: 51100.90038
A132: 1860 | B132: Meters - Residential | C132: 2397467.43 | D132: 2315951.84 | E132: 81515.59 | F132: 529718.93 | H132: 529718.93 | I132: 248473.52 | J132: 10.9717 | K132: 0.09114357848 | L132: 25 | M132: 0.04 | N132: 7429.622574 | O132: 21188.7572 | P132: 9938.9408 | Q132: 38557.32057 | R132: =-'App.2-BA_Fixed Asset Cont'!J141 -> 98936.76 | S132: 60379.43943
A133: 1860 | B133: Meters C& I | C133: 0 | D133: 0 | E133: 0 | F133: 1784066.79 | H133: 1784066.79 | I133: 398573.06 | J133: 0 | K133: 0 | L133: 15 | M133: 0.06666666667 | N133: 0 | O133: 118937.786 | P133: 26571.53733 | Q133: 145509.3233 | R133: =-'App.2-BA_Fixed Asset Cont'!J142 -> 114324.12 | S133: -31185.20333
A134: 1860 | B134: Meters (Smart Meters) | C134: 6265880 | D134: 0 | E134: 6265880 | F134: 0 | H134: 0 | I134: 0 | J134: 11.568 | K134: 0.08644536653 | L134: 15 | M134: 0.06666666667 | N134: 541656.2932 | O134: 0 | P134: 0 | Q134: 541656.2932 | R134: =-'App.2-BA_Fixed Asset Cont'!J143 -> 536248.56 | S134: -5407.733223
A135: 1860 | B135: Meters (Wholesale) | C135: 739069.06 | D135: 0 | E135: 739069.06 | F135: 330372.26 | H135: 330372.26 | I135: 70546.87 | J135: 13.55 | K135: 0.07380073801 | L135: 15 | M135: 0.06666666667 | N135: 54543.84207 | O135: 22024.81733 | P135: 4703.124667 | Q135: 81271.78407 | R135: =-'App.2-BA_Fixed Asset Cont'!J144 -> 54979.74 | S135: -26292.04407
A136: 1905 | B136: Land | D136: 0 | E136: 0 | F136: 0 | H136: 0 | I136: 0 | K136: 0 | M136: 0 | N136: 0 | O136: 0 | P136: 0 | Q136: 0 | R136: =-'App.2-BA_Fixed Asset Cont'!J145 -> 0 | S136: 0
A137: 1908 | B137: Buildings & Fixtures | D137: 0 | E137: 0 | F137: 0 | H137: 0 | I137: 0 | K137: 0 | M137: 0 | N137: 0 | O137: 0 | P137: 0 | Q137: 0 | R137: =-'App.2-BA_Fixed Asset Cont'!J146 -> 0 | S137: 0
A138: 1910 | B138: Leasehold Improvements | D138: 0 | E138: 0 | F138: 0 | H138: 0 | I138: 0 | K138: 0 | M138: 0 | N138: 0 | O138: 0 | P138: 0 | Q138: 0 | R138: =-'App.2-BA_Fixed Asset Cont'!J147 -> 0 | S138: 0
A139: 1915 | B139: Office Furniture & Equipment (10 years) | C139: 886158.36 | D139: 70950.4 | E139: 815207.96 | F139: 68261.79 | H139: 68261.79 | I139: 2710 | J139: 8.733 | K139: 0.1145081873 | L139: 10 | M139: 0.1 | N139: 93347.9858 | O139: 6826.179 | P139: 271 | Q139: 100445.1648 | R139: =-'App.2-BA_Fixed Asset Cont'!J148 -> 106150.33 | S139: 5705.165199
A140: 1915 | B140: Office Furniture & Equipment (5 years) | C140: 7003.71 | D140: 7003.71 | E140: 0 | F140: 7510 | H140: 7510 | I140: 22557.49 | J140: 2 | K140: 0.5 | L140: 5 | M140: 0.2 | N140: 0 | O140: 1502 | P140: 4511.498 | Q140: 6013.498 | R140: =-'App.2-BA_Fixed Asset Cont'!J149 -> 6013.56 | S140: 0.062
A141: 1920 | B141: Computer Equipment - Hardware | D141: 0 | E141: 0 | F141: 0 | H141: 0 | I141: 0 | K141: 0 | M141: 0 | N141: 0 | O141: 0 | P141: 0 | Q141: 0 | R141: =-'App.2-BA_Fixed Asset Cont'!J150 -> 0 | S141: 0
A142: 1920 | B142: Computer Equip.-Hardware(Post Mar. 22/04) | D142: 0 | E142: 0 | F142: 0 | H142: 0 | I142: 0 | K142: 0 | M142: 0 | N142: 0 | O142: 0 | P142: 0 | Q142: 0 | R142: =-'App.2-BA_Fixed Asset Cont'!J151 -> 0 | S142: 0
A143: 1920 | B143: Computer Equip.-Hardware(Post Mar. 19/07) | C143: 473009.83 | D143: 473009.83 | E143: 0 | F143: 521201.76 | H143: 521201.76 | I143: 122517.28 | J143: 3.03 | K143: 0.3300330033 | L143: 5 | M143: 0.2 | N143: 0 | O143: 104240.352 | P143: 24503.456 | Q143: 128743.808 | R143: =-'App.2-BA_Fixed Asset Cont'!J152 -> 130051.91 | S143: 1308.102
A144: 1930 | B144: Transportation Equipment - car | C144: 29729.38 | D144: 29729.38 | E144: 0 | F144: 0 | H144: 0 | I144: 0 | J144: 4 | K144: 0.25 | L144: 5 | M144: 0.2 | N144: 0 | O144: 0 | P144: 0 | Q144: 0 | R144: =-'App.2-BA_Fixed Asset Cont'!J153 -> 0 | S144: 0
A145: 1930 | B145: Transportation Equipment - Other - trailers etc | C145: 184654.58 | D145: 0 | E145: 184654.58 | F145: 374343.52 | H145: 374343.52 | I145: 25470.84 | J145: 12.099 | K145: 0.0826514588 | L145: 15 | M145: 0.06666666667 | N145: 15261.97041 | O145: 24956.23467 | P145: 1698.056 | Q145: 41916.26108 | R145: =-'App.2-BA_Fixed Asset Cont'!J154 -> 41956.68 | S145: 40.41892256
A146: 1930 | B146: Transportation Equipment - small trucks | C146: 629219.14 | D146: 10836.39 | E146: 618382.75 | F146: 230949.03 | H146: 230949.03 | I146: 38238.71 | J146: 6.263593009 | K146: 0.1596527742 | L146: 8 | M146: 0.125 | N146: 98726.52152 | O146: 28868.62875 | P146: 4779.83875 | Q146: 132374.989 | R146: =-'App.2-BA_Fixed Asset Cont'!J155 -> 136940.28 | S146: 4565.290975
A147: 1930 | B147: Transportation Equipment - workplatform | C147: 1400100.08 | D147: 0 | E147: 1400100.08 | F147: 2599152.44 | H147: 2599152.44 | I147: 449181.3 | J147: 8.973 | K147: 0.1114454475 | L147: 12 | M147: 0.08333333333 | N147: 156034.7799 | O147: 216596.0367 | P147: 37431.775 | Q147: 410062.5916 | R147: =-'App.2-BA_Fixed Asset Cont'!J156 -> 403650.93 | S147: -6411.661562
A148: 1930 | B148: Transportation Equipment - Hybrid system | C148: 0 | D148: 0 | E148: 0 | F148: 301129.47 | G148: 73455 | H148: 227674.47 | I148: 0 | J148: 0 | K148: 0 | L148: 5 | M148: 0.2 | N148: 0 | O148: 45534.894 | P148: 0 | Q148: 45534.894 | R148: =-'App.2-BA_Fixed Asset Cont'!J157 -> 31126.16 | S148: -14408.734
A149: 1935 | B149: Stores Equipment | C149: 340118.52 | D149: 0 | E149: 340118.52 | F149: 121995.96 | H149: 121995.96 | I149: 1000 | J149: 7.38 | K149: 0.135501355 | L149: 10 | M149: 0.1 | N149: 46086.52033 | O149: 12199.596 | P149: 100 | Q149: 58386.11633 | R149: =-'App.2-BA_Fixed Asset Cont'!J158 -> 58383.14 | S149: -2.976325203
A150: 1940 | B150: Tools, Shop & Garage Equipment | C150: 269625.01 | D150: 16139.21 | E150: 253485.8 | F150: 23017.43 | H150: 23017.43 | I150: 5100 | J150: 8.365 | K150: 0.1195457262 | L150: 8 | M150: 0.125 | N150: 30303.14405 | O150: 2877.17875 | P150: 637.5 | Q150: 33817.8228 | R150: =-'App.2-BA_Fixed Asset Cont'!J159 -> 35746.92 | S150: 1929.097197
A151: 1940 | B151: Truck tools | C151: 220122.17 | D151: 269625.01 | E151: -49502.84 | F151: 336015.57 | H151: 336015.57 | I151: 27470.07 | J151: 2.494 | K151: 0.4009623095 | L151: 5 | M151: 0.2 | N151: -19848.77306 | O151: 67203.114 | P151: 5494.014 | Q151: 52848.35494 | R151: =-'App.2-BA_Fixed Asset Cont'!J160 -> 72696.83 | S151: 19848.47506
A152: 1945 | B152: Measurement & Testing Equipment | C152: 240372.34 | D152: 67054.54 | E152: 173317.8 | F152: 46810.53 | H152: 46810.53 | I152: 29045 | J152: 4.6162 | K152: 0.2166283957 | L152: 7 | M152: 0.1428571429 | N152: 37545.55695 | O152: 6687.218571 | P152: 4149.285714 | Q152: 48382.06124 | R152: =-'App.2-BA_Fixed Asset Cont'!J161 -> 42792.38 | S152: -5589.681237
A153: 1950 | B153: Power Operated Equipment | D153: 0 | E153: 0 | F153: 0 | H153: 0 | I153: 0 | K153: 0 | M153: 0 | N153: 0 | O153: 0 | P153: 0 | Q153: 0 | R153: =-'App.2-BA_Fixed Asset Cont'!J162 -> 0 | S153: 0
A154: 1955 | B154: Communications Equipment - phones | C154: 341350.47 | D154: 24989.81 | E154: 316360.66 | F154: 26389.16 | H154: 26389.16 | I154: 0 | J154: 6.731 | K154: 0.1485663349 | L154: 10 | M154: 0.1 | N154: 47000.54375 | O154: 2638.916 | P154: 0 | Q154: 49639.45975 | R154: =-'App.2-BA_Fixed Asset Cont'!J163 -> 43600.68 | S154: -6038.779753
A155: 1955 | B155: Communications Equipment - Radio wireless | C155: 109455.16 | D155: 0 | E155: 109455.16 | F155: 54398.52 | H155: 54398.52 | I155: 0 | J155: 4.4157 | K155: 0.2264646602 | L155: 8 | M155: 0.125 | N155: 24787.72562 | O155: 6799.815 | P155: 0 | Q155: 31587.54062 | R155: =-'App.2-BA_Fixed Asset Cont'!J164 -> 9850.49 | S155: -21737.05062
A156: 1955 | B156: Communications Equipment - Radio | C156: 122011.8 | D156: 86947.63 | E156: 35064.17 | F156: 0 | H156: 0 | I156: 0 | J156: 6.925 | K156: 0.1444043321 | L156: 10 | M156: 0.1 | N156: 5063.418051 | O156: 0 | P156: 0 | Q156: 5063.418051 | R156: =-'App.2-BA_Fixed Asset Cont'!J165 -> 17619.96 | S156: 12556.54195
A157: 1955 | B157: Communication Equipment (Smart Meters) | D157: 0 | E157: 0 | F157: 0 | H157: 0 | I157: 0 | K157: 0 | M157: 0 | N157: 0 | O157: 0 | P157: 0 | Q157: 0 | R157: =-'App.2-BA_Fixed Asset Cont'!J166 -> 0 | S157: 0
A158: 1960 | B158: Miscellaneous Equipment | C158: 1554687.143 | D158: 35608.14 | E158: 1519079.003 | F158: 104107.95 | H158: 104107.95 | I158: 21067.34 | J158: 6.575 | K158: 0.1520912548 | L158: 10 | M158: 0.1 | N158: 231038.6316 | O158: 10410.795 | P158: 2106.734 | Q158: 243556.1606 | R158: =-'App.2-BA_Fixed Asset Cont'!J167 -> 239437.61 | S158: -4118.550635
A159: 1970 | B159: Load Management Controls Customer Premises | D159: 0 | E159: 0 | F159: 0 | H159: 0 | I159: 0 | K159: 0 | M159: 0 | N159: 0 | O159: 0 | P159: 0 | Q159: 0 | R159: =-'App.2-BA_Fixed Asset Cont'!J168 -> 0 | S159: 0
A160: 1975 | B160: Load Management Controls Utility Premises | D160: 0 | E160: 0 | F160: 0 | H160: 0 | I160: 0 | K160: 0 | M160: 0 | N160: 0 | O160: 0 | P160: 0 | Q160: 0 | R160: =-'App.2-BA_Fixed Asset Cont'!J169 -> 0 | S160: 0
A161: 1980 | B161: System Supervisor Equipment | C161: 1637568.18 | D161: 64260.65 | E161: 1573307.53 | F161: 1165421.54 | H161: 1165421.54 | I161: 12466.23 | J161: 11.225 | K161: 0.08908685969 | L161: 15 | M161: 0.06666666667 | N161: 140161.0272 | O161: 77694.76933 | P161: 831.082 | Q161: 218686.8785 | R161: =-'App.2-BA_Fixed Asset Cont'!J170 -> 212021.41 | S161: -6665.468505
A162: 1985 | B162: Miscellaneous Fixed Assets | D162: 0 | E162: 0 | F162: 0 | H162: 0 | I162: 0 | K162: 0 | M162: 0 | N162: 0 | O162: 0 | P162: 0 | Q162: 0 | R162: =-'App.2-BA_Fixed Asset Cont'!J171 -> 0 | S162: 0
A163: 1990 | B163: Other Tangible Property | D163: 0 | E163: 0 | F163: 0 | H163: 0 | I163: 0 | K163: 0 | M163: 0 | N163: 0 | O163: 0 | P163: 0 | Q163: 0 | R163: =-'App.2-BA_Fixed Asset Cont'!J172 -> 0 | S163: 0
A164: 1995 | B164: Contributions & Grants | C164: -21932649.26 | D164: -91000 | E164: -21841649.26 | F164: -1682155 | H164: -1682155 | I164: 0 | J164: 31.35 | K164: 0.03189792663 | L164: 40.2 | M164: 0.02487562189 | N164: =IF(J164=0,0,+E164/J164) -> -696703.3257 | O164: =IF(L164=0,0,+H164/L164) -> -41844.65174 | P164: =IF(L164=0,0,+(I164*1)/L164) -> 0 | Q164: -738547.9774 | R164: =-'App.2-BA_Fixed Asset Cont'!J173 -> -738533 | S164: 14.97741912
A165: 2440 | B165: Deferred Revenue - 1808 | C165: 0 | D165: 0 | E165: 0 | F165: =F87+I87 -> -24595.25 | G165: 0 | H165: -24595.25 | I165: 0 | K165: 0 | L165: 15 | M165: 0.06666666667 | N165: =IF(J165=0,0,+E165/J165) -> 0 | O165: =IF(L165=0,0,+H165/L165) -> -1639.683333 | P165: =IF(L165=0,0,+(I165*1)/L165) -> 0 | Q165: -1639.683333 | R165: =-'App.2-BA_Fixed Asset Cont'!J174 -> -1639.68 | S165: 0.003333333333
A166: 2440 | B166: Deferred Revenue - 1830 | C166: 0 | D166: 0 | E166: 0 | F166: -1254619.33 | G166: 0 | H166: -1254619.33 | I166: -352048.39 | K166: 0 | L166: 45 | M166: 0.02222222222 | N166: 0 | O166: -27880.42956 | P166: -7823.297556 | Q166: -35703.72711 | R166: =-'App.2-BA_Fixed Asset Cont'!J175 -> -35703.73 | S166: -0.002888888892
A167: 2440 | B167: Deferred Revenue - 1835 | C167: 0 | D167: 0 | E167: 0 | F167: -711932.37 | G167: 0 | H167: -711932.37 | I167: -199866.81 | K167: 0 | L167: 45 | M167: 0.02222222222 | N167: 0 | O167: -15820.71933 | P167: -4441.484667 | Q167: -20262.204 | R167: =-'App.2-BA_Fixed Asset Cont'!J176 -> -20262.2 | S167: 0.004000000001
A168: 2440 | B168: Deferred Revenue - 1840 | C168: 0 | D168: 0 | E168: 0 | F168: -2960768.13 | G168: 0 | H168: -2960768.13 | I168: -547329.64 | K168: 0 | L168: 50 | M168: 0.02 | N168: 0 | O168: -59215.3626 | P168: -10946.5928 | Q168: =IF(ISERROR(+N168+O168+P168), 0, +N168+O168+P168) -> -70161.9554 | R168: =-'App.2-BA_Fixed Asset Cont'!J177 -> -70161.94 | S168: 0.0154
A169: 2440 | B169: Deferred Revenue - 1845 | C169: 0 | D169: 0 | E169: 0 | F169: -7087814.79 | G169: 0 | H169: -7087814.79 | I169: -1387526.2 | K169: 0 | L169: 35 | M169: 0.02857142857 | N169: 0 | O169: -202508.994 | P169: -39643.60571 | Q169: -242152.5997 | R169: =-'App.2-BA_Fixed Asset Cont'!J178 -> -242152.6 | S169: -0.0002857142536
A170: 2440 | B170: Deferred Revenue - 1850 | C170: 0 | D170: 0 | E170: 0 | F170: -5772162.42 | G170: 0 | H170: -5772162.42 | I170: -1637061.95 | K170: 0 | L170: 38 | M170: 0.02631578947 | N170: 0 | O170: -151899.0111 | P170: -43080.57763 | Q170: -194979.5887 | R170: =-'App.2-BA_Fixed Asset Cont'!J179 -> -194979.6 | S170: -0.01131578951
A171: 2440 | B171: Deferred Revenue - 1855 | C171: 0 | D171: 0 | E171: 0 | F171: -1029740.98 | G171: 0 | H171: -1029740.98 | I171: -432271.03 | K171: 0 | L171: 49 | M171: 0.02040816327 | N171: 0 | O171: -21015.12204 | P171: -8821.857755 | Q171: -29836.9798 | R171: =-'App.2-BA_Fixed Asset Cont'!J180 -> -29836.99 | S171: -0.01020408164
A172: 2440 | B172: Deferred Revenue - 1860 | C172: 0 | D172: 0 | E172: 0 | F172: -36858.92 | G172: 0 | H172: -36858.92 | I172: -22397.43 | K172: 0 | L172: 15 | M172: 0.06666666667 | N172: 0 | O172: -2457.261333 | P172: -1493.162 | Q172: -3950.423333 | R172: =-'App.2-BA_Fixed Asset Cont'!J181 -> -3950.42 | S172: 0.003333333333
A173: 2005 | B173: Property Under Finance Lease | E173: 0 | F173: 0 | H173: 0 | K173: 0 | M173: 0 | N173: 0 | O173: 0 | P173: 0 | Q173: 0 | S173: 0
B174: Total | C174: =SUM(C101:C173) -> 164787949.8 | D174: 6425242.1 | E174: 158362707.7 | F174: 71223965.2 | G174: 73455 | H174: 71150510.2 | I174: 15891596.58 | N174: =SUM(N101:N173) -> 6247690.396 | O174: 2691304.595 | P174: 638190.4799 | Q174: 9577185.471 | R174: 9408678.62 | S174: -168506.851
A176: 2018 | B176: MIFRS | C176: Book Values | J176: Service Lives | N176: Depreciation Expense
A177: Account | B177: Description | C177: Opening Net Book Value of Existing Assets as at Date of Policy Change (Jan. 1) 1 | D177: Less Fully Depreciated 7 | E177: Net Amount of Existing Assets Before Policy Change to be Depreciated | F177: Opening Gross Book Value of Assets Acquired After Policy Change 2 | G177: Less Fully Depreciated 8 | H177: Net Amount of Assets Acquired After Policy Change to be Depreciated | I177: Current Year Additions | J177: Average Remaining Life of Assets Existing Before Policy Change 3 | K177: Depreciation Rate Assets Acquired After Policy Change | L177: Life of Assets Acquired After Policy Change 4 | M177: Depreciation Rate on New Additions | N177: Depreciation Expense on Assets Existing Before Policy Change | O177: Depreciation Expense on Assets Acquired After Policy Change | P177: Depreciation Expense on Current Year Additions 5 | Q177: Total Current Year Depreciation Expense | R177: Depreciation Expense per Appendix 2-BA Fixed Assets, Column J | S177: Variance 6
C178: a | D178: b | E178: c = a-b | F178: d | G178: e | H178: f = d- e | I178: g | J178: h | K178: i = 1/h | L178: j | M178: k = 1/j | N178: l = c/h | O178: m = f/j | P178: n = g*1.0/j | Q178: o = l+m+n | R178: p | S178: q = p-o
A179: 1611 | B179: Computer Software (Formally known as Account 1925) | C179: 1137960.47 | D179: 1137960.47 | E179: =C179-D179 -> 0 | F179: =F101+I101 -> 1764217.91 | G179: 216826.33 | H179: =F179-G179 -> 1547391.58 | I179: 529216.32 | J179: 2.437 | K179: =IF(J179=0,0,1/J179) -> 0.4103405827 | L179: 5 | M179: =IF(L179=0,0,1/L179) -> 0.2 | N179: =IF(J179=0,0,+E179/J179) -> 0 | O179: =IF(L179=0,0,+H179/L179) -> 309478.316 | P179: =IF(L179=0,0,+(I179*1)/L179) -> 105843.264 | Q179: =IF(ISERROR(+N179+O179+P179), 0, +N179+O179+P179) -> 415321.58 | R179: =-'App.2-BA_Fixed Asset Cont'!J202 -> 388743.03 | S179: =IF(ISERROR(+R179-Q179), 0, +R179-Q179) -> -26578.55
A180: 1611 | B180: Computer Software (Formally known as Account 1925) - CIS/ERP | C180: 0 | D180: 0 | E180: =C180-D180 -> 0 | F180: 1432720.78 | G180: 0 | H180: =F180-G180 -> 1432720.78 | I180: 451354.65 | J180: 0 | K180: =IF(J180=0,0,1/J180) -> 0 | L180: 10 | M180: =IF(L180=0,0,1/L180) -> 0.1 | N180: =IF(J180=0,0,+E180/J180) -> 0 | O180: =IF(L180=0,0,+H180/L180) -> 143272.078 | P180: =IF(L180=0,0,+(I180*1)/L180) -> 45135.465 | Q180: =IF(ISERROR(+N180+O180+P180), 0, +N180+O180+P180) -> 188407.543 | R180: =-'App.2-BA_Fixed Asset Cont'!J203 -> 188407.32 | S180: =IF(ISERROR(+R180-Q180), 0, +R180-Q180) -> -0.223
A181: 1612 | B181: Land Rights (Formally known as Account 1906) | C181: 510696.18 | D181: 0 | E181: =C181-D181 -> 510696.18 | F181: 471553.6 | G181: 0 | H181: =F181-G181 -> 471553.6 | I181: 77374.93 | J181: 0 | K181: =IF(J181=0,0,1/J181) -> 0 | L181: 0 | M181: =IF(L181=0,0,1/L181) -> 0 | N181: =IF(J181=0,0,+E181/J181) -> 0 | O181: =IF(L181=0,0,+H181/L181) -> 0 | P181: =IF(L181=0,0,+(I181*1)/L181) -> 0 | Q181: =IF(ISERROR(+N181+O181+P181), 0, +N181+O181+P181) -> 0 | R181: =-'App.2-BA_Fixed Asset Cont'!J204 -> 0 | S181: =IF(ISERROR(+R181-Q181), 0, +R181-Q181) -> 0
A182: 1805 | B182: Land | C182: 2323796.46 | D182: 0 | E182: 2323796.46 | F182: 0 | G182: 0 | H182: 0 | I182: 0 | K182: 0 | M182: 0 | N182: 0 | O182: 0 | P182: 0 | Q182: 0 | R182: =-'App.2-BA_Fixed Asset Cont'!J205 -> 0 | S182: 0
A183: 1808 | B183: Buildings - MS | C183: 158628.96 | D183: 0 | E183: 158628.96 | F183: 848505.42 | G183: 0 | H183: 848505.42 | I183: 0 | J183: 24.36 | K183: 0.04105090312 | L183: 50 | M183: 0.02 | N183: 6511.862069 | O183: 16970.1084 | P183: 0 | Q183: 23481.97047 | R183: =-'App.2-BA_Fixed Asset Cont'!J206 -> 5344.56 | S183: -18137.41047
A184: 1808 | B184: Buildings - TS | C184: 3132108.26 | D184: 0 | E184: 3132108.26 | F184: 828406.4 | G184: 0 | H184: 828406.4 | I184: 109904.11 | J184: 49.28 | K184: 0.02029220779 | L184: 60 | M184: 0.01666666667 | N184: 63557.39164 | O184: 13806.77333 | P184: 1831.735167 | Q184: 79195.90014 | R184: =-'App.2-BA_Fixed Asset Cont'!J207 -> 76018.2 | S184: -3177.70014
A185: 1808 | B185: Buildings & Fixtures - Service Centre | C185: 19340595.09 | D185: 0 | E185: 19340595.09 | F185: 786893.14 | G185: 0 | H185: 786893.14 | I185: 4930 | J185: 49.8718 | K185: 0.02005141182 | L185: 50 | M185: 0.02 | N185: 387806.237 | O185: 15737.8628 | P185: 98.6 | Q185: 403642.6998 | R185: =-'App.2-BA_Fixed Asset Cont'!J208 -> 403647.72 | S185: 5.020178993
A186: 1808 | B186: Service Centre - Parking Lot & Fence | C186: 690605.46 | D186: 0 | E186: 690605.46 | F186: 85066.22 | G186: 0 | H186: 85066.22 | I186: 25465 | J186: 23.05 | K186: 0.04338394794 | L186: 25 | M186: 0.04 | N186: 29961.19132 | O186: 3402.6488 | P186: 1018.6 | Q186: 34382.44012 | R186: =-'App.2-BA_Fixed Asset Cont'!J209 -> 34377.12 | S186: -5.32012321
A187: 1808 | B187: Service Centre - HVAC | C187: 3577996.8 | D187: 0 | E187: 3577996.8 | F187: 608283.16 | G187: 0 | H187: 608283.16 | I187: 0 | J187: 13.00453 | K187: 0.07689628153 | L187: 15 | M187: 0.06666666667 | N187: 275134.6492 | O187: 40552.21067 | P187: 0 | Q187: 315686.8599 | R187: =-'App.2-BA_Fixed Asset Cont'!J210 -> 315686.52 | S187: -0.3399004336
A188: 1808 | B188: Service Centre - Roof | C188: 594826.71 | D188: 0 | E188: 594826.71 | F188: 5985 | G188: 0 | H188: 5985 | I188: 0 | J188: 18 | K188: 0.05555555556 | L188: 20 | M188: 0.05 | N188: 33045.92833 | O188: 299.25 | P188: 0 | Q188: 33345.17833 | R188: =-'App.2-BA_Fixed Asset Cont'!J211 -> 33345.24 | S188: 0.06166666667
A189: 1808 | B189: Service Centre - Automation | C189: 0 | D189: 0 | E189: 0 | F189: 11747.81 | G189: 0 | H189: 11747.81 | I189: 0 | J189: 13.99 | K189: 0.07147962831 | L189: 15 | M189: 0.06666666667 | N189: 0 | O189: 783.1873333 | P189: 0 | Q189: 783.1873333 | R189: =-'App.2-BA_Fixed Asset Cont'!J212 -> 3481.2 | S189: 2698.012667
A190: 1808 | B190: Operation Centre - Workshop | C190: 5322.96 | D190: 0 | E190: 5322.96 | F190: 0 | G190: 0 | H190: 0 | I190: 0 | J190: 35.49 | K190: 0.02817695125 | L190: 50 | M190: 0.02 | N190: 149.9847844 | O190: 0 | P190: 0 | Q190: 149.9847844 | R190: =-'App.2-BA_Fixed Asset Cont'!J213 -> 150 | S190: 0.01521555368
A191: 1810 | B191: Leasehold Improvements | D191: 0 | E191: 0 | F191: 0 | G191: 0 | H191: 0 | I191: 0 | K191: 0 | M191: 0 | N191: 0 | O191: 0 | P191: 0 | Q191: 0 | R191: =-'App.2-BA_Fixed Asset Cont'!J214 -> 0 | S191: 0
A192: 1815 | B192: Transformer Station Equipment >50 kV | C192: 8117510.36 | D192: 2301104.18 | E192: 5816406.18 | F192: 272363.1 | G192: 0 | H192: 272363.1 | I192: 98731.65 | J192: 10.4335 | K192: 0.0958451143 | L192: 30 | M192: 0.03333333333 | N192: 557474.1151 | O192: 9078.77 | P192: 3291.055 | Q192: 569843.9401 | R192: =-'App.2-BA_Fixed Asset Cont'!J215 -> 487291.68 | S192: -82552.26011
A193: 1815 | B193: TSE Auxiliary equipment | C193: 1260559.77 | D193: 0 | E193: 1260559.77 | F193: 414959.81 | G193: 0 | H193: 414959.81 | I193: 232515.83 | J193: 22.629 | K193: 0.04419108224 | L193: 30 | M193: 0.03333333333 | N193: 55705.50046 | O193: 13831.99367 | P193: 7750.527667 | Q193: 77288.0218 | R193: =-'App.2-BA_Fixed Asset Cont'!J216 -> 77286.48 | S193: -1.54179734
A194: 1815 | B194: TSE - P&C equipment | C194: 2208862.29 | D194: 10055 | E194: 2198807.29 | F194: 895443.64 | G194: 0 | H194: 895443.64 | I194: 444070.52 | J194: 10.4621 | K194: 0.09558310473 | L194: 15 | M194: 0.06666666667 | N194: 210168.8275 | O194: 59696.24267 | P194: 29604.70133 | Q194: 299469.7715 | R194: =-'App.2-BA_Fixed Asset Cont'!J217 -> 295166.28 | S194: -4303.491482
A195: 1815 | B195: TSE - Power transformer | C195: 10172575.47 | D195: 0 | E195: 10172575.47 | F195: 201496.63 | G195: 0 | H195: 201496.63 | I195: 83676.48 | J195: 42.354 | K195: 0.02361052085 | L195: 50 | M195: 0.02 | N195: 240179.8052 | O195: 4029.9326 | P195: 1673.5296 | Q195: 245883.2674 | R195: =-'App.2-BA_Fixed Asset Cont'!J218 -> 245882.76 | S195: -0.507413203
A196: 1820 | B196: Distribution Station Equipment <50 kV | C196: 796679.34 | D196: 83308.19 | E196: 713371.15 | F196: 952304.39 | G196: 0 | H196: 952304.39 | I196: 0 | J196: 6.6855 | K196: 0.1495774437 | L196: 30 | M196: 0.03333333333 | N196: 106704.233 | O196: 31743.47967 | P196: 0 | Q196: 138447.7127 | R196: =-'App.2-BA_Fixed Asset Cont'!J219 -> 91777.82 | S196: -46669.89271
A197: 1825 | B197: Storage Battery Equipment | D197: 0 | E197: 0 | F197: 0 | G197: 0 | H197: 0 | I197: 0 | K197: 0 | M197: 0 | N197: 0 | O197: 0 | P197: 0 | Q197: 0 | R197: =-'App.2-BA_Fixed Asset Cont'!J220 -> 0 | S197: 0
A198: 1830 | B198: Poles, Towers & Fixtures | C198: 32108265.47 | D198: 0 | E198: 32108265.47 | F198: 24571164.04 | G198: 0 | H198: 24571164.04 | I198: 4736271.74 | J198: 38.286 | K198: 0.02611920807 | L198: 45 | M198: 0.02222222222 | N198: 838642.4664 | O198: 546025.8676 | P198: 105250.4831 | Q198: 1489918.817 | R198: =-'App.2-BA_Fixed Asset Cont'!J221 -> 1498683.96 | S198: 8765.142897
A199: 1835 | B199: Overhead Conductors & Devices | C199: 17765762.07 | D199: 93684.29 | E199: 17672077.78 | F199: 13669727.47 | G199: 0 | H199: 13669727.47 | I199: 2582727.07 | J199: 36.802 | K199: 0.02717243628 | L199: 45 | M199: 0.02222222222 | N199: 480193.4074 | O199: 303771.7216 | P199: 57393.93489 | Q199: 841359.0639 | R199: =-'App.2-BA_Fixed Asset Cont'!J222 -> 825162.08 | S199: -16196.98387
A200: 1835 | B200: OH Manual line switches | D200: 0 | E200: 0 | F200: 1287935.5 | G200: 0 | H200: 1287935.5 | I200: 175378.57 | J200: 0 | K200: 0 | L200: 30 | M200: 0.03333333333 | N200: 0 | O200: 42931.18333 | P200: 5845.952333 | Q200: 48777.13567 | R200: =-'App.2-BA_Fixed Asset Cont'!J223 -> 48776.88 | S200: -0.2556666667
A201: 1835 | B201: OH SCADA control equipment | D201: 0 | E201: 0 | F201: 2844026.09 | G201: 0 | H201: 2844026.09 | I201: 25686.27 | J201: 0 | K201: 0 | L201: 15 | M201: 0.06666666667 | N201: 0 | O201: 189601.7393 | P201: 1712.418 | Q201: 191314.1573 | R201: =-'App.2-BA_Fixed Asset Cont'!J224 -> 164095.44 | S201: -27218.71733
A202: 1840 | B202: Underground Conduit | C202: 7776100.81 | D202: 0 | E202: 7776100.81 | F202: 7899139.5 | G202: 0 | H202: 7899139.5 | I202: 1440326.02 | J202: 41.475 | K202: 0.02411091019 | L202: 50 | M202: 0.02 | N202: 187488.8682 | O202: 157982.79 | P202: 28806.5204 | Q202: 374278.1786 | R202: =-'App.2-BA_Fixed Asset Cont'!J225 -> 374169 | S202: -109.1786339
A203: 1845 | B203: Underground Conductors & Devices | C203: 17387400.65 | D203: -14950.97 | E203: 17402351.62 | F203: 21134899.19 | G203: 0 | H203: 21134899.19 | I203: 2619170.15 | J203: 24.985 | K203: 0.04002401441 | L203: 35 | M203: 0.02857142857 | N203: 696511.972 | O203: 603854.2626 | P203: 74833.43286 | Q203: 1375199.667 | R203: =-'App.2-BA_Fixed Asset Cont'!J226 -> 1323798.05 | S203: -51401.61741
A204: 1850 | B204: Line Transformers - Overhead | C204: 12702530.35 | D204: 0 | E204: 12702530.35 | F204: 7094262.41 | G204: 0 | H204: 7094262.41 | I204: 1579216.62 | J204: 37.846 | K204: 0.02642287164 | L204: 45 | M204: 0.02222222222 | N204: 335637.3289 | O204: 157650.2758 | P204: 35093.70267 | Q204: 528381.3074 | R204: =-'App.2-BA_Fixed Asset Cont'!J227 -> 508425.48 | S204: -19955.82736
A205: 1850 | B205: Line Transformers - Underground | C205: 14232826.71 | D205: 0 | E205: 14232826.71 | F205: 8419116.37 | G205: 0 | H205: 8419116.37 | I205: 1409097.93 | J205: 27.451 | K205: 0.03642854541 | L205: 35 | M205: 0.02857142857 | N205: 518481.1741 | O205: 240546.182 | P205: 40259.94086 | Q205: 799287.2969 | R205: =-'App.2-BA_Fixed Asset Cont'!J228 -> 783776.52 | S205: -15510.77695
... 289 more rows

Sheet App.2-D_Overhead
H1: File Number: | I1: =EBNUMBER -> EB-2020-0059
H2: Exhibit: | I2: 2
H3: Tab:
H4: Schedule: | I4: Table 2-38
H5: Page: | I5: 72
H7: Date: | I7: 2020-06-30
A9: Appendix 2-D
A10: Overhead Expense
A12: Applicants are to provide a breakdown of OM&A before capitalization in the below table. OM&A before capitalization may be broken down by cost center, program, drivers or another format best suited to focus on capitalized vs. uncapitalized OM&A.
A14: OM&A Before Capitalization
B15: =F15-4 -> 2016 | C15: =G15-4 -> 2017 | D15: =G15-3 -> 2018 | E15: =G15-2 -> 2019 | F15: =G15-1 -> 2020 | G15: =TestYear -> 2021
B16: Historical Year | C16: Historical Year | D16: Historical Year | E16: Historical Year | F16: Bridge Year | G16: Test Year
A17: Distribution Expenses - Operation & Maintenance | B17: =(7362820)+B34+B36+B39 -> 10318100.8 | C17: =(5949887+1608420)+C34+C36+C39 -> 10378565.56 | D17: =(6021920.62+1963196)+D34+D36+D39 -> 10498643.81 | E17: =(6269001+1497703)+E34+E36+E39 -> 10409671.1 | F17: =(6039716.62+1867332)+F34+F36+F39 -> 10487222.1 | G17: =(6310420.62+1903411)+G34+G36+G39 -> 10857286.88
A18: Billing and Collecting | B18: 2728245 | C18: 2823342 | D18: 3100765.21 | E18: 2966160 | F18: 3008184 | G18: 3137007
A19: Community Relations | B19: 104616 | C19: 129492 | D19: 200330.21 | E19: 244189 | F19: 347738 | G19: 508564
A20: Administrative and General Expenses | B20: 2584121 | C20: 3054726.8 | D20: 3222494.28 | E20: 3482548 | F20: 3778757.501 | G20: 3869654
A27: Total OM&A Before Capitalization (B) | B27: =SUM(B17:B26) -> 15735082.8 | C27: 16386126.36 | D27: 17022233.51 | E27: 17102568.1 | F27: 17621901.6 | G27: 18372511.88
A29: Applicants are to provide a breakdown of capitalized OM&A in the below table. Capitalized OM&A may be broken down using the categories listed in the table below if possible. Otherwise, applicants are to provide its own break down of capitalized OM&A.
A31: Capitalized OM&A | H31: Directly | I31: Explanation for Change in Overhead Capitalized
B32: =F32-4 -> 2016 | C32: =G32-4 -> 2017 | D32: =G32-3 -> 2018 | E32: =G32-2 -> 2019 | F32: =G32-1 -> 2020 | G32: =TestYear -> 2021 | H32: Attributable?
B33: Historical Year | C33: Historical Year | D33: Historical Year | E33: Historical Year | F33: Bridge Year | G33: Test Year | H33: (Yes/No)
A34: employee benefits | B34: 1592810.8 | C34: 1489558.79 | D34: 1410750.16 | E34: 1476294.52 | F34: 1332880 | G34: 1419210 | H34: Yes | I34: Directly attributable to labour costs charged to capital
A35: costs of site preparation
A36: initial delivery and handling costs | B36: 155683 | C36: 153818.44 | D36: 146600.96 | E36: 152637.57 | F36: 148000 | G36: 129000 | H36: Yes | I36: Directly attributable to labour & equipment costs charged to capital
A37: costs of testing whether the asset is functioning properly
A38: professional fees
B39: 1206787 | C39: =1039624+137257.33 -> 1176881.33 | D39: =1120441.25-164265.18 -> 956176.07 | E39: =1253797.25-239762.24 -> 1014035.01 | F39: 1099293.48 | G39: 1095245.26 | H39: Yes | I39: Directly attributable to labour & equipment costs charged to capital
A40: costs of opening a new facility
A41: costs of introducing a new product or service (including costs of advertising and promotional activities)
A42: costs of conducting business in a new location or with a new class of customer (including costs of staff training)
A43: administration and other general overhead costs
A45: Insert description of additional item(s) and new rows if needed
A47: Total Capitalized OM&A (A) | B47: =SUM(B34:B46) -> 2955280.8 | C47: 2820258.56 | D47: 2513527.19 | E47: 2642967.1 | F47: 2580173.48 | G47: 2643455.26
A49: % of Capitalized OM&A (=A/B) | B49: =IF(ISERROR(B47/B27),"0%",B47/B27) -> 0.18781476 | C49: 0.1721125846 | D49: 0.1476614211 | E49: 0.1545362711 | F49: 0.1464185613 | G49: 0.1438809934

Sheet App.2-EA_Account 1575 (2015) (hidden)
H1: File Number: | I1: =EBNUMBER -> EB-2020-0059
H2: Exhibit:
H3: Tab:
H4: Schedule:
H5: Page:
H7: Date:
A9: Appendix 2-EA
A10: Account 1575 - IFRS-CGAAP Transitional PP&E Amounts
A11: 2015 Adopters of IFRS for Financial Reporting Purposes
A13: For applicants that adopted IFRS on January 1, 2015 for financial reporting purposes
B17: 2014 | C17: =TestYear-3 -> 2018 | D17: =TestYear-2 -> 2019 | E17: =CONCATENATE(TestYear-1," Bridge Year") -> 2020 Bridge Year | F17: =CONCATENATE(TestYear," Rebasing Year") -> 2021 Rebasing Year
A18: Reporting Basis | B18: CGAAP | C18: CGAAP | D18: CGAAP | E18: MIFRS | F18: MIFRS
B19: Actual | C19: Actual | D19: Actual | E19: Forecast | F19: Forecast
D20: $ | E20: $
A21: PP&E Values under CGAAP
A22: Opening net PP&E - Note 1 | C22: =+B25 -> 0 | D22: =+C25 -> 0 | E22: =+D25 -> 0
A23: Net Additions - Note 4
A24: Net Depreciation (amounts should be negative) - Note 4
A25: Closing net PP&E (1) | B25: =SUM(B22:B24) -> 0 | C25: =SUM(C22:C24) -> 0 | D25: =SUM(D22:D24) -> 0 | E25: =SUM(E22:E24) -> 0
A27: PP&E Values under MIFRS (Starts from 2014, the transition year)
A28: Opening net PP&E - Note 1 | C28: =+B31 -> 0 | D28: =+C31 -> 0 | E28: =+D31 -> 0
A29: Net Additions - Note 4
A30: Net Depreciation (amounts should be negative) - Note 4
A31: Closing net PP&E (2) | B31: =SUM(B28:B30) -> 0 | C31: =SUM(C28:C30) -> 0 | D31: =SUM(D28:D30) -> 0 | E31: =SUM(E28:E30) -> 0
A33: Difference in Closing net PP&E, former CGAAP vs. revised CGAAP | B33: =B25-B31 -> 0 | C33: =C25-C31 -> 0 | D33: =D25-D31 -> 0 | E33: =E25-E31 -> 0
A36: Effect on Deferral and Variance Account Rate Riders
A37: Closing balance in Account 1575 | F37: =IF(ISERROR(E33), 0, E33) -> 0 | H37: WACC
A38: Return on Rate Base Associated with Account 1575 balance at WACC - Note 2 | F38: =E33*I37*I38 -> 0 | G38: # of years of rate rider disposition period
A39: Amount included in Deferral and Variance Account Rate Rider Calculation | F39: =F37+F38 -> 0
A41: Notes:
A42: 1 For an applicant that adopted IFRS on January 1, 2015, the PP&E values as of January 1, 2014 under both CGAAP and MIFRS should be the same.
A43: 2 Return on rate base associated with deferred balance is calculated as:
A44: the deferral account closing balance as of 2017 x WACC X # of years of rate rider disposition period
A45: * Please note that the calculation should be adjusted once WACC is updated and finalized in the rate application.
A46: 3 The PP&E deferral account is cleared by including the total balance in the deferral and variance account rate rider calculation.
A47: 4 Net additions are additions net of disposals; Net depreciation is additions to depreciation net of disposals.

Sheet App.2-EB_Account 1576 (2012) (hidden)
K1: File Number: | L1: =EBNUMBER -> EB-2020-0059
K2: Exhibit:
K3: Tab:
K4: Schedule:
K5: Page:
K7: Date:
A9: Appendix 2-EB
A10: Account 1576 - Accounting Changes under CGAAP
A11: 2012 Changes in Accounting Policies under CGAAP
A13: For applicants with a balance in Account 1576 and made capitalization and depreciation expense accounting policy changes under CGAAP effective January 1, 2012. This is the first time the applicant is rebasing with changes in these accounting policies.
B17: Prior Years Rebasing | C17: 2012 | D17: 2013 | E17: 2014 | F17: 2015 | G17: 2016 | H17: 2017 | I17: 2018 Rebasing Year
A18: Reporting Basis | B18: CGAAP | C18: CGAAP | D18: CGAAP | E18: CGAAP | F18: MIFRS - Note 5 | G18: MIFRS | H18: MIFRS | I18: MIFRS
B19: Forecast | C19: Actual | D19: Actual | E19: Actual | F19: Actual | G19: Actual | H19: Forecast | I19: Forecast
C20: $ | D20: $ | E20: $ | F20: $ | G20: $ | H20: $
A21: PP&E Values under former CGAAP
A22: Opening net PP&E - Note 1 | D22: =+C25 -> 0 | E22: =+D25 -> 0 | F22: =+E25 -> 0 | G22: =+F25 -> 0 | H22: =+G25 -> 0
A23: Net Additions - Note 4
A24: Net Depreciation (amounts should be negative) - Note 4
A25: Closing net PP&E (1) | C25: =C22+C23+C24 -> 0 | D25: 0 | E25: 0 | F25: 0 | G25: 0 | H25: 0
A27: PP&E Values under revised CGAAP (Starts from 2012)
A28: Opening net PP&E - Note 1 | D28: =+C31 -> 0 | E28: =+D31 -> 0 | F28: =+E31 -> 0 | G28: =+F31 -> 0 | H28: =+G31 -> 0
A29: Net Additions - Note 4
A30: Net Depreciation (amounts should be negative) - Note 4
A31: Closing net PP&E (2) | C31: =SUM(C28:C30) -> 0 | D31: 0 | E31: 0 | F31: 0 | G31: 0 | H31: 0
A33: Difference in Closing net PP&E, former CGAAP vs. revised CGAAP | C33: =C25-C31 -> 0 | D33: 0 | E33: 0 | F33: 0 | G33: 0 | H33: 0
A36: Effect on Deferral and Variance Account Rate Riders
A37: Closing balance in Account 1576 | I37: =IF(ISERROR(H33), 0, H33) -> 0 | K37: WACC
A38: Return on Rate Base Associated with Account 1576 balance at WACC - Note 2 | I38: =H33*L37*L38 -> 0 | J38: # of years of rate rider disposition period
A39: Amount included in Deferral and Variance Account Rate Rider Calculation | I39: =I37+I38 -> 0
A41: Notes:
A42: 1 For an applicant that made the capitalization and depreciation expense accounting policy changes on January 1, 2012, the PP&E values as of January 1, 2012 under both former CGAAP and revised CGAAP should be the same.
A43: 2 Return on rate base associated with Account 1576 balance is calculated as:
A44: the variance account ending balance as of 2017 x WACC X # of years of rate rider disposition period
A45: * Please note that the calculation should be adjusted once WACC is updated and finalized in the rate application.
A46: 3 Account 1576 is cleared by including the total balance in the deferral and variance account rate rider calculation.
A47: 4 Net additions are additions net of disposals; Net depreciation is additions to depreciation net of disposals.
A48: 5 Differences due to the adoption of MIFRS are to be shown separately in Account 1575 in Appendix 2-EA as Accounts 1575 and 1576 cannot be used interchangably.

Sheet App.2-EC_Account 1576 (2013) (hidden)
J1: File Number: | K1: =EBNUMBER -> EB-2020-0059
J2: Exhibit:
J3: Tab:
J4: Schedule:
J5: Page:
J7: Date:
A9: Appendix 2-EC
A10: Account 1576 - Accounting Changes under CGAAP
A11: 2013 Changes in Accounting Policies under CGAAP
A13: For applicants with a balance in Account 1576 and made capitalization and depreciation expense accounting policy changes under CGAAP effective January 1, 2013. This is the first time the applicant is rebasing with changes in these accounting policies.
B17: Prior Years Rebasing | C17: 2013 | D17: 2014 | E17: 2015 | F17: 2016 | G17: 2017 | H17: 2018 Rebasing Year
A18: Reporting Basis | B18: CGAAP | C18: CGAAP | D18: CGAAP | E18: MIFRS - Note 5 | F18: MIFRS | G18: MIFRS | H18: MIFRS
B19: Actual | C19: Actual | D19: Actual | E19: Actual | F19: Actual | G19: Forecast | H19: Forecast
C20: $ | D20: $ | F20: $
A21: PP&E Values under former CGAAP
A22: Opening net PP&E - Note 1 | D22: =+C25 -> 0 | E22: =+D25 -> 0 | F22: =+E25 -> 0 | G22: =+F25 -> 0
A23: Net Additions - Note 4
A24: Net Depreciation (amounts should be negative) - Note 4
A25: Closing net PP&E (1) | C25: =C22+C23+C24 -> 0 | D25: =D22+D23+D24 -> 0 | E25: =E22+E23+E24 -> 0 | F25: =F22+F23+F24 -> 0 | G25: =G22+G23+G24 -> 0
A27: PP&E Values under revised CGAAP (Starts from 2012)
A28: Opening net PP&E - Note 1 | D28: =+C31 -> 0 | E28: =+D31 -> 0 | F28: =+E31 -> 0 | G28: =+F31 -> 0
A29: Net Additions - Note 4
A30: Net Depreciation (amounts should be negative) - Note 4
A31: Closing net PP&E (2) | C31: =SUM(C28:C30) -> 0 | D31: =SUM(D28:D30) -> 0 | E31: =SUM(E28:E30) -> 0 | F31: =SUM(F28:F30) -> 0 | G31: =SUM(G28:G30) -> 0
A33: Difference in Closing net PP&E, former CGAAP vs. revised CGAAP | C33: =C25-C31 -> 0 | D33: =D25-D31 -> 0 | E33: =E25-E31 -> 0 | F33: =F25-F31 -> 0 | G33: =G25-G31 -> 0
A36: Effect on Deferral and Variance Account Rate Riders
A37: Closing balance in Account 1576 | H37: =IF(ISERROR(G33), 0, G33) -> 0 | J37: WACC
A38: Return on Rate Base Associated with Account 1576 balance at WACC - Note 2 | H38: =G33*K37*K38 -> 0 | I38: # of years of rate rider disposition period
A39: Amount included in Deferral and Variance Account Rate Rider Calculation | H39: =H37+H38 -> 0
A41: Notes:
A42: 1 For an applicant that made the capitalization and depreciation expense accounting policy changes on January 1, 2013, the PP&E values as of January 1, 2013 under both former CGAAP and revised CGAAP should be the same.
A43: 2 Return on rate base associated with Account 1576 balance is calculated as:
A44: the variance account ending balance as of 2017 x WACC X # of years of rate rider disposition period
A45: * Please note that the calculation should be adjusted once WACC is updated and finalized in the rate application.
A46: 3 Account 1576 is cleared by including the total balance in the deferral and variance account rate rider calculation.
A47: 4 Net additions are additions net of disposals; Net depreciation is additions to depreciation net of disposals.
A48: 5 Differences due to the adoption of MIFRS are to be shown separately in Account 1575 in Appendix 2-EA as Accounts 1575 and 1576 cannot be used interchangably.

Sheet Hidden_REG Invest. (hidden)
A1: Utility Name | B1: EB Number | C1: Test Year | D1: Bridge Year | E1: Last Rebasing Year | F1: Renewable Generation Connection Investment Summary | G1: Year | H1: Amount
A2: ='LDC Info'!$E$14 -> Waterloo North Hydro Inc. | B2: =EBNUMBER -> EB-2020-0059 | C2: =TestYear -> 2021 | D2: =BridgeYear -> 2020 | E2: =RebaseYear -> 2016 | F2: REI Investments_A_Total Capital Costs | G2: =#REF! ->  | H2: =#REF! -> 
A3: ='LDC Info'!$E$14 -> Waterloo North Hydro Inc. | B3: EB-2020-0059 | C3: 2021 | D3: 2020 | E3: 2016 | F3: REI Investments_A_Total OM&A Start-Up | G3: =#REF! ->  | H3: =#REF! -> 
A4: ='LDC Info'!$E$14 -> Waterloo North Hydro Inc. | B4: EB-2020-0059 | C4: 2021 | D4: 2020 | E4: 2016 | F4: REI Investments_A_Total OM&A Ongoing | G4: =#REF! ->  | H4: =#REF! -> 
A5: ='LDC Info'!$E$14 -> Waterloo North Hydro Inc. | B5: EB-2020-0059 | C5: 2021 | D5: 2020 | E5: 2016 | F5: REI Investments_A_Total Capital Costs | G5: =#REF! ->  | H5: =#REF! -> 
A6: ='LDC Info'!$E$14 -> Waterloo North Hydro Inc. | B6: EB-2020-0059 | C6: 2021 | D6: 2020 | E6: 2016 | F6: REI Investments_A_Total OM&A Start-Up | G6: =#REF! ->  | H6: =#REF! -> 
A7: ='LDC Info'!$E$14 -> Waterloo North Hydro Inc. | B7: EB-2020-0059 | C7: 2021 | D7: 2020 | E7: 2016 | F7: REI Investments_A_Total OM&A Ongoing | G7: =#REF! ->  | H7: =#REF! -> 
A8: ='LDC Info'!$E$14 -> Waterloo North Hydro Inc. | B8: EB-2020-0059 | C8: 2021 | D8: 2020 | E8: 2016 | F8: REI Investments_A_Total Capital Costs | G8: =#REF! ->  | H8: =#REF! -> 
A9: ='LDC Info'!$E$14 -> Waterloo North Hydro Inc. | B9: EB-2020-0059 | C9: 2021 | D9: 2020 | E9: 2016 | F9: REI Investments_A_Total OM&A Start-Up | G9: =#REF! ->  | H9: =#REF! -> 
A10: ='LDC Info'!$E$14 -> Waterloo North Hydro Inc. | B10: EB-2020-0059 | C10: 2021 | D10: 2020 | E10: 2016 | F10: REI Investments_A_Total OM&A Ongoing | G10: =#REF! ->  | H10: =#REF! -> 
A11: ='LDC Info'!$E$14 -> Waterloo North Hydro Inc. | B11: EB-2020-0059 | C11: 2021 | D11: 2020 | E11: 2016 | F11: REI Investments_A_Total Capital Costs | G11: =#REF! ->  | H11: =#REF! -> 
A12: ='LDC Info'!$E$14 -> Waterloo North Hydro Inc. | B12: EB-2020-0059 | C12: 2021 | D12: 2020 | E12: 2016 | F12: REI Investments_A_Total OM&A Start-Up | G12: =#REF! ->  | H12: =#REF! -> 
A13: ='LDC Info'!$E$14 -> Waterloo North Hydro Inc. | B13: EB-2020-0059 | C13: 2021 | D13: 2020 | E13: 2016 | F13: REI Investments_A_Total OM&A Ongoing | G13: =#REF! ->  | H13: =#REF! -> 
A14: ='LDC Info'!$E$14 -> Waterloo North Hydro Inc. | B14: EB-2020-0059 | C14: 2021 | D14: 2020 | E14: 2016 | F14: REI Investments_A_Total Capital Costs | G14: =#REF! ->  | H14: =#REF! -> 
A15: ='LDC Info'!$E$14 -> Waterloo North Hydro Inc. | B15: EB-2020-0059 | C15: 2021 | D15: 2020 | E15: 2016 | F15: REI Investments_A_Total OM&A Start-Up | G15: =#REF! ->  | H15: =#REF! -> 
A16: ='LDC Info'!$E$14 -> Waterloo North Hydro Inc. | B16: EB-2020-0059 | C16: 2021 | D16: 2020 | E16: 2016 | F16: REI Investments_A_Total OM&A Ongoing | G16: =#REF! ->  | H16: =#REF! -> 
A17: ='LDC Info'!$E$14 -> Waterloo North Hydro Inc. | B17: EB-2020-0059 | C17: 2021 | D17: 2020 | E17: 2016 | F17: REI Investments_A_Total Capital Costs | G17: =#REF! ->  | H17: =#REF! -> 
A18: ='LDC Info'!$E$14 -> Waterloo North Hydro Inc. | B18: EB-2020-0059 | C18: 2021 | D18: 2020 | E18: 2016 | F18: REI Investments_A_Total OM&A Start-Up | G18: =#REF! ->  | H18: =#REF! -> 
A19: ='LDC Info'!$E$14 -> Waterloo North Hydro Inc. | B19: EB-2020-0059 | C19: 2021 | D19: 2020 | E19: 2016 | F19: REI Investments_A_Total OM&A Ongoing | G19: =#REF! ->  | H19: =#REF! -> 
A20: ='LDC Info'!$E$14 -> Waterloo North Hydro Inc. | B20: EB-2020-0059 | C20: 2021 | D20: 2020 | E20: 2016 | F20: REI Investments_A_Total Capital Costs | G20: =#REF! ->  | H20: =#REF! -> 
A21: ='LDC Info'!$E$14 -> Waterloo North Hydro Inc. | B21: EB-2020-0059 | C21: 2021 | D21: 2020 | E21: 2016 | F21: REI Investments_A_Total OM&A Start-Up | G21: =#REF! ->  | H21: =#REF! -> 
A22: ='LDC Info'!$E$14 -> Waterloo North Hydro Inc. | B22: EB-2020-0059 | C22: 2021 | D22: 2020 | E22: 2016 | F22: REI Investments_A_Total OM&A Ongoing | G22: =#REF! ->  | H22: =#REF! -> 
A23: ='LDC Info'!$E$14 -> Waterloo North Hydro Inc. | B23: EB-2020-0059 | C23: 2021 | D23: 2020 | E23: 2016 | F23: REI Investments_A_Total Capital Costs | G23: =#REF! ->  | H23: =#REF! -> 
A24: ='LDC Info'!$E$14 -> Waterloo North Hydro Inc. | B24: EB-2020-0059 | C24: 2021 | D24: 2020 | E24: 2016 | F24: REI Investments_A_Total OM&A Start-Up | G24: =#REF! ->  | H24: =#REF! -> 
A25: ='LDC Info'!$E$14 -> Waterloo North Hydro Inc. | B25: EB-2020-0059 | C25: 2021 | D25: 2020 | E25: 2016 | F25: REI Investments_A_Total OM&A Ongoing | G25: =#REF! ->  | H25: =#REF! -> 
A26: ='LDC Info'!$E$14 -> Waterloo North Hydro Inc. | B26: EB-2020-0059 | C26: 2021 | D26: 2020 | E26: 2016 | F26: REI Investments_A_Total Capital Costs | G26: =#REF! ->  | H26: =#REF! -> 
A27: ='LDC Info'!$E$14 -> Waterloo North Hydro Inc. | B27: EB-2020-0059 | C27: 2021 | D27: 2020 | E27: 2016 | F27: REI Investments_A_Total OM&A Start-Up | G27: =#REF! ->  | H27: =#REF! -> 
A28: ='LDC Info'!$E$14 -> Waterloo North Hydro Inc. | B28: EB-2020-0059 | C28: 2021 | D28: 2020 | E28: 2016 | F28: REI Investments_A_Total OM&A Ongoing | G28: =#REF! ->  | H28: =#REF! -> 
A29: ='LDC Info'!$E$14 -> Waterloo North Hydro Inc. | B29: EB-2020-0059 | C29: 2021 | D29: 2020 | E29: 2016 | F29: REI Investments_A_Total Capital Costs | G29: =#REF! ->  | H29: =#REF! -> 
A30: ='LDC Info'!$E$14 -> Waterloo North Hydro Inc. | B30: EB-2020-0059 | C30: 2021 | D30: 2020 | E30: 2016 | F30: REI Investments_A_Total OM&A Start-Up | G30: =#REF! ->  | H30: =#REF! -> 
A31: ='LDC Info'!$E$14 -> Waterloo North Hydro Inc. | B31: EB-2020-0059 | C31: 2021 | D31: 2020 | E31: 2016 | F31: REI Investments_A_Total OM&A Ongoing | G31: =#REF! ->  | H31: =#REF! -> 
A32: ='LDC Info'!$E$14 -> Waterloo North Hydro Inc. | B32: EB-2020-0059 | C32: 2021 | D32: 2020 | E32: 2016 | F32: Expansion Investments_B_Total Capital Costs | G32: =#REF! ->  | H32: =#REF! -> 
A33: ='LDC Info'!$E$14 -> Waterloo North Hydro Inc. | B33: EB-2020-0059 | C33: 2021 | D33: 2020 | E33: 2016 | F33: Expansion Investments_B_Total OM&A Start-Up | G33: =#REF! ->  | H33: =#REF! -> 
A34: ='LDC Info'!$E$14 -> Waterloo North Hydro Inc. | B34: EB-2020-0059 | C34: 2021 | D34: 2020 | E34: 2016 | F34: Expansion Investments_B_Total OM&A Ongoing | G34: =#REF! ->  | H34: =#REF! -> 
A35: ='LDC Info'!$E$14 -> Waterloo North Hydro Inc. | B35: EB-2020-0059 | C35: 2021 | D35: 2020 | E35: 2016 | F35: Expansion Investments_B_Total Capital Costs | G35: =#REF! ->  | H35: =#REF! -> 
A36: ='LDC Info'!$E$14 -> Waterloo North Hydro Inc. | B36: EB-2020-0059 | C36: 2021 | D36: 2020 | E36: 2016 | F36: Expansion Investments_B_Total OM&A Start-Up | G36: =#REF! ->  | H36: =#REF! -> 
A37: ='LDC Info'!$E$14 -> Waterloo North Hydro Inc. | B37: EB-2020-0059 | C37: 2021 | D37: 2020 | E37: 2016 | F37: Expansion Investments_B_Total OM&A Ongoing | G37: =#REF! ->  | H37: =#REF! -> 
A38: ='LDC Info'!$E$14 -> Waterloo North Hydro Inc. | B38: EB-2020-0059 | C38: 2021 | D38: 2020 | E38: 2016 | F38: Expansion Investments_B_Total Capital Costs | G38: =#REF! ->  | H38: =#REF! -> 
A39: ='LDC Info'!$E$14 -> Waterloo North Hydro Inc. | B39: EB-2020-0059 | C39: 2021 | D39: 2020 | E39: 2016 | F39: Expansion Investments_B_Total OM&A Start-Up | G39: =#REF! ->  | H39: =#REF! -> 
A40: ='LDC Info'!$E$14 -> Waterloo North Hydro Inc. | B40: EB-2020-0059 | C40: 2021 | D40: 2020 | E40: 2016 | F40: Expansion Investments_B_Total OM&A Ongoing | G40: =#REF! ->  | H40: =#REF! -> 
A41: ='LDC Info'!$E$14 -> Waterloo North Hydro Inc. | B41: EB-2020-0059 | C41: 2021 | D41: 2020 | E41: 2016 | F41: Expansion Investments_B_Total Capital Costs | G41: =#REF! ->  | H41: =#REF! -> 
A42: ='LDC Info'!$E$14 -> Waterloo North Hydro Inc. | B42: EB-2020-0059 | C42: 2021 | D42: 2020 | E42: 2016 | F42: Expansion Investments_B_Total OM&A Start-Up | G42: =#REF! ->  | H42: =#REF! -> 
A43: ='LDC Info'!$E$14 -> Waterloo North Hydro Inc. | B43: EB-2020-0059 | C43: 2021 | D43: 2020 | E43: 2016 | F43: Expansion Investments_B_Total OM&A Ongoing | G43: =#REF! ->  | H43: =#REF! -> 
A44: ='LDC Info'!$E$14 -> Waterloo North Hydro Inc. | B44: EB-2020-0059 | C44: 2021 | D44: 2020 | E44: 2016 | F44: Expansion Investments_B_Total Capital Costs | G44: =#REF! ->  | H44: =#REF! -> 
A45: ='LDC Info'!$E$14 -> Waterloo North Hydro Inc. | B45: EB-2020-0059 | C45: 2021 | D45: 2020 | E45: 2016 | F45: Expansion Investments_B_Total OM&A Start-Up | G45: =#REF! ->  | H45: =#REF! -> 
A46: ='LDC Info'!$E$14 -> Waterloo North Hydro Inc. | B46: EB-2020-0059 | C46: 2021 | D46: 2020 | E46: 2016 | F46: Expansion Investments_B_Total OM&A Ongoing | G46: =#REF! ->  | H46: =#REF! -> 
A47: ='LDC Info'!$E$14 -> Waterloo North Hydro Inc. | B47: EB-2020-0059 | C47: 2021 | D47: 2020 | E47: 2016 | F47: Expansion Investments_B_Total Capital Costs | G47: =#REF! ->  | H47: =#REF! -> 
A48: ='LDC Info'!$E$14 -> Waterloo North Hydro Inc. | B48: EB-2020-0059 | C48: 2021 | D48: 2020 | E48: 2016 | F48: Expansion Investments_B_Total OM&A Start-Up | G48: =#REF! ->  | H48: =#REF! -> 
A49: ='LDC Info'!$E$14 -> Waterloo North Hydro Inc. | B49: EB-2020-0059 | C49: 2021 | D49: 2020 | E49: 2016 | F49: Expansion Investments_B_Total OM&A Ongoing | G49: =#REF! ->  | H49: =#REF! -> 
A50: ='LDC Info'!$E$14 -> Waterloo North Hydro Inc. | B50: EB-2020-0059 | C50: 2021 | D50: 2020 | E50: 2016 | F50: Expansion Investments_B_Total Capital Costs | G50: =#REF! ->  | H50: =#REF! -> 
A51: ='LDC Info'!$E$14 -> Waterloo North Hydro Inc. | B51: EB-2020-0059 | C51: 2021 | D51: 2020 | E51: 2016 | F51: Expansion Investments_B_Total OM&A Start-Up | G51: =#REF! ->  | H51: =#REF! -> 
A52: ='LDC Info'!$E$14 -> Waterloo North Hydro Inc. | B52: EB-2020-0059 | C52: 2021 | D52: 2020 | E52: 2016 | F52: Expansion Investments_B_Total OM&A Ongoing | G52: =#REF! ->  | H52: =#REF! -> 
A53: ='LDC Info'!$E$14 -> Waterloo North Hydro Inc. | B53: EB-2020-0059 | C53: 2021 | D53: 2020 | E53: 2016 | F53: Expansion Investments_B_Total Capital Costs | G53: =#REF! ->  | H53: =#REF! -> 
A54: ='LDC Info'!$E$14 -> Waterloo North Hydro Inc. | B54: EB-2020-0059 | C54: 2021 | D54: 2020 | E54: 2016 | F54: Expansion Investments_B_Total OM&A Start-Up | G54: =#REF! ->  | H54: =#REF! -> 
A55: ='LDC Info'!$E$14 -> Waterloo North Hydro Inc. | B55: EB-2020-0059 | C55: 2021 | D55: 2020 | E55: 2016 | F55: Expansion Investments_B_Total OM&A Ongoing | G55: =#REF! ->  | H55: =#REF! -> 
A56: ='LDC Info'!$E$14 -> Waterloo North Hydro Inc. | B56: EB-2020-0059 | C56: 2021 | D56: 2020 | E56: 2016 | F56: Expansion Investments_B_Total Capital Costs | G56: =#REF! ->  | H56: =#REF! -> 
A57: ='LDC Info'!$E$14 -> Waterloo North Hydro Inc. | B57: EB-2020-0059 | C57: 2021 | D57: 2020 | E57: 2016 | F57: Expansion Investments_B_Total OM&A Start-Up | G57: =#REF! ->  | H57: =#REF! -> 
A58: ='LDC Info'!$E$14 -> Waterloo North Hydro Inc. | B58: EB-2020-0059 | C58: 2021 | D58: 2020 | E58: 2016 | F58: Expansion Investments_B_Total OM&A Ongoing | G58: =#REF! ->  | H58: =#REF! -> 
A59: ='LDC Info'!$E$14 -> Waterloo North Hydro Inc. | B59: EB-2020-0059 | C59: 2021 | D59: 2020 | E59: 2016 | F59: Expansion Investments_B_Total Capital Costs | G59: =#REF! ->  | H59: =#REF! -> 
A60: ='LDC Info'!$E$14 -> Waterloo North Hydro Inc. | B60: EB-2020-0059 | C60: 2021 | D60: 2020 | E60: 2016 | F60: Expansion Investments_B_Total OM&A Start-Up | G60: =#REF! ->  | H60: =#REF! -> 
A61: ='LDC Info'!$E$14 -> Waterloo North Hydro Inc. | B61: EB-2020-0059 | C61: 2021 | D61: 2020 | E61: 2016 | F61: Expansion Investments_B_Total OM&A Ongoing | G61: =#REF! ->  | H61: =#REF! -> 

Sheet Hidden_REG Improvement (hidden)
A1: Utility Name | B1: EB Number | C1: Test Year | D1: Bridge Year | E1: Last Rebasing Year | F1: Renewable Generation Connection Direct Benefits/Provincial Amount Renewable Enabling Improvement Investments | G1: Year | H1: Amount
A2: ='LDC Info'!$E$14 -> Waterloo North Hydro Inc. | B2: =EBNUMBER -> EB-2020-0059 | C2: =TestYear -> 2021 | D2: =BridgeYear -> 2020 | E2: =RebaseYear -> 2016 | F2: Provincial Rate Protection | G2: =#REF! ->  | H2: =#REF! -> 
A3: ='LDC Info'!$E$14 -> Waterloo North Hydro Inc. | B3: EB-2020-0059 | C3: 2021 | D3: 2020 | E3: 2016 | F3: Provincial Rate Protection | G3: =#REF! ->  | H3: =#REF! -> 
A4: ='LDC Info'!$E$14 -> Waterloo North Hydro Inc. | B4: EB-2020-0059 | C4: 2021 | D4: 2020 | E4: 2016 | F4: Provincial Rate Protection | G4: =#REF! ->  | H4: =#REF! -> 
A5: ='LDC Info'!$E$14 -> Waterloo North Hydro Inc. | B5: EB-2020-0059 | C5: 2021 | D5: 2020 | E5: 2016 | F5: Provincial Rate Protection | G5: =#REF! ->  | H5: =#REF! -> 
A6: ='LDC Info'!$E$14 -> Waterloo North Hydro Inc. | B6: EB-2020-0059 | C6: 2021 | D6: 2020 | E6: 2016 | F6: Provincial Rate Protection | G6: =#REF! ->  | H6: =#REF! -> 
A7: ='LDC Info'!$E$14 -> Waterloo North Hydro Inc. | B7: EB-2020-0059 | C7: 2021 | D7: 2020 | E7: 2016 | F7: Provincial Rate Protection | G7: =LEFT(#REF!,4) ->  | H7: =#REF! -> 
A8: ='LDC Info'!$E$14 -> Waterloo North Hydro Inc. | B8: EB-2020-0059 | C8: 2021 | D8: 2020 | E8: 2016 | F8: Provincial Rate Protection | G8: =#REF! ->  | H8: =#REF! -> 
A9: ='LDC Info'!$E$14 -> Waterloo North Hydro Inc. | B9: EB-2020-0059 | C9: 2021 | D9: 2020 | E9: 2016 | F9: Provincial Rate Protection | G9: =#REF! ->  | H9: =#REF! -> 
A10: ='LDC Info'!$E$14 -> Waterloo North Hydro Inc. | B10: EB-2020-0059 | C10: 2021 | D10: 2020 | E10: 2016 | F10: Provincial Rate Protection | G10: =#REF! ->  | H10: =#REF! -> 
A11: ='LDC Info'!$E$14 -> Waterloo North Hydro Inc. | B11: EB-2020-0059 | C11: 2021 | D11: 2020 | E11: 2016 | F11: Provincial Rate Protection | G11: =#REF! ->  | H11: =#REF! -> 

Sheet Hidden_REG Expansion (hidden)
A1: Utility Name | B1: EB Number | C1: Test Year | D1: Bridge Year | E1: Last Rebasing Year | F1: Calculation of Renewable Generation Connection Direct Benefits/Provincial Amount Renewable Expansion Investments | G1: Year | H1: Amount
A2: ='LDC Info'!$E$14 -> Waterloo North Hydro Inc. | B2: =EBNUMBER -> EB-2020-0059 | C2: =TestYear -> 2021 | D2: =BridgeYear -> 2020 | E2: =RebaseYear -> 2016 | F2: Provincial Rate Protection | G2: =#REF! ->  | H2: =#REF! -> 
A3: ='LDC Info'!$E$14 -> Waterloo North Hydro Inc. | B3: EB-2020-0059 | C3: 2021 | D3: 2020 | E3: 2016 | F3: Provincial Rate Protection | G3: =#REF! ->  | H3: =#REF! -> 
A4: ='LDC Info'!$E$14 -> Waterloo North Hydro Inc. | B4: EB-2020-0059 | C4: 2021 | D4: 2020 | E4: 2016 | F4: Provincial Rate Protection | G4: =#REF! ->  | H4: =#REF! -> 
A5: ='LDC Info'!$E$14 -> Waterloo North Hydro Inc. | B5: EB-2020-0059 | C5: 2021 | D5: 2020 | E5: 2016 | F5: Provincial Rate Protection | G5: =#REF! ->  | H5: =#REF! -> 
A6: ='LDC Info'!$E$14 -> Waterloo North Hydro Inc. | B6: EB-2020-0059 | C6: 2021 | D6: 2020 | E6: 2016 | F6: Provincial Rate Protection | G6: =#REF! ->  | H6: =#REF! -> 
A7: ='LDC Info'!$E$14 -> Waterloo North Hydro Inc. | B7: EB-2020-0059 | C7: 2021 | D7: 2020 | E7: 2016 | F7: Provincial Rate Protection | G7: =LEFT(#REF!,4) ->  | H7: =#REF! -> 
A8: ='LDC Info'!$E$14 -> Waterloo North Hydro Inc. | B8: EB-2020-0059 | C8: 2021 | D8: 2020 | E8: 2016 | F8: Provincial Rate Protection | G8: =#REF! ->  | H8: =#REF! -> 
A9: ='LDC Info'!$E$14 -> Waterloo North Hydro Inc. | B9: EB-2020-0059 | C9: 2021 | D9: 2020 | E9: 2016 | F9: Provincial Rate Protection | G9: =#REF! ->  | H9: =#REF! -> 
A10: ='LDC Info'!$E$14 -> Waterloo North Hydro Inc. | B10: EB-2020-0059 | C10: 2021 | D10: 2020 | E10: 2016 | F10: Provincial Rate Protection | G10: =#REF! ->  | H10: =#REF! -> 
A11: ='LDC Info'!$E$14 -> Waterloo North Hydro Inc. | B11: EB-2020-0059 | C11: 2021 | D11: 2020 | E11: 2016 | F11: Provincial Rate Protection | G11: =#REF! ->  | H11: =#REF! -> 

Sheet App.2-FA Proposed REG Invest.
K1: File Number: | L1: 0
K2: Exhibit:
K3: Tab:
A4: TO BE UPDATED AT DRAFT RATE ORDER STAGE | K4: Schedule:
K5: Page:
K7: Date:
A9: Appendix 2-FA
A10: Renewable Generation Connection Investment Summary (past investments or over the future rate setting period)
A12: Enter the details of the Renewable Generation Connection projects as described in the appropriate section of the Filing Requirements.
A13: All costs entered on this page will be transferred to the appropriate cells in the appendices that follow.
A14: For Part A, Renewable Enabling Improvements (REI), these amounts will be transferred to Appendix 2 - FB
A15: For Part B, Expansions, these amounts will be transferred to Appendix 2 - FC
A17: If there are more than five projects proposed to be in-service in a certain year, please amend the tables below and ensure that the formulae for the Total Amounts in any given rate year are updated.
A18: Based on the current methodology and allocation, amounts allocated represent 6% for REI Connection Investments and 17% for Expansion Investments. (EB-2009-0349, 6-10-2010, p. 15, note 9)
A19: Ensure that OM&A costs below are not included in Recoverable OM&A (App. 2-JA)
A20: There are two scenarios described below. Separate sets of spreadsheets (2-FA, 2-FB, 2-FC) should be submited for each scenario as required.
A21: Scenario 1: | B21: Past Investments with No Recovery. The distributor has made investments in the past (during the IRM Years), but has not received approval for these projects and therefore did not receive
B22: revenue from the IESO under Regulation 330/09 and did not receive ratepayer revenue for the direct benefit portion of the investment.
B23: The WCA percentage, debt percentages, interest rates, kWh, tax rates, amortization period, CCA Class and percentage should correspond to the distributor's last Cost of Service approval.
B24: The Direct Benefit portion of the calculated Revenue Requirement for each year should be summed and can be applied for recovery from the distributor's ratepayers through a rate rider.
B25: The Provincial Recovery portion of the calculated Revenue Requirement for each year should be summed and can be applied for recovery from the IESO through a separate order.
A27: Scenario 2: | B27: Investments in the Test Year and Beyond. Distributor plans to make investments in 2021 and/or beyond. These investments should be added to 2-FA in the appropriate year.
B28: The WCA percentage, debt percentages, interest rates, kWh, tax rates, amortization period, CCA Class and percentage should correspond to the distributor's current application.
A30: Part A | H30: Test Year
A31: REI Investments (Direct Benefit at 6%) | C31: =D31-1 -> 2016 | D31: =E31-1 -> 2017 | E31: =F31-1 -> 2018 | F31: =G31-1 -> 2019 | G31: =H31-1 -> 2020 | H31: ='LDC Info'!$E$24 -> 2021 | I31: =H31+1 -> 2022 | J31: =I31+1 -> 2023 | K31: =J31+1 -> 2024 | L31: =K31+1 -> 2025
A32: Project 1
A33: Name: REI Connection Project
A34: Capital Costs | C34: 0 | D34: 0 | E34: 0 | F34: 0 | G34: 0 | H34: 0 | I34: 0 | J34: 0 | K34: 0 | L34: 0
A35: OM&A (Start-Up) | C35: 0 | D35: 0 | E35: 0 | F35: 0 | G35: 0 | H35: 0 | I35: 0 | J35: 0 | K35: 0 | L35: 0
A36: OM&A (Ongoing) | C36: 0 | D36: 0 | E36: 0 | F36: 0 | G36: 0 | H36: 0 | I36: 0 | J36: 0 | K36: 0 | L36: 0
A38: Project 2
A39: Name: REI Connection Project
A40: Capital Costs | C40: 0 | D40: 0 | E40: 0 | F40: 0 | G40: 0 | H40: 0 | I40: 0 | J40: 0 | K40: 0 | L40: 0
A41: OM&A (Start-Up) | C41: 0 | D41: 0 | E41: 0 | F41: 0 | G41: 0 | H41: 0 | I41: 0 | J41: 0 | K41: 0 | L41: 0
A42: OM&A (Ongoing) | C42: 0 | D42: 0 | E42: 0 | F42: 0 | G42: 0 | H42: 0 | I42: 0 | J42: 0 | K42: 0 | L42: 0
A44: Project 3
A45: Name: REI Connection Project
A46: Capital Costs | C46: 0 | D46: 0 | E46: 0 | F46: 0 | G46: 0 | H46: 0 | I46: 0 | J46: 0 | K46: 0 | L46: 0
A47: OM&A (Start-Up) | C47: 0 | D47: 0 | E47: 0 | F47: 0 | G47: 0 | H47: 0 | I47: 0 | J47: 0 | K47: 0 | L47: 0
A48: OM&A (Ongoing) | C48: 0 | D48: 0 | E48: 0 | F48: 0 | G48: 0 | H48: 0 | I48: 0 | J48: 0 | K48: 0 | L48: 0
A50: Project 4
A51: Name: REI Connection Project
A52: Capital Costs | C52: 0 | D52: 0 | E52: 0 | F52: 0 | G52: 0 | H52: 0 | I52: 0 | J52: 0 | K52: 0 | L52: 0
A53: OM&A (Start-Up) | C53: 0 | D53: 0 | E53: 0 | F53: 0 | G53: 0 | H53: 0 | I53: 0 | J53: 0 | K53: 0 | L53: 0
A54: OM&A (Ongoing) | C54: 0 | D54: 0 | E54: 0 | F54: 0 | G54: 0 | H54: 0 | I54: 0 | J54: 0 | K54: 0 | L54: 0
A56: Project 5
A57: Name: REI Connection Project
A58: Capital Costs | C58: 0 | D58: 0 | E58: 0 | F58: 0 | G58: 0 | H58: 0 | I58: 0 | J58: 0 | K58: 0 | L58: 0
A59: OM&A (Start-Up) | C59: 0 | D59: 0 | E59: 0 | F59: 0 | G59: 0 | H59: 0 | I59: 0 | J59: 0 | K59: 0 | L59: 0
A60: OM&A (Ongoing) | C60: 0 | D60: 0 | E60: 0 | F60: 0 | G60: 0 | H60: 0 | I60: 0 | J60: 0 | K60: 0 | L60: 0
A62: Total Capital Costs | C62: =SUM(C58,C52,C46,C40,C34) -> 0 | D62: 0 | E62: 0 | F62: 0 | G62: 0 | H62: 0 | I62: 0 | J62: 0 | K62: 0 | L62: 0
A63: Total OM&A (Start-Up) | C63: 0 | D63: 0 | E63: 0 | F63: 0 | G63: 0 | H63: 0 | I63: 0 | J63: 0 | K63: 0 | L63: 0
A64: Total OM&A (Ongoing) | C64: 0 | D64: 0 | E64: 0 | F64: 0 | G64: 0 | H64: 0 | I64: 0 | J64: 0 | K64: 0 | L64: 0
A67: Part B | H67: Test Year
A68: Expansion Investments (Direct Benefit at 17%) | C68: =D68-1 -> 2016 | D68: =E68-1 -> 2017 | E68: =F68-1 -> 2018 | F68: =G68-1 -> 2019 | G68: =H68-1 -> 2020 | H68: =H31 -> 2021 | I68: =H68+1 -> 2022 | J68: =I68+1 -> 2023 | K68: =J68+1 -> 2024 | L68: =K68+1 -> 2025
A69: Project 1
A70: Name: Expansion Connection Project
A71: Capital Costs | C71: 0 | D71: 0 | E71: 0 | F71: 0 | G71: 0 | H71: 0 | I71: 0 | J71: 0 | K71: 0 | L71: 0
A72: OM&A (Start-Up) | C72: 0 | D72: 0 | E72: 0 | F72: 0 | G72: 0 | H72: 0 | I72: 0 | J72: 0 | K72: 0 | L72: 0
A73: OM&A (Ongoing) | C73: 0 | D73: 0 | E73: 0 | F73: 0 | G73: 0 | H73: 0 | I73: 0 | J73: 0 | K73: 0 | L73: 0
A75: Project 2
A76: Name: Expansion Connection Project
A77: Capital Costs | C77: 0 | D77: 0 | E77: 0 | F77: 0 | G77: 0 | H77: 0 | I77: 0 | J77: 0 | K77: 0 | L77: 0
A78: OM&A (Start-Up) | C78: 0 | D78: 0 | E78: 0 | F78: 0 | G78: 0 | H78: 0 | I78: 0 | J78: 0 | K78: 0 | L78: 0
A79: OM&A (Ongoing) | C79: 0 | D79: 0 | E79: 0 | F79: 0 | G79: 0 | H79: 0 | I79: 0 | J79: 0 | K79: 0 | L79: 0
A81: Project 3
A82: Name: Expansion Connection Project
A83: Capital Costs | C83: 0 | D83: 0 | E83: 0 | F83: 0 | G83: 0 | H83: 0 | I83: 0 | J83: 0 | K83: 0 | L83: 0
A84: OM&A (Start-Up) | C84: 0 | D84: 0 | E84: 0 | F84: 0 | G84: 0 | H84: 0 | I84: 0 | J84: 0 | K84: 0 | L84: 0
A85: OM&A (Ongoing) | C85: 0 | D85: 0 | E85: 0 | F85: 0 | G85: 0 | H85: 0 | I85: 0 | J85: 0 | K85: 0 | L85: 0
A87: Project 4
A88: Name: Expansion Connection Project
A89: Capital Costs | C89: 0 | D89: 0 | E89: 0 | F89: 0 | G89: 0 | H89: 0 | I89: 0 | J89: 0 | K89: 0 | L89: 0
A90: OM&A (Start-Up) | C90: 0 | D90: 0 | E90: 0 | F90: 0 | G90: 0 | H90: 0 | I90: 0 | J90: 0 | K90: 0 | L90: 0
A91: OM&A (Ongoing) | C91: 0 | D91: 0 | E91: 0 | F91: 0 | G91: 0 | H91: 0 | I91: 0 | J91: 0 | K91: 0 | L91: 0
A93: Project 5
A94: Name: Expansion Connection Project
A95: Capital Costs | C95: 0 | D95: 0 | E95: 0 | F95: 0 | G95: 0 | H95: 0 | I95: 0 | J95: 0 | K95: 0 | L95: 0
A96: OM&A (Start-Up) | C96: 0 | D96: 0 | E96: 0 | F96: 0 | G96: 0 | H96: 0 | I96: 0 | J96: 0 | K96: 0 | L96: 0
A97: OM&A (Ongoing) | C97: 0 | D97: 0 | E97: 0 | F97: 0 | G97: 0 | H97: 0 | I97: 0 | J97: 0 | K97: 0 | L97: 0
A99: Total Capital Costs | C99: =SUM(C95,C89,C83,C77,C71) -> 0 | D99: 0 | E99: 0 | F99: 0 | G99: 0 | H99: 0 | I99: 0 | J99: 0 | K99: 0 | L99: 0
A100: Total OM&A (Start-Up) | C100: 0 | D100: 0 | E100: 0 | F100: 0 | G100: 0 | H100: 0 | I100: 0 | J100: 0 | K100: 0 | L100: 0
A101: Total OM&A (Ongoing) | C101: 0 | D101: 0 | E101: 0 | F101: 0 | G101: 0 | H101: 0 | I101: 0 | J101: 0 | K101: 0 | L101: 0

Sheet App.2-FB Calc of REG Improvemnt
R1: File Number: | S1: 0
R2: Exhibit:
R3: Tab:
A4: TO BE UPDATED AT DRAFT RATE ORDER STAGE | R4: Schedule:
R5: Page:
R7: Date:
A9: Appendix 2-FB
A10: Calculation of Renewable Generation Connection Direct Benefits/Provincial Amount: Renewable Enabling Improvement Investments
A12: This table will calculate the distributor/provincial shares of the investments entered in Part A of Appendix 2-FA.
A13: Enter values in green shaded cells: WCA percentage, debt percentages, interest rates, kWh, tax rates, amortization period, CCA Class and percentage.
A14: For historical investments, enter these variables that were approved in your last cost of service test year. For 2021 and beyond, enter variables as in the application.
A15: Rate Riders related to the direct benefit portion of the renewable investments are not calculated for the Test Year as these assets and costs are already in the distributor's rate base/revenue requirement.
S16: Test Year
D17: =G17-1 -> 2016 | G17: =J17-1 -> 2017 | J17: =M17-1 -> 2018 | M17: =P17-1 -> 2019 | P17: =S17-1 -> 2020 | S17: ='LDC Info'!$E$24 -> 2021 | V17: =S17+1 -> 2022 | Y17: =V17+1 -> 2023 | Z17: 2016 | AB17: =Y17+1 -> 2024 | AE17: =AB17+1 -> 2025
E18: Direct Benefit | F18: Provincial | H18: Direct Benefit | I18: Provincial | K18: Direct Benefit | L18: Provincial | N18: Direct Benefit | O18: Provincial | Q18: Direct Benefit | R18: Provincial | T18: Direct Benefit | U18: Provincial | W18: Direct Benefit | X18: Provincial | Z18: Direct Benefit | AA18: Provincial | AC18: Direct Benefit | AD18: Provincial | AF18: Direct Benefit | AG18: Provincial
D19: Total | E19: 0.06 | F19: 0.94 | G19: Total | H19: 0.06 | I19: 0.94 | J19: Total | K19: 0.06 | L19: 0.94 | M19: Total | N19: 0.06 | O19: 0.94 | P19: Total | Q19: 0.06 | R19: 0.94 | S19: Total | T19: 0.06 | U19: 0.94 | V19: Total | W19: 0.06 | X19: 0.94 | Y19: Total | Z19: 0.06 | AA19: 0.94 | AB19: Total | AC19: 0.06 | AD19: 0.94 | AE19: Total | AF19: 0.06 | AG19: 0.94
A20: Net Fixed Assets (average) | D20: =E83 -> 0 | E20: =D20*E19 -> 0 | F20: =D20*F19 -> 0 | G20: =F83 -> 0 | H20: =G20*H19 -> 0 | I20: =G20*I19 -> 0 | J20: =G83 -> 0 | K20: =J20*K19 -> 0 | L20: =J20*L19 -> 0 | M20: =H83 -> 0 | N20: =M20*N19 -> 0 | O20: =M20*O19 -> 0 | P20: =I83 -> 0 | Q20: =P20*Q19 -> 0 | R20: =P20*R19 -> 0 | S20: =J83 -> 0 | T20: =S20*T19 -> 0 | U20: =S20*U19 -> 0 | V20: =K83 -> 0 | W20: =V20*W19 -> 0 | X20: =V20*X19 -> 0 | Y20: =L83 -> 0 | Z20: =Y20*Z19 -> 0 | AA20: =Y20*AA19 -> 0 | AB20: =M83 -> 0 | AC20: =AB20*AC19 -> 0 | AD20: =AB20*AD19 -> 0 | AE20: =N83 -> 0 | AF20: =AE20*AF19 -> 0 | AG20: =AE20*AG19 -> 0
A21: Incremental OM&A (on-going, N/A for Provincial Recovery) | D21: ='App.2-FA Proposed REG Invest.'!C64 -> 0 | E21: =D21 -> 0 | G21: ='App.2-FA Proposed REG Invest.'!D64 -> 0 | H21: =G21 -> 0 | J21: ='App.2-FA Proposed REG Invest.'!E64 -> 0 | K21: =J21 -> 0 | M21: ='App.2-FA Proposed REG Invest.'!F64 -> 0 | N21: =M21 -> 0 | P21: ='App.2-FA Proposed REG Invest.'!G64 -> 0 | Q21: =P21 -> 0 | S21: ='App.2-FA Proposed REG Invest.'!H64 -> 0 | T21: =S21 -> 0 | V21: ='App.2-FA Proposed REG Invest.'!I64 -> 0 | W21: =V21 -> 0 | Y21: ='App.2-FA Proposed REG Invest.'!J64 -> 0 | Z21: =Y21 -> 0 | AB21: ='App.2-FA Proposed REG Invest.'!K64 -> 0 | AC21: =AB21 -> 0 | AE21: ='App.2-FA Proposed REG Invest.'!L64 -> 0 | AF21: =AE21 -> 0
A22: Incremental OM&A (start-up, applicable for Provincial Recovery) | D22: ='App.2-FA Proposed REG Invest.'!C63 -> 0 | E22: =D22*E19 -> 0 | F22: =D22*F19 -> 0 | G22: ='App.2-FA Proposed REG Invest.'!D63 -> 0 | H22: =G22*H19 -> 0 | I22: =G22*I19 -> 0 | J22: ='App.2-FA Proposed REG Invest.'!E63 -> 0 | K22: =J22*K19 -> 0 | L22: =J22*L19 -> 0 | M22: ='App.2-FA Proposed REG Invest.'!F63 -> 0 | N22: =M22*N19 -> 0 | O22: =M22*O19 -> 0 | P22: ='App.2-FA Proposed REG Invest.'!G63 -> 0 | Q22: =P22*Q19 -> 0 | R22: =P22*R19 -> 0 | S22: ='App.2-FA Proposed REG Invest.'!H63 -> 0 | T22: =S22*T19 -> 0 | U22: =S22*U19 -> 0 | V22: ='App.2-FA Proposed REG Invest.'!I63 -> 0 | W22: =V22*W19 -> 0 | X22: =V22*X19 -> 0 | Y22: ='App.2-FA Proposed REG Invest.'!J63 -> 0 | Z22: =Y22*Z19 -> 0 | AA22: =Y22*AA19 -> 0 | AB22: ='App.2-FA Proposed REG Invest.'!K63 -> 0 | AC22: =AB22*AC19 -> 0 | AD22: =AB22*AD19 -> 0 | AE22: ='App.2-FA Proposed REG Invest.'!L63 -> 0 | AF22: =AE22*AF19 -> 0 | AG22: =AE22*AG19 -> 0
A23: Rebasing Year vs. Test Year | B23: ='LDC Info'!E28 -> 2016 | C23: ='LDC Info'!E24 -> 2021
A24: Allowance for Working Capital (enter rate) | E24: =IF(D$17<=$B$23,(E21+E22)*$B$24,(E21+E22)*$C$24) -> 0 | F24: =IF(D$17<=$B$23, F22*$B$24, F22*$C$24) -> 0 | H24: =IF(G$17<=$B$23,(H21+H22)*$B$24,(H21+H22)*$C$24) -> 0 | I24: =IF(G$17<=$B$23, I22*$B$24, I22*$C$24) -> 0 | K24: =IF(J$17<=$B$23,(K21+K22)*$B$24,(K21+K22)*$C$24) -> 0 | L24: =IF(J$17<=$B$23, L22*$B$24, L22*$C$24) -> 0 | N24: =IF(M$17<=$B$23,(N21+N22)*$B$24,(N21+N22)*$C$24) -> 0 | O24: =IF(M$17<=$B$23, O22*$B$24, O22*$C$24) -> 0 | Q24: =IF(P$17<=$B$23,(Q21+Q22)*$B$24,(Q21+Q22)*$C$24) -> 0 | R24: =IF(P$17<=$B$23, R22*$B$24, R22*$C$24) -> 0 | T24: =IF(S$17<=$B$23,(T21+T22)*$B$24,(T21+T22)*$C$24) -> 0 | U24: =IF(S$17<=$B$23, U22*$B$24, U22*$C$24) -> 0 | W24: =IF(V$17<=$B$23,(W21+W22)*$B$24,(W21+W22)*$C$24) -> 0 | X24: =IF(V$17<=$B$23, X22*$B$24, X22*$C$24) -> 0 | Z24: =IF(Y$17<=$B$23,(Z21+Z22)*$B$24,(Z21+Z22)*$C$24) -> 0 | AA24: =IF(Y$17<=$B$23, AA22*$B$24, AA22*$C$24) -> 0 | AC24: =IF(AB$17<=$B$23,(AC21+AC22)*$B$24,(AC21+AC22)*$C$24) -> 0 | AD24: =IF(AB$17<=$B$23, AD22*$B$24, AD22*$C$24) -> 0 | AF24: =IF(AE$17<=$B$23,(AF21+AF22)*$B$24,(AF21+AF22)*$C$24) -> 0 | AG24: =IF(AE$17<=$B$23, AG22*$B$24, AG22*$C$24) -> 0
A25: Rate Base | E25: =SUM(E20+E24) -> 0 | F25: =SUM(F20+F24) -> 0 | H25: =SUM(H20+H24) -> 0 | I25: =SUM(I20+I24) -> 0 | K25: =SUM(K20+K24) -> 0 | L25: =SUM(L20+L24) -> 0 | N25: =SUM(N20+N24) -> 0 | O25: =SUM(O20+O24) -> 0 | Q25: =SUM(Q20+Q24) -> 0 | R25: =SUM(R20+R24) -> 0 | T25: =SUM(T20+T24) -> 0 | U25: =SUM(U20+U24) -> 0 | W25: =SUM(W20+W24) -> 0 | X25: =SUM(X20+X24) -> 0 | Z25: =SUM(Z20+Z24) -> 0 | AA25: =SUM(AA20+AA24) -> 0 | AC25: =SUM(AC20+AC24) -> 0 | AD25: =SUM(AD20+AD24) -> 0 | AF25: =SUM(AF20+AF24) -> 0 | AG25: =SUM(AG20+AG24) -> 0
A27: Rebasing Year vs. Test Year | B27: =B23 -> 2016 | C27: =C23 -> 2021
A28: Deemed ST Debt (enter amount) | E28: =E25*$B$28 -> 0 | F28: =F25*$B$28 -> 0 | H28: =H25*$B$28 -> 0 | I28: =I25*$B$28 -> 0 | K28: =K25*$B$28 -> 0 | L28: =L25*$B$28 -> 0 | N28: =N25*$B$28 -> 0 | O28: =O25*$B$28 -> 0 | Q28: =Q25*$B$28 -> 0 | R28: =R25*$B$28 -> 0 | T28: =T25*$C$28 -> 0 | U28: =U25*$C$28 -> 0 | W28: =W25*$C$28 -> 0 | X28: =X25*$C$28 -> 0 | Z28: =Z25*$C$28 -> 0 | AA28: =AA25*$C$28 -> 0 | AC28: =AC25*$C$28 -> 0 | AD28: =AD25*$C$28 -> 0 | AF28: =AF25*$C$28 -> 0 | AG28: =AG25*$C$28 -> 0
A29: Deemed LT Debt (enter amount) | E29: =E25*$B$29 -> 0 | F29: =F25*$B$29 -> 0 | H29: =H25*$B$29 -> 0 | I29: =I25*$B$29 -> 0 | K29: =K25*$B$29 -> 0 | L29: =L25*$B$29 -> 0 | N29: =N25*$B$29 -> 0 | O29: =O25*$B$29 -> 0 | Q29: =Q25*$B$29 -> 0 | R29: =R25*$B$29 -> 0 | T29: =T25*$C$29 -> 0 | U29: =U25*$C$29 -> 0 | W29: =W25*$C$29 -> 0 | X29: =X25*$C$29 -> 0 | Z29: =Z25*$C$29 -> 0 | AA29: =AA25*$C$29 -> 0 | AC29: =AC25*$C$29 -> 0 | AD29: =AD25*$C$29 -> 0 | AF29: =AF25*$C$29 -> 0 | AG29: =AG25*$C$29 -> 0
A30: Deemed Equity (enter amount) | E30: =E25*$B$30 -> 0 | F30: =F25*$B$30 -> 0 | H30: =H25*$B$30 -> 0 | I30: =I25*$B$30 -> 0 | K30: =K25*$B$30 -> 0 | L30: =L25*$B$30 -> 0 | N30: =N25*$B$30 -> 0 | O30: =O25*$B$30 -> 0 | Q30: =Q25*$B$30 -> 0 | R30: =R25*$B$30 -> 0 | T30: =T25*$C$30 -> 0 | U30: =U25*$C$30 -> 0 | W30: =W25*$C$30 -> 0 | X30: =X25*$C$30 -> 0 | Z30: =Z25*$C$30 -> 0 | AA30: =AA25*$C$30 -> 0 | AC30: =AC25*$C$30 -> 0 | AD30: =AD25*$C$30 -> 0 | AF30: =AF25*$C$30 -> 0 | AG30: =AG25*$C$30 -> 0
A32: ST Interest (enter rate) | E32: =E28*$B32 -> 0 | F32: 0 | H32: 0 | I32: 0 | K32: 0 | L32: 0 | N32: 0 | O32: 0 | Q32: 0 | R32: 0 | T32: =T28*$C32 -> 0 | U32: 0 | W32: =W28*$C32 -> 0 | X32: 0 | Z32: =Z28*$C32 -> 0 | AA32: 0 | AC32: =AC28*$C32 -> 0 | AD32: 0 | AF32: =AF28*$C32 -> 0 | AG32: 0
A33: LT Interest (enter rate) | E33: 0 | F33: 0 | H33: 0 | I33: 0 | K33: 0 | L33: 0 | N33: 0 | O33: 0 | Q33: 0 | R33: 0 | T33: 0 | U33: 0 | W33: 0 | X33: 0 | Z33: 0 | AA33: 0 | AC33: 0 | AD33: 0 | AF33: 0 | AG33: 0
A34: Return on Equity (enter rate) | E34: 0 | F34: 0 | H34: 0 | I34: 0 | K34: 0 | L34: 0 | N34: 0 | O34: 0 | Q34: 0 | R34: 0 | T34: 0 | U34: 0 | W34: 0 | X34: 0 | Z34: 0 | AA34: 0 | AC34: 0 | AD34: 0 | AF34: 0 | AG34: 0
A35: Cost of Capital Total | E35: =SUM(E32:E34) -> 0 | F35: =SUM(F32:F34) -> 0 | H35: =SUM(H32:H34) -> 0 | I35: =SUM(I32:I34) -> 0 | K35: =SUM(K32:K34) -> 0 | L35: =SUM(L32:L34) -> 0 | N35: =SUM(N32:N34) -> 0 | O35: =SUM(O32:O34) -> 0 | Q35: =SUM(Q32:Q34) -> 0 | R35: =SUM(R32:R34) -> 0 | T35: =SUM(T32:T34) -> 0 | U35: =SUM(U32:U34) -> 0 | W35: =SUM(W32:W34) -> 0 | X35: =SUM(X32:X34) -> 0 | Z35: =SUM(Z32:Z34) -> 0 | AA35: =SUM(AA32:AA34) -> 0 | AC35: =SUM(AC32:AC34) -> 0 | AD35: =SUM(AD32:AD34) -> 0 | AF35: =SUM(AF32:AF34) -> 0 | AG35: =SUM(AG32:AG34) -> 0
A37: OM&A | E37: =E21+E22 -> 0 | F37: =F22 -> 0 | H37: =H21+H22 -> 0 | I37: =I22 -> 0 | K37: =K21+K22 -> 0 | L37: =L22 -> 0 | N37: =N21+N22 -> 0 | O37: =O22 -> 0 | Q37: =Q21+Q22 -> 0 | R37: =R22 -> 0 | T37: =T21+T22 -> 0 | U37: =U22 -> 0 | W37: =W21+W22 -> 0 | X37: =X22 -> 0 | Z37: =Z21+Z22 -> 0 | AA37: =AA22 -> 0 | AC37: =AC21+AC22 -> 0 | AD37: =AD22 -> 0 | AF37: =AF21+AF22 -> 0 | AG37: =AG22 -> 0
A38: Amortization | D38: =+E77+E78 -> 0 | E38: =D38*E$19 -> 0 | F38: =D38*F$19 -> 0 | G38: =+F77+F78 -> 0 | H38: =G38*H$19 -> 0 | I38: =G38*I$19 -> 0 | J38: =+G77+G78 -> 0 | K38: =J38*K$19 -> 0 | L38: =J38*L$19 -> 0 | M38: =+H77+H78 -> 0 | N38: =M38*N$19 -> 0 | O38: =M38*O$19 -> 0 | P38: =+I77+I78 -> 0 | Q38: =P38*Q$19 -> 0 | R38: =P38*R$19 -> 0 | S38: =+J77+J78 -> 0 | T38: =S38*T$19 -> 0 | U38: =S38*U$19 -> 0 | V38: =+K77+K78 -> 0 | W38: =V38*W$19 -> 0 | X38: =V38*X$19 -> 0 | Y38: =+L77+L78 -> 0 | Z38: =Y38*Z$19 -> 0 | AA38: =Y38*AA$19 -> 0 | AB38: =+M77+M78 -> 0 | AC38: =AB38*AC$19 -> 0 | AD38: =AB38*AD$19 -> 0 | AE38: =+N77+N78 -> 0 | AF38: =AE38*AF$19 -> 0 | AG38: =AE38*AG$19 -> 0
A39: Grossed-up PILs | E39: =+E66 -> 0 | F39: =+F66 -> 0 | H39: =+H66 -> 0 | I39: =+I66 -> 0 | K39: =+K66 -> 0 | L39: =+L66 -> 0 | N39: =+N66 -> 0 | O39: =+O66 -> 0 | Q39: =+Q66 -> 0 | R39: =+R66 -> 0 | T39: =+T66 -> 0 | U39: =+U66 -> 0 | W39: =+W66 -> 0 | X39: =+X66 -> 0 | Z39: =+Z66 -> 0 | AA39: =+AA66 -> 0 | AC39: =+AC66 -> 0 | AD39: =+AD66 -> 0 | AF39: =+AF66 -> 0 | AG39: =+AG66 -> 0
A41: Revenue Requirement | E41: =SUM(E35:E39) -> 0 | F41: =SUM(F35:F39) -> 0 | H41: =SUM(H35:H39) -> 0 | I41: 0 | K41: =SUM(K35:K39) -> 0 | L41: 0 | N41: =SUM(N35:N39) -> 0 | O41: 0 | Q41: =SUM(Q35:Q39) -> 0 | R41: 0 | T41: =SUM(T35:T39) -> 0 | U41: 0 | W41: =SUM(W35:W39) -> 0 | X41: 0 | Z41: =SUM(Z35:Z39) -> 0 | AA41: 0 | AC41: =SUM(AC35:AC39) -> 0 | AD41: 0 | AF41: =SUM(AF35:AF39) -> 0 | AG41: 0
A44: Provincial Rate Protection | F44: =F41 -> 0 | I44: =I41 -> 0 | L44: =L41 -> 0 | O44: =O41 -> 0 | R44: =R41 -> 0 | U44: =U41 -> 0 | X44: =X41 -> 0 | AA44: =AA41 -> 0 | AD44: =AD41 -> 0 | AG44: =AG41 -> 0
A46: Monthly Amount Paid by IESO | F46: =F44/12 -> 0 | I46: =I44/12 -> 0 | L46: =L44/12 -> 0 | O46: =O44/12 -> 0 | R46: =R44/12 -> 0 | U46: =U44/12 -> 0 | X46: =X44/12 -> 0 | AA46: =AA44/12 -> 0 | AD46: =AD44/12 -> 0 | AG46: =AG44/12 -> 0
A48: Note 1: The distributor should follow the regulatory accounting set out in the Accounting Procedure Handbook Guidance FAQs issued in March 2015. Q10 of the APH FAQs states that: “For approved eligible investments as defined under O.Reg. 330/09 under the OEB Act, a variance account will continue to be used for the purpose of recording variances between the revenue requirement based on actual costs of approved eligible investments and the revenue received from the IESO.” The answer for Q10 provides the accounting guidance for this variance account: “Distributors that have included eligible investments to connect qualifying facilities in their DS plans are to establish the variance Account 1533 Renewable Generation Connection Funding Adder Deferral Account, Sub-account Provincial Rate Protection Payment Variances following OEB approval for investments forecast to enter service beyond the test year for purposes of implementing rate protection pursuant to O.Reg. 330/09. The purpose of this variance account is to track the variance between the distributor’s revenue requirement associated with the portion of the actual capital and/or operating costs that are eligible for rate protection, as incurred by the distributor for eligible renewable enabling and expansion investments, and the rate protection payments collected from the IESO.” The answer further provides the journal entries to record the variances. Distributors should follow the instructions in the answer for recording the journal entries in the variance account 1533.
A50: Note 2: For the Test Year, Costs and Revenues of the Direct Benefit are to be included in the test year applicant Rate Base and Revenues.
A52: PILs Calculation | T52: Test Year
E53: =G17-1 -> 2016 | H53: =G17 -> 2017 | K53: =J17 -> 2018 | N53: =M17 -> 2019 | Q53: =P17 -> 2020 | T53: =S17 -> 2021 | W53: =V17 -> 2022 | Z53: =Y17 -> 2023 | AC53: =AB17 -> 2024 | AF53: =AE17 -> 2025
A54: Income Tax | E54: Direct Benefit | F54: Provincial | H54: Direct Benefit | I54: Provincial | K54: Direct Benefit | L54: Provincial | N54: Direct Benefit | O54: Provincial | Q54: Direct Benefit | R54: Provincial | T54: Direct Benefit | U54: Provincial | W54: Direct Benefit | X54: Provincial | Z54: Direct Benefit | AA54: Provincial | AC54: Direct Benefit | AD54: Provincial | AF54: Direct Benefit | AG54: Provincial
AB55: Total | AE55: Total
A56: Net Income - ROE on Rate Base | E56: =E34 -> 0 | F56: =F34 -> 0 | H56: =H34 -> 0 | I56: =I34 -> 0 | K56: =K34 -> 0 | L56: =L34 -> 0 | N56: =N34 -> 0 | O56: =O34 -> 0 | Q56: =Q34 -> 0 | R56: =R34 -> 0 | T56: =T34 -> 0 | U56: =U34 -> 0 | W56: =W34 -> 0 | X56: =X34 -> 0 | Z56: =Z34 -> 0 | AA56: =AA34 -> 0 | AC56: =AC34 -> 0 | AD56: =AD34 -> 0 | AF56: =AF34 -> 0 | AG56: =AG34 -> 0
A57: Amortization (6% DB and 94% P) | E57: =E38 -> 0 | F57: =F38 -> 0 | H57: =H38 -> 0 | I57: =I38 -> 0 | K57: =K38 -> 0 | L57: =L38 -> 0 | N57: =N38 -> 0 | O57: =O38 -> 0 | Q57: =Q38 -> 0 | R57: =R38 -> 0 | T57: =T38 -> 0 | U57: =U38 -> 0 | W57: =W38 -> 0 | X57: =X38 -> 0 | Z57: =Z38 -> 0 | AA57: =AA38 -> 0 | AC57: =AC38 -> 0 | AD57: =AD38 -> 0 | AF57: =AF38 -> 0 | AG57: =AG38 -> 0
A58: CCA (6% DB and 94% P) | E58: =-E95*$E$19 -> 0 | F58: =-E95*$F$19 -> 0 | H58: =-F95*$E$19 -> 0 | I58: =-F95*$F$19 -> 0 | K58: =-G95*$E$19 -> 0 | L58: =-G95*$F$19 -> 0 | N58: =-H95*$E$19 -> 0 | O58: =-H95*$F$19 -> 0 | Q58: =-I95*$E$19 -> 0 | R58: =-I95*$F$19 -> 0 | T58: =-J95*$E$19 -> 0 | U58: =-J95*$F$19 -> 0 | W58: =-K95*$E$19 -> 0 | X58: =-K95*$F$19 -> 0 | Z58: =-L95*$E$19 -> 0 | AA58: =-L95*$F$19 -> 0 | AC58: =-M95*$E$19 -> 0 | AD58: =-M95*$F$19 -> 0 | AF58: =-N95*$E$19 -> 0 | AG58: =-N95*$F$19 -> 0
A59: Taxable income | E59: =SUM(E56:E58) -> 0 | F59: =SUM(F56:F58) -> 0 | H59: =SUM(H56:H58) -> 0 | I59: 0 | K59: =SUM(K56:K58) -> 0 | L59: 0 | N59: =SUM(N56:N58) -> 0 | O59: 0 | Q59: =SUM(Q56:Q58) -> 0 | R59: 0 | T59: =SUM(T56:T58) -> 0 | U59: 0 | W59: =SUM(W56:W58) -> 0 | X59: 0 | Z59: =SUM(Z56:Z58) -> 0 | AA59: =SUM(AA56:AA58) -> 0 | AC59: =SUM(AC56:AC58) -> 0 | AD59: =SUM(AD56:AD58) -> 0 | AF59: =SUM(AF56:AF58) -> 0 | AG59: =SUM(AG56:AG58) -> 0
A61: Tax Rate (to be entered)
A63: Income Taxes Payable | E63: =E59*E61 -> 0 | F63: =F59*F61 -> 0 | H63: =H59*H61 -> 0 | I63: =I59*I61 -> 0 | K63: =K59*K61 -> 0 | L63: =L59*L61 -> 0 | N63: =N59*N61 -> 0 | O63: =O59*O61 -> 0 | Q63: =Q59*Q61 -> 0 | R63: =R59*R61 -> 0 | T63: =T59*T61 -> 0 | U63: =U59*U61 -> 0 | W63: =W59*W61 -> 0 | X63: =X59*X61 -> 0 | Z63: =Z59*Z61 -> 0 | AA63: =AA59*AA61 -> 0 | AC63: =AC59*AC61 -> 0 | AD63: =AD59*AD61 -> 0 | AF63: =AF59*AF61 -> 0 | AG63: =AG59*AG61 -> 0
A64: Gross Up
A65: Income Taxes Payable | E65: =E63/(1-E61) -> 0 | F65: =F63/(1-F61) -> 0 | H65: =H63/(1-H61) -> 0 | I65: =I63/(1-I61) -> 0 | K65: =K63/(1-K61) -> 0 | L65: =L63/(1-L61) -> 0 | N65: =N63/(1-N61) -> 0 | O65: =O63/(1-O61) -> 0 | Q65: =Q63/(1-Q61) -> 0 | R65: =R63/(1-R61) -> 0 | T65: =T63/(1-T61) -> 0 | U65: =U63/(1-U61) -> 0 | W65: =W63/(1-W61) -> 0 | X65: =X63/(1-X61) -> 0 | Z65: =Z63/(1-Z61) -> 0 | AA65: =AA63/(1-AA61) -> 0 | AC65: =AC63/(1-AC61) -> 0 | AD65: =AD63/(1-AD61) -> 0 | AF65: =AF63/(1-AF61) -> 0 | AG65: =AG63/(1-AG61) -> 0
A66: Grossed Up PILs | E66: =+E65 -> 0 | F66: =+F65 -> 0 | H66: =+H65 -> 0 | I66: =+I65 -> 0 | K66: =+K65 -> 0 | L66: 0 | N66: =+N65 -> 0 | O66: 0 | Q66: =+Q65 -> 0 | R66: 0 | T66: =+T65 -> 0 | U66: 0 | W66: =+W65 -> 0 | X66: 0 | Z66: =+Z65 -> 0 | AA66: 0 | AC66: =+AC65 -> 0 | AD66: 0 | AF66: =+AF65 -> 0 | AG66: 0
J68: Test Year
E69: =F69-1 -> 2016 | F69: =G69-1 -> 2017 | G69: =H69-1 -> 2018 | H69: =I69-1 -> 2019 | I69: =J69-1 -> 2020 | J69: ='LDC Info'!E24 -> 2021 | K69: =J69+1 -> 2022 | L69: =K69+1 -> 2023 | M69: =L69+1 -> 2024 | N69: =M69+1 -> 2025
A70: Net Fixed Assets
A71: Enter applicable amortization in years: | B71: 40
A72: Opening Gross Fixed Assets | F72: =E74 -> 0 | G72: 0 | H72: 0 | I72: 0 | J72: 0 | K72: 0 | L72: 0 | M72: 0 | N72: 0
A73: Capital Additions | E73: ='App.2-FA Proposed REG Invest.'!C62 -> 0 | F73: ='App.2-FA Proposed REG Invest.'!D62 -> 0 | G73: ='App.2-FA Proposed REG Invest.'!E62 -> 0 | H73: ='App.2-FA Proposed REG Invest.'!F62 -> 0 | I73: ='App.2-FA Proposed REG Invest.'!G62 -> 0 | J73: ='App.2-FA Proposed REG Invest.'!H62 -> 0 | K73: ='App.2-FA Proposed REG Invest.'!I62 -> 0 | L73: ='App.2-FA Proposed REG Invest.'!J62 -> 0 | M73: ='App.2-FA Proposed REG Invest.'!K62 -> 0 | N73: ='App.2-FA Proposed REG Invest.'!L62 -> 0
A74: Closing Gross Fixed Assets | E74: =SUM(E72:E73) -> 0 | F74: 0 | G74: 0 | H74: 0 | I74: 0 | J74: 0 | K74: 0 | L74: 0 | M74: 0 | N74: 0
A76: Opening Accumulated Amortization | F76: =+E79 -> 0 | G76: =+F79 -> 0 | H76: 0 | I76: 0 | J76: 0 | K76: 0 | L76: 0 | M76: 0 | N76: 0
A77: Current Year Amortization (before additions) | E77: =IF(ISERROR(E72/$B$71), 0, E72/$B$71) -> 0 | F77: =IF(ISERROR(F72/$B$71), 0, F72/$B$71) -> 0 | G77: 0 | H77: 0 | I77: 0 | J77: 0 | K77: 0 | L77: 0 | M77: 0 | N77: 0
A78: Capital Additions Amortization (half year) | E78: =E73/$B$71/2 -> 0 | F78: =F73/$B$71/2 -> 0 | G78: 0 | H78: 0 | I78: 0 | J78: 0 | K78: 0 | L78: 0 | M78: 0 | N78: 0
A79: Closing Accumulated Amortization | E79: =SUM(E76+E77+E78) -> 0 | F79: 0 | G79: 0 | H79: 0 | I79: 0 | J79: 0 | K79: 0 | L79: 0 | M79: 0 | N79: 0
A81: Opening Net Fixed Assets | E81: =E72-E76 -> 0 | F81: 0 | G81: 0 | H81: 0 | I81: 0 | J81: 0 | K81: 0 | L81: 0 | M81: 0 | N81: 0
A82: Closing Net Fixed Assets | E82: =E74-E79 -> 0 | F82: 0 | G82: 0 | H82: 0 | I82: 0 | J82: 0 | K82: 0 | L82: 0 | M82: 0 | N82: 0
A83: Average Net Fixed Assets | E83: =SUM(E81:E82)/2 -> 0 | F83: 0 | G83: 0 | H83: 0 | I83: 0 | J83: 0 | K83: 0 | L83: 0 | M83: 0 | N83: 0
A85: UCC for PILs Calculation | J85: Test Year
E86: =E69 -> 2016 | F86: =F69 -> 2017 | G86: =G69 -> 2018 | H86: 2019 | I86: 2020 | J86: 2021 | K86: 2022 | L86: 2023 | M86: 2024 | N86: 2025
A88: Opening UCC | E88: =E72 -> 0 | F88: =E96 -> 0 | G88: 0 | H88: 0 | I88: 0 | J88: 0 | K88: 0 | L88: 0 | M88: 0 | N88: 0
A89: Capital Additions | E89: =E73 -> 0 | F89: 0 | G89: 0 | H89: 0 | I89: 0 | J89: 0 | K89: 0 | L89: 0 | M89: 0 | N89: 0
A90: UCC Before Half Year Rule | E90: =SUM(E88:E89) -> 0 | F90: 0 | G90: 0 | H90: 0 | I90: 0 | J90: 0 | K90: 0 | L90: 0 | M90: 0 | N90: 0
A91: Capital Additions (half year) | E91: =E89/2 -> 0 | F91: 0 | G91: 0 | H91: 0 | I91: 0 | J91: 0 | K91: 0 | L91: 0 | M91: 0 | N91: 0
A92: Reduced UCC | E92: =E90-E91 -> 0 | F92: 0 | G92: 0 | H92: 0 | I92: 0 | J92: 0 | K92: 0 | L92: 0 | M92: 0 | N92: 0
A93: CCA Rate Class (to be entered)
A94: CCA Rate (to be entered)
A95: CCA | E95: =E92*$B$94 -> 0 | F95: =F92*$B$94 -> 0 | G95: 0 | H95: 0 | I95: 0 | J95: 0 | K95: 0 | L95: 0 | M95: 0 | N95: 0
A96: Closing UCC | E96: =E90-E95 -> 0 | F96: 0 | G96: 0 | H96: 0 | I96: 0 | J96: 0 | K96: 0 | L96: 0 | M96: 0 | N96: 0

Sheet App.2-FC Calc of REG Expansion
R1: File Number: | S1: 0
R2: Exhibit:
R3: Tab:
A4: TO BE UPDATED AT DRAFT RATE ORDER STAGE | R4: Schedule:
R5: Page:
R7: Date:
A9: Appendix 2-FC
A10: Calculation of Renewable Generation Connection Direct Benefits/Provincial Amount: Renewable Expansion Investments
A12: This table will calculate the distributor/provincial shares of the investments entered in Part B of Appendix 2-FA.
A13: Enter values in green shaded cells: WCA percentage, debt percentages, interest rates, kWh, tax rates, amortization period, CCA Class and percentage.
A14: For historical investments, enter these variables that were approved in your last cost of service test year. For 2021 and beyond, enter variables as in the application.
A15: Rate Riders related to the direct benefit portion of the renewable investments are not calculated for the Test Year as these assets and costs are already in the distributor's rate base/revenue requirement.
S16: Test Year
D17: =G17-1 -> 2016 | G17: =J17-1 -> 2017 | J17: =M17-1 -> 2018 | M17: =P17-1 -> 2019 | P17: =S17-1 -> 2020 | S17: ='LDC Info'!$E$24 -> 2021 | V17: =S17+1 -> 2022 | Y17: =V17+1 -> 2023 | Z17: 2016 | AB17: =Y17+1 -> 2024 | AE17: =AB17+1 -> 2025
E18: Direct Benefit | F18: Provincial | H18: Direct Benefit | I18: Provincial | K18: Direct Benefit | L18: Provincial | N18: Direct Benefit | O18: Provincial | Q18: Direct Benefit | R18: Provincial | T18: Direct Benefit | U18: Provincial | W18: Direct Benefit | X18: Provincial | Z18: Direct Benefit | AA18: Provincial | AC18: Direct Benefit | AD18: Provincial | AF18: Direct Benefit | AG18: Provincial
D19: Total | E19: 0.17 | F19: 0.83 | G19: Total | H19: 0.17 | I19: 0.83 | J19: Total | K19: 0.17 | L19: 0.83 | M19: Total | N19: 0.17 | O19: 0.83 | P19: Total | Q19: 0.17 | R19: 0.83 | S19: Total | T19: 0.17 | U19: 0.83 | V19: Total | W19: 0.17 | X19: 0.83 | Y19: Total | Z19: 0.17 | AA19: 0.83 | AB19: Total | AC19: 0.17 | AD19: 0.83 | AE19: Total | AF19: 0.17 | AG19: 0.83
A20: Net Fixed Assets (average) | D20: =E83 -> 0 | E20: =D20*E19 -> 0 | F20: =D20*F19 -> 0 | G20: =F83 -> 0 | H20: =G20*H19 -> 0 | I20: =G20*I19 -> 0 | J20: =G83 -> 0 | K20: =J20*K19 -> 0 | L20: =J20*L19 -> 0 | M20: =H83 -> 0 | N20: =M20*N19 -> 0 | O20: =M20*O19 -> 0 | P20: =I83 -> 0 | Q20: =P20*Q19 -> 0 | R20: =P20*R19 -> 0 | S20: =J83 -> 0 | T20: =S20*T19 -> 0 | U20: =S20*U19 -> 0 | V20: =K83 -> 0 | W20: =V20*W19 -> 0 | X20: =V20*X19 -> 0 | Y20: =L83 -> 0 | Z20: =Y20*Z19 -> 0 | AA20: =Y20*AA19 -> 0 | AB20: =M83 -> 0 | AC20: =AB20*AC19 -> 0 | AD20: =AB20*AD19 -> 0 | AE20: =N83 -> 0 | AF20: =AE20*AF19 -> 0 | AG20: =AE20*AG19 -> 0
A21: Incremental OM&A (on-going, N/A for Provincial Recovery) | D21: ='App.2-FA Proposed REG Invest.'!C101 -> 0 | E21: =D21 -> 0 | G21: ='App.2-FA Proposed REG Invest.'!D101 -> 0 | H21: =G21 -> 0 | J21: ='App.2-FA Proposed REG Invest.'!E101 -> 0 | K21: =J21 -> 0 | M21: ='App.2-FA Proposed REG Invest.'!F101 -> 0 | N21: =M21 -> 0 | P21: ='App.2-FA Proposed REG Invest.'!G101 -> 0 | Q21: =P21 -> 0 | S21: ='App.2-FA Proposed REG Invest.'!H101 -> 0 | T21: =S21 -> 0 | V21: ='App.2-FA Proposed REG Invest.'!I101 -> 0 | W21: =V21 -> 0 | Y21: ='App.2-FA Proposed REG Invest.'!J101 -> 0 | Z21: =Y21 -> 0 | AB21: ='App.2-FA Proposed REG Invest.'!K101 -> 0 | AC21: =AB21 -> 0 | AE21: ='App.2-FA Proposed REG Invest.'!L101 -> 0 | AF21: =AE21 -> 0
A22: Incremental OM&A (start-up, applicable for Provincial Recovery) | D22: ='App.2-FA Proposed REG Invest.'!C100 -> 0 | E22: =D22*E19 -> 0 | F22: =D22*F19 -> 0 | G22: ='App.2-FA Proposed REG Invest.'!D100 -> 0 | H22: =G22*H19 -> 0 | I22: =G22*I19 -> 0 | J22: ='App.2-FA Proposed REG Invest.'!E100 -> 0 | K22: =J22*K19 -> 0 | L22: =J22*L19 -> 0 | M22: ='App.2-FA Proposed REG Invest.'!F100 -> 0 | N22: =M22*N19 -> 0 | O22: =M22*O19 -> 0 | P22: ='App.2-FA Proposed REG Invest.'!G100 -> 0 | Q22: =P22*Q19 -> 0 | R22: =P22*R19 -> 0 | S22: ='App.2-FA Proposed REG Invest.'!H100 -> 0 | T22: =S22*T19 -> 0 | U22: =S22*U19 -> 0 | V22: ='App.2-FA Proposed REG Invest.'!I100 -> 0 | W22: =V22*W19 -> 0 | X22: =V22*X19 -> 0 | Y22: ='App.2-FA Proposed REG Invest.'!J100 -> 0 | Z22: =Y22*Z19 -> 0 | AA22: =Y22*AA19 -> 0 | AB22: ='App.2-FA Proposed REG Invest.'!K100 -> 0 | AC22: =AB22*AC19 -> 0 | AD22: =AB22*AD19 -> 0 | AE22: ='App.2-FA Proposed REG Invest.'!L100 -> 0 | AF22: =AE22*AF19 -> 0 | AG22: =AE22*AG19 -> 0
A23: Rebasing Year vs. Test Year | B23: ='LDC Info'!E28 -> 2016 | C23: ='LDC Info'!E24 -> 2021
A24: Allowance for Working Capital (enter rate) | E24: =IF(D$17<=$B$23,(E21+E22)*$B$24,(E21+E22)*$C$24) -> 0 | F24: =IF(D$17<=$B$23, F22*$B$24, F22*$C$24) -> 0 | H24: =IF(G$17<=$B$23,(H21+H22)*$B$24,(H21+H22)*$C$24) -> 0 | I24: =IF(G$17<=$B$23, I22*$B$24, I22*$C$24) -> 0 | K24: =IF(J$17<=$B$23,(K21+K22)*$B$24,(K21+K22)*$C$24) -> 0 | L24: =IF(J$17<=$B$23, L22*$B$24, L22*$C$24) -> 0 | N24: =IF(M$17<=$B$23,(N21+N22)*$B$24,(N21+N22)*$C$24) -> 0 | O24: =IF(M$17<=$B$23, O22*$B$24, O22*$C$24) -> 0 | Q24: =IF(P$17<=$B$23,(Q21+Q22)*$B$24,(Q21+Q22)*$C$24) -> 0 | R24: =IF(P$17<=$B$23, R22*$B$24, R22*$C$24) -> 0 | T24: =IF(S$17<=$B$23,(T21+T22)*$B$24,(T21+T22)*$C$24) -> 0 | U24: =IF(S$17<=$B$23, U22*$B$24, U22*$C$24) -> 0 | W24: =IF(V$17<=$B$23,(W21+W22)*$B$24,(W21+W22)*$C$24) -> 0 | X24: =IF(V$17<=$B$23, X22*$B$24, X22*$C$24) -> 0 | Z24: =IF(Y$17<=$B$23,(Z21+Z22)*$B$24,(Z21+Z22)*$C$24) -> 0 | AA24: =IF(Y$17<=$B$23, AA22*$B$24, AA22*$C$24) -> 0 | AC24: =IF(AB$17<=$B$23,(AC21+AC22)*$B$24,(AC21+AC22)*$C$24) -> 0 | AD24: =IF(AB$17<=$B$23, AD22*$B$24, AD22*$C$24) -> 0 | AF24: =IF(AE$17<=$B$23,(AF21+AF22)*$B$24,(AF21+AF22)*$C$24) -> 0 | AG24: =IF(AE$17<=$B$23, AG22*$B$24, AG22*$C$24) -> 0
A25: Rate Base | E25: =SUM(E20+E24) -> 0 | F25: =SUM(F20+F24) -> 0 | H25: =SUM(H20+H24) -> 0 | I25: =SUM(I20+I24) -> 0 | K25: =SUM(K20+K24) -> 0 | L25: =SUM(L20+L24) -> 0 | N25: =SUM(N20+N24) -> 0 | O25: =SUM(O20+O24) -> 0 | Q25: =SUM(Q20+Q24) -> 0 | R25: =SUM(R20+R24) -> 0 | T25: =SUM(T20+T24) -> 0 | U25: =SUM(U20+U24) -> 0 | W25: =SUM(W20+W24) -> 0 | X25: =SUM(X20+X24) -> 0 | Z25: =SUM(Z20+Z24) -> 0 | AA25: =SUM(AA20+AA24) -> 0 | AC25: =SUM(AC20+AC24) -> 0 | AD25: =SUM(AD20+AD24) -> 0 | AF25: =SUM(AF20+AF24) -> 0 | AG25: =SUM(AG20+AG24) -> 0
B27: =B23 -> 2016 | C27: =C23 -> 2021
A28: Deemed ST Debt (enter amount) | E28: =E25*$B$28 -> 0 | F28: =F25*$B$28 -> 0 | H28: =H25*$B$28 -> 0 | I28: =I25*$B$28 -> 0 | K28: =K25*$B$28 -> 0 | L28: =L25*$B$28 -> 0 | N28: =N25*$B$28 -> 0 | O28: =O25*$B$28 -> 0 | Q28: =Q25*$B$28 -> 0 | R28: =R25*$B$28 -> 0 | T28: =T25*$C$28 -> 0 | U28: =U25*$C$28 -> 0 | W28: =W25*$C$28 -> 0 | X28: =X25*$C$28 -> 0 | Z28: =Z25*$C$28 -> 0 | AA28: =AA25*$C$28 -> 0 | AC28: =AC25*$C$28 -> 0 | AD28: =AD25*$C$28 -> 0 | AF28: =AF25*$C$28 -> 0 | AG28: =AG25*$C$28 -> 0
A29: Deemed LT Debt (enter amount) | E29: =E25*$B$29 -> 0 | F29: =F25*$B$29 -> 0 | H29: =H25*$B$29 -> 0 | I29: =I25*$B$29 -> 0 | K29: =K25*$B$29 -> 0 | L29: =L25*$B$29 -> 0 | N29: =N25*$B$29 -> 0 | O29: =O25*$B$29 -> 0 | Q29: =Q25*$B$29 -> 0 | R29: =R25*$B$29 -> 0 | T29: =T25*$C$29 -> 0 | U29: =U25*$C$29 -> 0 | W29: =W25*$C$29 -> 0 | X29: =X25*$C$29 -> 0 | Z29: =Z25*$C$29 -> 0 | AA29: =AA25*$C$29 -> 0 | AC29: =AC25*$C$29 -> 0 | AD29: =AD25*$C$29 -> 0 | AF29: =AF25*$C$29 -> 0 | AG29: =AG25*$C$29 -> 0
A30: Deemed Equity (enter amount) | E30: =E25*$B$30 -> 0 | F30: =F25*$B$30 -> 0 | H30: =H25*$B$30 -> 0 | I30: =I25*$B$30 -> 0 | K30: =K25*$B$30 -> 0 | L30: =L25*$B$30 -> 0 | N30: =N25*$B$30 -> 0 | O30: =O25*$B$30 -> 0 | Q30: =Q25*$B$30 -> 0 | R30: =R25*$B$30 -> 0 | T30: =T25*$C$30 -> 0 | U30: =U25*$C$30 -> 0 | W30: =W25*$C$30 -> 0 | X30: =X25*$C$30 -> 0 | Z30: =Z25*$C$30 -> 0 | AA30: =AA25*$C$30 -> 0 | AC30: =AC25*$C$30 -> 0 | AD30: =AD25*$C$30 -> 0 | AF30: =AF25*$C$30 -> 0 | AG30: =AG25*$C$30 -> 0
A32: ST Interest (enter rate) | E32: =E28*$B32 -> 0 | F32: 0 | H32: 0 | I32: 0 | K32: 0 | L32: 0 | N32: 0 | O32: 0 | Q32: 0 | R32: 0 | T32: =T28*$C32 -> 0 | U32: 0 | W32: =W28*$C32 -> 0 | X32: 0 | Z32: =Z28*$C32 -> 0 | AA32: 0 | AC32: =AC28*$C32 -> 0 | AD32: 0 | AF32: =AF28*$C32 -> 0 | AG32: 0
A33: LT Interest (enter rate) | E33: 0 | F33: 0 | H33: 0 | I33: 0 | K33: 0 | L33: 0 | N33: 0 | O33: 0 | Q33: 0 | R33: 0 | T33: 0 | U33: 0 | W33: 0 | X33: 0 | Z33: 0 | AA33: 0 | AC33: 0 | AD33: 0 | AF33: 0 | AG33: 0
A34: Return on Equity (enter rate) | E34: 0 | F34: 0 | H34: 0 | I34: 0 | K34: 0 | L34: 0 | N34: 0 | O34: 0 | Q34: 0 | R34: 0 | T34: 0 | U34: 0 | W34: 0 | X34: 0 | Z34: 0 | AA34: 0 | AC34: 0 | AD34: 0 | AF34: 0 | AG34: 0
A35: Cost of Capital Total | E35: =SUM(E32:E34) -> 0 | F35: =SUM(F32:F34) -> 0 | H35: =SUM(H32:H34) -> 0 | I35: =SUM(I32:I34) -> 0 | K35: =SUM(K32:K34) -> 0 | L35: =SUM(L32:L34) -> 0 | N35: =SUM(N32:N34) -> 0 | O35: =SUM(O32:O34) -> 0 | Q35: =SUM(Q32:Q34) -> 0 | R35: =SUM(R32:R34) -> 0 | T35: =SUM(T32:T34) -> 0 | U35: =SUM(U32:U34) -> 0 | W35: =SUM(W32:W34) -> 0 | X35: =SUM(X32:X34) -> 0 | Z35: =SUM(Z32:Z34) -> 0 | AA35: =SUM(AA32:AA34) -> 0 | AC35: =SUM(AC32:AC34) -> 0 | AD35: =SUM(AD32:AD34) -> 0 | AF35: =SUM(AF32:AF34) -> 0 | AG35: =SUM(AG32:AG34) -> 0
A37: OM&A | E37: =E21+E22 -> 0 | F37: =F22 -> 0 | H37: =H21+H22 -> 0 | I37: =I22 -> 0 | K37: =K21+K22 -> 0 | L37: =L22 -> 0 | N37: =N21+N22 -> 0 | O37: =O22 -> 0 | Q37: =Q21+Q22 -> 0 | R37: =R22 -> 0 | T37: =T21+T22 -> 0 | U37: =U22 -> 0 | W37: =W21+W22 -> 0 | X37: =X22 -> 0 | Z37: =Z21+Z22 -> 0 | AA37: =AA22 -> 0 | AC37: =AC21+AC22 -> 0 | AD37: =AD22 -> 0 | AF37: =AF21+AF22 -> 0 | AG37: =AG22 -> 0
A38: Amortization | D38: =+E77+E78 -> 0 | E38: =D38*E$19 -> 0 | F38: =D38*F$19 -> 0 | G38: =+F77+F78 -> 0 | H38: =G38*H$19 -> 0 | I38: =G38*I$19 -> 0 | J38: =+G77+G78 -> 0 | K38: =J38*K$19 -> 0 | L38: =J38*L$19 -> 0 | M38: =+H77+H78 -> 0 | N38: =M38*N$19 -> 0 | O38: =M38*O$19 -> 0 | P38: =+I77+I78 -> 0 | Q38: =P38*Q$19 -> 0 | R38: =P38*R$19 -> 0 | S38: =+J77+J78 -> 0 | T38: =S38*T$19 -> 0 | U38: =S38*U$19 -> 0 | V38: =+K77+K78 -> 0 | W38: =V38*W$19 -> 0 | X38: =V38*X$19 -> 0 | Y38: =+L77+L78 -> 0 | Z38: =Y38*Z$19 -> 0 | AA38: =Y38*AA$19 -> 0 | AB38: =+M77+M78 -> 0 | AC38: =AB38*AC$19 -> 0 | AD38: =AB38*AD$19 -> 0 | AE38: =+N77+N78 -> 0 | AF38: =AE38*AF$19 -> 0 | AG38: =AE38*AG$19 -> 0
A39: Grossed-up PILs | E39: =+E66 -> 0 | F39: =+F66 -> 0 | H39: =+H66 -> 0 | I39: =+I66 -> 0 | K39: =+K66 -> 0 | L39: =+L66 -> 0 | N39: =+N66 -> 0 | O39: =+O66 -> 0 | Q39: =+Q66 -> 0 | R39: =+R66 -> 0 | T39: =+T66 -> 0 | U39: =+U66 -> 0 | W39: =+W66 -> 0 | X39: =+X66 -> 0 | Z39: =+Z66 -> 0 | AA39: =+AA66 -> 0 | AC39: =+AC66 -> 0 | AD39: =+AD66 -> 0 | AF39: =+AF66 -> 0 | AG39: =+AG66 -> 0
A41: Revenue Requirement | E41: =SUM(E35:E39) -> 0 | F41: =SUM(F35:F39) -> 0 | H41: =SUM(H35:H39) -> 0 | I41: 0 | K41: =SUM(K35:K39) -> 0 | L41: 0 | N41: =SUM(N35:N39) -> 0 | O41: 0 | Q41: =SUM(Q35:Q39) -> 0 | R41: 0 | T41: =SUM(T35:T39) -> 0 | U41: 0 | W41: =SUM(W35:W39) -> 0 | X41: 0 | Z41: =SUM(Z35:Z39) -> 0 | AA41: 0 | AC41: =SUM(AC35:AC39) -> 0 | AD41: 0 | AF41: =SUM(AF35:AF39) -> 0 | AG41: 0
A44: Provincial Rate Protection | F44: =F41 -> 0 | I44: =I41 -> 0 | L44: =L41 -> 0 | O44: =O41 -> 0 | R44: =R41 -> 0 | U44: =U41 -> 0 | X44: =X41 -> 0 | AA44: =AA41 -> 0 | AD44: =AD41 -> 0 | AG44: =AG41 -> 0
A46: Monthly Amount Paid by IESO | F46: =F44/12 -> 0 | I46: =I44/12 -> 0 | L46: =L44/12 -> 0 | O46: =O44/12 -> 0 | R46: =R44/12 -> 0 | U46: =U44/12 -> 0 | X46: =X44/12 -> 0 | AA46: =AA44/12 -> 0 | AD46: =AD44/12 -> 0 | AG46: =AG44/12 -> 0
A48: Note 1: The distributor should follow the regulatory accounting set out in the Accounting Procedure Handbook Guidance FAQs issued in March 2015. Q10 of the APH FAQs states that: “For approved eligible investments as defined under O.Reg. 330/09 under the OEB Act, a variance account will continue to be used for the purpose of recording variances between the revenue requirement based on actual costs of approved eligible investments and the revenue received from the IESO.” The answer for Q10 provides the accounting guidance for this variance account: “Distributors that have included eligible investments to connect qualifying facilities in their DS plans are to establish the variance Account 1533 Renewable Generation Connection Funding Adder Deferral Account, Sub-account Provincial Rate Protection Payment Variances following OEB approval for investments forecast to enter service beyond the test year for purposes of implementing rate protection pursuant to O.Reg. 330/09. The purpose of this variance account is to track the variance between the distributor’s revenue requirement associated with the portion of the actual capital and/or operating costs that are eligible for rate protection, as incurred by the distributor for eligible renewable enabling and expansion investments, and the rate protection payments collected from the IESO.” The answer further provides the journal entries to record the variances. Distributors should follow the instructions in the answer for recording the journal entries in the variance account 1533.
A50: Note 2: For the Test Year, Costs and Revenues of the Direct Benefit are to be included in the test year applicant Rate Base and Revenues.
A52: PILs Calculation | T52: Test Year
E53: =G17-1 -> 2016 | H53: =G17 -> 2017 | K53: =J17 -> 2018 | N53: =M17 -> 2019 | Q53: =P17 -> 2020 | T53: =S17 -> 2021 | W53: =V17 -> 2022 | Z53: =Y17 -> 2023 | AC53: =AB17 -> 2024 | AF53: =AE17 -> 2025
A54: Income Tax | E54: Direct Benefit | F54: Provincial | H54: Direct Benefit | I54: Provincial | K54: Direct Benefit | L54: Provincial | N54: Direct Benefit | O54: Provincial | Q54: Direct Benefit | R54: Provincial | T54: Direct Benefit | U54: Provincial | W54: Direct Benefit | X54: Provincial | Z54: Direct Benefit | AA54: Provincial | AC54: Direct Benefit | AD54: Provincial | AF54: Direct Benefit | AG54: Provincial
AB55: Total | AE55: Total
A56: Net Income - ROE on Rate Base | E56: =E34 -> 0 | F56: =F34 -> 0 | H56: =H34 -> 0 | I56: =I34 -> 0 | K56: =K34 -> 0 | L56: =L34 -> 0 | N56: =N34 -> 0 | O56: =O34 -> 0 | Q56: =Q34 -> 0 | R56: =R34 -> 0 | T56: =T34 -> 0 | U56: =U34 -> 0 | W56: =W34 -> 0 | X56: =X34 -> 0 | Z56: =Z34 -> 0 | AA56: =AA34 -> 0 | AC56: =AC34 -> 0 | AD56: =AD34 -> 0 | AF56: =AF34 -> 0 | AG56: =AG34 -> 0
A57: Amortization (6% DB and 94% P) | E57: =E38 -> 0 | F57: =F38 -> 0 | H57: =H38 -> 0 | I57: =I38 -> 0 | K57: =K38 -> 0 | L57: =L38 -> 0 | N57: =N38 -> 0 | O57: =O38 -> 0 | Q57: =Q38 -> 0 | R57: =R38 -> 0 | T57: =T38 -> 0 | U57: =U38 -> 0 | W57: =W38 -> 0 | X57: =X38 -> 0 | Z57: =Z38 -> 0 | AA57: =AA38 -> 0 | AC57: =AC38 -> 0 | AD57: =AD38 -> 0 | AF57: =AF38 -> 0 | AG57: =AG38 -> 0
A58: CCA (6% DB and 94% P) | E58: =-E95*$E$19 -> 0 | F58: =-E95*$F$19 -> 0 | H58: =-F95*$E$19 -> 0 | I58: =-F95*$F$19 -> 0 | K58: =-G95*$E$19 -> 0 | L58: =-G95*$F$19 -> 0 | N58: =-H95*$E$19 -> 0 | O58: =-H95*$F$19 -> 0 | Q58: =-I95*$E$19 -> 0 | R58: =-I95*$F$19 -> 0 | T58: =-J95*$E$19 -> 0 | U58: =-J95*$F$19 -> 0 | W58: =-K95*$E$19 -> 0 | X58: =-K95*$F$19 -> 0 | Z58: =-L95*$E$19 -> 0 | AA58: =-L95*$F$19 -> 0 | AC58: =-M95*$E$19 -> 0 | AD58: =-M95*$F$19 -> 0 | AF58: =-N95*$E$19 -> 0 | AG58: =-N95*$F$19 -> 0
A59: Taxable income | E59: =SUM(E56:E58) -> 0 | F59: =SUM(F56:F58) -> 0 | H59: =SUM(H56:H58) -> 0 | I59: 0 | K59: =SUM(K56:K58) -> 0 | L59: 0 | N59: =SUM(N56:N58) -> 0 | O59: 0 | Q59: =SUM(Q56:Q58) -> 0 | R59: 0 | T59: =SUM(T56:T58) -> 0 | U59: 0 | W59: =SUM(W56:W58) -> 0 | X59: 0 | Z59: =SUM(Z56:Z58) -> 0 | AA59: =SUM(AA56:AA58) -> 0 | AC59: =SUM(AC56:AC58) -> 0 | AD59: =SUM(AD56:AD58) -> 0 | AF59: =SUM(AF56:AF58) -> 0 | AG59: =SUM(AG56:AG58) -> 0
A61: Tax Rate (to be entered)
A63: Income Taxes Payable | E63: =E59*E61 -> 0 | F63: =F59*F61 -> 0 | H63: =H59*H61 -> 0 | I63: =I59*I61 -> 0 | K63: =K59*K61 -> 0 | L63: =L59*L61 -> 0 | N63: =N59*N61 -> 0 | O63: =O59*O61 -> 0 | Q63: =Q59*Q61 -> 0 | R63: =R59*R61 -> 0 | T63: =T59*T61 -> 0 | U63: =U59*U61 -> 0 | W63: =W59*W61 -> 0 | X63: =X59*X61 -> 0 | Z63: =Z59*Z61 -> 0 | AA63: =AA59*AA61 -> 0 | AC63: =AC59*AC61 -> 0 | AD63: =AD59*AD61 -> 0 | AF63: =AF59*AF61 -> 0 | AG63: =AG59*AG61 -> 0
A64: Gross Up
A65: Income Taxes Payable | E65: =E63/(1-E61) -> 0 | F65: =F63/(1-F61) -> 0 | H65: =H63/(1-H61) -> 0 | I65: =I63/(1-I61) -> 0 | K65: =K63/(1-K61) -> 0 | L65: =L63/(1-L61) -> 0 | N65: =N63/(1-N61) -> 0 | O65: =O63/(1-O61) -> 0 | Q65: =Q63/(1-Q61) -> 0 | R65: =R63/(1-R61) -> 0 | T65: =T63/(1-T61) -> 0 | U65: =U63/(1-U61) -> 0 | W65: =W63/(1-W61) -> 0 | X65: =X63/(1-X61) -> 0 | Z65: =Z63/(1-Z61) -> 0 | AA65: =AA63/(1-AA61) -> 0 | AC65: =AC63/(1-AC61) -> 0 | AD65: =AD63/(1-AD61) -> 0 | AF65: =AF63/(1-AF61) -> 0 | AG65: =AG63/(1-AG61) -> 0
A66: Grossed Up PILs | E66: =+E65 -> 0 | F66: =+F65 -> 0 | H66: =+H65 -> 0 | I66: =+I65 -> 0 | K66: =+K65 -> 0 | L66: 0 | N66: =+N65 -> 0 | O66: 0 | Q66: =+Q65 -> 0 | R66: 0 | T66: =+T65 -> 0 | U66: 0 | W66: =+W65 -> 0 | X66: 0 | Z66: =+Z65 -> 0 | AA66: 0 | AC66: =+AC65 -> 0 | AD66: 0 | AF66: =+AF65 -> 0 | AG66: 0
J68: Test Year
E69: =F69-1 -> 2016 | F69: =G69-1 -> 2017 | G69: =H69-1 -> 2018 | H69: =I69-1 -> 2019 | I69: =J69-1 -> 2020 | J69: ='LDC Info'!E24 -> 2021 | K69: =J69+1 -> 2022 | L69: =K69+1 -> 2023 | M69: =L69+1 -> 2024 | N69: =M69+1 -> 2025
A70: Net Fixed Assets
A71: Enter applicable amortization in years: | B71: 40
A72: Opening Gross Fixed Assets | F72: =E74 -> 0 | G72: 0 | H72: 0 | I72: 0 | J72: 0 | K72: 0 | L72: 0 | M72: 0 | N72: 0
A73: Capital Additions | E73: ='App.2-FA Proposed REG Invest.'!C99 -> 0 | F73: ='App.2-FA Proposed REG Invest.'!D99 -> 0 | G73: ='App.2-FA Proposed REG Invest.'!E99 -> 0 | H73: ='App.2-FA Proposed REG Invest.'!F99 -> 0 | I73: ='App.2-FA Proposed REG Invest.'!G99 -> 0 | J73: ='App.2-FA Proposed REG Invest.'!H99 -> 0 | K73: ='App.2-FA Proposed REG Invest.'!I99 -> 0 | L73: ='App.2-FA Proposed REG Invest.'!J99 -> 0 | M73: ='App.2-FA Proposed REG Invest.'!K99 -> 0 | N73: ='App.2-FA Proposed REG Invest.'!L99 -> 0
A74: Closing Gross Fixed Assets | E74: =SUM(E72:E73) -> 0 | F74: 0 | G74: 0 | H74: 0 | I74: 0 | J74: 0 | K74: 0 | L74: 0 | M74: 0 | N74: 0
A76: Opening Accumulated Amortization | E76: 0 | F76: =+E79 -> 0 | G76: =+F79 -> 0 | H76: 0 | I76: 0 | J76: 0 | K76: 0 | L76: 0 | M76: 0 | N76: 0
A77: Current Year Amortization (before additions) | E77: =IF(ISERROR(E72/$B$71), 0, E72/$B$71) -> 0 | F77: =IF(ISERROR(F72/$B$71), 0, F72/$B$71) -> 0 | G77: 0 | H77: 0 | I77: 0 | J77: 0 | K77: 0 | L77: 0 | M77: 0 | N77: 0
A78: Capital Additions Amortization (half year) | E78: =E73/$B$71/2 -> 0 | F78: =F73/$B$71/2 -> 0 | G78: 0 | H78: 0 | I78: 0 | J78: 0 | K78: 0 | L78: 0 | M78: 0 | N78: 0
A79: Closing Accumulated Amortization | E79: =SUM(E76+E77+E78) -> 0 | F79: 0 | G79: 0 | H79: 0 | I79: 0 | J79: 0 | K79: 0 | L79: 0 | M79: 0 | N79: 0
A81: Opening Net Fixed Assets | E81: =E72-E76 -> 0 | F81: 0 | G81: 0 | H81: 0 | I81: 0 | J81: 0 | K81: 0 | L81: 0 | M81: 0 | N81: 0
A82: Closing Net Fixed Assets | E82: =E74-E79 -> 0 | F82: 0 | G82: 0 | H82: 0 | I82: 0 | J82: 0 | K82: 0 | L82: 0 | M82: 0 | N82: 0
A83: Average Net Fixed Assets | E83: =SUM(E81:E82)/2 -> 0 | F83: 0 | G83: 0 | H83: 0 | I83: 0 | J83: 0 | K83: 0 | L83: 0 | M83: 0 | N83: 0
A85: UCC for PILs Calculation | J85: =J68 -> Test Year
E86: =E69 -> 2016 | F86: =F69 -> 2017 | G86: =G69 -> 2018 | H86: 2019 | I86: 2020 | J86: 2021 | K86: 2022 | L86: 2023 | M86: 2024 | N86: 2025
A88: Opening UCC | E88: =E72 -> 0 | F88: =E96 -> 0 | G88: 0 | H88: 0 | I88: 0 | J88: 0 | K88: 0 | L88: 0 | M88: 0 | N88: 0
A89: Capital Additions | E89: =E73 -> 0 | F89: 0 | G89: 0 | H89: 0 | I89: 0 | J89: 0 | K89: 0 | L89: 0 | M89: 0 | N89: 0
A90: UCC Before Half Year Rule | E90: =SUM(E88:E89) -> 0 | F90: 0 | G90: 0 | H90: 0 | I90: 0 | J90: 0 | K90: 0 | L90: 0 | M90: 0 | N90: 0
A91: Capital Additions (half year) | E91: =E89/2 -> 0 | F91: 0 | G91: 0 | H91: 0 | I91: 0 | J91: 0 | K91: 0 | L91: 0 | M91: 0 | N91: 0
A92: Reduced UCC | E92: =E90-E91 -> 0 | F92: 0 | G92: 0 | H92: 0 | I92: 0 | J92: 0 | K92: 0 | L92: 0 | M92: 0 | N92: 0
A93: CCA Rate Class (to be entered)
A94: CCA Rate (to be entered)
A95: CCA | E95: =E92*$B$94 -> 0 | F95: =F92*$B$94 -> 0 | G95: 0 | H95: 0 | I95: 0 | J95: 0 | K95: 0 | L95: 0 | M95: 0 | N95: 0
A96: Closing UCC | E96: =E90-E95 -> 0 | F96: 0 | G96: 0 | H96: 0 | I96: 0 | J96: 0 | K96: 0 | L96: 0 | M96: 0 | N96: 0

Sheet App.2-G SQI
M1: File Number: | O1: =EBNUMBER -> EB-2020-0059
M2: Exhibit: | O2: 2
M3: Tab:
M4: Schedule: | O4: Table 2-40
M5: Page: | O5: 75
M7: Date: | O7: 2020-06-30
A9: Appendix 2-G
A10: Service Reliability and Quality Indicators
A13: Service Reliability
A15: Index | B15: Including outages caused by loss of supply | G15: Excluding outages caused by loss of supply | L15: Excluding Major Event Days
B16: =TestYear-6 -> 2015 | C16: =TestYear-5 -> 2016 | D16: =TestYear-4 -> 2017 | E16: =TestYear-3 -> 2018 | F16: =TestYear-2 -> 2019 | G16: =B16 -> 2015 | H16: 2016 | I16: 2017 | J16: 2018 | K16: 2019 | L16: 2015 | M16: 2016 | N16: 2017 | O16: 2018 | P16: 2019
A17: SAIDI | B17: 1.053 | C17: 2.867 | D17: 0.863 | E17: 2.086 | F17: 1.126 | G17: 0.893 | H17: 2.601 | I17: 0.86 | J17: 1.833 | K17: 1.079 | L17: 0.688 | M17: 0.709 | N17: 0.761 | O17: 0.918 | P17: 0.85
A18: SAIFI | B18: 1.787 | C18: 2.986 | D18: 1.612 | E18: 1.862 | F18: 1.839 | G18: 1.593 | H18: 2.624 | I18: 1.582 | J18: 1.645 | K18: 1.443 | L18: 1.436 | M18: 1.145 | N18: 1.497 | O18: 1.318 | P18: 1.287
A20: 5 Year Historical Average
A21: SAIDI | F21: =IF(ISERROR(AVERAGE(B17:F17)), "", AVERAGE(B17:F17)) -> 1.599 | K21: =IF(ISERROR(AVERAGE(G17:K17)), "", AVERAGE(G17:K17)) -> 1.4532 | P21: =IF(ISERROR(AVERAGE(L17:P17)), "", AVERAGE(L17:P17)) -> 0.7852
A22: SAIFI | F22: =IF(ISERROR(AVERAGE(B18:F18)), "", AVERAGE(B18:F18)) -> 2.0172 | K22: =IF(ISERROR(AVERAGE(G18:K18)), "", AVERAGE(G18:K18)) -> 1.7774 | P22: =IF(ISERROR(AVERAGE(L18:P18)), "", AVERAGE(L18:P18)) -> 1.3366
A24: SAIDI = System Average Interruption Duration Index
A25: SAIFI = System Average Interruption Frequency Index
A27: Service Quality
A29: Indicator | E29: OEB Minimum Standard | G29: =B16 -> 2015 | H29: =C16 -> 2016 | I29: =D16 -> 2017 | J29: =E16 -> 2018 | K29: =F16 -> 2019
A30: Low Voltage Connections | E30: 0.9 | G30: 1 | H30: 1 | I30: 1 | J30: 1 | K30: 1
A31: High Voltage Connections | E31: 0.9 | G31: 1 | H31: 1 | I31: 1 | J31: 1 | K31: 1
A32: Telephone Accessibility | E32: 0.65 | G32: 0.881 | H32: 0.867 | I32: 0.728 | J32: 0.927 | K32: 0.907
A33: Appointments Met | E33: 0.9 | G33: 1 | H33: 0.981 | I33: 0.964 | J33: 0.9933 | K33: 0.9858
A34: Written Response to Enquires | E34: 0.8 | G34: 1 | H34: 1 | I34: 1 | J34: 1 | K34: 1
A35: Emergency Urban Response | E35: 0.8 | G35: 1 | H35: 1 | I35: 0.9655172414 | J35: 0.9491525424 | K35: 0.9210526316
A36: Emergency Rural Response | E36: 0.8 | G36: 1 | H36: 1 | I36: 1 | J36: 1 | K36: 1
A37: Telephone Call Abandon Rate | E37: 0.1 | G37: 0.041 | H37: 0.046 | I37: 0.037 | J37: 0.0102284887 | K37: 0.005723724647
A38: Appointment Scheduling | E38: 0.9 | G38: 0.9964906808 | H38: 0.9986283624 | I38: 0.9962442725 | J38: 0.9983803795 | K38: 0.8440045734
A39: Rescheduling a Missed Appointment | E39: 1 | G39: 1 | H39: 1 | I39: 1 | J39: 1 | K39: 1
A40: Reconnection Performance Standard | E40: 0.85 | G40: 1 | H40: 1 | I40: 1 | J40: 1 | K40: 1

Sheet App.2-H_Other_Oper_Rev
K1: File Number: | L1: =EBNUMBER -> EB-2020-0059
K2: Exhibit: | L2: 3
K3: Tab:
A4: TO BE UPDATED AT THE DRAFT RATE ORDER STAGE | K4: Schedule: | L4: Table 3-44
K5: Page: | L5: 48
K7: Date: | L7: 2020-06-30
A9: Appendix 2-H
A10: Other Operating Revenue
A12: USoA # | B12: USoA Description | C12: =D13 - 1 &" Actual"&CHAR(178) -> 2012 Actual² | D12: 2013 Actual² | E12: 2014 Actual² | F12: 2015 Actual² | G12: =H13 - 1 &" Actual"&CHAR(178) -> 2016 Actual² | H12: =I13 - 1 &" Actual"&CHAR(178) -> 2017 Actual² | I12: =I13 & " Actual" & CHAR(178) -> 2018 Actual² | J12: =J13& " Actual" -> 2019 Actual | K12: Bridge Year | L12: Test Year | N12: CGAAP
C13: =D13-1 -> 2012 | D13: =E13-1 -> 2013 | E13: =F13-1 -> 2014 | F13: =G13-1 -> 2015 | G13: =H13-1 -> 2016 | H13: =I13-1 -> 2017 | I13: =J13-1 -> 2018 | J13: 2019 | K13: =BridgeYear -> 2020 | L13: =TestYear -> 2021 | N13: Enter Transition Year
B14: Reporting Basis | N14: CGAAP
A15: 4235 | B15: Specific Service Charges | G15: -372400 | H15: -359970 | I15: -403891 | J15: -325427 | K15: -378376 | L15: -382269
A16: 4225 | B16: Late Payment Charges | G16: -271402 | H16: -149436 | I16: -139850 | J16: -139736 | K16: -144453 | L16: -144453
A17: 4082 | B17: Retail Services Revenues | G17: -56603 | H17: -48776.4 | I17: -54417 | J17: -57302 | K17: -57302 | L17: -36000
A18: 4084 | B18: Service Transaction Requests (STR) Revenues | G18: 28866 | H18: 25036 | I18: 26457 | J18: 28651 | K18: 28651 | L18: 18000
A19: 4086 | B19: SSS Admin Revenue | G19: -160364 | H19: -160567 | I19: -168054 | J19: -170109 | K19: -170624 | L19: -172012
A20: 4210 | B20: Rent from Electric Property | G20: -259370 | H20: -264430 | I20: -277568 | J20: -284725 | K20: -268517 | L20: -520319
A21: 4220 | B21: Other Electric Revenues | I21: -2 | J21: -23
A22: 4245 | B22: Government and other assistance directly credited to income | G22: -482437 | H22: -598687 | I22: -673002 | J22: -725656 | K22: -779815 | L22: -847613
A23: 4335 | B23: Profits and Losses from Financial Instrument Hedges | G23: -963028 | H23: -2485079 | I23: -429267 | J23: 1493869
A24: 4355 | B24: Gain on Disposition of Utility and Other Property | G24: 29382 | H24: -8592 | I24: -72578
A25: 4360 | B25: Loss on Disposition of Utility and Other Property | G25: 14796 | H25: 13675 | J25: 54685.19
A26: 4375 | B26: Revenues from Non-Utility Operations | G26: -3872183 | H26: -6419050 | I26: -8666881.06 | J26: -11420249 | K26: -728145 | L26: -872882
A27: 4380 | B27: Expenses of Non-Utility Operations | G27: 3809120 | H27: 6355377 | I27: 8064916 | J27: 11385858 | K27: 695526 | L27: 857809
A28: 4390 | B28: Miscellaneous Non-Operating Income | G28: -188802 | H28: -124925 | I28: -104609 | J28: -78149 | K28: -103178 | L28: -95929
A29: 4405 | B29: Interest and Dividend Income | G29: -71229 | H29: -51816 | I29: -173898 | J29: -133723 | K29: -55000 | L29: -55000
A53: Specific Service Charges | C53: =C15 -> 0 | D53: 0 | E53: 0 | F53: 0 | G53: -372400 | H53: -359970 | I53: -403891 | J53: -325427 | K53: -378376 | L53: -382269 | N53: =N15 -> 0
A54: Late Payment Charges | C54: =C16 -> 0 | D54: 0 | E54: 0 | F54: 0 | G54: -271402 | H54: -149436 | I54: -139850 | J54: -139736 | K54: -144453 | L54: -144453 | N54: =N16 -> 0
A55: Other Operating Revenues | G55: =SUM(G17:G22) -> -929908 | H55: -1047424.4 | I55: -1146586 | J55: -1209164 | K55: -1247607 | L55: -1557944
A56: Other Income or Deductions | G56: =SUM(G23:G29) -> -1241944 | H56: -2720410 | I56: -1382317.06 | J56: 1302291.19 | K56: -190797 | L56: -166002
A57: Total | C57: =SUM(C53:C56) -> 0 | D57: =SUM(D53:D56) -> 0 | E57: =SUM(E53:E56) -> 0 | F57: =SUM(F53:F56) -> 0 | G57: =SUM(G53:G56) -> -2815654 | H57: -4277240.4 | I57: -3072644.06 | J57: -372035.81 | K57: -1961233 | L57: -2250668 | N57: =SUM(N53:N56) -> 0
A59: Description Account(s)
A60: Specific Service Charges: 4235
A61: Late Payment Charges: 4225
A62: Other Distribution Revenues: 4082, 4084, 4090, 4205, 4210, 4215, 4220, 4230, 4240, 4245
A63: Other Income and Expenses: 4305, 4310, 4315, 4320, 4325, 4330, 4335, 4340, 4345, 4350, 4355, 4357, 4360, 4362, 4365, 4370, 4375, 4380, 4385, 4390, 4395, 4398, 4405, 4410, 4415, 4420
A66: Note: Add all applicable accounts listed above to the table and include all relevant information.
A68: Account Breakdown Details
A70: For each "Other Operating Revenue" and "Other Income or Deductions" Account, a detailed breakdown of the account components is required. See the example below for Account 4405, Interest and Dividend Income. Tables for the detailed breakdowns will be generated after cell B89 is filled in.
A73: Example: Account 4405 - Interest and Dividend Income
C74: =C12 -> 2012 Actual² | D74: 2013 Actual² | E74: 2014 Actual² | F74: 2015 Actual² | G74: 2016 Actual² | H74: 2017 Actual² | I74: 2018 Actual² | J74: 2019 Actual | K74: Bridge Year | L74: Test Year | N74: =N12 -> CGAAP
C75: =C13 -> 2012 | D75: 2013 | E75: 2014 | F75: 2015 | G75: 2016 | H75: 2017 | I75: 2018 | J75: =J13 -> 2019 | K75: =K13 -> 2020 | L75: =L13 -> 2021 | N75: =N13 -> Enter Transition Year
A76: Reporting Basis | C76: =IF(C14=0, "", C14) ->  | N76: =IF(N14=0, "", N14) -> CGAAP
A77: Short-term Investment Interest
A78: Bank Deposit Interest
A79: Miscellaneous Interest Revenue
A80: etc.1
A83: Total | C83: =SUM(C77:C82) -> 0 | D83: 0 | E83: 0 | F83: 0 | G83: 0 | H83: 0 | I83: 0 | J83: 0 | K83: 0 | L83: 0 | N83: =SUM(N77:N82) -> 0
A86: Notes:
A87: 1 | B87: List and specify any other interest revenue.
A88: 2 | B88: For applicants rebasing under IFRS for the first time, in the transition year (2014) to IFRS, the applicant is to present information in both MIFRS and CGAAP. In column N, present CGAAP transition year information.
B89: 13 | C89: Enter the number of "Other Operating Revenue" and "Other Income or Deductions" Accounts that require a detailed breakdown of the account components.
A93: 4082 - Retail Services Revenue
C94: =C$12 -> 2012 Actual² | D94: 2013 Actual² | E94: 2014 Actual² | F94: 2015 Actual² | G94: 2016 Actual² | H94: 2017 Actual² | I94: 2018 Actual² | J94: 2019 Actual | K94: Bridge Year | L94: Test Year | N94: =N$12 -> CGAAP
C95: =C$13 -> 2012 | D95: 2013 | E95: 2014 | F95: 2015 | G95: 2016 | H95: 2017 | I95: 2018 | J95: 2019 | K95: 2020 | L95: 2021 | N95: =N$13 -> Enter Transition Year
A96: Reporting Basis | C96: =IF(C34=0, "", C34) ->  | N96: =IF(N$14=0, "", N$14) -> CGAAP
A97: Retail Service Revenue | G97: =G17 -> -56603 | H97: =H17 -> -48776.4 | I97: -54417 | J97: -57302 | K97: -57302 | L97: -36000
A105: Total | C105: =SUM(C97:C104) -> 0 | D105: 0 | E105: 0 | F105: 0 | G105: -56603 | H105: -48776.4 | I105: -54417 | J105: -57302 | K105: -57302 | L105: -36000 | N105: =SUM(N97:N104) -> 0
A107: 4084 - Service Transaction Requests (STR) Revenues
C108: =C$12 -> 2012 Actual² | D108: 2013 Actual² | E108: 2014 Actual² | F108: 2015 Actual² | G108: 2016 Actual² | H108: 2017 Actual² | I108: 2018 Actual² | J108: 2019 Actual | K108: Bridge Year | L108: Test Year | N108: =N$12 -> CGAAP
C109: =C$13 -> 2012 | D109: 2013 | E109: 2014 | F109: 2015 | G109: 2016 | H109: 2017 | I109: 2018 | J109: 2019 | K109: 2020 | L109: 2021 | N109: =N$13 -> Enter Transition Year
A110: Reporting Basis | C110: =IF(C48=0, "", C48) ->  | N110: =IF(N$14=0, "", N$14) -> CGAAP
A111: STR Revenue | G111: =G18 -> 28866 | H111: =H18 -> 25036 | I111: 26457 | J111: 28651 | K111: 28651 | L111: 18000
A119: Total | C119: =SUM(C111:C118) -> 0 | D119: =SUM(D111:D118) -> 0 | E119: =SUM(E111:E118) -> 0 | F119: =SUM(F111:F118) -> 0 | G119: =SUM(G111:G118) -> 28866 | H119: =SUM(H111:H118) -> 25036 | I119: =SUM(I111:I118) -> 26457 | J119: =SUM(J111:J118) -> 28651 | K119: =SUM(K111:K118) -> 28651 | L119: =SUM(L111:L118) -> 18000 | N119: =SUM(N111:N118) -> 0
A121: 4086 - SSS Administration Revenue
C122: =C$12 -> 2012 Actual² | D122: 2013 Actual² | E122: 2014 Actual² | F122: 2015 Actual² | G122: 2016 Actual² | H122: 2017 Actual² | I122: 2018 Actual² | J122: 2019 Actual | K122: Bridge Year | L122: Test Year | N122: =N$12 -> CGAAP
C123: =C$13 -> 2012 | D123: 2013 | E123: 2014 | F123: 2015 | G123: 2016 | H123: 2017 | I123: 2018 | J123: 2019 | K123: 2020 | L123: 2021 | N123: =N$13 -> Enter Transition Year
A124: Reporting Basis | C124: =IF(C62=0, "", C62) ->  | N124: =IF(N$14=0, "", N$14) -> CGAAP
A125: Residential | G125: -143298.29 | H125: -143538.94 | I125: -150115.4315 | J125: -152251.5791 | K125: -152152.875 | L125: -153245.125
A126: GS < 50 kW | G126: -15316.86 | H126: -15215.23 | I126: -16046.86804 | J126: -15965.82145 | K126: -16548.75 | L126: -16784.375
A127: GS > 50 kW | G127: -1763.47 | H127: -1791.74 | I127: -1870.452188 | J127: -1870.497813 | K127: -1901.5 | L127: -1961.5
A128: Embedded Distributor | G128: -3 | H128: -3 | I128: -3 | J128: -3 | K128: -3 | L128: -3
A129: Large User | G129: 3 | H129: -3 | I129: -3 | J129: -3 | K129: -3 | L129: -3
A130: Streetlighting | G130: 15 | H130: -15 | I130: -15 | J130: -15 | K130: -15 | L130: -15
A133: Total | C133: =SUM(C125:C132) -> 0 | D133: =SUM(D125:D132) -> 0 | E133: =SUM(E125:E132) -> 0 | F133: =SUM(F125:F132) -> 0 | G133: =SUM(G125:G132) -> -160363.62 | H133: =SUM(H125:H132) -> -160566.91 | I133: =SUM(I125:I132) -> -168053.7517 | J133: =SUM(J125:J132) -> -170108.8984 | K133: =SUM(K125:K132) -> -170624.125 | L133: =SUM(L125:L132) -> -172012 | N133: =SUM(N125:N132) -> 0
A135: 4210 - Rent from Electric Property
C136: =C$12 -> 2012 Actual² | D136: 2013 Actual² | E136: 2014 Actual² | F136: 2015 Actual² | G136: 2016 Actual² | H136: 2017 Actual² | I136: 2018 Actual² | J136: 2019 Actual | K136: Bridge Year | L136: Test Year | N136: =N$12 -> CGAAP
C137: =C$13 -> 2012 | D137: 2013 | E137: 2014 | F137: 2015 | G137: 2016 | H137: 2017 | I137: 2018 | J137: 2019 | K137: 2020 | L137: 2021 | N137: =N$13 -> Enter Transition Year
A138: Reporting Basis | C138: =IF(C76=0, "", C76) ->  | N138: =IF(N$14=0, "", N$14) -> CGAAP
A139: Rental Property | G139: -4639.4 | H139: -4828.06 | I139: -4991.64 | J139: -4906.45 | K139: -5181 | L139: -5979
A140: Rental Pole | G140: -254730.93 | H140: -259601.99 | I140: -272576.08 | J140: -279819 | K140: -263336 | L140: -514339.74
A147: Total | C147: =SUM(C139:C146) -> 0 | D147: =SUM(D139:D146) -> 0 | E147: =SUM(E139:E146) -> 0 | F147: =SUM(F139:F146) -> 0 | G147: =SUM(G139:G146) -> -259370.33 | H147: =SUM(H139:H146) -> -264430.05 | I147: =SUM(I139:I146) -> -277567.72 | J147: =SUM(J139:J146) -> -284725.45 | K147: =SUM(K139:K146) -> -268517 | L147: =SUM(L139:L146) -> -520318.74 | N147: =SUM(N139:N146) -> 0
A149: 4220 - Other Electric Revenues
C150: =C$12 -> 2012 Actual² | D150: 2013 Actual² | E150: 2014 Actual² | F150: 2015 Actual² | G150: 2016 Actual² | H150: 2017 Actual² | I150: 2018 Actual² | J150: 2019 Actual | K150: Bridge Year | L150: Test Year | N150: =N$12 -> CGAAP
C151: =C$13 -> 2012 | D151: 2013 | E151: 2014 | F151: 2015 | G151: 2016 | H151: 2017 | I151: 2018 | J151: 2019 | K151: 2020 | L151: 2021 | N151: =N$13 -> Enter Transition Year
A152: Reporting Basis | C152: =IF(C90=0, "", C90) ->  | N152: =IF(N$14=0, "", N$14) -> CGAAP
A153: Electric Car Charging | I153: =I21 -> -2 | J153: =J21 -> -23
A161: Total | C161: =SUM(C153:C160) -> 0 | D161: =SUM(D153:D160) -> 0 | E161: =SUM(E153:E160) -> 0 | F161: =SUM(F153:F160) -> 0 | G161: =SUM(G153:G160) -> 0 | H161: =SUM(H153:H160) -> 0 | I161: =SUM(I153:I160) -> -2 | J161: =SUM(J153:J160) -> -23 | K161: =SUM(K153:K160) -> 0 | L161: =SUM(L153:L160) -> 0 | N161: =SUM(N153:N160) -> 0
A163: 4245 - Government and Other Assistance Directly Credited to Income
C164: =C$12 -> 2012 Actual² | D164: 2013 Actual² | E164: 2014 Actual² | F164: 2015 Actual² | G164: 2016 Actual² | H164: 2017 Actual² | I164: 2018 Actual² | J164: 2019 Actual | K164: Bridge Year | L164: Test Year | N164: =N$12 -> CGAAP
C165: =C$13 -> 2012 | D165: 2013 | E165: 2014 | F165: 2015 | G165: 2016 | H165: 2017 | I165: 2018 | J165: 2019 | K165: 2020 | L165: 2021 | N165: =N$13 -> Enter Transition Year
A166: Reporting Basis | C166: =IF(C104=0, "", C104) ->  | N166: =IF(N$14=0, "", N$14) -> CGAAP
A167: Deferred Revenue Amortization | G167: =G22 -> -482437 | H167: =H22 -> -598687 | I167: -673002 | J167: -725656 | K167: -779815 | L167: -847613
A175: Total | C175: =SUM(C167:C174) -> 0 | D175: =SUM(D167:D174) -> 0 | E175: =SUM(E167:E174) -> 0 | F175: =SUM(F167:F174) -> 0 | G175: =SUM(G167:G174) -> -482437 | H175: =SUM(H167:H174) -> -598687 | I175: =SUM(I167:I174) -> -673002 | J175: =SUM(J167:J174) -> -725656 | K175: =SUM(K167:K174) -> -779815 | L175: =SUM(L167:L174) -> -847613 | N175: =SUM(N167:N174) -> 0
A177: 4335 - Profits and Losses from Financial Instrument Hedges
C178: =C$12 -> 2012 Actual² | D178: 2013 Actual² | E178: 2014 Actual² | F178: 2015 Actual² | G178: 2016 Actual² | H178: 2017 Actual² | I178: 2018 Actual² | J178: 2019 Actual | K178: Bridge Year | L178: Test Year | N178: =N$12 -> CGAAP
C179: =C$13 -> 2012 | D179: 2013 | E179: 2014 | F179: 2015 | G179: 2016 | H179: 2017 | I179: 2018 | J179: 2019 | K179: 2020 | L179: 2021 | N179: =N$13 -> Enter Transition Year
A180: Reporting Basis | C180: =IF(C118=0, "", C118) ->  | N180: =IF(N$14=0, "", N$14) -> CGAAP
A181: Unrealized gain/loss / Derivatives | G181: =G23 -> -963028 | H181: =H23 -> -2485079 | I181: -429267 | J181: 1493869 | K181: 0 | L181: 0
A189: Total | C189: =SUM(C181:C188) -> 0 | D189: =SUM(D181:D188) -> 0 | E189: =SUM(E181:E188) -> 0 | F189: =SUM(F181:F188) -> 0 | G189: =SUM(G181:G188) -> -963028 | H189: =SUM(H181:H188) -> -2485079 | I189: =SUM(I181:I188) -> -429267 | J189: =SUM(J181:J188) -> 1493869 | K189: =SUM(K181:K188) -> 0 | L189: =SUM(L181:L188) -> 0 | N189: =SUM(N181:N188) -> 0
A191: 4355 - Gain on Disposition of Utility and Other Property
C192: =C$12 -> 2012 Actual² | D192: 2013 Actual² | E192: 2014 Actual² | F192: 2015 Actual² | G192: 2016 Actual² | H192: 2017 Actual² | I192: 2018 Actual² | J192: 2019 Actual | K192: Bridge Year | L192: Test Year | N192: =N$12 -> CGAAP
C193: =C$13 -> 2012 | D193: 2013 | E193: 2014 | F193: 2015 | G193: 2016 | H193: 2017 | I193: 2018 | J193: 2019 | K193: 2020 | L193: 2021 | N193: =N$13 -> Enter Transition Year
A194: Reporting Basis | C194: =IF(C132=0, "", C132) ->  | N194: =IF(N$14=0, "", N$14) -> CGAAP
A195: Disposition of Property | G195: 29381.89 | H195: 35495 | I195: -72578.06
A196: Disposition of Pooled Assets | G196: 0 | H196: -44086.51
A203: Total | C203: =SUM(C195:C202) -> 0 | D203: =SUM(D195:D202) -> 0 | E203: =SUM(E195:E202) -> 0 | F203: =SUM(F195:F202) -> 0 | G203: =SUM(G195:G202) -> 29381.89 | H203: =SUM(H195:H202) -> -8591.51 | I203: =SUM(I195:I202) -> -72578.06 | J203: =SUM(J195:J202) -> 0 | K203: =SUM(K195:K202) -> 0 | L203: =SUM(L195:L202) -> 0 | N203: =SUM(N195:N202) -> 0
A205: 4360 - Loss on Disposition of Utility and Other Property
C206: =C$12 -> 2012 Actual² | D206: 2013 Actual² | E206: 2014 Actual² | F206: 2015 Actual² | G206: 2016 Actual² | H206: 2017 Actual² | I206: 2018 Actual² | J206: 2019 Actual | K206: Bridge Year | L206: Test Year | N206: =N$12 -> CGAAP
C207: =C$13 -> 2012 | D207: 2013 | E207: 2014 | F207: 2015 | G207: 2016 | H207: 2017 | I207: 2018 | J207: 2019 | K207: 2020 | L207: 2021 | N207: =N$13 -> Enter Transition Year
A208: Reporting Basis | C208: =IF(C146=0, "", C146) ->  | N208: =IF(N$14=0, "", N$14) -> CGAAP
A209: Disposition of Property | G209: =G25 -> 14796 | H209: =H25 -> 13675 | I209: 0 | J209: 54685.19
A210: Disposition of Pooled Assets
A217: Total | C217: =SUM(C209:C216) -> 0 | D217: =SUM(D209:D216) -> 0 | E217: =SUM(E209:E216) -> 0 | F217: =SUM(F209:F216) -> 0 | G217: =SUM(G209:G216) -> 14796 | H217: =SUM(H209:H216) -> 13675 | I217: =SUM(I209:I216) -> 0 | J217: =SUM(J209:J216) -> 54685.19 | K217: =SUM(K209:K216) -> 0 | L217: =SUM(L209:L216) -> 0 | N217: =SUM(N209:N216) -> 0
A219: 4375 - Revenues from Non Rate-Regulated Utility Operations
C220: =C$12 -> 2012 Actual² | D220: 2013 Actual² | E220: 2014 Actual² | F220: 2015 Actual² | G220: 2016 Actual² | H220: 2017 Actual² | I220: 2018 Actual² | J220: 2019 Actual | K220: Bridge Year | L220: Test Year | N220: =N$12 -> CGAAP
C221: =C$13 -> 2012 | D221: 2013 | E221: 2014 | F221: 2015 | G221: 2016 | H221: 2017 | I221: 2018 | J221: 2019 | K221: 2020 | L221: 2021 | N221: =N$13 -> Enter Transition Year
A222: Reporting Basis | C222: =IF(C160=0, "", C160) ->  | N222: =IF(N$14=0, "", N$14) -> CGAAP
A223: Streetlight Cons. & Maint. - Affiliate | G223: -760702.89 | H223: -994598.73 | I223: -754901.96 | J223: -436532.64 | K223: -670015 | L223: -831143
A224: Streetlight Cons. & Maint. - Non-Affiliate | G224: -113569.56 | H224: 97577.1 | I224: 29361.62 | J224: -110261.99 | K224: 0 | L224: 0
A225: CDM Revenue | G225: -2892972.91 | H225: -5427525.61 | I225: -7716662.23 | J225: -10813509.42 | K225: 0 | L225: 0
A226: AFT Revenue | I226: -125493
A227: Other | G227: -104937.27 | H227: -94502.27 | I227: -99185.61 | J227: -59945 | K227: -58130 | L227: -41739
A231: Total | C231: =SUM(C223:C230) -> 0 | D231: =SUM(D223:D230) -> 0 | E231: =SUM(E223:E230) -> 0 | F231: =SUM(F223:F230) -> 0 | G231: =SUM(G223:G230) -> -3872182.63 | H231: =SUM(H223:H230) -> -6419049.51 | I231: =SUM(I223:I230) -> -8666881.18 | J231: =SUM(J223:J230) -> -11420249.05 | K231: =SUM(K223:K230) -> -728145 | L231: =SUM(L223:L230) -> -872882 | N231: =SUM(N223:N230) -> 0
A233: 4380 - Expenses of Non Rate-Regulated Utility Operations
C234: =C$12 -> 2012 Actual² | D234: 2013 Actual² | E234: 2014 Actual² | F234: 2015 Actual² | G234: 2016 Actual² | H234: 2017 Actual² | I234: 2018 Actual² | J234: 2019 Actual | K234: Bridge Year | L234: Test Year | N234: =N$12 -> CGAAP
C235: =C$13 -> 2012 | D235: 2013 | E235: 2014 | F235: 2015 | G235: 2016 | H235: 2017 | I235: 2018 | J235: 2019 | K235: 2020 | L235: 2021 | N235: =N$13 -> Enter Transition Year
A236: Reporting Basis | C236: =IF(C174=0, "", C174) ->  | N236: =IF(N$14=0, "", N$14) -> CGAAP
A237: Streetlight Cons. & Maint. - Affiliate | G237: 760702.89 | H237: 994598.73 | I237: 754901.96 | J237: 436532.64 | K237: 670015 | L237: 831143
A238: Streetlight Cons. & Maint. - Non-Affiliate | G238: 113569.56 | H238: -97577.1 | I238: -29361.62 | J238: 110261.99 | K238: 0 | L238: 0
A239: CDM Revenue | G239: 2892972.91 | H239: 5427525.61 | I239: 7179908.23 | J239: 10813509.42 | K239: 0 | L239: 0
A240: AFT Revenue | G240: 0 | H240: 0 | I240: 125493 | K240: 0 | L240: 0
A241: Other | G241: 41875.07 | H241: 30829.89 | I241: 33974.92 | J241: 25554 | K241: 25511 | L241: 26666
A245: Total | C245: =SUM(C237:C244) -> 0 | D245: =SUM(D237:D244) -> 0 | E245: =SUM(E237:E244) -> 0 | F245: =SUM(F237:F244) -> 0 | G245: =SUM(G237:G244) -> 3809120.43 | H245: =SUM(H237:H244) -> 6355377.13 | I245: =SUM(I237:I244) -> 8064916.49 | J245: =SUM(J237:J244) -> 11385858.05 | K245: =SUM(K237:K244) -> 695526 | L245: =SUM(L237:L244) -> 857809 | N245: =SUM(N237:N244) -> 0
A247: 4390 - Miscellaneous Non-Operating Income
C248: =C$12 -> 2012 Actual² | D248: 2013 Actual² | E248: 2014 Actual² | F248: 2015 Actual² | G248: 2016 Actual² | H248: 2017 Actual² | I248: 2018 Actual² | J248: 2019 Actual | K248: Bridge Year | L248: Test Year | N248: =N$12 -> CGAAP
C249: =C$13 -> 2012 | D249: 2013 | E249: 2014 | F249: 2015 | G249: 2016 | H249: 2017 | I249: 2018 | J249: 2019 | K249: 2020 | L249: 2021 | N249: =N$13 -> Enter Transition Year
A250: Reporting Basis | C250: =IF(C188=0, "", C188) ->  | N250: =IF(N$14=0, "", N$14) -> CGAAP
A251: Sale of Scrap | G251: =G28 -> -188802 | H251: =H28 -> -124925 | I251: -104609 | J251: -78149 | K251: -103178 | L251: -95929
A259: Total | C259: =SUM(C251:C258) -> 0 | D259: =SUM(D251:D258) -> 0 | E259: =SUM(E251:E258) -> 0 | F259: =SUM(F251:F258) -> 0 | G259: =SUM(G251:G258) -> -188802 | H259: =SUM(H251:H258) -> -124925 | I259: =SUM(I251:I258) -> -104609 | J259: =SUM(J251:J258) -> -78149 | K259: =SUM(K251:K258) -> -103178 | L259: =SUM(L251:L258) -> -95929 | N259: =SUM(N251:N258) -> 0
A261: 4405 - Interest and Dividend Income
C262: =C$12 -> 2012 Actual² | D262: 2013 Actual² | E262: 2014 Actual² | F262: 2015 Actual² | G262: 2016 Actual² | H262: 2017 Actual² | I262: 2018 Actual² | J262: 2019 Actual | K262: Bridge Year | L262: Test Year | N262: =N$12 -> CGAAP
C263: =C$13 -> 2012 | D263: 2013 | E263: 2014 | F263: 2015 | G263: 2016 | H263: 2017 | I263: 2018 | J263: 2019 | K263: 2020 | L263: 2021 | N263: =N$13 -> Enter Transition Year
A264: Reporting Basis | C264: =IF(C202=0, "", C202) ->  | N264: =IF(N$14=0, "", N$14) -> CGAAP
A265: Bank Interest | G265: -8442.99 | H265: -30976.89 | I265: -81751.16 | J265: -52708.32 | K265: -30000 | L265: -30000
A266: Other | G266: -62786.24 | H266: -20839.55 | I266: =-91850.97-296 -> -92146.97 | J266: -81014.51 | K266: -25000 | L266: -25000
A273: Total | C273: =SUM(C265:C272) -> 0 | D273: =SUM(D265:D272) -> 0 | E273: =SUM(E265:E272) -> 0 | F273: =SUM(F265:F272) -> 0 | G273: =SUM(G265:G272) -> -71229.23 | H273: =SUM(H265:H272) -> -51816.44 | I273: =SUM(I265:I272) -> -173898.13 | J273: =SUM(J265:J272) -> -133722.83 | K273: =SUM(K265:K272) -> -55000 | L273: =SUM(L265:L272) -> -55000 | N273: =SUM(N265:N272) -> 0
C276: =C$12 -> 2012 Actual² | D276: 2013 Actual² | E276: 2014 Actual² | F276: 2015 Actual² | G276: 2016 Actual² | H276: 2017 Actual² | I276: 2018 Actual² | J276: 2019 Actual | K276: Bridge Year | L276: Test Year | N276: =N$12 -> CGAAP
C277: =C$13 -> 2012 | D277: 2013 | E277: 2014 | F277: 2015 | G277: 2016 | H277: 2017 | I277: 2018 | J277: 2019 | K277: 2020 | L277: 2021 | N277: =N$13 -> Enter Transition Year
A278: Reporting Basis | C278: =IF(C216=0, "", C216) ->  | N278: =IF(N$14=0, "", N$14) -> CGAAP
A287: Total | C287: =SUM(C279:C286) -> 0 | D287: =SUM(D279:D286) -> 0 | E287: =SUM(E279:E286) -> 0 | F287: =SUM(F279:F286) -> 0 | G287: =SUM(G279:G286) -> 0 | H287: =SUM(H279:H286) -> 0 | I287: =SUM(I279:I286) -> 0 | J287: =SUM(J279:J286) -> 0 | K287: =SUM(K279:K286) -> 0 | L287: =SUM(L279:L286) -> 0 | N287: =SUM(N279:N286) -> 0
C290: =C$12 -> 2012 Actual² | D290: 2013 Actual² | E290: 2014 Actual² | F290: 2015 Actual² | G290: 2016 Actual² | H290: 2017 Actual² | I290: 2018 Actual² | J290: 2019 Actual | K290: Bridge Year | L290: Test Year | N290: =N$12 -> CGAAP
C291: =C$13 -> 2012 | D291: 2013 | E291: 2014 | F291: 2015 | G291: 2016 | H291: 2017 | I291: 2018 | J291: 2019 | K291: 2020 | L291: 2021 | N291: =N$13 -> Enter Transition Year
A292: Reporting Basis | C292: =IF(C230=0, "", C230) ->  | N292: =IF(N$14=0, "", N$14) -> CGAAP
A301: Total | C301: =SUM(C293:C300) -> 0 | D301: =SUM(D293:D300) -> 0 | E301: =SUM(E293:E300) -> 0 | F301: =SUM(F293:F300) -> 0 | G301: =SUM(G293:G300) -> 0 | H301: =SUM(H293:H300) -> 0 | I301: =SUM(I293:I300) -> 0 | J301: =SUM(J293:J300) -> 0 | K301: =SUM(K293:K300) -> 0 | L301: =SUM(L293:L300) -> 0 | N301: =SUM(N293:N300) -> 0
C304: =C$12 -> 2012 Actual² | D304: 2013 Actual² | E304: 2014 Actual² | F304: 2015 Actual² | G304: 2016 Actual² | H304: 2017 Actual² | I304: 2018 Actual² | J304: 2019 Actual | K304: Bridge Year | L304: Test Year | N304: =N$12 -> CGAAP
C305: =C$13 -> 2012 | D305: 2013 | E305: 2014 | F305: 2015 | G305: 2016 | H305: 2017 | I305: 2018 | J305: 2019 | K305: 2020 | L305: 2021 | N305: =N$13 -> Enter Transition Year
A306: Reporting Basis | C306: =IF(C244=0, "", C244) ->  | N306: =IF(N$14=0, "", N$14) -> CGAAP
A315: Total | C315: =SUM(C307:C314) -> 0 | D315: =SUM(D307:D314) -> 0 | E315: =SUM(E307:E314) -> 0 | F315: =SUM(F307:F314) -> 0 | G315: =SUM(G307:G314) -> 0 | H315: =SUM(H307:H314) -> 0 | I315: =SUM(I307:I314) -> 0 | J315: =SUM(J307:J314) -> 0 | K315: =SUM(K307:K314) -> 0 | L315: =SUM(L307:L314) -> 0 | N315: =SUM(N307:N314) -> 0
C318: =C$12 -> 2012 Actual² | D318: 2013 Actual² | E318: 2014 Actual² | F318: 2015 Actual² | G318: 2016 Actual² | H318: 2017 Actual² | I318: 2018 Actual² | J318: 2019 Actual | K318: Bridge Year | L318: Test Year | N318: =N$12 -> CGAAP
C319: =C$13 -> 2012 | D319: 2013 | E319: 2014 | F319: 2015 | G319: 2016 | H319: 2017 | I319: 2018 | J319: 2019 | K319: 2020 | L319: 2021 | N319: =N$13 -> Enter Transition Year
A320: Reporting Basis | C320: =IF(C258=0, "", C258) ->  | N320: =IF(N$14=0, "", N$14) -> CGAAP
A329: Total | C329: =SUM(C321:C328) -> 0 | D329: =SUM(D321:D328) -> 0 | E329: =SUM(E321:E328) -> 0 | F329: =SUM(F321:F328) -> 0 | G329: =SUM(G321:G328) -> 0 | H329: =SUM(H321:H328) -> 0 | I329: =SUM(I321:I328) -> 0 | J329: =SUM(J321:J328) -> 0 | K329: =SUM(K321:K328) -> 0 | L329: =SUM(L321:L328) -> 0 | N329: =SUM(N321:N328) -> 0
C332: =C$12 -> 2012 Actual² | D332: 2013 Actual² | E332: 2014 Actual² | F332: 2015 Actual² | G332: 2016 Actual² | H332: 2017 Actual² | I332: 2018 Actual² | J332: 2019 Actual | K332: Bridge Year | L332: Test Year | N332: =N$12 -> CGAAP
C333: =C$13 -> 2012 | D333: 2013 | E333: 2014 | F333: 2015 | G333: 2016 | H333: 2017 | I333: 2018 | J333: 2019 | K333: 2020 | L333: 2021 | N333: =N$13 -> Enter Transition Year
A334: Reporting Basis | C334: =IF(C272=0, "", C272) ->  | N334: =IF(N$14=0, "", N$14) -> CGAAP
A343: Total | C343: =SUM(C335:C342) -> 0 | D343: =SUM(D335:D342) -> 0 | E343: =SUM(E335:E342) -> 0 | F343: =SUM(F335:F342) -> 0 | G343: =SUM(G335:G342) -> 0 | H343: =SUM(H335:H342) -> 0 | I343: =SUM(I335:I342) -> 0 | J343: =SUM(J335:J342) -> 0 | K343: =SUM(K335:K342) -> 0 | L343: =SUM(L335:L342) -> 0 | N343: =SUM(N335:N342) -> 0
C346: =C$12 -> 2012 Actual² | D346: 2013 Actual² | E346: 2014 Actual² | F346: 2015 Actual² | G346: 2016 Actual² | H346: 2017 Actual² | I346: 2018 Actual² | J346: 2019 Actual | K346: Bridge Year | L346: Test Year | N346: =N$12 -> CGAAP
C347: =C$13 -> 2012 | D347: 2013 | E347: 2014 | F347: 2015 | G347: 2016 | H347: 2017 | I347: 2018 | J347: 2019 | K347: 2020 | L347: 2021 | N347: =N$13 -> Enter Transition Year
A348: Reporting Basis | C348: =IF(C286=0, "", C286) ->  | N348: =IF(N$14=0, "", N$14) -> CGAAP
A357: Total | C357: =SUM(C349:C356) -> 0 | D357: =SUM(D349:D356) -> 0 | E357: =SUM(E349:E356) -> 0 | F357: =SUM(F349:F356) -> 0 | G357: =SUM(G349:G356) -> 0 | H357: =SUM(H349:H356) -> 0 | I357: =SUM(I349:I356) -> 0 | J357: =SUM(J349:J356) -> 0 | K357: =SUM(K349:K356) -> 0 | L357: =SUM(L349:L356) -> 0 | N357: =SUM(N349:N356) -> 0
C360: =C$12 -> 2012 Actual² | D360: 2013 Actual² | E360: 2014 Actual² | F360: 2015 Actual² | G360: 2016 Actual² | H360: 2017 Actual² | I360: 2018 Actual² | J360: 2019 Actual | K360: Bridge Year | L360: Test Year | N360: =N$12 -> CGAAP
C361: =C$13 -> 2012 | D361: 2013 | E361: 2014 | F361: 2015 | G361: 2016 | H361: 2017 | I361: 2018 | J361: 2019 | K361: 2020 | L361: 2021 | N361: =N$13 -> Enter Transition Year
A362: Reporting Basis | C362: =IF(C300=0, "", C300) ->  | N362: =IF(N$14=0, "", N$14) -> CGAAP
A371: Total | C371: =SUM(C363:C370) -> 0 | D371: =SUM(D363:D370) -> 0 | E371: =SUM(E363:E370) -> 0 | F371: =SUM(F363:F370) -> 0 | G371: =SUM(G363:G370) -> 0 | H371: =SUM(H363:H370) -> 0 | I371: =SUM(I363:I370) -> 0 | J371: =SUM(J363:J370) -> 0 | K371: =SUM(K363:K370) -> 0 | L371: =SUM(L363:L370) -> 0 | N371: =SUM(N363:N370) -> 0
C374: =C$12 -> 2012 Actual² | D374: 2013 Actual² | E374: 2014 Actual² | F374: 2015 Actual² | G374: 2016 Actual² | H374: 2017 Actual² | I374: 2018 Actual² | J374: 2019 Actual | K374: Bridge Year | L374: Test Year | N374: =N$12 -> CGAAP
